Workbook

Sheet Table of Contents
C3: Sheet Tab | D3: Description | E3: Author
B4: 1 | C4: Table of Contents
B5: 2 | C5: Monthly Prices
B6: 3 | C6: Base Sheet
B7: 4 | C7: Offset Chart
B8: 5 | C8: Scatter
B9: 6 | C9: Distribution Chart
B10: 7 | C10: Distribution Chart 1
B11: 8 | C11: 12 Month Moving Volatility
B12: 9 | C12: Chart6
B13: 10 | C13: Volatility
B14: 11 | C14: Distributions
B15: 12 | C15: regression
B16: 13 | C16: Offset
B17: 14 | C17: Misc
B18: 15 | C18: Chart with NA Method
B20: File Name: | D20: C:\Users\Monika\Documents\Courses\Chapter 1. Models and Analysis\8. Data Retrivial\Commodity Price Analysis.xlsm
B22: Colour Codes
B24: Last Save Date
B25: Last Save By
B28: General Page | D28: http://www.worldbank.org/en/research/commodity-markets
B29: Current Download | D29: https://thedocs.worldbank.org/en/doc/5d903e848db1d1b83e0ec8f744e55570-0350012021/related/CMO-Historical-Data-Monthly.xlsx
D30: https://thedocs.worldbank.org/en/doc/5d903e848db1d1b83e0ec8f744e55570-0350012021/related/CMO-Historical-Data-Monthly.xlsx

Sheet Monthly Historic Chart
M1: Series 1
M2: Series 2
M4: Start
M6: End
N9: 1 Year
N11: 5 Year

Sheet Prices for Graph
G3: Index Num | T3: Offset Parameters
C4: First Series | G4: 1 | I4: =INDEX('Monthly Prices'!B5:CB5,$G$4)&" "&INDEX('Monthly Prices'!B6:CE6,G4) -> Crude oil, average ($/bbl) | K4: Begin | M4: 443 | N4: =INDEX($D$20:$D$766,M4) -> 1996-11-01 | U4: =INDEX('Monthly Prices'!$B$5:$CB$5,G4) -> Crude oil, average | V4: =INDEX('Monthly Prices'!$B$5:$CB$5,G5) -> Liquefied natural gas, Japan
C5: Second Series | G5: 9 | I5: =INDEX('Monthly Prices'!B5:CB5,$G$5)&" "&INDEX('Monthly Prices'!B6:CE6,G5) -> Liquefied natural gas, Japan ($/mmbtu) | K5: End | M5: 751 | N5: =INDEX($D$20:$D$1000,M5) -> 2022-07-01 | U5: First | V5: Second
T6: Row | U6: =M4 -> 443 | V6: =U6 -> 443
T7: Column | U7: =G4 -> 1 | V7: =G5 -> 9
C8: Correlation | E8: =CORREL(First,Second) -> 0.8793508568 | T8: Height | U8: =M5-M4+1 -> 309 | V8: =U8 -> 309
T9: Width | U9: 1 | V9: 1
C10: Number Analysed | E10: =COUNTIF(H20:H664,TRUE) -> 203
C12: Last Row | E12: =MATCH(N5,D20:D815,0) -> 751 | K12: =INDEX(B$3:B$16,K13) ->  | N12: =INDEX(B$3:B$16,N13) ->  | T12: Graph Titles
C13: ="Last Value of "&J18 -> Last Value of Crude oil, average | E13: =INDEX(K20:K815,E12) -> 105.0833333 | K13: =MATCH(TRUE,J$3:J$16,0) ->  | N13: =MATCH(TRUE,M$3:M$16) -> 
C14: ="Last Value of "&M18 -> Last Value of Liquefied natural gas, Japan | E14: =INDEX(N20:N815,E12-1) -> 15.63145174 | T14: =I4 -> Crude oil, average ($/bbl) | V14: Volatility | W14: =V17 -> 0.3349394733 | Z14: =CHAR(13) ->  | AD14: =I5 -> Liquefied natural gas, Japan ($/mmbtu) | AF14: Volatility | AG14: =W17 -> 0.1837707759 | AI14: Correlation | AK14: =E8 -> 0.8793508568 | AL14: =CHAR(13) ->  | AM14: =C13 -> Last Value of Crude oil, average | AO14: =E13 -> 105.0833333 | AP14: =C14 -> Last Value of Liquefied natural gas, Japan | AQ14: =E14 -> 15.63145174
X16: US Implicit Deflator | AB16: =MAX(AB20:AB815) -> 2022-07-01 | AC16: =MATCH(AB16,AB20:AB815,0) -> 751
C17: Apply Real | E17: TRUE | V17: =_xlfn.STDEV.S(V21:V815)*(12^0.5) -> 0.3349394733 | W17: =_xlfn.STDEV.S(W21:W815)*(12^0.5) -> 0.1837707759 | AB17: Last infl | AC17: =INDEX(Z20:Z815,AC16) -> 6.25588469
C18: Date | D18: Date | E18: Number | F18: First Date Switch | G18: Last Date Switch | H18: Combined Date Switch | I18: Date NA | J18: =U4 -> Crude oil, average | K18: =I4& " N/A" -> Crude oil, average ($/bbl) N/A | L18: Number Test | M18: =V4 -> Liquefied natural gas, Japan | N18: =I5 -> Liquefied natural gas, Japan ($/mmbtu) | O18: Number Test | P18: Year | Q18: Nominal Oil Price | R18: Nominal Annual | S18: Real Oil Price | T18: Inflation Index | U18: Inflation Rate Applied | V18: =K18& " Pct Change" -> Crude oil, average ($/bbl) N/A Pct Change | W18: =N18&" Pct Change" -> Liquefied natural gas, Japan ($/mmbtu) Pct Change | X18: US Implicit Price Deflator Annual | Y18: US Implicit Price Deflator Monthly | Z18: Deflator Index | AA18: Date Text Length | AB18: Date without Blanks | AC18: Inflation Recripricoal
U19: =E17 -> TRUE | Z19: 1
C20: ='Monthly Prices'!A8 -> 1960M01 | D20: 1960-01-01 | E20: 1 | F20: =AND(E20>=$M$4,L20) -> FALSE | G20: =AND(E20<=$M$5,O20) -> FALSE | H20: =AND(F20:G20) -> FALSE | I20: =IF(H20,D20,NA) ->  | J20: =INDEX('Monthly Prices'!B8:CB8,$G$4) -> 1.630000114 | K20: =IF(H20,INDEX('Monthly Prices'!B8:CB8,$G$4)*U20,FALSE) -> FALSE | L20: =AND(ISNUMBER(J20),J20>0) -> TRUE | M20: =INDEX('Monthly Prices'!B8:CB8,$G$5) -> .. | N20: =IF(H20,INDEX('Monthly Prices'!B8:CB8,$G$5)*U20,FALSE) -> FALSE | O20: =AND(ISNUMBER(M20),M20>0) -> FALSE | P20: =YEAR(D20) -> 1960 | Q20: ='Monthly Prices'!B8 -> 1.630000114 | R20: =AVERAGEIF(P:P,P20,Q:Q) -> 1.630000114 | S20: =_xlfn.XLOOKUP(P20,'Annual Real'!A:A,'Annual Real'!B:B,0,0) -> 8.514978123 | T20: =AC20 -> 6.249669133 | U20: =IF($U$19,T20,1) -> 6.249669133 | X20: =LOOKUP(D20,INDIRECT("'"&$X$16&"'!A:A"),INDIRECT("'"&$X$16&"'!B:B")/100) -> 0.012 | Y20: =(1+X20)^(1/12)-1 -> 0.0009945418011 | Z20: =Z19*(1+Y20) -> 1.000994542 | AA20: =LEN(C20) -> 7 | AB20: =IF(AA20>2,D20,0) -> 1960-01-01 | AC20: =$AC$17/Z20 -> 6.249669133 | AE20: 12 Month Rolling Volatility | AH20: =T14 -> Crude oil, average ($/bbl) | AK20: Volatility over Period | AM20: ='Monthly Historic Data'!F7 -> 0.3339963351 | AN20: Annual Volatilty | AP20: ='Monthly Historic Data'!H7 -> 0.2847494291
C21: ='Monthly Prices'!A9 -> 1960M02 | D21: =EDATE(D20,1) -> 1960-02-01 | E21: =E20+1 -> 2 | F21: FALSE | G21: FALSE | H21: FALSE | J21: =INDEX('Monthly Prices'!B9:CB9,$G$4) -> 1.630000114 | K21: =IF(H21,INDEX('Monthly Prices'!B9:CB9,$G$4)*U21,FALSE) -> FALSE | L21: =ISNUMBER(J21) -> TRUE | M21: =INDEX('Monthly Prices'!B9:CB9,$G$5) -> .. | N21: =IF(H21,INDEX('Monthly Prices'!B9:CB9,$G$5)*U21,FALSE) -> FALSE | O21: FALSE | P21: =YEAR(D21) -> 1960 | Q21: ='Monthly Prices'!B9 -> 1.630000114 | R21: =AVERAGEIF(P:P,P21,Q:Q) -> 1.630000114 | S21: =_xlfn.XLOOKUP(P21,'Annual Real'!A:A,'Annual Real'!B:B,0,0) -> 8.514978123 | T21: =AC21 -> 6.243459751 | U21: =IF($U$19,T21,1) -> 6.243459751 | V21: =IF(AND($H20,$H21),LN(K21/K20)) -> FALSE | W21: =IF(AND($H20,$H21),LN(N21/N20)) -> FALSE | X21: =LOOKUP(D21,'US Implicit Deflator'!A:A,'US Implicit Deflator'!B:B)/100 -> 0.012 | Y21: =(1+X21)^(1/12)-1 -> 0.0009945418011 | Z21: =Z20*(1+Y21) -> 1.001990073 | AA21: =LEN(C21) -> 7 | AB21: =IF(AA21>2,D21,0) -> 1960-02-01 | AC21: =$AC$17/Z21 -> 6.243459751 | AE21: 12 Month Rolling Volatility | AH21: =I5 -> Liquefied natural gas, Japan ($/mmbtu) | AK21: Volatility over Period | AM21: ='Monthly Historic Data'!T7 -> 0.1838572652 | AN21: Annual Volatilty | AP21: ='Monthly Historic Data'!AF9 -> 0.2360860025
C22: ='Monthly Prices'!A10 -> 1960M03 | D22: 1960-03-01 | E22: 3 | F22: FALSE | G22: FALSE | H22: FALSE | J22: =INDEX('Monthly Prices'!B10:CB10,$G$4) -> 1.630000114 | K22: =IF(H22,INDEX('Monthly Prices'!B10:CB10,$G$4)*U22,FALSE) -> FALSE | L22: TRUE | M22: =INDEX('Monthly Prices'!B10:CB10,$G$5) -> .. | N22: =IF(H22,INDEX('Monthly Prices'!B10:CB10,$G$5)*U22,FALSE) -> FALSE | O22: FALSE | P22: 1960 | Q22: ='Monthly Prices'!B10 -> 1.630000114 | R22: 1.630000114 | S22: =_xlfn.XLOOKUP(P22,'Annual Real'!A:A,'Annual Real'!B:B,0,0) -> 8.514978123 | T22: 6.237256539 | U22: 6.237256539 | V22: =IF(AND(H21,H22),LN(K22/K21)) -> FALSE | W22: =IF(AND($H21,$H22),LN(N22/N21)) -> FALSE | X22: =LOOKUP(D22,'US Implicit Deflator'!A:A,'US Implicit Deflator'!B:B)/100 -> 0.012 | Y22: 0.0009945418011 | Z22: 1.002986594 | AA22: 7 | AB22: 1960-03-01 | AC22: 6.237256539
C23: ='Monthly Prices'!A11 -> 1960M04 | D23: 1960-04-01 | E23: 4 | F23: FALSE | G23: FALSE | H23: FALSE | J23: =INDEX('Monthly Prices'!B11:CB11,$G$4) -> 1.630000114 | K23: =IF(H23,INDEX('Monthly Prices'!B11:CB11,$G$4)*U23,FALSE) -> FALSE | L23: TRUE | M23: =INDEX('Monthly Prices'!B11:CB11,$G$5) -> .. | N23: =IF(H23,INDEX('Monthly Prices'!B11:CB11,$G$5)*U23,FALSE) -> FALSE | O23: FALSE | P23: 1960 | Q23: ='Monthly Prices'!B11 -> 1.630000114 | R23: 1.630000114 | S23: =_xlfn.XLOOKUP(P23,'Annual Real'!A:A,'Annual Real'!B:B,0,0) -> 8.514978123 | T23: 6.231059489 | U23: 6.231059489 | V23: FALSE | W23: FALSE | X23: =LOOKUP(D23,'US Implicit Deflator'!A:A,'US Implicit Deflator'!B:B)/100 -> 0.012 | Y23: 0.0009945418011 | Z23: 1.003984106 | AA23: 7 | AB23: 1960-04-01 | AC23: 6.231059489 | AE23: Distribution Analysis | AH23: =AH20 -> Crude oil, average ($/bbl)
C24: ='Monthly Prices'!A12 -> 1960M05 | D24: 1960-05-01 | E24: 5 | F24: FALSE | G24: FALSE | H24: FALSE | J24: =INDEX('Monthly Prices'!B12:CB12,$G$4) -> 1.630000114 | K24: =IF(H24,INDEX('Monthly Prices'!B12:CB12,$G$4)*U24,FALSE) -> FALSE | L24: TRUE | M24: =INDEX('Monthly Prices'!B12:CB12,$G$5) -> .. | N24: =IF(H24,INDEX('Monthly Prices'!B12:CB12,$G$5)*U24,FALSE) -> FALSE | O24: FALSE | P24: 1960 | Q24: ='Monthly Prices'!B12 -> 1.630000114 | R24: 1.630000114 | S24: =_xlfn.XLOOKUP(P24,'Annual Real'!A:A,'Annual Real'!B:B,0,0) -> 8.514978123 | T24: 6.224868597 | U24: 6.224868597 | V24: FALSE | W24: FALSE | X24: =LOOKUP(D24,'US Implicit Deflator'!A:A,'US Implicit Deflator'!B:B)/100 -> 0.012 | Y24: 0.0009945418011 | Z24: 1.00498261 | AA24: 7 | AB24: 1960-05-01 | AC24: 6.224868597
C25: ='Monthly Prices'!A13 -> 1960M06 | D25: 1960-06-01 | E25: 6 | F25: FALSE | G25: FALSE | H25: FALSE | J25: =INDEX('Monthly Prices'!B13:CB13,$G$4) -> 1.630000114 | K25: =IF(H25,INDEX('Monthly Prices'!B13:CB13,$G$4)*U25,FALSE) -> FALSE | L25: TRUE | M25: =INDEX('Monthly Prices'!B13:CB13,$G$5) -> .. | N25: =IF(H25,INDEX('Monthly Prices'!B13:CB13,$G$5)*U25,FALSE) -> FALSE | O25: FALSE | P25: 1960 | Q25: ='Monthly Prices'!B13 -> 1.630000114 | R25: 1.630000114 | S25: =_xlfn.XLOOKUP(P25,'Annual Real'!A:A,'Annual Real'!B:B,0,0) -> 8.514978123 | T25: 6.218683856 | U25: 6.218683856 | V25: FALSE | W25: FALSE | X25: =LOOKUP(D25,'US Implicit Deflator'!A:A,'US Implicit Deflator'!B:B)/100 -> 0.012 | Y25: 0.0009945418011 | Z25: 1.005982107 | AA25: 7 | AB25: 1960-06-01 | AC25: 6.218683856
C26: ='Monthly Prices'!A14 -> 1960M07 | D26: 1960-07-01 | E26: 7 | F26: FALSE | G26: FALSE | H26: FALSE | J26: =INDEX('Monthly Prices'!B14:CB14,$G$4) -> 1.630000114 | K26: =IF(H26,INDEX('Monthly Prices'!B14:CB14,$G$4)*U26,FALSE) -> FALSE | L26: TRUE | M26: =INDEX('Monthly Prices'!B14:CB14,$G$5) -> .. | N26: =IF(H26,INDEX('Monthly Prices'!B14:CB14,$G$5)*U26,FALSE) -> FALSE | O26: FALSE | P26: 1960 | Q26: ='Monthly Prices'!B14 -> 1.630000114 | R26: 1.630000114 | S26: =_xlfn.XLOOKUP(P26,'Annual Real'!A:A,'Annual Real'!B:B,0,0) -> 8.514978123 | T26: 6.21250526 | U26: 6.21250526 | V26: FALSE | W26: FALSE | X26: =LOOKUP(D26,'US Implicit Deflator'!A:A,'US Implicit Deflator'!B:B)/100 -> 0.012 | Y26: 0.0009945418011 | Z26: 1.006982598 | AA26: 7 | AB26: 1960-07-01 | AC26: 6.21250526
C27: ='Monthly Prices'!A15 -> 1960M08 | D27: 1960-08-01 | E27: 8 | F27: FALSE | G27: FALSE | H27: FALSE | J27: =INDEX('Monthly Prices'!B15:CB15,$G$4) -> 1.630000114 | K27: =IF(H27,INDEX('Monthly Prices'!B15:CB15,$G$4)*U27,FALSE) -> FALSE | L27: TRUE | M27: =INDEX('Monthly Prices'!B15:CB15,$G$5) -> .. | N27: =IF(H27,INDEX('Monthly Prices'!B15:CB15,$G$5)*U27,FALSE) -> FALSE | O27: FALSE | P27: 1960 | Q27: ='Monthly Prices'!B15 -> 1.630000114 | R27: 1.630000114 | S27: =_xlfn.XLOOKUP(P27,'Annual Real'!A:A,'Annual Real'!B:B,0,0) -> 8.514978123 | T27: 6.206332803 | U27: 6.206332803 | V27: FALSE | W27: FALSE | X27: =LOOKUP(D27,'US Implicit Deflator'!A:A,'US Implicit Deflator'!B:B)/100 -> 0.012 | Y27: 0.0009945418011 | Z27: 1.007984085 | AA27: 7 | AB27: 1960-08-01 | AC27: 6.206332803 | AE27: =AE23 -> Distribution Analysis | AH27: =AH21 -> Liquefied natural gas, Japan ($/mmbtu)
C28: ='Monthly Prices'!A16 -> 1960M09 | D28: 1960-09-01 | E28: 9 | F28: FALSE | G28: FALSE | H28: FALSE | J28: =INDEX('Monthly Prices'!B16:CB16,$G$4) -> 1.630000114 | K28: =IF(H28,INDEX('Monthly Prices'!B16:CB16,$G$4)*U28,FALSE) -> FALSE | L28: TRUE | M28: =INDEX('Monthly Prices'!B16:CB16,$G$5) -> .. | N28: =IF(H28,INDEX('Monthly Prices'!B16:CB16,$G$5)*U28,FALSE) -> FALSE | O28: FALSE | P28: 1960 | Q28: ='Monthly Prices'!B16 -> 1.630000114 | R28: 1.630000114 | S28: =_xlfn.XLOOKUP(P28,'Annual Real'!A:A,'Annual Real'!B:B,0,0) -> 8.514978123 | T28: 6.200166478 | U28: 6.200166478 | V28: FALSE | W28: FALSE | X28: =LOOKUP(D28,'US Implicit Deflator'!A:A,'US Implicit Deflator'!B:B)/100 -> 0.012 | Y28: 0.0009945418011 | Z28: 1.008986567 | AA28: 7 | AB28: 1960-09-01 | AC28: 6.200166478
C29: ='Monthly Prices'!A17 -> 1960M10 | D29: 1960-10-01 | E29: 10 | F29: FALSE | G29: FALSE | H29: FALSE | J29: =INDEX('Monthly Prices'!B17:CB17,$G$4) -> 1.630000114 | K29: =IF(H29,INDEX('Monthly Prices'!B17:CB17,$G$4)*U29,FALSE) -> FALSE | L29: TRUE | M29: =INDEX('Monthly Prices'!B17:CB17,$G$5) -> .. | N29: =IF(H29,INDEX('Monthly Prices'!B17:CB17,$G$5)*U29,FALSE) -> FALSE | O29: FALSE | P29: 1960 | Q29: ='Monthly Prices'!B17 -> 1.630000114 | R29: 1.630000114 | S29: =_xlfn.XLOOKUP(P29,'Annual Real'!A:A,'Annual Real'!B:B,0,0) -> 8.514978123 | T29: 6.195027467 | U29: 6.195027467 | V29: FALSE | W29: FALSE | X29: =LOOKUP(D29,'US Implicit Deflator'!A:A,'US Implicit Deflator'!B:B)/100 -> 0.01 | Y29: 0.0008295381143 | Z29: 1.00982356 | AA29: 7 | AB29: 1960-10-01 | AC29: 6.195027467
C30: ='Monthly Prices'!A18 -> 1960M11 | D30: 1960-11-01 | E30: 11 | F30: FALSE | G30: FALSE | H30: FALSE | J30: =INDEX('Monthly Prices'!B18:CB18,$G$4) -> 1.630000114 | K30: =IF(H30,INDEX('Monthly Prices'!B18:CB18,$G$4)*U30,FALSE) -> FALSE | L30: TRUE | M30: =INDEX('Monthly Prices'!B18:CB18,$G$5) -> .. | N30: =IF(H30,INDEX('Monthly Prices'!B18:CB18,$G$5)*U30,FALSE) -> FALSE | O30: FALSE | P30: 1960 | Q30: ='Monthly Prices'!B18 -> 1.630000114 | R30: 1.630000114 | S30: =_xlfn.XLOOKUP(P30,'Annual Real'!A:A,'Annual Real'!B:B,0,0) -> 8.514978123 | T30: 6.189892715 | U30: 6.189892715 | V30: FALSE | W30: FALSE | X30: =LOOKUP(D30,'US Implicit Deflator'!A:A,'US Implicit Deflator'!B:B)/100 -> 0.01 | Y30: 0.0008295381143 | Z30: 1.010661247 | AA30: 7 | AB30: 1960-11-01 | AC30: 6.189892715
C31: ='Monthly Prices'!A19 -> 1960M12 | D31: 1960-12-01 | E31: 12 | F31: FALSE | G31: FALSE | H31: FALSE | J31: =INDEX('Monthly Prices'!B19:CB19,$G$4) -> 1.630000114 | K31: =IF(H31,INDEX('Monthly Prices'!B19:CB19,$G$4)*U31,FALSE) -> FALSE | L31: TRUE | M31: =INDEX('Monthly Prices'!B19:CB19,$G$5) -> .. | N31: =IF(H31,INDEX('Monthly Prices'!B19:CB19,$G$5)*U31,FALSE) -> FALSE | O31: FALSE | P31: 1960 | Q31: ='Monthly Prices'!B19 -> 1.630000114 | R31: 1.630000114 | S31: =_xlfn.XLOOKUP(P31,'Annual Real'!A:A,'Annual Real'!B:B,0,0) -> 8.514978123 | T31: 6.184762219 | U31: 6.184762219 | V31: FALSE | W31: FALSE | X31: =LOOKUP(D31,'US Implicit Deflator'!A:A,'US Implicit Deflator'!B:B)/100 -> 0.01 | Y31: 0.0008295381143 | Z31: 1.011499629 | AA31: 7 | AB31: 1960-12-01 | AC31: 6.184762219
C32: ='Monthly Prices'!A20 -> 1961M01 | D32: 1961-01-01 | E32: 13 | F32: FALSE | G32: FALSE | H32: FALSE | J32: =INDEX('Monthly Prices'!B20:CB20,$G$4) -> 1.57 | K32: =IF(H32,INDEX('Monthly Prices'!B20:CB20,$G$4)*U32,FALSE) -> FALSE | L32: TRUE | M32: =INDEX('Monthly Prices'!B20:CB20,$G$5) -> .. | N32: =IF(H32,INDEX('Monthly Prices'!B20:CB20,$G$5)*U32,FALSE) -> FALSE | O32: FALSE | P32: 1961 | Q32: ='Monthly Prices'!B20 -> 1.57 | R32: 1.57 | S32: =_xlfn.XLOOKUP(P32,'Annual Real'!A:A,'Annual Real'!B:B,0,0) -> 8.045024778 | T32: 6.179635975 | U32: 6.179635975 | V32: FALSE | W32: FALSE | X32: =LOOKUP(D32,'US Implicit Deflator'!A:A,'US Implicit Deflator'!B:B)/100 -> 0.01 | Y32: 0.0008295381143 | Z32: 1.012338707 | AA32: 7 | AB32: 1961-01-01 | AC32: 6.179635975
C33: ='Monthly Prices'!A21 -> 1961M02 | D33: 1961-02-01 | E33: 14 | F33: FALSE | G33: FALSE | H33: FALSE | J33: =INDEX('Monthly Prices'!B21:CB21,$G$4) -> 1.57 | K33: =IF(H33,INDEX('Monthly Prices'!B21:CB21,$G$4)*U33,FALSE) -> FALSE | L33: TRUE | M33: =INDEX('Monthly Prices'!B21:CB21,$G$5) -> .. | N33: =IF(H33,INDEX('Monthly Prices'!B21:CB21,$G$5)*U33,FALSE) -> FALSE | O33: FALSE | P33: 1961 | Q33: ='Monthly Prices'!B21 -> 1.57 | R33: 1.57 | S33: =_xlfn.XLOOKUP(P33,'Annual Real'!A:A,'Annual Real'!B:B,0,0) -> 8.045024778 | T33: 6.17451398 | U33: 6.17451398 | V33: FALSE | W33: FALSE | X33: =LOOKUP(D33,'US Implicit Deflator'!A:A,'US Implicit Deflator'!B:B)/100 -> 0.01 | Y33: 0.0008295381143 | Z33: 1.01317848 | AA33: 7 | AB33: 1961-02-01 | AC33: 6.17451398
C34: ='Monthly Prices'!A22 -> 1961M03 | D34: 1961-03-01 | E34: 15 | F34: FALSE | G34: FALSE | H34: FALSE | J34: =INDEX('Monthly Prices'!B22:CB22,$G$4) -> 1.57 | K34: =IF(H34,INDEX('Monthly Prices'!B22:CB22,$G$4)*U34,FALSE) -> FALSE | L34: TRUE | M34: =INDEX('Monthly Prices'!B22:CB22,$G$5) -> .. | N34: =IF(H34,INDEX('Monthly Prices'!B22:CB22,$G$5)*U34,FALSE) -> FALSE | O34: FALSE | P34: 1961 | Q34: ='Monthly Prices'!B22 -> 1.57 | R34: 1.57 | S34: =_xlfn.XLOOKUP(P34,'Annual Real'!A:A,'Annual Real'!B:B,0,0) -> 8.045024778 | T34: 6.169396231 | U34: 6.169396231 | V34: FALSE | W34: FALSE | X34: =LOOKUP(D34,'US Implicit Deflator'!A:A,'US Implicit Deflator'!B:B)/100 -> 0.01 | Y34: 0.0008295381143 | Z34: 1.01401895 | AA34: 7 | AB34: 1961-03-01 | AC34: 6.169396231
C35: ='Monthly Prices'!A23 -> 1961M04 | D35: 1961-04-01 | E35: 16 | F35: FALSE | G35: FALSE | H35: FALSE | J35: =INDEX('Monthly Prices'!B23:CB23,$G$4) -> 1.57 | K35: =IF(H35,INDEX('Monthly Prices'!B23:CB23,$G$4)*U35,FALSE) -> FALSE | L35: TRUE | M35: =INDEX('Monthly Prices'!B23:CB23,$G$5) -> .. | N35: =IF(H35,INDEX('Monthly Prices'!B23:CB23,$G$5)*U35,FALSE) -> FALSE | O35: FALSE | P35: 1961 | Q35: ='Monthly Prices'!B23 -> 1.57 | R35: 1.57 | S35: =_xlfn.XLOOKUP(P35,'Annual Real'!A:A,'Annual Real'!B:B,0,0) -> 8.045024778 | T35: 6.164282724 | U35: 6.164282724 | V35: FALSE | W35: FALSE | X35: =LOOKUP(D35,'US Implicit Deflator'!A:A,'US Implicit Deflator'!B:B)/100 -> 0.01 | Y35: 0.0008295381143 | Z35: 1.014860118 | AA35: 7 | AB35: 1961-04-01 | AC35: 6.164282724
C36: ='Monthly Prices'!A24 -> 1961M05 | D36: 1961-05-01 | E36: 17 | F36: FALSE | G36: FALSE | H36: FALSE | J36: =INDEX('Monthly Prices'!B24:CB24,$G$4) -> 1.57 | K36: =IF(H36,INDEX('Monthly Prices'!B24:CB24,$G$4)*U36,FALSE) -> FALSE | L36: TRUE | M36: =INDEX('Monthly Prices'!B24:CB24,$G$5) -> .. | N36: =IF(H36,INDEX('Monthly Prices'!B24:CB24,$G$5)*U36,FALSE) -> FALSE | O36: FALSE | P36: 1961 | Q36: ='Monthly Prices'!B24 -> 1.57 | R36: 1.57 | S36: =_xlfn.XLOOKUP(P36,'Annual Real'!A:A,'Annual Real'!B:B,0,0) -> 8.045024778 | T36: 6.159173455 | U36: 6.159173455 | V36: FALSE | W36: FALSE | X36: =LOOKUP(D36,'US Implicit Deflator'!A:A,'US Implicit Deflator'!B:B)/100 -> 0.01 | Y36: 0.0008295381143 | Z36: 1.015701983 | AA36: 7 | AB36: 1961-05-01 | AC36: 6.159173455
C37: ='Monthly Prices'!A25 -> 1961M06 | D37: 1961-06-01 | E37: 18 | F37: FALSE | G37: FALSE | H37: FALSE | J37: =INDEX('Monthly Prices'!B25:CB25,$G$4) -> 1.57 | K37: =IF(H37,INDEX('Monthly Prices'!B25:CB25,$G$4)*U37,FALSE) -> FALSE | L37: TRUE | M37: =INDEX('Monthly Prices'!B25:CB25,$G$5) -> .. | N37: =IF(H37,INDEX('Monthly Prices'!B25:CB25,$G$5)*U37,FALSE) -> FALSE | O37: FALSE | P37: 1961 | Q37: ='Monthly Prices'!B25 -> 1.57 | R37: 1.57 | S37: =_xlfn.XLOOKUP(P37,'Annual Real'!A:A,'Annual Real'!B:B,0,0) -> 8.045024778 | T37: 6.15406842 | U37: 6.15406842 | V37: FALSE | W37: FALSE | X37: =LOOKUP(D37,'US Implicit Deflator'!A:A,'US Implicit Deflator'!B:B)/100 -> 0.01 | Y37: 0.0008295381143 | Z37: 1.016544546 | AA37: 7 | AB37: 1961-06-01 | AC37: 6.15406842
C38: ='Monthly Prices'!A26 -> 1961M07 | D38: 1961-07-01 | E38: 19 | F38: FALSE | G38: FALSE | H38: FALSE | J38: =INDEX('Monthly Prices'!B26:CB26,$G$4) -> 1.57 | K38: =IF(H38,INDEX('Monthly Prices'!B26:CB26,$G$4)*U38,FALSE) -> FALSE | L38: TRUE | M38: =INDEX('Monthly Prices'!B26:CB26,$G$5) -> .. | N38: =IF(H38,INDEX('Monthly Prices'!B26:CB26,$G$5)*U38,FALSE) -> FALSE | O38: FALSE | P38: 1961 | Q38: ='Monthly Prices'!B26 -> 1.57 | R38: 1.57 | S38: =_xlfn.XLOOKUP(P38,'Annual Real'!A:A,'Annual Real'!B:B,0,0) -> 8.045024778 | T38: 6.150492093 | U38: 6.150492093 | V38: FALSE | W38: FALSE | X38: =LOOKUP(D38,'US Implicit Deflator'!A:A,'US Implicit Deflator'!B:B)/100 -> 0.007 | Y38: 0.000581470133 | Z38: 1.017135637 | AA38: 7 | AB38: 1961-07-01 | AC38: 6.150492093
C39: ='Monthly Prices'!A27 -> 1961M08 | D39: 1961-08-01 | E39: 20 | F39: FALSE | G39: FALSE | H39: FALSE | J39: =INDEX('Monthly Prices'!B27:CB27,$G$4) -> 1.57 | K39: =IF(H39,INDEX('Monthly Prices'!B27:CB27,$G$4)*U39,FALSE) -> FALSE | L39: TRUE | M39: =INDEX('Monthly Prices'!B27:CB27,$G$5) -> .. | N39: =IF(H39,INDEX('Monthly Prices'!B27:CB27,$G$5)*U39,FALSE) -> FALSE | O39: FALSE | P39: 1961 | Q39: ='Monthly Prices'!B27 -> 1.57 | R39: 1.57 | S39: =_xlfn.XLOOKUP(P39,'Annual Real'!A:A,'Annual Real'!B:B,0,0) -> 8.045024778 | T39: 6.146917844 | U39: 6.146917844 | V39: FALSE | W39: FALSE | X39: =LOOKUP(D39,'US Implicit Deflator'!A:A,'US Implicit Deflator'!B:B)/100 -> 0.007 | Y39: 0.000581470133 | Z39: 1.017727071 | AA39: 7 | AB39: 1961-08-01 | AC39: 6.146917844
C40: ='Monthly Prices'!A28 -> 1961M09 | D40: 1961-09-01 | E40: 21 | F40: FALSE | G40: FALSE | H40: FALSE | J40: =INDEX('Monthly Prices'!B28:CB28,$G$4) -> 1.57 | K40: =IF(H40,INDEX('Monthly Prices'!B28:CB28,$G$4)*U40,FALSE) -> FALSE | L40: TRUE | M40: =INDEX('Monthly Prices'!B28:CB28,$G$5) -> .. | N40: =IF(H40,INDEX('Monthly Prices'!B28:CB28,$G$5)*U40,FALSE) -> FALSE | O40: FALSE | P40: 1961 | Q40: ='Monthly Prices'!B28 -> 1.57 | R40: 1.57 | S40: =_xlfn.XLOOKUP(P40,'Annual Real'!A:A,'Annual Real'!B:B,0,0) -> 8.045024778 | T40: 6.143345672 | U40: 6.143345672 | V40: FALSE | W40: FALSE | X40: =LOOKUP(D40,'US Implicit Deflator'!A:A,'US Implicit Deflator'!B:B)/100 -> 0.007 | Y40: 0.000581470133 | Z40: 1.018318848 | AA40: 7 | AB40: 1961-09-01 | AC40: 6.143345672
C41: ='Monthly Prices'!A29 -> 1961M10 | D41: 1961-10-01 | E41: 22 | F41: FALSE | G41: FALSE | H41: FALSE | J41: =INDEX('Monthly Prices'!B29:CB29,$G$4) -> 1.57 | K41: =IF(H41,INDEX('Monthly Prices'!B29:CB29,$G$4)*U41,FALSE) -> FALSE | L41: TRUE | M41: =INDEX('Monthly Prices'!B29:CB29,$G$5) -> .. | N41: =IF(H41,INDEX('Monthly Prices'!B29:CB29,$G$5)*U41,FALSE) -> FALSE | O41: FALSE | P41: 1961 | Q41: ='Monthly Prices'!B29 -> 1.57 | R41: 1.57 | S41: =_xlfn.XLOOKUP(P41,'Annual Real'!A:A,'Annual Real'!B:B,0,0) -> 8.045024778 | T41: 6.141302314 | U41: 6.141302314 | V41: FALSE | W41: FALSE | X41: =LOOKUP(D41,'US Implicit Deflator'!A:A,'US Implicit Deflator'!B:B)/100 -> 0.004 | Y41: 0.0003327237794 | Z41: 1.018657667 | AA41: 7 | AB41: 1961-10-01 | AC41: 6.141302314
C42: ='Monthly Prices'!A30 -> 1961M11 | D42: 1961-11-01 | E42: 23 | F42: FALSE | G42: FALSE | H42: FALSE | J42: =INDEX('Monthly Prices'!B30:CB30,$G$4) -> 1.57 | K42: =IF(H42,INDEX('Monthly Prices'!B30:CB30,$G$4)*U42,FALSE) -> FALSE | L42: TRUE | M42: =INDEX('Monthly Prices'!B30:CB30,$G$5) -> .. | N42: =IF(H42,INDEX('Monthly Prices'!B30:CB30,$G$5)*U42,FALSE) -> FALSE | O42: FALSE | P42: 1961 | Q42: ='Monthly Prices'!B30 -> 1.57 | R42: 1.57 | S42: =_xlfn.XLOOKUP(P42,'Annual Real'!A:A,'Annual Real'!B:B,0,0) -> 8.045024778 | T42: 6.139259637 | U42: 6.139259637 | V42: FALSE | W42: FALSE | X42: =LOOKUP(D42,'US Implicit Deflator'!A:A,'US Implicit Deflator'!B:B)/100 -> 0.004 | Y42: 0.0003327237794 | Z42: 1.018996599 | AA42: 7 | AB42: 1961-11-01 | AC42: 6.139259637
C43: ='Monthly Prices'!A31 -> 1961M12 | D43: 1961-12-01 | E43: 24 | F43: FALSE | G43: FALSE | H43: FALSE | J43: =INDEX('Monthly Prices'!B31:CB31,$G$4) -> 1.57 | K43: =IF(H43,INDEX('Monthly Prices'!B31:CB31,$G$4)*U43,FALSE) -> FALSE | L43: TRUE | M43: =INDEX('Monthly Prices'!B31:CB31,$G$5) -> .. | N43: =IF(H43,INDEX('Monthly Prices'!B31:CB31,$G$5)*U43,FALSE) -> FALSE | O43: FALSE | P43: 1961 | Q43: ='Monthly Prices'!B31 -> 1.57 | R43: 1.57 | S43: =_xlfn.XLOOKUP(P43,'Annual Real'!A:A,'Annual Real'!B:B,0,0) -> 8.045024778 | T43: 6.137217638 | U43: 6.137217638 | V43: FALSE | W43: FALSE | X43: =LOOKUP(D43,'US Implicit Deflator'!A:A,'US Implicit Deflator'!B:B)/100 -> 0.004 | Y43: 0.0003327237794 | Z43: 1.019335643 | AA43: 7 | AB43: 1961-12-01 | AC43: 6.137217638
C44: ='Monthly Prices'!A32 -> 1962M01 | D44: 1962-01-01 | E44: 25 | F44: FALSE | G44: FALSE | H44: FALSE | J44: =INDEX('Monthly Prices'!B32:CB32,$G$4) -> 1.52 | K44: =IF(H44,INDEX('Monthly Prices'!B32:CB32,$G$4)*U44,FALSE) -> FALSE | L44: TRUE | M44: =INDEX('Monthly Prices'!B32:CB32,$G$5) -> .. | N44: =IF(H44,INDEX('Monthly Prices'!B32:CB32,$G$5)*U44,FALSE) -> FALSE | O44: FALSE | P44: 1962 | Q44: ='Monthly Prices'!B32 -> 1.52 | R44: 1.52 | S44: =_xlfn.XLOOKUP(P44,'Annual Real'!A:A,'Annual Real'!B:B,0,0) -> 7.646137774 | T44: 6.133143792 | U44: 6.133143792 | V44: FALSE | W44: FALSE | X44: =LOOKUP(D44,'US Implicit Deflator'!A:A,'US Implicit Deflator'!B:B)/100 -> 0.008 | Y44: 0.0006642346436 | Z44: 1.020012721 | AA44: 7 | AB44: 1962-01-01 | AC44: 6.133143792
C45: ='Monthly Prices'!A33 -> 1962M02 | D45: 1962-02-01 | E45: 26 | F45: FALSE | G45: FALSE | H45: FALSE | J45: =INDEX('Monthly Prices'!B33:CB33,$G$4) -> 1.52 | K45: =IF(H45,INDEX('Monthly Prices'!B33:CB33,$G$4)*U45,FALSE) -> FALSE | L45: TRUE | M45: =INDEX('Monthly Prices'!B33:CB33,$G$5) -> .. | N45: =IF(H45,INDEX('Monthly Prices'!B33:CB33,$G$5)*U45,FALSE) -> FALSE | O45: FALSE | P45: 1962 | Q45: ='Monthly Prices'!B33 -> 1.52 | R45: 1.52 | S45: =_xlfn.XLOOKUP(P45,'Annual Real'!A:A,'Annual Real'!B:B,0,0) -> 7.646137774 | T45: 6.129072649 | U45: 6.129072649 | V45: FALSE | W45: FALSE | X45: =LOOKUP(D45,'US Implicit Deflator'!A:A,'US Implicit Deflator'!B:B)/100 -> 0.008 | Y45: 0.0006642346436 | Z45: 1.020690249 | AA45: 7 | AB45: 1962-02-01 | AC45: 6.129072649
C46: ='Monthly Prices'!A34 -> 1962M03 | D46: 1962-03-01 | E46: 27 | F46: FALSE | G46: FALSE | H46: FALSE | J46: =INDEX('Monthly Prices'!B34:CB34,$G$4) -> 1.52 | K46: =IF(H46,INDEX('Monthly Prices'!B34:CB34,$G$4)*U46,FALSE) -> FALSE | L46: TRUE | M46: =INDEX('Monthly Prices'!B34:CB34,$G$5) -> .. | N46: =IF(H46,INDEX('Monthly Prices'!B34:CB34,$G$5)*U46,FALSE) -> FALSE | O46: FALSE | P46: 1962 | Q46: ='Monthly Prices'!B34 -> 1.52 | R46: 1.52 | S46: =_xlfn.XLOOKUP(P46,'Annual Real'!A:A,'Annual Real'!B:B,0,0) -> 7.646137774 | T46: 6.125004209 | U46: 6.125004209 | V46: FALSE | W46: FALSE | X46: =LOOKUP(D46,'US Implicit Deflator'!A:A,'US Implicit Deflator'!B:B)/100 -> 0.008 | Y46: 0.0006642346436 | Z46: 1.021368227 | AA46: 7 | AB46: 1962-03-01 | AC46: 6.125004209
C47: ='Monthly Prices'!A35 -> 1962M04 | D47: 1962-04-01 | E47: 28 | F47: FALSE | G47: FALSE | H47: FALSE | J47: =INDEX('Monthly Prices'!B35:CB35,$G$4) -> 1.52 | K47: =IF(H47,INDEX('Monthly Prices'!B35:CB35,$G$4)*U47,FALSE) -> FALSE | L47: TRUE | M47: =INDEX('Monthly Prices'!B35:CB35,$G$5) -> .. | N47: =IF(H47,INDEX('Monthly Prices'!B35:CB35,$G$5)*U47,FALSE) -> FALSE | O47: FALSE | P47: 1962 | Q47: ='Monthly Prices'!B35 -> 1.52 | R47: 1.52 | S47: =_xlfn.XLOOKUP(P47,'Annual Real'!A:A,'Annual Real'!B:B,0,0) -> 7.646137774 | T47: 6.120432712 | U47: 6.120432712 | V47: FALSE | W47: FALSE | X47: =LOOKUP(D47,'US Implicit Deflator'!A:A,'US Implicit Deflator'!B:B)/100 -> 0.009 | Y47: 0.0007469239231 | Z47: 1.022131111 | AA47: 7 | AB47: 1962-04-01 | AC47: 6.120432712
C48: ='Monthly Prices'!A36 -> 1962M05 | D48: 1962-05-01 | E48: 29 | F48: FALSE | G48: FALSE | H48: FALSE | J48: =INDEX('Monthly Prices'!B36:CB36,$G$4) -> 1.52 | K48: =IF(H48,INDEX('Monthly Prices'!B36:CB36,$G$4)*U48,FALSE) -> FALSE | L48: TRUE | M48: =INDEX('Monthly Prices'!B36:CB36,$G$5) -> .. | N48: =IF(H48,INDEX('Monthly Prices'!B36:CB36,$G$5)*U48,FALSE) -> FALSE | O48: FALSE | P48: 1962 | Q48: ='Monthly Prices'!B36 -> 1.52 | R48: 1.52 | S48: =_xlfn.XLOOKUP(P48,'Annual Real'!A:A,'Annual Real'!B:B,0,0) -> 7.646137774 | T48: 6.115864626 | U48: 6.115864626 | V48: FALSE | W48: FALSE | X48: =LOOKUP(D48,'US Implicit Deflator'!A:A,'US Implicit Deflator'!B:B)/100 -> 0.009 | Y48: 0.0007469239231 | Z48: 1.022894566 | AA48: 7 | AB48: 1962-05-01 | AC48: 6.115864626
C49: ='Monthly Prices'!A37 -> 1962M06 | D49: 1962-06-01 | E49: 30 | F49: FALSE | G49: FALSE | H49: FALSE | J49: =INDEX('Monthly Prices'!B37:CB37,$G$4) -> 1.52 | K49: =IF(H49,INDEX('Monthly Prices'!B37:CB37,$G$4)*U49,FALSE) -> FALSE | L49: TRUE | M49: =INDEX('Monthly Prices'!B37:CB37,$G$5) -> .. | N49: =IF(H49,INDEX('Monthly Prices'!B37:CB37,$G$5)*U49,FALSE) -> FALSE | O49: FALSE | P49: 1962 | Q49: ='Monthly Prices'!B37 -> 1.52 | R49: 1.52 | S49: =_xlfn.XLOOKUP(P49,'Annual Real'!A:A,'Annual Real'!B:B,0,0) -> 7.646137774 | T49: 6.11129995 | U49: 6.11129995 | V49: FALSE | W49: FALSE | X49: =LOOKUP(D49,'US Implicit Deflator'!A:A,'US Implicit Deflator'!B:B)/100 -> 0.009 | Y49: 0.0007469239231 | Z49: 1.02365859 | AA49: 7 | AB49: 1962-06-01 | AC49: 6.11129995
C50: ='Monthly Prices'!A38 -> 1962M07 | D50: 1962-07-01 | E50: 31 | F50: FALSE | G50: FALSE | H50: FALSE | J50: =INDEX('Monthly Prices'!B38:CB38,$G$4) -> 1.52 | K50: =IF(H50,INDEX('Monthly Prices'!B38:CB38,$G$4)*U50,FALSE) -> FALSE | L50: TRUE | M50: =INDEX('Monthly Prices'!B38:CB38,$G$5) -> .. | N50: =IF(H50,INDEX('Monthly Prices'!B38:CB38,$G$5)*U50,FALSE) -> FALSE | O50: FALSE | P50: 1962 | Q50: ='Monthly Prices'!B38 -> 1.52 | R50: 1.52 | S50: =_xlfn.XLOOKUP(P50,'Annual Real'!A:A,'Annual Real'!B:B,0,0) -> 7.646137774 | T50: 6.106234596 | U50: 6.106234596 | V50: FALSE | W50: FALSE | X50: =LOOKUP(D50,'US Implicit Deflator'!A:A,'US Implicit Deflator'!B:B)/100 -> 0.01 | Y50: 0.0008295381143 | Z50: 1.024507754 | AA50: 7 | AB50: 1962-07-01 | AC50: 6.106234596
C51: ='Monthly Prices'!A39 -> 1962M08 | D51: 1962-08-01 | E51: 32 | F51: FALSE | G51: FALSE | H51: FALSE | J51: =INDEX('Monthly Prices'!B39:CB39,$G$4) -> 1.52 | K51: =IF(H51,INDEX('Monthly Prices'!B39:CB39,$G$4)*U51,FALSE) -> FALSE | L51: TRUE | M51: =INDEX('Monthly Prices'!B39:CB39,$G$5) -> .. | N51: =IF(H51,INDEX('Monthly Prices'!B39:CB39,$G$5)*U51,FALSE) -> FALSE | O51: FALSE | P51: 1962 | Q51: ='Monthly Prices'!B39 -> 1.52 | R51: 1.52 | S51: =_xlfn.XLOOKUP(P51,'Annual Real'!A:A,'Annual Real'!B:B,0,0) -> 7.646137774 | T51: 6.10117344 | U51: 6.10117344 | V51: FALSE | W51: FALSE | X51: =LOOKUP(D51,'US Implicit Deflator'!A:A,'US Implicit Deflator'!B:B)/100 -> 0.01 | Y51: 0.0008295381143 | Z51: 1.025357622 | AA51: 7 | AB51: 1962-08-01 | AC51: 6.10117344
C52: ='Monthly Prices'!A40 -> 1962M09 | D52: 1962-09-01 | E52: 33 | F52: FALSE | G52: FALSE | H52: FALSE | J52: =INDEX('Monthly Prices'!B40:CB40,$G$4) -> 1.52 | K52: =IF(H52,INDEX('Monthly Prices'!B40:CB40,$G$4)*U52,FALSE) -> FALSE | L52: TRUE | M52: =INDEX('Monthly Prices'!B40:CB40,$G$5) -> .. | N52: =IF(H52,INDEX('Monthly Prices'!B40:CB40,$G$5)*U52,FALSE) -> FALSE | O52: FALSE | P52: 1962 | Q52: ='Monthly Prices'!B40 -> 1.52 | R52: 1.52 | S52: =_xlfn.XLOOKUP(P52,'Annual Real'!A:A,'Annual Real'!B:B,0,0) -> 7.646137774 | T52: 6.096116479 | U52: 6.096116479 | V52: FALSE | W52: FALSE | X52: =LOOKUP(D52,'US Implicit Deflator'!A:A,'US Implicit Deflator'!B:B)/100 -> 0.01 | Y52: 0.0008295381143 | Z52: 1.026208195 | AA52: 7 | AB52: 1962-09-01 | AC52: 6.096116479
C53: ='Monthly Prices'!A41 -> 1962M10 | D53: 1962-10-01 | E53: 34 | F53: FALSE | G53: FALSE | H53: FALSE | J53: =INDEX('Monthly Prices'!B41:CB41,$G$4) -> 1.52 | K53: =IF(H53,INDEX('Monthly Prices'!B41:CB41,$G$4)*U53,FALSE) -> FALSE | L53: TRUE | M53: =INDEX('Monthly Prices'!B41:CB41,$G$5) -> .. | N53: =IF(H53,INDEX('Monthly Prices'!B41:CB41,$G$5)*U53,FALSE) -> FALSE | O53: FALSE | P53: 1962 | Q53: ='Monthly Prices'!B41 -> 1.52 | R53: 1.52 | S53: =_xlfn.XLOOKUP(P53,'Annual Real'!A:A,'Annual Real'!B:B,0,0) -> 7.646137774 | T53: 6.091566542 | U53: 6.091566542 | V53: FALSE | W53: FALSE | X53: =LOOKUP(D53,'US Implicit Deflator'!A:A,'US Implicit Deflator'!B:B)/100 -> 0.009 | Y53: 0.0007469239231 | Z53: 1.026974695 | AA53: 7 | AB53: 1962-10-01 | AC53: 6.091566542
C54: ='Monthly Prices'!A42 -> 1962M11 | D54: 1962-11-01 | E54: 35 | F54: FALSE | G54: FALSE | H54: FALSE | J54: =INDEX('Monthly Prices'!B42:CB42,$G$4) -> 1.52 | K54: =IF(H54,INDEX('Monthly Prices'!B42:CB42,$G$4)*U54,FALSE) -> FALSE | L54: TRUE | M54: =INDEX('Monthly Prices'!B42:CB42,$G$5) -> .. | N54: =IF(H54,INDEX('Monthly Prices'!B42:CB42,$G$5)*U54,FALSE) -> FALSE | O54: FALSE | P54: 1962 | Q54: ='Monthly Prices'!B42 -> 1.52 | R54: 1.52 | S54: =_xlfn.XLOOKUP(P54,'Annual Real'!A:A,'Annual Real'!B:B,0,0) -> 7.646137774 | T54: 6.087020001 | U54: 6.087020001 | V54: FALSE | W54: FALSE | X54: =LOOKUP(D54,'US Implicit Deflator'!A:A,'US Implicit Deflator'!B:B)/100 -> 0.009 | Y54: 0.0007469239231 | Z54: 1.027741767 | AA54: 7 | AB54: 1962-11-01 | AC54: 6.087020001
C55: ='Monthly Prices'!A43 -> 1962M12 | D55: 1962-12-01 | E55: 36 | F55: FALSE | G55: FALSE | H55: FALSE | J55: =INDEX('Monthly Prices'!B43:CB43,$G$4) -> 1.52 | K55: =IF(H55,INDEX('Monthly Prices'!B43:CB43,$G$4)*U55,FALSE) -> FALSE | L55: TRUE | M55: =INDEX('Monthly Prices'!B43:CB43,$G$5) -> .. | N55: =IF(H55,INDEX('Monthly Prices'!B43:CB43,$G$5)*U55,FALSE) -> FALSE | O55: FALSE | P55: 1962 | Q55: ='Monthly Prices'!B43 -> 1.52 | R55: 1.52 | S55: =_xlfn.XLOOKUP(P55,'Annual Real'!A:A,'Annual Real'!B:B,0,0) -> 7.646137774 | T55: 6.082476854 | U55: 6.082476854 | V55: FALSE | W55: FALSE | X55: =LOOKUP(D55,'US Implicit Deflator'!A:A,'US Implicit Deflator'!B:B)/100 -> 0.009 | Y55: 0.0007469239231 | Z55: 1.028509412 | AA55: 7 | AB55: 1962-12-01 | AC55: 6.082476854
C56: ='Monthly Prices'!A44 -> 1963M01 | D56: 1963-01-01 | E56: 37 | F56: FALSE | G56: FALSE | H56: FALSE | J56: =INDEX('Monthly Prices'!B44:CB44,$G$4) -> 1.5 | K56: =IF(H56,INDEX('Monthly Prices'!B44:CB44,$G$4)*U56,FALSE) -> FALSE | L56: TRUE | M56: =INDEX('Monthly Prices'!B44:CB44,$G$5) -> .. | N56: =IF(H56,INDEX('Monthly Prices'!B44:CB44,$G$5)*U56,FALSE) -> FALSE | O56: FALSE | P56: 1963 | Q56: ='Monthly Prices'!B44 -> 1.5 | R56: 1.5 | S56: =_xlfn.XLOOKUP(P56,'Annual Real'!A:A,'Annual Real'!B:B,0,0) -> 7.686329405 | T56: 6.077435389 | U56: 6.077435389 | V56: FALSE | W56: FALSE | X56: =LOOKUP(D56,'US Implicit Deflator'!A:A,'US Implicit Deflator'!B:B)/100 -> 0.01 | Y56: 0.0008295381143 | Z56: 1.029362599 | AA56: 7 | AB56: 1963-01-01 | AC56: 6.077435389
C57: ='Monthly Prices'!A45 -> 1963M02 | D57: 1963-02-01 | E57: 38 | F57: FALSE | G57: FALSE | H57: FALSE | J57: =INDEX('Monthly Prices'!B45:CB45,$G$4) -> 1.5 | K57: =IF(H57,INDEX('Monthly Prices'!B45:CB45,$G$4)*U57,FALSE) -> FALSE | L57: TRUE | M57: =INDEX('Monthly Prices'!B45:CB45,$G$5) -> .. | N57: =IF(H57,INDEX('Monthly Prices'!B45:CB45,$G$5)*U57,FALSE) -> FALSE | O57: FALSE | P57: 1963 | Q57: ='Monthly Prices'!B45 -> 1.5 | R57: 1.5 | S57: =_xlfn.XLOOKUP(P57,'Annual Real'!A:A,'Annual Real'!B:B,0,0) -> 7.686329405 | T57: 6.072398104 | U57: 6.072398104 | V57: FALSE | W57: FALSE | X57: =LOOKUP(D57,'US Implicit Deflator'!A:A,'US Implicit Deflator'!B:B)/100 -> 0.01 | Y57: 0.0008295381143 | Z57: 1.030216495 | AA57: 7 | AB57: 1963-02-01 | AC57: 6.072398104
C58: ='Monthly Prices'!A46 -> 1963M03 | D58: 1963-03-01 | E58: 39 | F58: FALSE | G58: FALSE | H58: FALSE | J58: =INDEX('Monthly Prices'!B46:CB46,$G$4) -> 1.5 | K58: =IF(H58,INDEX('Monthly Prices'!B46:CB46,$G$4)*U58,FALSE) -> FALSE | L58: TRUE | M58: =INDEX('Monthly Prices'!B46:CB46,$G$5) -> .. | N58: =IF(H58,INDEX('Monthly Prices'!B46:CB46,$G$5)*U58,FALSE) -> FALSE | O58: FALSE | P58: 1963 | Q58: ='Monthly Prices'!B46 -> 1.5 | R58: 1.5 | S58: =_xlfn.XLOOKUP(P58,'Annual Real'!A:A,'Annual Real'!B:B,0,0) -> 7.686329405 | T58: 6.067364993 | U58: 6.067364993 | V58: FALSE | W58: FALSE | X58: =LOOKUP(D58,'US Implicit Deflator'!A:A,'US Implicit Deflator'!B:B)/100 -> 0.01 | Y58: 0.0008295381143 | Z58: 1.031071099 | AA58: 7 | AB58: 1963-03-01 | AC58: 6.067364993
C59: ='Monthly Prices'!A47 -> 1963M04 | D59: 1963-04-01 | E59: 40 | F59: FALSE | G59: FALSE | H59: FALSE | J59: =INDEX('Monthly Prices'!B47:CB47,$G$4) -> 1.5 | K59: =IF(H59,INDEX('Monthly Prices'!B47:CB47,$G$4)*U59,FALSE) -> FALSE | L59: TRUE | M59: =INDEX('Monthly Prices'!B47:CB47,$G$5) -> .. | N59: =IF(H59,INDEX('Monthly Prices'!B47:CB47,$G$5)*U59,FALSE) -> FALSE | O59: FALSE | P59: 1963 | Q59: ='Monthly Prices'!B47 -> 1.5 | R59: 1.5 | S59: =_xlfn.XLOOKUP(P59,'Annual Real'!A:A,'Annual Real'!B:B,0,0) -> 7.686329405 | T59: 6.064341129 | U59: 6.064341129 | V59: FALSE | W59: FALSE | X59: =LOOKUP(D59,'US Implicit Deflator'!A:A,'US Implicit Deflator'!B:B)/100 -> 0.006 | Y59: 0.0004986302479 | Z59: 1.031585222 | AA59: 7 | AB59: 1963-04-01 | AC59: 6.064341129
C60: ='Monthly Prices'!A48 -> 1963M05 | D60: 1963-05-01 | E60: 41 | F60: FALSE | G60: FALSE | H60: FALSE | J60: =INDEX('Monthly Prices'!B48:CB48,$G$4) -> 1.5 | K60: =IF(H60,INDEX('Monthly Prices'!B48:CB48,$G$4)*U60,FALSE) -> FALSE | L60: TRUE | M60: =INDEX('Monthly Prices'!B48:CB48,$G$5) -> .. | N60: =IF(H60,INDEX('Monthly Prices'!B48:CB48,$G$5)*U60,FALSE) -> FALSE | O60: FALSE | P60: 1963 | Q60: ='Monthly Prices'!B48 -> 1.5 | R60: 1.5 | S60: =_xlfn.XLOOKUP(P60,'Annual Real'!A:A,'Annual Real'!B:B,0,0) -> 7.686329405 | T60: 6.061318772 | U60: 6.061318772 | V60: FALSE | W60: FALSE | X60: =LOOKUP(D60,'US Implicit Deflator'!A:A,'US Implicit Deflator'!B:B)/100 -> 0.006 | Y60: 0.0004986302479 | Z60: 1.032099602 | AA60: 7 | AB60: 1963-05-01 | AC60: 6.061318772
C61: ='Monthly Prices'!A49 -> 1963M06 | D61: 1963-06-01 | E61: 42 | F61: FALSE | G61: FALSE | H61: FALSE | J61: =INDEX('Monthly Prices'!B49:CB49,$G$4) -> 1.5 | K61: =IF(H61,INDEX('Monthly Prices'!B49:CB49,$G$4)*U61,FALSE) -> FALSE | L61: TRUE | M61: =INDEX('Monthly Prices'!B49:CB49,$G$5) -> .. | N61: =IF(H61,INDEX('Monthly Prices'!B49:CB49,$G$5)*U61,FALSE) -> FALSE | O61: FALSE | P61: 1963 | Q61: ='Monthly Prices'!B49 -> 1.5 | R61: 1.5 | S61: =_xlfn.XLOOKUP(P61,'Annual Real'!A:A,'Annual Real'!B:B,0,0) -> 7.686329405 | T61: 6.058297922 | U61: 6.058297922 | V61: FALSE | W61: FALSE | X61: =LOOKUP(D61,'US Implicit Deflator'!A:A,'US Implicit Deflator'!B:B)/100 -> 0.006 | Y61: 0.0004986302479 | Z61: 1.032614238 | AA61: 7 | AB61: 1963-06-01 | AC61: 6.058297922
C62: ='Monthly Prices'!A50 -> 1963M07 | D62: 1963-07-01 | E62: 43 | F62: FALSE | G62: FALSE | H62: FALSE | J62: =INDEX('Monthly Prices'!B50:CB50,$G$4) -> 1.5 | K62: =IF(H62,INDEX('Monthly Prices'!B50:CB50,$G$4)*U62,FALSE) -> FALSE | L62: TRUE | M62: =INDEX('Monthly Prices'!B50:CB50,$G$5) -> .. | N62: =IF(H62,INDEX('Monthly Prices'!B50:CB50,$G$5)*U62,FALSE) -> FALSE | O62: FALSE | P62: 1963 | Q62: ='Monthly Prices'!B50 -> 1.5 | R62: 1.5 | S62: =_xlfn.XLOOKUP(P62,'Annual Real'!A:A,'Annual Real'!B:B,0,0) -> 7.686329405 | T62: 6.055780444 | U62: 6.055780444 | V62: FALSE | W62: FALSE | X62: =LOOKUP(D62,'US Implicit Deflator'!A:A,'US Implicit Deflator'!B:B)/100 -> 0.005 | Y62: 0.0004157148447 | Z62: 1.033043511 | AA62: 7 | AB62: 1963-07-01 | AC62: 6.055780444
C63: ='Monthly Prices'!A51 -> 1963M08 | D63: 1963-08-01 | E63: 44 | F63: FALSE | G63: FALSE | H63: FALSE | J63: =INDEX('Monthly Prices'!B51:CB51,$G$4) -> 1.5 | K63: =IF(H63,INDEX('Monthly Prices'!B51:CB51,$G$4)*U63,FALSE) -> FALSE | L63: TRUE | M63: =INDEX('Monthly Prices'!B51:CB51,$G$5) -> .. | N63: =IF(H63,INDEX('Monthly Prices'!B51:CB51,$G$5)*U63,FALSE) -> FALSE | O63: FALSE | P63: 1963 | Q63: ='Monthly Prices'!B51 -> 1.5 | R63: 1.5 | S63: =_xlfn.XLOOKUP(P63,'Annual Real'!A:A,'Annual Real'!B:B,0,0) -> 7.686329405 | T63: 6.053264012 | U63: 6.053264012 | V63: FALSE | W63: FALSE | X63: =LOOKUP(D63,'US Implicit Deflator'!A:A,'US Implicit Deflator'!B:B)/100 -> 0.005 | Y63: 0.0004157148447 | Z63: 1.033472962 | AA63: 7 | AB63: 1963-08-01 | AC63: 6.053264012
C64: ='Monthly Prices'!A52 -> 1963M09 | D64: 1963-09-01 | E64: 45 | F64: FALSE | G64: FALSE | H64: FALSE | J64: =INDEX('Monthly Prices'!B52:CB52,$G$4) -> 1.5 | K64: =IF(H64,INDEX('Monthly Prices'!B52:CB52,$G$4)*U64,FALSE) -> FALSE | L64: TRUE | M64: =INDEX('Monthly Prices'!B52:CB52,$G$5) -> .. | N64: =IF(H64,INDEX('Monthly Prices'!B52:CB52,$G$5)*U64,FALSE) -> FALSE | O64: FALSE | P64: 1963 | Q64: ='Monthly Prices'!B52 -> 1.5 | R64: 1.5 | S64: =_xlfn.XLOOKUP(P64,'Annual Real'!A:A,'Annual Real'!B:B,0,0) -> 7.686329405 | T64: 6.050748626 | U64: 6.050748626 | V64: FALSE | W64: FALSE | X64: =LOOKUP(D64,'US Implicit Deflator'!A:A,'US Implicit Deflator'!B:B)/100 -> 0.005 | Y64: 0.0004157148447 | Z64: 1.033902592 | AA64: 7 | AB64: 1963-09-01 | AC64: 6.050748626
C65: ='Monthly Prices'!A53 -> 1963M10 | D65: 1963-10-01 | E65: 46 | F65: FALSE | G65: FALSE | H65: FALSE | J65: =INDEX('Monthly Prices'!B53:CB53,$G$4) -> 1.5 | K65: =IF(H65,INDEX('Monthly Prices'!B53:CB53,$G$4)*U65,FALSE) -> FALSE | L65: TRUE | M65: =INDEX('Monthly Prices'!B53:CB53,$G$5) -> .. | N65: =IF(H65,INDEX('Monthly Prices'!B53:CB53,$G$5)*U65,FALSE) -> FALSE | O65: FALSE | P65: 1963 | Q65: ='Monthly Prices'!B53 -> 1.5 | R65: 1.5 | S65: =_xlfn.XLOOKUP(P65,'Annual Real'!A:A,'Annual Real'!B:B,0,0) -> 7.686329405 | T65: 6.044736883 | U65: 6.044736883 | V65: FALSE | W65: FALSE | X65: =LOOKUP(D65,'US Implicit Deflator'!A:A,'US Implicit Deflator'!B:B)/100 -> 0.012 | Y65: 0.0009945418011 | Z65: 1.034930852 | AA65: 7 | AB65: 1963-10-01 | AC65: 6.044736883
C66: ='Monthly Prices'!A54 -> 1963M11 | D66: 1963-11-01 | E66: 47 | F66: FALSE | G66: FALSE | H66: FALSE | J66: =INDEX('Monthly Prices'!B54:CB54,$G$4) -> 1.5 | K66: =IF(H66,INDEX('Monthly Prices'!B54:CB54,$G$4)*U66,FALSE) -> FALSE | L66: TRUE | M66: =INDEX('Monthly Prices'!B54:CB54,$G$5) -> .. | N66: =IF(H66,INDEX('Monthly Prices'!B54:CB54,$G$5)*U66,FALSE) -> FALSE | O66: FALSE | P66: 1963 | Q66: ='Monthly Prices'!B54 -> 1.5 | R66: 1.5 | S66: =_xlfn.XLOOKUP(P66,'Annual Real'!A:A,'Annual Real'!B:B,0,0) -> 7.686329405 | T66: 6.038731112 | U66: 6.038731112 | V66: FALSE | W66: FALSE | X66: =LOOKUP(D66,'US Implicit Deflator'!A:A,'US Implicit Deflator'!B:B)/100 -> 0.012 | Y66: 0.0009945418011 | Z66: 1.035960134 | AA66: 7 | AB66: 1963-11-01 | AC66: 6.038731112
C67: ='Monthly Prices'!A55 -> 1963M12 | D67: 1963-12-01 | E67: 48 | F67: FALSE | G67: FALSE | H67: FALSE | J67: =INDEX('Monthly Prices'!B55:CB55,$G$4) -> 1.5 | K67: =IF(H67,INDEX('Monthly Prices'!B55:CB55,$G$4)*U67,FALSE) -> FALSE | L67: TRUE | M67: =INDEX('Monthly Prices'!B55:CB55,$G$5) -> .. | N67: =IF(H67,INDEX('Monthly Prices'!B55:CB55,$G$5)*U67,FALSE) -> FALSE | O67: FALSE | P67: 1963 | Q67: ='Monthly Prices'!B55 -> 1.5 | R67: 1.5 | S67: =_xlfn.XLOOKUP(P67,'Annual Real'!A:A,'Annual Real'!B:B,0,0) -> 7.686329405 | T67: 6.032731309 | U67: 6.032731309 | V67: FALSE | W67: FALSE | X67: =LOOKUP(D67,'US Implicit Deflator'!A:A,'US Implicit Deflator'!B:B)/100 -> 0.012 | Y67: 0.0009945418011 | Z67: 1.036990439 | AA67: 7 | AB67: 1963-12-01 | AC67: 6.032731309
C68: ='Monthly Prices'!A56 -> 1964M01 | D68: 1964-01-01 | E68: 49 | F68: FALSE | G68: FALSE | H68: FALSE | J68: =INDEX('Monthly Prices'!B56:CB56,$G$4) -> 1.45 | K68: =IF(H68,INDEX('Monthly Prices'!B56:CB56,$G$4)*U68,FALSE) -> FALSE | L68: TRUE | M68: =INDEX('Monthly Prices'!B56:CB56,$G$5) -> .. | N68: =IF(H68,INDEX('Monthly Prices'!B56:CB56,$G$5)*U68,FALSE) -> FALSE | O68: FALSE | P68: 1964 | Q68: ='Monthly Prices'!B56 -> 1.45 | R68: 1.45 | S68: =_xlfn.XLOOKUP(P68,'Annual Real'!A:A,'Annual Real'!B:B,0,0) -> 7.327569739 | T68: 6.028228681 | U68: 6.028228681 | V68: FALSE | W68: FALSE | X68: =LOOKUP(D68,'US Implicit Deflator'!A:A,'US Implicit Deflator'!B:B)/100 -> 0.009 | Y68: 0.0007469239231 | Z68: 1.037764992 | AA68: 7 | AB68: 1964-01-01 | AC68: 6.028228681
C69: ='Monthly Prices'!A57 -> 1964M02 | D69: 1964-02-01 | E69: 50 | F69: FALSE | G69: FALSE | H69: FALSE | J69: =INDEX('Monthly Prices'!B57:CB57,$G$4) -> 1.45 | K69: =IF(H69,INDEX('Monthly Prices'!B57:CB57,$G$4)*U69,FALSE) -> FALSE | L69: TRUE | M69: =INDEX('Monthly Prices'!B57:CB57,$G$5) -> .. | N69: =IF(H69,INDEX('Monthly Prices'!B57:CB57,$G$5)*U69,FALSE) -> FALSE | O69: FALSE | P69: 1964 | Q69: ='Monthly Prices'!B57 -> 1.45 | R69: 1.45 | S69: =_xlfn.XLOOKUP(P69,'Annual Real'!A:A,'Annual Real'!B:B,0,0) -> 7.327569739 | T69: 6.023729413 | U69: 6.023729413 | V69: FALSE | W69: FALSE | X69: =LOOKUP(D69,'US Implicit Deflator'!A:A,'US Implicit Deflator'!B:B)/100 -> 0.009 | Y69: 0.0007469239231 | Z69: 1.038540124 | AA69: 7 | AB69: 1964-02-01 | AC69: 6.023729413
C70: ='Monthly Prices'!A58 -> 1964M03 | D70: 1964-03-01 | E70: 51 | F70: FALSE | G70: FALSE | H70: FALSE | J70: =INDEX('Monthly Prices'!B58:CB58,$G$4) -> 1.45 | K70: =IF(H70,INDEX('Monthly Prices'!B58:CB58,$G$4)*U70,FALSE) -> FALSE | L70: TRUE | M70: =INDEX('Monthly Prices'!B58:CB58,$G$5) -> .. | N70: =IF(H70,INDEX('Monthly Prices'!B58:CB58,$G$5)*U70,FALSE) -> FALSE | O70: FALSE | P70: 1964 | Q70: ='Monthly Prices'!B58 -> 1.45 | R70: 1.45 | S70: =_xlfn.XLOOKUP(P70,'Annual Real'!A:A,'Annual Real'!B:B,0,0) -> 7.327569739 | T70: 6.019233503 | U70: 6.019233503 | V70: FALSE | W70: FALSE | X70: =LOOKUP(D70,'US Implicit Deflator'!A:A,'US Implicit Deflator'!B:B)/100 -> 0.009 | Y70: 0.0007469239231 | Z70: 1.039315834 | AA70: 7 | AB70: 1964-03-01 | AC70: 6.019233503
C71: ='Monthly Prices'!A59 -> 1964M04 | D71: 1964-04-01 | E71: 52 | F71: FALSE | G71: FALSE | H71: FALSE | J71: =INDEX('Monthly Prices'!B59:CB59,$G$4) -> 1.45 | K71: =IF(H71,INDEX('Monthly Prices'!B59:CB59,$G$4)*U71,FALSE) -> FALSE | L71: TRUE | M71: =INDEX('Monthly Prices'!B59:CB59,$G$5) -> .. | N71: =IF(H71,INDEX('Monthly Prices'!B59:CB59,$G$5)*U71,FALSE) -> FALSE | O71: FALSE | P71: 1964 | Q71: ='Monthly Prices'!B59 -> 1.45 | R71: 1.45 | S71: =_xlfn.XLOOKUP(P71,'Annual Real'!A:A,'Annual Real'!B:B,0,0) -> 7.327569739 | T71: 6.0137485 | U71: 6.0137485 | V71: FALSE | W71: FALSE | X71: =LOOKUP(D71,'US Implicit Deflator'!A:A,'US Implicit Deflator'!B:B)/100 -> 0.011 | Y71: 0.0009120773597 | Z71: 1.040263771 | AA71: 7 | AB71: 1964-04-01 | AC71: 6.0137485
C72: ='Monthly Prices'!A60 -> 1964M05 | D72: 1964-05-01 | E72: 53 | F72: FALSE | G72: FALSE | H72: FALSE | J72: =INDEX('Monthly Prices'!B60:CB60,$G$4) -> 1.45 | K72: =IF(H72,INDEX('Monthly Prices'!B60:CB60,$G$4)*U72,FALSE) -> FALSE | L72: TRUE | M72: =INDEX('Monthly Prices'!B60:CB60,$G$5) -> .. | N72: =IF(H72,INDEX('Monthly Prices'!B60:CB60,$G$5)*U72,FALSE) -> FALSE | O72: FALSE | P72: 1964 | Q72: ='Monthly Prices'!B60 -> 1.45 | R72: 1.45 | S72: =_xlfn.XLOOKUP(P72,'Annual Real'!A:A,'Annual Real'!B:B,0,0) -> 7.327569739 | T72: 6.008268494 | U72: 6.008268494 | V72: FALSE | W72: FALSE | X72: =LOOKUP(D72,'US Implicit Deflator'!A:A,'US Implicit Deflator'!B:B)/100 -> 0.011 | Y72: 0.0009120773597 | Z72: 1.041212572 | AA72: 7 | AB72: 1964-05-01 | AC72: 6.008268494
C73: ='Monthly Prices'!A61 -> 1964M06 | D73: 1964-06-01 | E73: 54 | F73: FALSE | G73: FALSE | H73: FALSE | J73: =INDEX('Monthly Prices'!B61:CB61,$G$4) -> 1.45 | K73: =IF(H73,INDEX('Monthly Prices'!B61:CB61,$G$4)*U73,FALSE) -> FALSE | L73: TRUE | M73: =INDEX('Monthly Prices'!B61:CB61,$G$5) -> .. | N73: =IF(H73,INDEX('Monthly Prices'!B61:CB61,$G$5)*U73,FALSE) -> FALSE | O73: FALSE | P73: 1964 | Q73: ='Monthly Prices'!B61 -> 1.45 | R73: 1.45 | S73: =_xlfn.XLOOKUP(P73,'Annual Real'!A:A,'Annual Real'!B:B,0,0) -> 7.327569739 | T73: 6.002793482 | U73: 6.002793482 | V73: FALSE | W73: FALSE | X73: =LOOKUP(D73,'US Implicit Deflator'!A:A,'US Implicit Deflator'!B:B)/100 -> 0.011 | Y73: 0.0009120773597 | Z73: 1.042162238 | AA73: 7 | AB73: 1964-06-01 | AC73: 6.002793482
C74: ='Monthly Prices'!A62 -> 1964M07 | D74: 1964-07-01 | E74: 55 | F74: FALSE | G74: FALSE | H74: FALSE | J74: =INDEX('Monthly Prices'!B62:CB62,$G$4) -> 1.45 | K74: =IF(H74,INDEX('Monthly Prices'!B62:CB62,$G$4)*U74,FALSE) -> FALSE | L74: TRUE | M74: =INDEX('Monthly Prices'!B62:CB62,$G$5) -> .. | N74: =IF(H74,INDEX('Monthly Prices'!B62:CB62,$G$5)*U74,FALSE) -> FALSE | O74: FALSE | P74: 1964 | Q74: ='Monthly Prices'!B62 -> 1.45 | R74: 1.45 | S74: =_xlfn.XLOOKUP(P74,'Annual Real'!A:A,'Annual Real'!B:B,0,0) -> 7.327569739 | T74: 5.994366919 | U74: 5.994366919 | V74: FALSE | W74: FALSE | X74: =LOOKUP(D74,'US Implicit Deflator'!A:A,'US Implicit Deflator'!B:B)/100 -> 0.017 | Y74: 0.001405746893 | Z74: 1.043627254 | AA74: 7 | AB74: 1964-07-01 | AC74: 5.994366919
C75: ='Monthly Prices'!A63 -> 1964M08 | D75: 1964-08-01 | E75: 56 | F75: FALSE | G75: FALSE | H75: FALSE | J75: =INDEX('Monthly Prices'!B63:CB63,$G$4) -> 1.45 | K75: =IF(H75,INDEX('Monthly Prices'!B63:CB63,$G$4)*U75,FALSE) -> FALSE | L75: TRUE | M75: =INDEX('Monthly Prices'!B63:CB63,$G$5) -> .. | N75: =IF(H75,INDEX('Monthly Prices'!B63:CB63,$G$5)*U75,FALSE) -> FALSE | O75: FALSE | P75: 1964 | Q75: ='Monthly Prices'!B63 -> 1.45 | R75: 1.45 | S75: =_xlfn.XLOOKUP(P75,'Annual Real'!A:A,'Annual Real'!B:B,0,0) -> 7.327569739 | T75: 5.985952186 | U75: 5.985952186 | V75: FALSE | W75: FALSE | X75: =LOOKUP(D75,'US Implicit Deflator'!A:A,'US Implicit Deflator'!B:B)/100 -> 0.017 | Y75: 0.001405746893 | Z75: 1.04509433 | AA75: 7 | AB75: 1964-08-01 | AC75: 5.985952186
C76: ='Monthly Prices'!A64 -> 1964M09 | D76: 1964-09-01 | E76: 57 | F76: FALSE | G76: FALSE | H76: FALSE | J76: =INDEX('Monthly Prices'!B64:CB64,$G$4) -> 1.45 | K76: =IF(H76,INDEX('Monthly Prices'!B64:CB64,$G$4)*U76,FALSE) -> FALSE | L76: TRUE | M76: =INDEX('Monthly Prices'!B64:CB64,$G$5) -> .. | N76: =IF(H76,INDEX('Monthly Prices'!B64:CB64,$G$5)*U76,FALSE) -> FALSE | O76: FALSE | P76: 1964 | Q76: ='Monthly Prices'!B64 -> 1.45 | R76: 1.45 | S76: =_xlfn.XLOOKUP(P76,'Annual Real'!A:A,'Annual Real'!B:B,0,0) -> 7.327569739 | T76: 5.977549264 | U76: 5.977549264 | V76: FALSE | W76: FALSE | X76: =LOOKUP(D76,'US Implicit Deflator'!A:A,'US Implicit Deflator'!B:B)/100 -> 0.017 | Y76: 0.001405746893 | Z76: 1.046563468 | AA76: 7 | AB76: 1964-09-01 | AC76: 5.977549264
C77: ='Monthly Prices'!A65 -> 1964M10 | D77: 1964-10-01 | E77: 58 | F77: FALSE | G77: FALSE | H77: FALSE | J77: =INDEX('Monthly Prices'!B65:CB65,$G$4) -> 1.45 | K77: =IF(H77,INDEX('Monthly Prices'!B65:CB65,$G$4)*U77,FALSE) -> FALSE | L77: TRUE | M77: =INDEX('Monthly Prices'!B65:CB65,$G$5) -> .. | N77: =IF(H77,INDEX('Monthly Prices'!B65:CB65,$G$5)*U77,FALSE) -> FALSE | O77: FALSE | P77: 1964 | Q77: ='Monthly Prices'!B65 -> 1.45 | R77: 1.45 | S77: =_xlfn.XLOOKUP(P77,'Annual Real'!A:A,'Annual Real'!B:B,0,0) -> 7.327569739 | T77: 5.970627833 | U77: 5.970627833 | V77: FALSE | W77: FALSE | X77: =LOOKUP(D77,'US Implicit Deflator'!A:A,'US Implicit Deflator'!B:B)/100 -> 0.014 | Y77: 0.001159246839 | Z77: 1.047776694 | AA77: 7 | AB77: 1964-10-01 | AC77: 5.970627833
C78: ='Monthly Prices'!A66 -> 1964M11 | D78: 1964-11-01 | E78: 59 | F78: FALSE | G78: FALSE | H78: FALSE | J78: =INDEX('Monthly Prices'!B66:CB66,$G$4) -> 1.45 | K78: =IF(H78,INDEX('Monthly Prices'!B66:CB66,$G$4)*U78,FALSE) -> FALSE | L78: TRUE | M78: =INDEX('Monthly Prices'!B66:CB66,$G$5) -> .. | N78: =IF(H78,INDEX('Monthly Prices'!B66:CB66,$G$5)*U78,FALSE) -> FALSE | O78: FALSE | P78: 1964 | Q78: ='Monthly Prices'!B66 -> 1.45 | R78: 1.45 | S78: =_xlfn.XLOOKUP(P78,'Annual Real'!A:A,'Annual Real'!B:B,0,0) -> 7.327569739 | T78: 5.963714416 | U78: 5.963714416 | V78: FALSE | W78: FALSE | X78: =LOOKUP(D78,'US Implicit Deflator'!A:A,'US Implicit Deflator'!B:B)/100 -> 0.014 | Y78: 0.001159246839 | Z78: 1.048991325 | AA78: 7 | AB78: 1964-11-01 | AC78: 5.963714416
C79: ='Monthly Prices'!A67 -> 1964M12 | D79: 1964-12-01 | E79: 60 | F79: FALSE | G79: FALSE | H79: FALSE | J79: =INDEX('Monthly Prices'!B67:CB67,$G$4) -> 1.45 | K79: =IF(H79,INDEX('Monthly Prices'!B67:CB67,$G$4)*U79,FALSE) -> FALSE | L79: TRUE | M79: =INDEX('Monthly Prices'!B67:CB67,$G$5) -> .. | N79: =IF(H79,INDEX('Monthly Prices'!B67:CB67,$G$5)*U79,FALSE) -> FALSE | O79: FALSE | P79: 1964 | Q79: ='Monthly Prices'!B67 -> 1.45 | R79: 1.45 | S79: =_xlfn.XLOOKUP(P79,'Annual Real'!A:A,'Annual Real'!B:B,0,0) -> 7.327569739 | T79: 5.956809004 | U79: 5.956809004 | V79: FALSE | W79: FALSE | X79: =LOOKUP(D79,'US Implicit Deflator'!A:A,'US Implicit Deflator'!B:B)/100 -> 0.014 | Y79: 0.001159246839 | Z79: 1.050207365 | AA79: 7 | AB79: 1964-12-01 | AC79: 5.956809004
C80: ='Monthly Prices'!A68 -> 1965M01 | D80: 1965-01-01 | E80: 61 | F80: FALSE | G80: FALSE | H80: FALSE | J80: =INDEX('Monthly Prices'!B68:CB68,$G$4) -> 1.42 | K80: =IF(H80,INDEX('Monthly Prices'!B68:CB68,$G$4)*U80,FALSE) -> FALSE | L80: TRUE | M80: =INDEX('Monthly Prices'!B68:CB68,$G$5) -> .. | N80: =IF(H80,INDEX('Monthly Prices'!B68:CB68,$G$5)*U80,FALSE) -> FALSE | O80: FALSE | P80: 1965 | Q80: ='Monthly Prices'!B68 -> 1.42 | R80: 1.42 | S80: =_xlfn.XLOOKUP(P80,'Annual Real'!A:A,'Annual Real'!B:B,0,0) -> 7.107594015 | T80: 5.949911588 | U80: 5.949911588 | V80: FALSE | W80: FALSE | X80: =LOOKUP(D80,'US Implicit Deflator'!A:A,'US Implicit Deflator'!B:B)/100 -> 0.014 | Y80: 0.001159246839 | Z80: 1.051424815 | AA80: 7 | AB80: 1965-01-01 | AC80: 5.949911588
C81: ='Monthly Prices'!A69 -> 1965M02 | D81: 1965-02-01 | E81: 62 | F81: FALSE | G81: FALSE | H81: FALSE | J81: =INDEX('Monthly Prices'!B69:CB69,$G$4) -> 1.42 | K81: =IF(H81,INDEX('Monthly Prices'!B69:CB69,$G$4)*U81,FALSE) -> FALSE | L81: TRUE | M81: =INDEX('Monthly Prices'!B69:CB69,$G$5) -> .. | N81: =IF(H81,INDEX('Monthly Prices'!B69:CB69,$G$5)*U81,FALSE) -> FALSE | O81: FALSE | P81: 1965 | Q81: ='Monthly Prices'!B69 -> 1.42 | R81: 1.42 | S81: =_xlfn.XLOOKUP(P81,'Annual Real'!A:A,'Annual Real'!B:B,0,0) -> 7.107594015 | T81: 5.943022158 | U81: 5.943022158 | V81: FALSE | W81: FALSE | X81: =LOOKUP(D81,'US Implicit Deflator'!A:A,'US Implicit Deflator'!B:B)/100 -> 0.014 | Y81: 0.001159246839 | Z81: 1.052643676 | AA81: 7 | AB81: 1965-02-01 | AC81: 5.943022158
C82: ='Monthly Prices'!A70 -> 1965M03 | D82: 1965-03-01 | E82: 63 | F82: FALSE | G82: FALSE | H82: FALSE | J82: =INDEX('Monthly Prices'!B70:CB70,$G$4) -> 1.42 | K82: =IF(H82,INDEX('Monthly Prices'!B70:CB70,$G$4)*U82,FALSE) -> FALSE | L82: TRUE | M82: =INDEX('Monthly Prices'!B70:CB70,$G$5) -> .. | N82: =IF(H82,INDEX('Monthly Prices'!B70:CB70,$G$5)*U82,FALSE) -> FALSE | O82: FALSE | P82: 1965 | Q82: ='Monthly Prices'!B70 -> 1.42 | R82: 1.42 | S82: =_xlfn.XLOOKUP(P82,'Annual Real'!A:A,'Annual Real'!B:B,0,0) -> 7.107594015 | T82: 5.936140706 | U82: 5.936140706 | V82: FALSE | W82: FALSE | X82: =LOOKUP(D82,'US Implicit Deflator'!A:A,'US Implicit Deflator'!B:B)/100 -> 0.014 | Y82: 0.001159246839 | Z82: 1.05386395 | AA82: 7 | AB82: 1965-03-01 | AC82: 5.936140706
C83: ='Monthly Prices'!A71 -> 1965M04 | D83: 1965-04-01 | E83: 64 | F83: FALSE | G83: FALSE | H83: FALSE | J83: =INDEX('Monthly Prices'!B71:CB71,$G$4) -> 1.42 | K83: =IF(H83,INDEX('Monthly Prices'!B71:CB71,$G$4)*U83,FALSE) -> FALSE | L83: TRUE | M83: =INDEX('Monthly Prices'!B71:CB71,$G$5) -> .. | N83: =IF(H83,INDEX('Monthly Prices'!B71:CB71,$G$5)*U83,FALSE) -> FALSE | O83: FALSE | P83: 1965 | Q83: ='Monthly Prices'!B71 -> 1.42 | R83: 1.42 | S83: =_xlfn.XLOOKUP(P83,'Annual Real'!A:A,'Annual Real'!B:B,0,0) -> 7.107594015 | T83: 5.929754765 | U83: 5.929754765 | V83: FALSE | W83: FALSE | X83: =LOOKUP(D83,'US Implicit Deflator'!A:A,'US Implicit Deflator'!B:B)/100 -> 0.013 | Y83: 0.00107693158 | Z83: 1.054998889 | AA83: 7 | AB83: 1965-04-01 | AC83: 5.929754765
C84: ='Monthly Prices'!A72 -> 1965M05 | D84: 1965-05-01 | E84: 65 | F84: =AND(E84>=$M$4,L84) -> FALSE | G84: =AND(E84<=$M$5,O84) -> FALSE | H84: =AND(F84:G84) -> FALSE | I84: =IF(H84,D84,NA) ->  | J84: =INDEX('Monthly Prices'!B72:CB72,$G$4) -> 1.42 | K84: =IF(H84,INDEX('Monthly Prices'!B72:CB72,$G$4)*U84,FALSE) -> FALSE | L84: TRUE | M84: =INDEX('Monthly Prices'!B72:CB72,$G$5) -> .. | N84: =IF(H84,INDEX('Monthly Prices'!B72:CB72,$G$5)*U84,FALSE) -> FALSE | O84: =AND(ISNUMBER(M84),M84>0) -> FALSE | P84: 1965 | Q84: ='Monthly Prices'!B72 -> 1.42 | R84: 1.42 | S84: =_xlfn.XLOOKUP(P84,'Annual Real'!A:A,'Annual Real'!B:B,0,0) -> 7.107594015 | T84: 5.923375695 | U84: 5.923375695 | V84: FALSE | W84: FALSE | X84: =LOOKUP(D84,'US Implicit Deflator'!A:A,'US Implicit Deflator'!B:B)/100 -> 0.013 | Y84: 0.00107693158 | Z84: 1.056135051 | AA84: 7 | AB84: 1965-05-01 | AC84: 5.923375695
C85: ='Monthly Prices'!A73 -> 1965M06 | D85: =EDATE(D84,1) -> 1965-06-01 | E85: =E84+1 -> 66 | F85: FALSE | G85: FALSE | H85: FALSE | J85: =INDEX('Monthly Prices'!B73:CB73,$G$4) -> 1.42 | K85: =IF(H85,INDEX('Monthly Prices'!B73:CB73,$G$4)*U85,FALSE) -> FALSE | L85: =ISNUMBER(J85) -> TRUE | M85: =INDEX('Monthly Prices'!B73:CB73,$G$5) -> .. | N85: =IF(H85,INDEX('Monthly Prices'!B73:CB73,$G$5)*U85,FALSE) -> FALSE | O85: FALSE | P85: =YEAR(D85) -> 1965 | Q85: ='Monthly Prices'!B73 -> 1.42 | R85: =AVERAGEIF(P:P,P85,Q:Q) -> 1.42 | S85: =_xlfn.XLOOKUP(P85,'Annual Real'!A:A,'Annual Real'!B:B,0,0) -> 7.107594015 | T85: =AC85 -> 5.917003487 | U85: =IF($U$19,T85,1) -> 5.917003487 | V85: FALSE | W85: FALSE | X85: =LOOKUP(D85,'US Implicit Deflator'!A:A,'US Implicit Deflator'!B:B)/100 -> 0.013 | Y85: =(1+X85)^(1/12)-1 -> 0.00107693158 | Z85: =Z84*(1+Y85) -> 1.057272436 | AA85: =LEN(C85) -> 7 | AB85: =IF(AA85>2,D85,0) -> 1965-06-01 | AC85: =$AC$17/Z85 -> 5.917003487
C86: ='Monthly Prices'!A74 -> 1965M07 | D86: 1965-07-01 | E86: 67 | F86: FALSE | G86: FALSE | H86: FALSE | J86: =INDEX('Monthly Prices'!B74:CB74,$G$4) -> 1.42 | K86: =IF(H86,INDEX('Monthly Prices'!B74:CB74,$G$4)*U86,FALSE) -> FALSE | L86: TRUE | M86: =INDEX('Monthly Prices'!B74:CB74,$G$5) -> .. | N86: =IF(H86,INDEX('Monthly Prices'!B74:CB74,$G$5)*U86,FALSE) -> FALSE | O86: FALSE | P86: 1965 | Q86: ='Monthly Prices'!B74 -> 1.42 | R86: 1.42 | S86: =_xlfn.XLOOKUP(P86,'Annual Real'!A:A,'Annual Real'!B:B,0,0) -> 7.107594015 | T86: 5.911124627 | U86: 5.911124627 | V86: =IF(AND(H85,H86),LN(K86/K85)) -> FALSE | W86: =IF(AND($H85,$H86),LN(N86/N85)) -> FALSE | X86: =LOOKUP(D86,'US Implicit Deflator'!A:A,'US Implicit Deflator'!B:B)/100 -> 0.012 | Y86: 0.0009945418011 | Z86: 1.058323937 | AA86: 7 | AB86: 1965-07-01 | AC86: 5.911124627
C87: ='Monthly Prices'!A75 -> 1965M08 | D87: 1965-08-01 | E87: 68 | F87: FALSE | G87: FALSE | H87: FALSE | J87: =INDEX('Monthly Prices'!B75:CB75,$G$4) -> 1.42 | K87: =IF(H87,INDEX('Monthly Prices'!B75:CB75,$G$4)*U87,FALSE) -> FALSE | L87: TRUE | M87: =INDEX('Monthly Prices'!B75:CB75,$G$5) -> .. | N87: =IF(H87,INDEX('Monthly Prices'!B75:CB75,$G$5)*U87,FALSE) -> FALSE | O87: FALSE | P87: 1965 | Q87: ='Monthly Prices'!B75 -> 1.42 | R87: 1.42 | S87: =_xlfn.XLOOKUP(P87,'Annual Real'!A:A,'Annual Real'!B:B,0,0) -> 7.107594015 | T87: 5.905251607 | U87: 5.905251607 | V87: FALSE | W87: FALSE | X87: =LOOKUP(D87,'US Implicit Deflator'!A:A,'US Implicit Deflator'!B:B)/100 -> 0.012 | Y87: 0.0009945418011 | Z87: 1.059376485 | AA87: 7 | AB87: 1965-08-01 | AC87: 5.905251607
C88: ='Monthly Prices'!A76 -> 1965M09 | D88: 1965-09-01 | E88: 69 | F88: FALSE | G88: FALSE | H88: FALSE | J88: =INDEX('Monthly Prices'!B76:CB76,$G$4) -> 1.42 | K88: =IF(H88,INDEX('Monthly Prices'!B76:CB76,$G$4)*U88,FALSE) -> FALSE | L88: TRUE | M88: =INDEX('Monthly Prices'!B76:CB76,$G$5) -> .. | N88: =IF(H88,INDEX('Monthly Prices'!B76:CB76,$G$5)*U88,FALSE) -> FALSE | O88: FALSE | P88: 1965 | Q88: ='Monthly Prices'!B76 -> 1.42 | R88: 1.42 | S88: =_xlfn.XLOOKUP(P88,'Annual Real'!A:A,'Annual Real'!B:B,0,0) -> 7.107594015 | T88: 5.899384423 | U88: 5.899384423 | V88: FALSE | W88: FALSE | X88: =LOOKUP(D88,'US Implicit Deflator'!A:A,'US Implicit Deflator'!B:B)/100 -> 0.012 | Y88: 0.0009945418011 | Z88: 1.060430079 | AA88: 7 | AB88: 1965-09-01 | AC88: 5.899384423
C89: ='Monthly Prices'!A77 -> 1965M10 | D89: 1965-10-01 | E89: 70 | F89: FALSE | G89: FALSE | H89: FALSE | J89: =INDEX('Monthly Prices'!B77:CB77,$G$4) -> 1.42 | K89: =IF(H89,INDEX('Monthly Prices'!B77:CB77,$G$4)*U89,FALSE) -> FALSE | L89: TRUE | M89: =INDEX('Monthly Prices'!B77:CB77,$G$5) -> .. | N89: =IF(H89,INDEX('Monthly Prices'!B77:CB77,$G$5)*U89,FALSE) -> FALSE | O89: FALSE | P89: 1965 | Q89: ='Monthly Prices'!B77 -> 1.42 | R89: 1.42 | S89: =_xlfn.XLOOKUP(P89,'Annual Real'!A:A,'Annual Real'!B:B,0,0) -> 7.107594015 | T89: 5.893038024 | U89: 5.893038024 | V89: FALSE | W89: FALSE | X89: =LOOKUP(D89,'US Implicit Deflator'!A:A,'US Implicit Deflator'!B:B)/100 -> 0.013 | Y89: 0.00107693158 | Z89: 1.06157209 | AA89: 7 | AB89: 1965-10-01 | AC89: 5.893038024
C90: ='Monthly Prices'!A78 -> 1965M11 | D90: 1965-11-01 | E90: 71 | F90: FALSE | G90: FALSE | H90: FALSE | J90: =INDEX('Monthly Prices'!B78:CB78,$G$4) -> 1.42 | K90: =IF(H90,INDEX('Monthly Prices'!B78:CB78,$G$4)*U90,FALSE) -> FALSE | L90: TRUE | M90: =INDEX('Monthly Prices'!B78:CB78,$G$5) -> .. | N90: =IF(H90,INDEX('Monthly Prices'!B78:CB78,$G$5)*U90,FALSE) -> FALSE | O90: FALSE | P90: 1965 | Q90: ='Monthly Prices'!B78 -> 1.42 | R90: 1.42 | S90: =_xlfn.XLOOKUP(P90,'Annual Real'!A:A,'Annual Real'!B:B,0,0) -> 7.107594015 | T90: 5.886698452 | U90: 5.886698452 | V90: FALSE | W90: FALSE | X90: =LOOKUP(D90,'US Implicit Deflator'!A:A,'US Implicit Deflator'!B:B)/100 -> 0.013 | Y90: 0.00107693158 | Z90: 1.06271533 | AA90: 7 | AB90: 1965-11-01 | AC90: 5.886698452
C91: ='Monthly Prices'!A79 -> 1965M12 | D91: 1965-12-01 | E91: 72 | F91: FALSE | G91: FALSE | H91: FALSE | J91: =INDEX('Monthly Prices'!B79:CB79,$G$4) -> 1.42 | K91: =IF(H91,INDEX('Monthly Prices'!B79:CB79,$G$4)*U91,FALSE) -> FALSE | L91: TRUE | M91: =INDEX('Monthly Prices'!B79:CB79,$G$5) -> .. | N91: =IF(H91,INDEX('Monthly Prices'!B79:CB79,$G$5)*U91,FALSE) -> FALSE | O91: FALSE | P91: 1965 | Q91: ='Monthly Prices'!B79 -> 1.42 | R91: 1.42 | S91: =_xlfn.XLOOKUP(P91,'Annual Real'!A:A,'Annual Real'!B:B,0,0) -> 7.107594015 | T91: 5.880365701 | U91: 5.880365701 | V91: FALSE | W91: FALSE | X91: =LOOKUP(D91,'US Implicit Deflator'!A:A,'US Implicit Deflator'!B:B)/100 -> 0.013 | Y91: 0.00107693158 | Z91: 1.063859802 | AA91: 7 | AB91: 1965-12-01 | AC91: 5.880365701
C92: ='Monthly Prices'!A80 -> 1966M01 | D92: 1966-01-01 | E92: 73 | F92: FALSE | G92: FALSE | H92: FALSE | J92: =INDEX('Monthly Prices'!B80:CB80,$G$4) -> 1.36 | K92: =IF(H92,INDEX('Monthly Prices'!B80:CB80,$G$4)*U92,FALSE) -> FALSE | L92: TRUE | M92: =INDEX('Monthly Prices'!B80:CB80,$G$5) -> .. | N92: =IF(H92,INDEX('Monthly Prices'!B80:CB80,$G$5)*U92,FALSE) -> FALSE | O92: FALSE | P92: 1966 | Q92: ='Monthly Prices'!B80 -> 1.36 | R92: 1.36 | S92: =_xlfn.XLOOKUP(P92,'Annual Real'!A:A,'Annual Real'!B:B,0,0) -> 6.565224675 | T92: 5.874523242 | U92: 5.874523242 | V92: FALSE | W92: FALSE | X92: =LOOKUP(D92,'US Implicit Deflator'!A:A,'US Implicit Deflator'!B:B)/100 -> 0.012 | Y92: 0.0009945418011 | Z92: 1.064917855 | AA92: 7 | AB92: 1966-01-01 | AC92: 5.874523242
C93: ='Monthly Prices'!A81 -> 1966M02 | D93: 1966-02-01 | E93: 74 | F93: FALSE | G93: FALSE | H93: FALSE | J93: =INDEX('Monthly Prices'!B81:CB81,$G$4) -> 1.36 | K93: =IF(H93,INDEX('Monthly Prices'!B81:CB81,$G$4)*U93,FALSE) -> FALSE | L93: TRUE | M93: =INDEX('Monthly Prices'!B81:CB81,$G$5) -> .. | N93: =IF(H93,INDEX('Monthly Prices'!B81:CB81,$G$5)*U93,FALSE) -> FALSE | O93: FALSE | P93: 1966 | Q93: ='Monthly Prices'!B81 -> 1.36 | R93: 1.36 | S93: =_xlfn.XLOOKUP(P93,'Annual Real'!A:A,'Annual Real'!B:B,0,0) -> 6.565224675 | T93: 5.868686588 | U93: 5.868686588 | V93: FALSE | W93: FALSE | X93: =LOOKUP(D93,'US Implicit Deflator'!A:A,'US Implicit Deflator'!B:B)/100 -> 0.012 | Y93: 0.0009945418011 | Z93: 1.06597696 | AA93: 7 | AB93: 1966-02-01 | AC93: 5.868686588
C94: ='Monthly Prices'!A82 -> 1966M03 | D94: 1966-03-01 | E94: 75 | F94: FALSE | G94: FALSE | H94: FALSE | J94: =INDEX('Monthly Prices'!B82:CB82,$G$4) -> 1.36 | K94: =IF(H94,INDEX('Monthly Prices'!B82:CB82,$G$4)*U94,FALSE) -> FALSE | L94: TRUE | M94: =INDEX('Monthly Prices'!B82:CB82,$G$5) -> .. | N94: =IF(H94,INDEX('Monthly Prices'!B82:CB82,$G$5)*U94,FALSE) -> FALSE | O94: FALSE | P94: 1966 | Q94: ='Monthly Prices'!B82 -> 1.36 | R94: 1.36 | S94: =_xlfn.XLOOKUP(P94,'Annual Real'!A:A,'Annual Real'!B:B,0,0) -> 6.565224675 | T94: 5.862855733 | U94: 5.862855733 | V94: FALSE | W94: FALSE | X94: =LOOKUP(D94,'US Implicit Deflator'!A:A,'US Implicit Deflator'!B:B)/100 -> 0.012 | Y94: 0.0009945418011 | Z94: 1.067037119 | AA94: 7 | AB94: 1966-03-01 | AC94: 5.862855733
C95: ='Monthly Prices'!A83 -> 1966M04 | D95: 1966-04-01 | E95: 76 | F95: FALSE | G95: FALSE | H95: FALSE | J95: =INDEX('Monthly Prices'!B83:CB83,$G$4) -> 1.36 | K95: =IF(H95,INDEX('Monthly Prices'!B83:CB83,$G$4)*U95,FALSE) -> FALSE | L95: TRUE | M95: =INDEX('Monthly Prices'!B83:CB83,$G$5) -> .. | N95: =IF(H95,INDEX('Monthly Prices'!B83:CB83,$G$5)*U95,FALSE) -> FALSE | O95: FALSE | P95: 1966 | Q95: ='Monthly Prices'!B83 -> 1.36 | R95: 1.36 | S95: =_xlfn.XLOOKUP(P95,'Annual Real'!A:A,'Annual Real'!B:B,0,0) -> 6.565224675 | T95: 5.852710768 | U95: 5.852710768 | V95: FALSE | W95: FALSE | X95: =LOOKUP(D95,'US Implicit Deflator'!A:A,'US Implicit Deflator'!B:B)/100 -> 0.021 | Y95: 0.001733378833 | Z95: 1.068886698 | AA95: 7 | AB95: 1966-04-01 | AC95: 5.852710768
C96: ='Monthly Prices'!A84 -> 1966M05 | D96: 1966-05-01 | E96: 77 | F96: FALSE | G96: FALSE | H96: FALSE | J96: =INDEX('Monthly Prices'!B84:CB84,$G$4) -> 1.36 | K96: =IF(H96,INDEX('Monthly Prices'!B84:CB84,$G$4)*U96,FALSE) -> FALSE | L96: TRUE | M96: =INDEX('Monthly Prices'!B84:CB84,$G$5) -> .. | N96: =IF(H96,INDEX('Monthly Prices'!B84:CB84,$G$5)*U96,FALSE) -> FALSE | O96: FALSE | P96: 1966 | Q96: ='Monthly Prices'!B84 -> 1.36 | R96: 1.36 | S96: =_xlfn.XLOOKUP(P96,'Annual Real'!A:A,'Annual Real'!B:B,0,0) -> 6.565224675 | T96: 5.842583357 | U96: 5.842583357 | V96: FALSE | W96: FALSE | X96: =LOOKUP(D96,'US Implicit Deflator'!A:A,'US Implicit Deflator'!B:B)/100 -> 0.021 | Y96: 0.001733378833 | Z96: 1.070739484 | AA96: 7 | AB96: 1966-05-01 | AC96: 5.842583357
C97: ='Monthly Prices'!A85 -> 1966M06 | D97: 1966-06-01 | E97: 78 | F97: FALSE | G97: FALSE | H97: FALSE | J97: =INDEX('Monthly Prices'!B85:CB85,$G$4) -> 1.36 | K97: =IF(H97,INDEX('Monthly Prices'!B85:CB85,$G$4)*U97,FALSE) -> FALSE | L97: TRUE | M97: =INDEX('Monthly Prices'!B85:CB85,$G$5) -> .. | N97: =IF(H97,INDEX('Monthly Prices'!B85:CB85,$G$5)*U97,FALSE) -> FALSE | O97: FALSE | P97: 1966 | Q97: ='Monthly Prices'!B85 -> 1.36 | R97: 1.36 | S97: =_xlfn.XLOOKUP(P97,'Annual Real'!A:A,'Annual Real'!B:B,0,0) -> 6.565224675 | T97: 5.832473471 | U97: 5.832473471 | V97: FALSE | W97: FALSE | X97: =LOOKUP(D97,'US Implicit Deflator'!A:A,'US Implicit Deflator'!B:B)/100 -> 0.021 | Y97: 0.001733378833 | Z97: 1.072595481 | AA97: 7 | AB97: 1966-06-01 | AC97: 5.832473471
C98: ='Monthly Prices'!A86 -> 1966M07 | D98: 1966-07-01 | E98: 79 | F98: FALSE | G98: FALSE | H98: FALSE | J98: =INDEX('Monthly Prices'!B86:CB86,$G$4) -> 1.36 | K98: =IF(H98,INDEX('Monthly Prices'!B86:CB86,$G$4)*U98,FALSE) -> FALSE | L98: TRUE | M98: =INDEX('Monthly Prices'!B86:CB86,$G$5) -> .. | N98: =IF(H98,INDEX('Monthly Prices'!B86:CB86,$G$5)*U98,FALSE) -> FALSE | O98: FALSE | P98: 1966 | Q98: ='Monthly Prices'!B86 -> 1.36 | R98: 1.36 | S98: =_xlfn.XLOOKUP(P98,'Annual Real'!A:A,'Annual Real'!B:B,0,0) -> 6.565224675 | T98: 5.820484227 | U98: 5.820484227 | V98: FALSE | W98: FALSE | X98: =LOOKUP(D98,'US Implicit Deflator'!A:A,'US Implicit Deflator'!B:B)/100 -> 0.025 | Y98: 0.00205983627 | Z98: 1.074804852 | AA98: 7 | AB98: 1966-07-01 | AC98: 5.820484227
C99: ='Monthly Prices'!A87 -> 1966M08 | D99: 1966-08-01 | E99: 80 | F99: FALSE | G99: FALSE | H99: FALSE | J99: =INDEX('Monthly Prices'!B87:CB87,$G$4) -> 1.36 | K99: =IF(H99,INDEX('Monthly Prices'!B87:CB87,$G$4)*U99,FALSE) -> FALSE | L99: TRUE | M99: =INDEX('Monthly Prices'!B87:CB87,$G$5) -> .. | N99: =IF(H99,INDEX('Monthly Prices'!B87:CB87,$G$5)*U99,FALSE) -> FALSE | O99: FALSE | P99: 1966 | Q99: ='Monthly Prices'!B87 -> 1.36 | R99: 1.36 | S99: =_xlfn.XLOOKUP(P99,'Annual Real'!A:A,'Annual Real'!B:B,0,0) -> 6.565224675 | T99: 5.808519627 | U99: 5.808519627 | V99: FALSE | W99: FALSE | X99: =LOOKUP(D99,'US Implicit Deflator'!A:A,'US Implicit Deflator'!B:B)/100 -> 0.025 | Y99: 0.00205983627 | Z99: 1.077018774 | AA99: 7 | AB99: 1966-08-01 | AC99: 5.808519627
C100: ='Monthly Prices'!A88 -> 1966M09 | D100: 1966-09-01 | E100: 81 | F100: FALSE | G100: FALSE | H100: FALSE | J100: =INDEX('Monthly Prices'!B88:CB88,$G$4) -> 1.36 | K100: =IF(H100,INDEX('Monthly Prices'!B88:CB88,$G$4)*U100,FALSE) -> FALSE | L100: TRUE | M100: =INDEX('Monthly Prices'!B88:CB88,$G$5) -> .. | N100: =IF(H100,INDEX('Monthly Prices'!B88:CB88,$G$5)*U100,FALSE) -> FALSE | O100: FALSE | P100: 1966 | Q100: ='Monthly Prices'!B88 -> 1.36 | R100: 1.36 | S100: =_xlfn.XLOOKUP(P100,'Annual Real'!A:A,'Annual Real'!B:B,0,0) -> 6.565224675 | T100: 5.796579623 | U100: 5.796579623 | V100: FALSE | W100: FALSE | X100: =LOOKUP(D100,'US Implicit Deflator'!A:A,'US Implicit Deflator'!B:B)/100 -> 0.025 | Y100: 0.00205983627 | Z100: 1.079237257 | AA100: 7 | AB100: 1966-09-01 | AC100: 5.796579623
C101: ='Monthly Prices'!A89 -> 1966M10 | D101: 1966-10-01 | E101: 82 | F101: FALSE | G101: FALSE | H101: FALSE | J101: =INDEX('Monthly Prices'!B89:CB89,$G$4) -> 1.36 | K101: =IF(H101,INDEX('Monthly Prices'!B89:CB89,$G$4)*U101,FALSE) -> FALSE | L101: TRUE | M101: =INDEX('Monthly Prices'!B89:CB89,$G$5) -> .. | N101: =IF(H101,INDEX('Monthly Prices'!B89:CB89,$G$5)*U101,FALSE) -> FALSE | O101: FALSE | P101: 1966 | Q101: ='Monthly Prices'!B89 -> 1.36 | R101: 1.36 | S101: =_xlfn.XLOOKUP(P101,'Annual Real'!A:A,'Annual Real'!B:B,0,0) -> 6.565224675 | T101: 5.780917599 | U101: 5.780917599 | V101: FALSE | W101: FALSE | X101: =LOOKUP(D101,'US Implicit Deflator'!A:A,'US Implicit Deflator'!B:B)/100 -> 0.033 | Y101: 0.002709262615 | Z101: 1.082161194 | AA101: 7 | AB101: 1966-10-01 | AC101: 5.780917599
C102: ='Monthly Prices'!A90 -> 1966M11 | D102: 1966-11-01 | E102: 83 | F102: FALSE | G102: FALSE | H102: FALSE | J102: =INDEX('Monthly Prices'!B90:CB90,$G$4) -> 1.36 | K102: =IF(H102,INDEX('Monthly Prices'!B90:CB90,$G$4)*U102,FALSE) -> FALSE | L102: TRUE | M102: =INDEX('Monthly Prices'!B90:CB90,$G$5) -> .. | N102: =IF(H102,INDEX('Monthly Prices'!B90:CB90,$G$5)*U102,FALSE) -> FALSE | O102: FALSE | P102: 1966 | Q102: ='Monthly Prices'!B90 -> 1.36 | R102: 1.36 | S102: =_xlfn.XLOOKUP(P102,'Annual Real'!A:A,'Annual Real'!B:B,0,0) -> 6.565224675 | T102: 5.765297893 | U102: 5.765297893 | V102: FALSE | W102: FALSE | X102: =LOOKUP(D102,'US Implicit Deflator'!A:A,'US Implicit Deflator'!B:B)/100 -> 0.033 | Y102: 0.002709262615 | Z102: 1.085093053 | AA102: 7 | AB102: 1966-11-01 | AC102: 5.765297893
C103: ='Monthly Prices'!A91 -> 1966M12 | D103: 1966-12-01 | E103: 84 | F103: FALSE | G103: FALSE | H103: FALSE | J103: =INDEX('Monthly Prices'!B91:CB91,$G$4) -> 1.36 | K103: =IF(H103,INDEX('Monthly Prices'!B91:CB91,$G$4)*U103,FALSE) -> FALSE | L103: TRUE | M103: =INDEX('Monthly Prices'!B91:CB91,$G$5) -> .. | N103: =IF(H103,INDEX('Monthly Prices'!B91:CB91,$G$5)*U103,FALSE) -> FALSE | O103: FALSE | P103: 1966 | Q103: ='Monthly Prices'!B91 -> 1.36 | R103: 1.36 | S103: =_xlfn.XLOOKUP(P103,'Annual Real'!A:A,'Annual Real'!B:B,0,0) -> 6.565224675 | T103: 5.74972039 | U103: 5.74972039 | V103: FALSE | W103: FALSE | X103: =LOOKUP(D103,'US Implicit Deflator'!A:A,'US Implicit Deflator'!B:B)/100 -> 0.033 | Y103: 0.002709262615 | Z103: 1.088032855 | AA103: 7 | AB103: 1966-12-01 | AC103: 5.74972039
C104: ='Monthly Prices'!A92 -> 1967M01 | D104: 1967-01-01 | E104: 85 | F104: FALSE | G104: FALSE | H104: FALSE | J104: =INDEX('Monthly Prices'!B92:CB92,$G$4) -> 1.33 | K104: =IF(H104,INDEX('Monthly Prices'!B92:CB92,$G$4)*U104,FALSE) -> FALSE | L104: TRUE | M104: =INDEX('Monthly Prices'!B92:CB92,$G$5) -> .. | N104: =IF(H104,INDEX('Monthly Prices'!B92:CB92,$G$5)*U104,FALSE) -> FALSE | O104: FALSE | P104: 1967 | Q104: ='Monthly Prices'!B92 -> 1.33 | R104: 1.33 | S104: =_xlfn.XLOOKUP(P104,'Annual Real'!A:A,'Annual Real'!B:B,0,0) -> 6.364463393 | T104: 5.733260779 | U104: 5.733260779 | V104: FALSE | W104: FALSE | X104: =LOOKUP(D104,'US Implicit Deflator'!A:A,'US Implicit Deflator'!B:B)/100 -> 0.035 | Y104: 0.002870898719 | Z104: 1.091156487 | AA104: 7 | AB104: 1967-01-01 | AC104: 5.733260779
C105: ='Monthly Prices'!A93 -> 1967M02 | D105: 1967-02-01 | E105: 86 | F105: FALSE | G105: FALSE | H105: FALSE | J105: =INDEX('Monthly Prices'!B93:CB93,$G$4) -> 1.33 | K105: =IF(H105,INDEX('Monthly Prices'!B93:CB93,$G$4)*U105,FALSE) -> FALSE | L105: TRUE | M105: =INDEX('Monthly Prices'!B93:CB93,$G$5) -> .. | N105: =IF(H105,INDEX('Monthly Prices'!B93:CB93,$G$5)*U105,FALSE) -> FALSE | O105: FALSE | P105: 1967 | Q105: ='Monthly Prices'!B93 -> 1.33 | R105: 1.33 | S105: =_xlfn.XLOOKUP(P105,'Annual Real'!A:A,'Annual Real'!B:B,0,0) -> 6.364463393 | T105: 5.716848287 | U105: 5.716848287 | V105: FALSE | W105: FALSE | X105: =LOOKUP(D105,'US Implicit Deflator'!A:A,'US Implicit Deflator'!B:B)/100 -> 0.035 | Y105: 0.002870898719 | Z105: 1.094289087 | AA105: 7 | AB105: 1967-02-01 | AC105: 5.716848287
C106: ='Monthly Prices'!A94 -> 1967M03 | D106: 1967-03-01 | E106: 87 | F106: FALSE | G106: FALSE | H106: FALSE | J106: =INDEX('Monthly Prices'!B94:CB94,$G$4) -> 1.33 | K106: =IF(H106,INDEX('Monthly Prices'!B94:CB94,$G$4)*U106,FALSE) -> FALSE | L106: TRUE | M106: =INDEX('Monthly Prices'!B94:CB94,$G$5) -> .. | N106: =IF(H106,INDEX('Monthly Prices'!B94:CB94,$G$5)*U106,FALSE) -> FALSE | O106: FALSE | P106: 1967 | Q106: ='Monthly Prices'!B94 -> 1.33 | R106: 1.33 | S106: =_xlfn.XLOOKUP(P106,'Annual Real'!A:A,'Annual Real'!B:B,0,0) -> 6.364463393 | T106: 5.700482778 | U106: 5.700482778 | V106: FALSE | W106: FALSE | X106: =LOOKUP(D106,'US Implicit Deflator'!A:A,'US Implicit Deflator'!B:B)/100 -> 0.035 | Y106: 0.002870898719 | Z106: 1.09743068 | AA106: 7 | AB106: 1967-03-01 | AC106: 5.700482778
C107: ='Monthly Prices'!A95 -> 1967M04 | D107: 1967-04-01 | E107: 88 | F107: FALSE | G107: FALSE | H107: FALSE | J107: =INDEX('Monthly Prices'!B95:CB95,$G$4) -> 1.33 | K107: =IF(H107,INDEX('Monthly Prices'!B95:CB95,$G$4)*U107,FALSE) -> FALSE | L107: TRUE | M107: =INDEX('Monthly Prices'!B95:CB95,$G$5) -> .. | N107: =IF(H107,INDEX('Monthly Prices'!B95:CB95,$G$5)*U107,FALSE) -> FALSE | O107: FALSE | P107: 1967 | Q107: ='Monthly Prices'!B95 -> 1.33 | R107: 1.33 | S107: =_xlfn.XLOOKUP(P107,'Annual Real'!A:A,'Annual Real'!B:B,0,0) -> 6.364463393 | T107: 5.686458437 | U107: 5.686458437 | V107: FALSE | W107: FALSE | X107: =LOOKUP(D107,'US Implicit Deflator'!A:A,'US Implicit Deflator'!B:B)/100 -> 0.03 | Y107: 0.002466269772 | Z107: 1.10013724 | AA107: 7 | AB107: 1967-04-01 | AC107: 5.686458437
C108: ='Monthly Prices'!A96 -> 1967M05 | D108: 1967-05-01 | E108: 89 | F108: FALSE | G108: FALSE | H108: FALSE | J108: =INDEX('Monthly Prices'!B96:CB96,$G$4) -> 1.33 | K108: =IF(H108,INDEX('Monthly Prices'!B96:CB96,$G$4)*U108,FALSE) -> FALSE | L108: TRUE | M108: =INDEX('Monthly Prices'!B96:CB96,$G$5) -> .. | N108: =IF(H108,INDEX('Monthly Prices'!B96:CB96,$G$5)*U108,FALSE) -> FALSE | O108: FALSE | P108: 1967 | Q108: ='Monthly Prices'!B96 -> 1.33 | R108: 1.33 | S108: =_xlfn.XLOOKUP(P108,'Annual Real'!A:A,'Annual Real'!B:B,0,0) -> 6.364463393 | T108: 5.672468599 | U108: 5.672468599 | V108: FALSE | W108: FALSE | X108: =LOOKUP(D108,'US Implicit Deflator'!A:A,'US Implicit Deflator'!B:B)/100 -> 0.03 | Y108: 0.002466269772 | Z108: 1.102850475 | AA108: 7 | AB108: 1967-05-01 | AC108: 5.672468599
C109: ='Monthly Prices'!A97 -> 1967M06 | D109: 1967-06-01 | E109: 90 | F109: FALSE | G109: FALSE | H109: FALSE | J109: =INDEX('Monthly Prices'!B97:CB97,$G$4) -> 1.33 | K109: =IF(H109,INDEX('Monthly Prices'!B97:CB97,$G$4)*U109,FALSE) -> FALSE | L109: TRUE | M109: =INDEX('Monthly Prices'!B97:CB97,$G$5) -> .. | N109: =IF(H109,INDEX('Monthly Prices'!B97:CB97,$G$5)*U109,FALSE) -> FALSE | O109: FALSE | P109: 1967 | Q109: ='Monthly Prices'!B97 -> 1.33 | R109: 1.33 | S109: =_xlfn.XLOOKUP(P109,'Annual Real'!A:A,'Annual Real'!B:B,0,0) -> 6.364463393 | T109: 5.658513179 | U109: 5.658513179 | V109: FALSE | W109: FALSE | X109: =LOOKUP(D109,'US Implicit Deflator'!A:A,'US Implicit Deflator'!B:B)/100 -> 0.03 | Y109: 0.002466269772 | Z109: 1.105570402 | AA109: 7 | AB109: 1967-06-01 | AC109: 5.658513179
C110: ='Monthly Prices'!A98 -> 1967M07 | D110: 1967-07-01 | E110: 91 | F110: FALSE | G110: FALSE | H110: FALSE | J110: =INDEX('Monthly Prices'!B98:CB98,$G$4) -> 1.33 | K110: =IF(H110,INDEX('Monthly Prices'!B98:CB98,$G$4)*U110,FALSE) -> FALSE | L110: TRUE | M110: =INDEX('Monthly Prices'!B98:CB98,$G$5) -> .. | N110: =IF(H110,INDEX('Monthly Prices'!B98:CB98,$G$5)*U110,FALSE) -> FALSE | O110: FALSE | P110: 1967 | Q110: ='Monthly Prices'!B98 -> 1.33 | R110: 1.33 | S110: =_xlfn.XLOOKUP(P110,'Annual Real'!A:A,'Annual Real'!B:B,0,0) -> 6.364463393 | T110: 5.64413565 | U110: 5.64413565 | V110: FALSE | W110: FALSE | X110: =LOOKUP(D110,'US Implicit Deflator'!A:A,'US Implicit Deflator'!B:B)/100 -> 0.031 | Y110: 0.002547339389 | Z110: 1.108386665 | AA110: 7 | AB110: 1967-07-01 | AC110: 5.64413565
C111: ='Monthly Prices'!A99 -> 1967M08 | D111: 1967-08-01 | E111: 92 | F111: FALSE | G111: FALSE | H111: FALSE | J111: =INDEX('Monthly Prices'!B99:CB99,$G$4) -> 1.33 | K111: =IF(H111,INDEX('Monthly Prices'!B99:CB99,$G$4)*U111,FALSE) -> FALSE | L111: TRUE | M111: =INDEX('Monthly Prices'!B99:CB99,$G$5) -> .. | N111: =IF(H111,INDEX('Monthly Prices'!B99:CB99,$G$5)*U111,FALSE) -> FALSE | O111: FALSE | P111: 1967 | Q111: ='Monthly Prices'!B99 -> 1.33 | R111: 1.33 | S111: =_xlfn.XLOOKUP(P111,'Annual Real'!A:A,'Annual Real'!B:B,0,0) -> 6.364463393 | T111: 5.629794653 | U111: 5.629794653 | V111: FALSE | W111: FALSE | X111: =LOOKUP(D111,'US Implicit Deflator'!A:A,'US Implicit Deflator'!B:B)/100 -> 0.031 | Y111: 0.002547339389 | Z111: 1.111210102 | AA111: 7 | AB111: 1967-08-01 | AC111: 5.629794653
C112: ='Monthly Prices'!A100 -> 1967M09 | D112: 1967-09-01 | E112: 93 | F112: FALSE | G112: FALSE | H112: FALSE | J112: =INDEX('Monthly Prices'!B100:CB100,$G$4) -> 1.33 | K112: =IF(H112,INDEX('Monthly Prices'!B100:CB100,$G$4)*U112,FALSE) -> FALSE | L112: TRUE | M112: =INDEX('Monthly Prices'!B100:CB100,$G$5) -> .. | N112: =IF(H112,INDEX('Monthly Prices'!B100:CB100,$G$5)*U112,FALSE) -> FALSE | O112: FALSE | P112: 1967 | Q112: ='Monthly Prices'!B100 -> 1.33 | R112: 1.33 | S112: =_xlfn.XLOOKUP(P112,'Annual Real'!A:A,'Annual Real'!B:B,0,0) -> 6.364463393 | T112: 5.615490094 | U112: 5.615490094 | V112: FALSE | W112: FALSE | X112: =LOOKUP(D112,'US Implicit Deflator'!A:A,'US Implicit Deflator'!B:B)/100 -> 0.031 | Y112: 0.002547339389 | Z112: 1.114040731 | AA112: 7 | AB112: 1967-09-01 | AC112: 5.615490094
C113: ='Monthly Prices'!A101 -> 1967M10 | D113: 1967-10-01 | E113: 94 | F113: FALSE | G113: FALSE | H113: FALSE | J113: =INDEX('Monthly Prices'!B101:CB101,$G$4) -> 1.33 | K113: =IF(H113,INDEX('Monthly Prices'!B101:CB101,$G$4)*U113,FALSE) -> FALSE | L113: TRUE | M113: =INDEX('Monthly Prices'!B101:CB101,$G$5) -> .. | N113: =IF(H113,INDEX('Monthly Prices'!B101:CB101,$G$5)*U113,FALSE) -> FALSE | O113: FALSE | P113: 1967 | Q113: ='Monthly Prices'!B101 -> 1.33 | R113: 1.33 | S113: =_xlfn.XLOOKUP(P113,'Annual Real'!A:A,'Annual Real'!B:B,0,0) -> 6.364463393 | T113: 5.602128301 | U113: 5.602128301 | V113: FALSE | W113: FALSE | X113: =LOOKUP(D113,'US Implicit Deflator'!A:A,'US Implicit Deflator'!B:B)/100 -> 0.029 | Y113: 0.002385127974 | Z113: 1.116697861 | AA113: 7 | AB113: 1967-10-01 | AC113: 5.602128301
C114: ='Monthly Prices'!A102 -> 1967M11 | D114: 1967-11-01 | E114: 95 | F114: FALSE | G114: FALSE | H114: FALSE | J114: =INDEX('Monthly Prices'!B102:CB102,$G$4) -> 1.33 | K114: =IF(H114,INDEX('Monthly Prices'!B102:CB102,$G$4)*U114,FALSE) -> FALSE | L114: TRUE | M114: =INDEX('Monthly Prices'!B102:CB102,$G$5) -> .. | N114: =IF(H114,INDEX('Monthly Prices'!B102:CB102,$G$5)*U114,FALSE) -> FALSE | O114: FALSE | P114: 1967 | Q114: ='Monthly Prices'!B102 -> 1.33 | R114: 1.33 | S114: =_xlfn.XLOOKUP(P114,'Annual Real'!A:A,'Annual Real'!B:B,0,0) -> 6.364463393 | T114: 5.588798302 | U114: 5.588798302 | V114: FALSE | W114: FALSE | X114: =LOOKUP(D114,'US Implicit Deflator'!A:A,'US Implicit Deflator'!B:B)/100 -> 0.029 | Y114: 0.002385127974 | Z114: 1.119361328 | AA114: 7 | AB114: 1967-11-01 | AC114: 5.588798302
C115: ='Monthly Prices'!A103 -> 1967M12 | D115: 1967-12-01 | E115: 96 | F115: FALSE | G115: FALSE | H115: FALSE | J115: =INDEX('Monthly Prices'!B103:CB103,$G$4) -> 1.33 | K115: =IF(H115,INDEX('Monthly Prices'!B103:CB103,$G$4)*U115,FALSE) -> FALSE | L115: TRUE | M115: =INDEX('Monthly Prices'!B103:CB103,$G$5) -> .. | N115: =IF(H115,INDEX('Monthly Prices'!B103:CB103,$G$5)*U115,FALSE) -> FALSE | O115: FALSE | P115: 1967 | Q115: ='Monthly Prices'!B103 -> 1.33 | R115: 1.33 | S115: =_xlfn.XLOOKUP(P115,'Annual Real'!A:A,'Annual Real'!B:B,0,0) -> 6.364463393 | T115: 5.57550002 | U115: 5.57550002 | V115: FALSE | W115: FALSE | X115: =LOOKUP(D115,'US Implicit Deflator'!A:A,'US Implicit Deflator'!B:B)/100 -> 0.029 | Y115: 0.002385127974 | Z115: 1.122031148 | AA115: 7 | AB115: 1967-12-01 | AC115: 5.57550002
C116: ='Monthly Prices'!A104 -> 1968M01 | D116: 1968-01-01 | E116: 97 | F116: FALSE | G116: FALSE | H116: FALSE | J116: =INDEX('Monthly Prices'!B104:CB104,$G$4) -> 1.32 | K116: =IF(H116,INDEX('Monthly Prices'!B104:CB104,$G$4)*U116,FALSE) -> FALSE | L116: TRUE | M116: =INDEX('Monthly Prices'!B104:CB104,$G$5) -> .. | N116: =IF(H116,INDEX('Monthly Prices'!B104:CB104,$G$5)*U116,FALSE) -> FALSE | O116: FALSE | P116: 1968 | Q116: ='Monthly Prices'!B104 -> 1.32 | R116: 1.32 | S116: =_xlfn.XLOOKUP(P116,'Annual Real'!A:A,'Annual Real'!B:B,0,0) -> 6.372129832 | T116: 5.559539147 | U116: 5.559539147 | V116: FALSE | W116: FALSE | X116: =LOOKUP(D116,'US Implicit Deflator'!A:A,'US Implicit Deflator'!B:B)/100 -> 0.035 | Y116: 0.002870898719 | Z116: 1.125252386 | AA116: 7 | AB116: 1968-01-01 | AC116: 5.559539147
C117: ='Monthly Prices'!A105 -> 1968M02 | D117: 1968-02-01 | E117: 98 | F117: FALSE | G117: FALSE | H117: FALSE | J117: =INDEX('Monthly Prices'!B105:CB105,$G$4) -> 1.32 | K117: =IF(H117,INDEX('Monthly Prices'!B105:CB105,$G$4)*U117,FALSE) -> FALSE | L117: TRUE | M117: =INDEX('Monthly Prices'!B105:CB105,$G$5) -> .. | N117: =IF(H117,INDEX('Monthly Prices'!B105:CB105,$G$5)*U117,FALSE) -> FALSE | O117: FALSE | P117: 1968 | Q117: ='Monthly Prices'!B105 -> 1.32 | R117: 1.32 | S117: =_xlfn.XLOOKUP(P117,'Annual Real'!A:A,'Annual Real'!B:B,0,0) -> 6.372129832 | T117: 5.543623964 | U117: 5.543623964 | V117: FALSE | W117: FALSE | X117: =LOOKUP(D117,'US Implicit Deflator'!A:A,'US Implicit Deflator'!B:B)/100 -> 0.035 | Y117: 0.002870898719 | Z117: 1.128482872 | AA117: 7 | AB117: 1968-02-01 | AC117: 5.543623964
C118: ='Monthly Prices'!A106 -> 1968M03 | D118: 1968-03-01 | E118: 99 | F118: FALSE | G118: FALSE | H118: FALSE | J118: =INDEX('Monthly Prices'!B106:CB106,$G$4) -> 1.32 | K118: =IF(H118,INDEX('Monthly Prices'!B106:CB106,$G$4)*U118,FALSE) -> FALSE | L118: TRUE | M118: =INDEX('Monthly Prices'!B106:CB106,$G$5) -> .. | N118: =IF(H118,INDEX('Monthly Prices'!B106:CB106,$G$5)*U118,FALSE) -> FALSE | O118: FALSE | P118: 1968 | Q118: ='Monthly Prices'!B106 -> 1.32 | R118: 1.32 | S118: =_xlfn.XLOOKUP(P118,'Annual Real'!A:A,'Annual Real'!B:B,0,0) -> 6.372129832 | T118: 5.527754341 | U118: 5.527754341 | V118: FALSE | W118: FALSE | X118: =LOOKUP(D118,'US Implicit Deflator'!A:A,'US Implicit Deflator'!B:B)/100 -> 0.035 | Y118: 0.002870898719 | Z118: 1.131722632 | AA118: 7 | AB118: 1968-03-01 | AC118: 5.527754341
C119: ='Monthly Prices'!A107 -> 1968M04 | D119: 1968-04-01 | E119: 100 | F119: FALSE | G119: FALSE | H119: FALSE | J119: =INDEX('Monthly Prices'!B107:CB107,$G$4) -> 1.32 | K119: =IF(H119,INDEX('Monthly Prices'!B107:CB107,$G$4)*U119,FALSE) -> FALSE | L119: TRUE | M119: =INDEX('Monthly Prices'!B107:CB107,$G$5) -> .. | N119: =IF(H119,INDEX('Monthly Prices'!B107:CB107,$G$5)*U119,FALSE) -> FALSE | O119: FALSE | P119: 1968 | Q119: ='Monthly Prices'!B107 -> 1.32 | R119: 1.32 | S119: =_xlfn.XLOOKUP(P119,'Annual Real'!A:A,'Annual Real'!B:B,0,0) -> 6.372129832 | T119: 5.509716961 | U119: 5.509716961 | V119: FALSE | W119: FALSE | X119: =LOOKUP(D119,'US Implicit Deflator'!A:A,'US Implicit Deflator'!B:B)/100 -> 0.04 | Y119: 0.003273739782 | Z119: 1.135427597 | AA119: 7 | AB119: 1968-04-01 | AC119: 5.509716961
C120: ='Monthly Prices'!A108 -> 1968M05 | D120: 1968-05-01 | E120: 101 | F120: FALSE | G120: FALSE | H120: FALSE | J120: =INDEX('Monthly Prices'!B108:CB108,$G$4) -> 1.32 | K120: =IF(H120,INDEX('Monthly Prices'!B108:CB108,$G$4)*U120,FALSE) -> FALSE | L120: TRUE | M120: =INDEX('Monthly Prices'!B108:CB108,$G$5) -> .. | N120: =IF(H120,INDEX('Monthly Prices'!B108:CB108,$G$5)*U120,FALSE) -> FALSE | O120: FALSE | P120: 1968 | Q120: ='Monthly Prices'!B108 -> 1.32 | R120: 1.32 | S120: =_xlfn.XLOOKUP(P120,'Annual Real'!A:A,'Annual Real'!B:B,0,0) -> 6.372129832 | T120: 5.491738439 | U120: 5.491738439 | V120: FALSE | W120: FALSE | X120: =LOOKUP(D120,'US Implicit Deflator'!A:A,'US Implicit Deflator'!B:B)/100 -> 0.04 | Y120: 0.003273739782 | Z120: 1.139144692 | AA120: 7 | AB120: 1968-05-01 | AC120: 5.491738439
C121: ='Monthly Prices'!A109 -> 1968M06 | D121: 1968-06-01 | E121: 102 | F121: FALSE | G121: FALSE | H121: FALSE | J121: =INDEX('Monthly Prices'!B109:CB109,$G$4) -> 1.32 | K121: =IF(H121,INDEX('Monthly Prices'!B109:CB109,$G$4)*U121,FALSE) -> FALSE | L121: TRUE | M121: =INDEX('Monthly Prices'!B109:CB109,$G$5) -> .. | N121: =IF(H121,INDEX('Monthly Prices'!B109:CB109,$G$5)*U121,FALSE) -> FALSE | O121: FALSE | P121: 1968 | Q121: ='Monthly Prices'!B109 -> 1.32 | R121: 1.32 | S121: =_xlfn.XLOOKUP(P121,'Annual Real'!A:A,'Annual Real'!B:B,0,0) -> 6.372129832 | T121: 5.473818581 | U121: 5.473818581 | V121: FALSE | W121: FALSE | X121: =LOOKUP(D121,'US Implicit Deflator'!A:A,'US Implicit Deflator'!B:B)/100 -> 0.04 | Y121: 0.003273739782 | Z121: 1.142873955 | AA121: 7 | AB121: 1968-06-01 | AC121: 5.473818581
C122: ='Monthly Prices'!A110 -> 1968M07 | D122: 1968-07-01 | E122: 103 | F122: FALSE | G122: FALSE | H122: FALSE | J122: =INDEX('Monthly Prices'!B110:CB110,$G$4) -> 1.32 | K122: =IF(H122,INDEX('Monthly Prices'!B110:CB110,$G$4)*U122,FALSE) -> FALSE | L122: TRUE | M122: =INDEX('Monthly Prices'!B110:CB110,$G$5) -> .. | N122: =IF(H122,INDEX('Monthly Prices'!B110:CB110,$G$5)*U122,FALSE) -> FALSE | O122: FALSE | P122: 1968 | Q122: ='Monthly Prices'!B110 -> 1.32 | R122: 1.32 | S122: =_xlfn.XLOOKUP(P122,'Annual Real'!A:A,'Annual Real'!B:B,0,0) -> 6.372129832 | T122: 5.456832461 | U122: 5.456832461 | V122: FALSE | W122: FALSE | X122: =LOOKUP(D122,'US Implicit Deflator'!A:A,'US Implicit Deflator'!B:B)/100 -> 0.038 | Y122: 0.003112816846 | Z122: 1.146431512 | AA122: 7 | AB122: 1968-07-01 | AC122: 5.456832461
C123: ='Monthly Prices'!A111 -> 1968M08 | D123: 1968-08-01 | E123: 104 | F123: FALSE | G123: FALSE | H123: FALSE | J123: =INDEX('Monthly Prices'!B111:CB111,$G$4) -> 1.32 | K123: =IF(H123,INDEX('Monthly Prices'!B111:CB111,$G$4)*U123,FALSE) -> FALSE | L123: TRUE | M123: =INDEX('Monthly Prices'!B111:CB111,$G$5) -> .. | N123: =IF(H123,INDEX('Monthly Prices'!B111:CB111,$G$5)*U123,FALSE) -> FALSE | O123: FALSE | P123: 1968 | Q123: ='Monthly Prices'!B111 -> 1.32 | R123: 1.32 | S123: =_xlfn.XLOOKUP(P123,'Annual Real'!A:A,'Annual Real'!B:B,0,0) -> 6.372129832 | T123: 5.439899052 | U123: 5.439899052 | V123: FALSE | W123: FALSE | X123: =LOOKUP(D123,'US Implicit Deflator'!A:A,'US Implicit Deflator'!B:B)/100 -> 0.038 | Y123: 0.003112816846 | Z123: 1.150000143 | AA123: 7 | AB123: 1968-08-01 | AC123: 5.439899052
C124: ='Monthly Prices'!A112 -> 1968M09 | D124: 1968-09-01 | E124: 105 | F124: FALSE | G124: FALSE | H124: FALSE | J124: =INDEX('Monthly Prices'!B112:CB112,$G$4) -> 1.32 | K124: =IF(H124,INDEX('Monthly Prices'!B112:CB112,$G$4)*U124,FALSE) -> FALSE | L124: TRUE | M124: =INDEX('Monthly Prices'!B112:CB112,$G$5) -> .. | N124: =IF(H124,INDEX('Monthly Prices'!B112:CB112,$G$5)*U124,FALSE) -> FALSE | O124: FALSE | P124: 1968 | Q124: ='Monthly Prices'!B112 -> 1.32 | R124: 1.32 | S124: =_xlfn.XLOOKUP(P124,'Annual Real'!A:A,'Annual Real'!B:B,0,0) -> 6.372129832 | T124: 5.423018189 | U124: 5.423018189 | V124: FALSE | W124: FALSE | X124: =LOOKUP(D124,'US Implicit Deflator'!A:A,'US Implicit Deflator'!B:B)/100 -> 0.038 | Y124: 0.003112816846 | Z124: 1.153579883 | AA124: 7 | AB124: 1968-09-01 | AC124: 5.423018189
C125: ='Monthly Prices'!A113 -> 1968M10 | D125: 1968-10-01 | E125: 106 | F125: FALSE | G125: FALSE | H125: FALSE | J125: =INDEX('Monthly Prices'!B113:CB113,$G$4) -> 1.32 | K125: =IF(H125,INDEX('Monthly Prices'!B113:CB113,$G$4)*U125,FALSE) -> FALSE | L125: TRUE | M125: =INDEX('Monthly Prices'!B113:CB113,$G$5) -> .. | N125: =IF(H125,INDEX('Monthly Prices'!B113:CB113,$G$5)*U125,FALSE) -> FALSE | O125: FALSE | P125: 1968 | Q125: ='Monthly Prices'!B113 -> 1.32 | R125: 1.32 | S125: =_xlfn.XLOOKUP(P125,'Annual Real'!A:A,'Annual Real'!B:B,0,0) -> 6.372129832 | T125: 5.404457233 | U125: 5.404457233 | V125: FALSE | W125: FALSE | X125: =LOOKUP(D125,'US Implicit Deflator'!A:A,'US Implicit Deflator'!B:B)/100 -> 0.042 | Y125: 0.00343437929 | Z125: 1.157541714 | AA125: 7 | AB125: 1968-10-01 | AC125: 5.404457233
C126: ='Monthly Prices'!A114 -> 1968M11 | D126: 1968-11-01 | E126: 107 | F126: FALSE | G126: FALSE | H126: FALSE | J126: =INDEX('Monthly Prices'!B114:CB114,$G$4) -> 1.32 | K126: =IF(H126,INDEX('Monthly Prices'!B114:CB114,$G$4)*U126,FALSE) -> FALSE | L126: TRUE | M126: =INDEX('Monthly Prices'!B114:CB114,$G$5) -> .. | N126: =IF(H126,INDEX('Monthly Prices'!B114:CB114,$G$5)*U126,FALSE) -> FALSE | O126: FALSE | P126: 1968 | Q126: ='Monthly Prices'!B114 -> 1.32 | R126: 1.32 | S126: =_xlfn.XLOOKUP(P126,'Annual Real'!A:A,'Annual Real'!B:B,0,0) -> 6.372129832 | T126: 5.385959804 | U126: 5.385959804 | V126: FALSE | W126: FALSE | X126: =LOOKUP(D126,'US Implicit Deflator'!A:A,'US Implicit Deflator'!B:B)/100 -> 0.042 | Y126: 0.00343437929 | Z126: 1.161517151 | AA126: 7 | AB126: 1968-11-01 | AC126: 5.385959804
C127: ='Monthly Prices'!A115 -> 1968M12 | D127: 1968-12-01 | E127: 108 | F127: FALSE | G127: FALSE | H127: FALSE | J127: =INDEX('Monthly Prices'!B115:CB115,$G$4) -> 1.32 | K127: =IF(H127,INDEX('Monthly Prices'!B115:CB115,$G$4)*U127,FALSE) -> FALSE | L127: TRUE | M127: =INDEX('Monthly Prices'!B115:CB115,$G$5) -> .. | N127: =IF(H127,INDEX('Monthly Prices'!B115:CB115,$G$5)*U127,FALSE) -> FALSE | O127: FALSE | P127: 1968 | Q127: ='Monthly Prices'!B115 -> 1.32 | R127: 1.32 | S127: =_xlfn.XLOOKUP(P127,'Annual Real'!A:A,'Annual Real'!B:B,0,0) -> 6.372129832 | T127: 5.367525685 | U127: 5.367525685 | V127: FALSE | W127: FALSE | X127: =LOOKUP(D127,'US Implicit Deflator'!A:A,'US Implicit Deflator'!B:B)/100 -> 0.042 | Y127: 0.00343437929 | Z127: 1.165506242 | AA127: 7 | AB127: 1968-12-01 | AC127: 5.367525685
C128: ='Monthly Prices'!A116 -> 1969M01 | D128: 1969-01-01 | E128: 109 | F128: FALSE | G128: FALSE | H128: FALSE | J128: =INDEX('Monthly Prices'!B116:CB116,$G$4) -> 1.27 | K128: =IF(H128,INDEX('Monthly Prices'!B116:CB116,$G$4)*U128,FALSE) -> FALSE | L128: TRUE | M128: =INDEX('Monthly Prices'!B116:CB116,$G$5) -> .. | N128: =IF(H128,INDEX('Monthly Prices'!B116:CB116,$G$5)*U128,FALSE) -> FALSE | O128: FALSE | P128: 1969 | Q128: ='Monthly Prices'!B116 -> 1.27 | R128: 1.27 | S128: =_xlfn.XLOOKUP(P128,'Annual Real'!A:A,'Annual Real'!B:B,0,0) -> 5.819224679 | T128: 5.348299957 | U128: 5.348299957 | V128: FALSE | W128: FALSE | X128: =LOOKUP(D128,'US Implicit Deflator'!A:A,'US Implicit Deflator'!B:B)/100 -> 0.044 | Y128: 0.003594736411 | Z128: 1.16969593 | AA128: 7 | AB128: 1969-01-01 | AC128: 5.348299957
C129: ='Monthly Prices'!A117 -> 1969M02 | D129: 1969-02-01 | E129: 110 | F129: FALSE | G129: FALSE | H129: FALSE | J129: =INDEX('Monthly Prices'!B117:CB117,$G$4) -> 1.27 | K129: =IF(H129,INDEX('Monthly Prices'!B117:CB117,$G$4)*U129,FALSE) -> FALSE | L129: TRUE | M129: =INDEX('Monthly Prices'!B117:CB117,$G$5) -> .. | N129: =IF(H129,INDEX('Monthly Prices'!B117:CB117,$G$5)*U129,FALSE) -> FALSE | O129: FALSE | P129: 1969 | Q129: ='Monthly Prices'!B117 -> 1.27 | R129: 1.27 | S129: =_xlfn.XLOOKUP(P129,'Annual Real'!A:A,'Annual Real'!B:B,0,0) -> 5.819224679 | T129: 5.329143092 | U129: 5.329143092 | V129: FALSE | W129: FALSE | X129: =LOOKUP(D129,'US Implicit Deflator'!A:A,'US Implicit Deflator'!B:B)/100 -> 0.044 | Y129: 0.003594736411 | Z129: 1.173900678 | AA129: 7 | AB129: 1969-02-01 | AC129: 5.329143092
C130: ='Monthly Prices'!A118 -> 1969M03 | D130: 1969-03-01 | E130: 111 | F130: FALSE | G130: FALSE | H130: FALSE | J130: =INDEX('Monthly Prices'!B118:CB118,$G$4) -> 1.27 | K130: =IF(H130,INDEX('Monthly Prices'!B118:CB118,$G$4)*U130,FALSE) -> FALSE | L130: TRUE | M130: =INDEX('Monthly Prices'!B118:CB118,$G$5) -> .. | N130: =IF(H130,INDEX('Monthly Prices'!B118:CB118,$G$5)*U130,FALSE) -> FALSE | O130: FALSE | P130: 1969 | Q130: ='Monthly Prices'!B118 -> 1.27 | R130: 1.27 | S130: =_xlfn.XLOOKUP(P130,'Annual Real'!A:A,'Annual Real'!B:B,0,0) -> 5.819224679 | T130: 5.310054845 | U130: 5.310054845 | V130: FALSE | W130: FALSE | X130: =LOOKUP(D130,'US Implicit Deflator'!A:A,'US Implicit Deflator'!B:B)/100 -> 0.044 | Y130: 0.003594736411 | Z130: 1.178120542 | AA130: 7 | AB130: 1969-03-01 | AC130: 5.310054845
C131: ='Monthly Prices'!A119 -> 1969M04 | D131: 1969-04-01 | E131: 112 | F131: FALSE | G131: FALSE | H131: FALSE | J131: =INDEX('Monthly Prices'!B119:CB119,$G$4) -> 1.27 | K131: =IF(H131,INDEX('Monthly Prices'!B119:CB119,$G$4)*U131,FALSE) -> FALSE | L131: TRUE | M131: =INDEX('Monthly Prices'!B119:CB119,$G$5) -> .. | N131: =IF(H131,INDEX('Monthly Prices'!B119:CB119,$G$5)*U131,FALSE) -> FALSE | O131: FALSE | P131: 1969 | Q131: ='Monthly Prices'!B119 -> 1.27 | R131: 1.27 | S131: =_xlfn.XLOOKUP(P131,'Annual Real'!A:A,'Annual Real'!B:B,0,0) -> 5.819224679 | T131: 5.291034969 | U131: 5.291034969 | V131: FALSE | W131: FALSE | X131: =LOOKUP(D131,'US Implicit Deflator'!A:A,'US Implicit Deflator'!B:B)/100 -> 0.044 | Y131: 0.003594736411 | Z131: 1.182355574 | AA131: 7 | AB131: 1969-04-01 | AC131: 5.291034969
C132: ='Monthly Prices'!A120 -> 1969M05 | D132: 1969-05-01 | E132: 113 | F132: FALSE | G132: FALSE | H132: FALSE | J132: =INDEX('Monthly Prices'!B120:CB120,$G$4) -> 1.27 | K132: =IF(H132,INDEX('Monthly Prices'!B120:CB120,$G$4)*U132,FALSE) -> FALSE | L132: TRUE | M132: =INDEX('Monthly Prices'!B120:CB120,$G$5) -> .. | N132: =IF(H132,INDEX('Monthly Prices'!B120:CB120,$G$5)*U132,FALSE) -> FALSE | O132: FALSE | P132: 1969 | Q132: ='Monthly Prices'!B120 -> 1.27 | R132: 1.27 | S132: =_xlfn.XLOOKUP(P132,'Annual Real'!A:A,'Annual Real'!B:B,0,0) -> 5.819224679 | T132: 5.272083219 | U132: 5.272083219 | V132: FALSE | W132: FALSE | X132: =LOOKUP(D132,'US Implicit Deflator'!A:A,'US Implicit Deflator'!B:B)/100 -> 0.044 | Y132: 0.003594736411 | Z132: 1.186605831 | AA132: 7 | AB132: 1969-05-01 | AC132: 5.272083219
C133: ='Monthly Prices'!A121 -> 1969M06 | D133: 1969-06-01 | E133: 114 | F133: FALSE | G133: FALSE | H133: FALSE | J133: =INDEX('Monthly Prices'!B121:CB121,$G$4) -> 1.27 | K133: =IF(H133,INDEX('Monthly Prices'!B121:CB121,$G$4)*U133,FALSE) -> FALSE | L133: TRUE | M133: =INDEX('Monthly Prices'!B121:CB121,$G$5) -> .. | N133: =IF(H133,INDEX('Monthly Prices'!B121:CB121,$G$5)*U133,FALSE) -> FALSE | O133: FALSE | P133: 1969 | Q133: ='Monthly Prices'!B121 -> 1.27 | R133: 1.27 | S133: =_xlfn.XLOOKUP(P133,'Annual Real'!A:A,'Annual Real'!B:B,0,0) -> 5.819224679 | T133: 5.253199352 | U133: 5.253199352 | V133: FALSE | W133: FALSE | X133: =LOOKUP(D133,'US Implicit Deflator'!A:A,'US Implicit Deflator'!B:B)/100 -> 0.044 | Y133: 0.003594736411 | Z133: 1.190871366 | AA133: 7 | AB133: 1969-06-01 | AC133: 5.253199352
C134: ='Monthly Prices'!A122 -> 1969M07 | D134: 1969-07-01 | E134: 115 | F134: FALSE | G134: FALSE | H134: FALSE | J134: =INDEX('Monthly Prices'!B122:CB122,$G$4) -> 1.27 | K134: =IF(H134,INDEX('Monthly Prices'!B122:CB122,$G$4)*U134,FALSE) -> FALSE | L134: TRUE | M134: =INDEX('Monthly Prices'!B122:CB122,$G$5) -> .. | N134: =IF(H134,INDEX('Monthly Prices'!B122:CB122,$G$5)*U134,FALSE) -> FALSE | O134: FALSE | P134: 1969 | Q134: ='Monthly Prices'!B122 -> 1.27 | R134: 1.27 | S134: =_xlfn.XLOOKUP(P134,'Annual Real'!A:A,'Annual Real'!B:B,0,0) -> 5.819224679 | T134: 5.232715325 | U134: 5.232715325 | V134: FALSE | W134: FALSE | X134: =LOOKUP(D134,'US Implicit Deflator'!A:A,'US Implicit Deflator'!B:B)/100 -> 0.048 | Y134: 0.003914607631 | Z134: 1.19553316 | AA134: 7 | AB134: 1969-07-01 | AC134: 5.232715325
C135: ='Monthly Prices'!A123 -> 1969M08 | D135: 1969-08-01 | E135: 116 | F135: FALSE | G135: FALSE | H135: FALSE | J135: =INDEX('Monthly Prices'!B123:CB123,$G$4) -> 1.27 | K135: =IF(H135,INDEX('Monthly Prices'!B123:CB123,$G$4)*U135,FALSE) -> FALSE | L135: TRUE | M135: =INDEX('Monthly Prices'!B123:CB123,$G$5) -> .. | N135: =IF(H135,INDEX('Monthly Prices'!B123:CB123,$G$5)*U135,FALSE) -> FALSE | O135: FALSE | P135: 1969 | Q135: ='Monthly Prices'!B123 -> 1.27 | R135: 1.27 | S135: =_xlfn.XLOOKUP(P135,'Annual Real'!A:A,'Annual Real'!B:B,0,0) -> 5.819224679 | T135: 5.212311172 | U135: 5.212311172 | V135: FALSE | W135: FALSE | X135: =LOOKUP(D135,'US Implicit Deflator'!A:A,'US Implicit Deflator'!B:B)/100 -> 0.048 | Y135: 0.003914607631 | Z135: 1.200213204 | AA135: 7 | AB135: 1969-08-01 | AC135: 5.212311172
C136: ='Monthly Prices'!A124 -> 1969M09 | D136: 1969-09-01 | E136: 117 | F136: FALSE | G136: FALSE | H136: FALSE | J136: =INDEX('Monthly Prices'!B124:CB124,$G$4) -> 1.27 | K136: =IF(H136,INDEX('Monthly Prices'!B124:CB124,$G$4)*U136,FALSE) -> FALSE | L136: TRUE | M136: =INDEX('Monthly Prices'!B124:CB124,$G$5) -> .. | N136: =IF(H136,INDEX('Monthly Prices'!B124:CB124,$G$5)*U136,FALSE) -> FALSE | O136: FALSE | P136: 1969 | Q136: ='Monthly Prices'!B124 -> 1.27 | R136: 1.27 | S136: =_xlfn.XLOOKUP(P136,'Annual Real'!A:A,'Annual Real'!B:B,0,0) -> 5.819224679 | T136: 5.191986581 | U136: 5.191986581 | V136: FALSE | W136: FALSE | X136: =LOOKUP(D136,'US Implicit Deflator'!A:A,'US Implicit Deflator'!B:B)/100 -> 0.048 | Y136: 0.003914607631 | Z136: 1.204911567 | AA136: 7 | AB136: 1969-09-01 | AC136: 5.191986581
C137: ='Monthly Prices'!A125 -> 1969M10 | D137: 1969-10-01 | E137: 118 | F137: FALSE | G137: FALSE | H137: FALSE | J137: =INDEX('Monthly Prices'!B125:CB125,$G$4) -> 1.27 | K137: =IF(H137,INDEX('Monthly Prices'!B125:CB125,$G$4)*U137,FALSE) -> FALSE | L137: TRUE | M137: =INDEX('Monthly Prices'!B125:CB125,$G$5) -> .. | N137: =IF(H137,INDEX('Monthly Prices'!B125:CB125,$G$5)*U137,FALSE) -> FALSE | O137: FALSE | P137: 1969 | Q137: ='Monthly Prices'!B125 -> 1.27 | R137: 1.27 | S137: =_xlfn.XLOOKUP(P137,'Annual Real'!A:A,'Annual Real'!B:B,0,0) -> 5.819224679 | T137: 5.173389609 | U137: 5.173389609 | V137: FALSE | W137: FALSE | X137: =LOOKUP(D137,'US Implicit Deflator'!A:A,'US Implicit Deflator'!B:B)/100 -> 0.044 | Y137: 0.003594736411 | Z137: 1.209242907 | AA137: 7 | AB137: 1969-10-01 | AC137: 5.173389609
C138: ='Monthly Prices'!A126 -> 1969M11 | D138: 1969-11-01 | E138: 119 | F138: FALSE | G138: FALSE | H138: FALSE | J138: =INDEX('Monthly Prices'!B126:CB126,$G$4) -> 1.27 | K138: =IF(H138,INDEX('Monthly Prices'!B126:CB126,$G$4)*U138,FALSE) -> FALSE | L138: TRUE | M138: =INDEX('Monthly Prices'!B126:CB126,$G$5) -> .. | N138: =IF(H138,INDEX('Monthly Prices'!B126:CB126,$G$5)*U138,FALSE) -> FALSE | O138: FALSE | P138: 1969 | Q138: ='Monthly Prices'!B126 -> 1.27 | R138: 1.27 | S138: =_xlfn.XLOOKUP(P138,'Annual Real'!A:A,'Annual Real'!B:B,0,0) -> 5.819224679 | T138: 5.154859249 | U138: 5.154859249 | V138: FALSE | W138: FALSE | X138: =LOOKUP(D138,'US Implicit Deflator'!A:A,'US Implicit Deflator'!B:B)/100 -> 0.044 | Y138: 0.003594736411 | Z138: 1.213589816 | AA138: 7 | AB138: 1969-11-01 | AC138: 5.154859249
C139: ='Monthly Prices'!A127 -> 1969M12 | D139: 1969-12-01 | E139: 120 | F139: FALSE | G139: FALSE | H139: FALSE | J139: =INDEX('Monthly Prices'!B127:CB127,$G$4) -> 1.27 | K139: =IF(H139,INDEX('Monthly Prices'!B127:CB127,$G$4)*U139,FALSE) -> FALSE | L139: TRUE | M139: =INDEX('Monthly Prices'!B127:CB127,$G$5) -> .. | N139: =IF(H139,INDEX('Monthly Prices'!B127:CB127,$G$5)*U139,FALSE) -> FALSE | O139: FALSE | P139: 1969 | Q139: ='Monthly Prices'!B127 -> 1.27 | R139: 1.27 | S139: =_xlfn.XLOOKUP(P139,'Annual Real'!A:A,'Annual Real'!B:B,0,0) -> 5.819224679 | T139: 5.136395262 | U139: 5.136395262 | V139: FALSE | W139: FALSE | X139: =LOOKUP(D139,'US Implicit Deflator'!A:A,'US Implicit Deflator'!B:B)/100 -> 0.044 | Y139: 0.003594736411 | Z139: 1.217952352 | AA139: 7 | AB139: 1969-12-01 | AC139: 5.136395262
C140: ='Monthly Prices'!A128 -> 1970M01 | D140: 1970-01-01 | E140: 121 | F140: FALSE | G140: FALSE | H140: FALSE | J140: =INDEX('Monthly Prices'!B128:CB128,$G$4) -> 1.21 | K140: =IF(H140,INDEX('Monthly Prices'!B128:CB128,$G$4)*U140,FALSE) -> FALSE | L140: TRUE | M140: =INDEX('Monthly Prices'!B128:CB128,$G$5) -> .. | N140: =IF(H140,INDEX('Monthly Prices'!B128:CB128,$G$5)*U140,FALSE) -> FALSE | O140: FALSE | P140: 1970 | Q140: ='Monthly Prices'!B128 -> 1.21 | R140: 1.21 | S140: =_xlfn.XLOOKUP(P140,'Annual Real'!A:A,'Annual Real'!B:B,0,0) -> 5.212235611 | T140: 5.118406147 | U140: 5.118406147 | V140: FALSE | W140: FALSE | X140: =LOOKUP(D140,'US Implicit Deflator'!A:A,'US Implicit Deflator'!B:B)/100 -> 0.043 | Y140: 0.003514593084 | Z140: 1.222232959 | AA140: 7 | AB140: 1970-01-01 | AC140: 5.118406147
C141: ='Monthly Prices'!A129 -> 1970M02 | D141: 1970-02-01 | E141: 122 | F141: FALSE | G141: FALSE | H141: FALSE | J141: =INDEX('Monthly Prices'!B129:CB129,$G$4) -> 1.21 | K141: =IF(H141,INDEX('Monthly Prices'!B129:CB129,$G$4)*U141,FALSE) -> FALSE | L141: TRUE | M141: =INDEX('Monthly Prices'!B129:CB129,$G$5) -> .. | N141: =IF(H141,INDEX('Monthly Prices'!B129:CB129,$G$5)*U141,FALSE) -> FALSE | O141: FALSE | P141: 1970 | Q141: ='Monthly Prices'!B129 -> 1.21 | R141: 1.21 | S141: =_xlfn.XLOOKUP(P141,'Annual Real'!A:A,'Annual Real'!B:B,0,0) -> 5.212235611 | T141: 5.100480035 | U141: 5.100480035 | V141: FALSE | W141: FALSE | X141: =LOOKUP(D141,'US Implicit Deflator'!A:A,'US Implicit Deflator'!B:B)/100 -> 0.043 | Y141: 0.003514593084 | Z141: 1.22652861 | AA141: 7 | AB141: 1970-02-01 | AC141: 5.100480035
C142: ='Monthly Prices'!A130 -> 1970M03 | D142: 1970-03-01 | E142: 123 | F142: FALSE | G142: FALSE | H142: FALSE | J142: =INDEX('Monthly Prices'!B130:CB130,$G$4) -> 1.21 | K142: =IF(H142,INDEX('Monthly Prices'!B130:CB130,$G$4)*U142,FALSE) -> FALSE | L142: TRUE | M142: =INDEX('Monthly Prices'!B130:CB130,$G$5) -> .. | N142: =IF(H142,INDEX('Monthly Prices'!B130:CB130,$G$5)*U142,FALSE) -> FALSE | O142: FALSE | P142: 1970 | Q142: ='Monthly Prices'!B130 -> 1.21 | R142: 1.21 | S142: =_xlfn.XLOOKUP(P142,'Annual Real'!A:A,'Annual Real'!B:B,0,0) -> 5.212235611 | T142: 5.082616706 | U142: 5.082616706 | V142: FALSE | W142: FALSE | X142: =LOOKUP(D142,'US Implicit Deflator'!A:A,'US Implicit Deflator'!B:B)/100 -> 0.043 | Y142: 0.003514593084 | Z142: 1.230839359 | AA142: 7 | AB142: 1970-03-01 | AC142: 5.082616706
C143: ='Monthly Prices'!A131 -> 1970M04 | D143: 1970-04-01 | E143: 124 | F143: FALSE | G143: FALSE | H143: FALSE | J143: =INDEX('Monthly Prices'!B131:CB131,$G$4) -> 1.21 | K143: =IF(H143,INDEX('Monthly Prices'!B131:CB131,$G$4)*U143,FALSE) -> FALSE | L143: TRUE | M143: =INDEX('Monthly Prices'!B131:CB131,$G$5) -> .. | N143: =IF(H143,INDEX('Monthly Prices'!B131:CB131,$G$5)*U143,FALSE) -> FALSE | O143: FALSE | P143: 1970 | Q143: ='Monthly Prices'!B131 -> 1.21 | R143: 1.21 | S143: =_xlfn.XLOOKUP(P143,'Annual Real'!A:A,'Annual Real'!B:B,0,0) -> 5.212235611 | T143: 5.063603824 | U143: 5.063603824 | V143: FALSE | W143: FALSE | X143: =LOOKUP(D143,'US Implicit Deflator'!A:A,'US Implicit Deflator'!B:B)/100 -> 0.046 | Y143: 0.003754812181 | Z143: 1.23546093 | AA143: 7 | AB143: 1970-04-01 | AC143: 5.063603824
C144: ='Monthly Prices'!A132 -> 1970M05 | D144: 1970-05-01 | E144: 125 | F144: FALSE | G144: FALSE | H144: FALSE | J144: =INDEX('Monthly Prices'!B132:CB132,$G$4) -> 1.21 | K144: =IF(H144,INDEX('Monthly Prices'!B132:CB132,$G$4)*U144,FALSE) -> FALSE | L144: TRUE | M144: =INDEX('Monthly Prices'!B132:CB132,$G$5) -> .. | N144: =IF(H144,INDEX('Monthly Prices'!B132:CB132,$G$5)*U144,FALSE) -> FALSE | O144: FALSE | P144: 1970 | Q144: ='Monthly Prices'!B132 -> 1.21 | R144: 1.21 | S144: =_xlfn.XLOOKUP(P144,'Annual Real'!A:A,'Annual Real'!B:B,0,0) -> 5.212235611 | T144: 5.044662066 | U144: 5.044662066 | V144: FALSE | W144: FALSE | X144: =LOOKUP(D144,'US Implicit Deflator'!A:A,'US Implicit Deflator'!B:B)/100 -> 0.046 | Y144: 0.003754812181 | Z144: 1.240099854 | AA144: 7 | AB144: 1970-05-01 | AC144: 5.044662066
C145: ='Monthly Prices'!A133 -> 1970M06 | D145: 1970-06-01 | E145: 126 | F145: FALSE | G145: FALSE | H145: FALSE | J145: =INDEX('Monthly Prices'!B133:CB133,$G$4) -> 1.21 | K145: =IF(H145,INDEX('Monthly Prices'!B133:CB133,$G$4)*U145,FALSE) -> FALSE | L145: TRUE | M145: =INDEX('Monthly Prices'!B133:CB133,$G$5) -> .. | N145: =IF(H145,INDEX('Monthly Prices'!B133:CB133,$G$5)*U145,FALSE) -> FALSE | O145: FALSE | P145: 1970 | Q145: ='Monthly Prices'!B133 -> 1.21 | R145: 1.21 | S145: =_xlfn.XLOOKUP(P145,'Annual Real'!A:A,'Annual Real'!B:B,0,0) -> 5.212235611 | T145: 5.025791164 | U145: 5.025791164 | V145: FALSE | W145: FALSE | X145: =LOOKUP(D145,'US Implicit Deflator'!A:A,'US Implicit Deflator'!B:B)/100 -> 0.046 | Y145: 0.003754812181 | Z145: 1.244756196 | AA145: 7 | AB145: 1970-06-01 | AC145: 5.025791164
C146: ='Monthly Prices'!A134 -> 1970M07 | D146: 1970-07-01 | E146: 127 | F146: FALSE | G146: FALSE | H146: FALSE | J146: =INDEX('Monthly Prices'!B134:CB134,$G$4) -> 1.21 | K146: =IF(H146,INDEX('Monthly Prices'!B134:CB134,$G$4)*U146,FALSE) -> FALSE | L146: TRUE | M146: =INDEX('Monthly Prices'!B134:CB134,$G$5) -> .. | N146: =IF(H146,INDEX('Monthly Prices'!B134:CB134,$G$5)*U146,FALSE) -> FALSE | O146: FALSE | P146: 1970 | Q146: ='Monthly Prices'!B134 -> 1.21 | R146: 1.21 | S146: =_xlfn.XLOOKUP(P146,'Annual Real'!A:A,'Annual Real'!B:B,0,0) -> 5.212235611 | T146: 5.008990534 | U146: 5.008990534 | V146: FALSE | W146: FALSE | X146: =LOOKUP(D146,'US Implicit Deflator'!A:A,'US Implicit Deflator'!B:B)/100 -> 0.041 | Y146: 0.003354094899 | Z146: 1.248931226 | AA146: 7 | AB146: 1970-07-01 | AC146: 5.008990534
C147: ='Monthly Prices'!A135 -> 1970M08 | D147: 1970-08-01 | E147: 128 | F147: FALSE | G147: FALSE | H147: FALSE | J147: =INDEX('Monthly Prices'!B135:CB135,$G$4) -> 1.21 | K147: =IF(H147,INDEX('Monthly Prices'!B135:CB135,$G$4)*U147,FALSE) -> FALSE | L147: TRUE | M147: =INDEX('Monthly Prices'!B135:CB135,$G$5) -> .. | N147: =IF(H147,INDEX('Monthly Prices'!B135:CB135,$G$5)*U147,FALSE) -> FALSE | O147: FALSE | P147: 1970 | Q147: ='Monthly Prices'!B135 -> 1.21 | R147: 1.21 | S147: =_xlfn.XLOOKUP(P147,'Annual Real'!A:A,'Annual Real'!B:B,0,0) -> 5.212235611 | T147: 4.992246067 | U147: 4.992246067 | V147: FALSE | W147: FALSE | X147: =LOOKUP(D147,'US Implicit Deflator'!A:A,'US Implicit Deflator'!B:B)/100 -> 0.041 | Y147: 0.003354094899 | Z147: 1.25312026 | AA147: 7 | AB147: 1970-08-01 | AC147: 4.992246067
C148: ='Monthly Prices'!A136 -> 1970M09 | D148: 1970-09-01 | E148: 129 | F148: =AND(E148>=$M$4,L148) -> FALSE | G148: =AND(E148<=$M$5,O148) -> FALSE | H148: =AND(F148:G148) -> FALSE | I148: =IF(H148,D148,NA) ->  | J148: =INDEX('Monthly Prices'!B136:CB136,$G$4) -> 1.21 | K148: =IF(H148,INDEX('Monthly Prices'!B136:CB136,$G$4)*U148,FALSE) -> FALSE | L148: TRUE | M148: =INDEX('Monthly Prices'!B136:CB136,$G$5) -> .. | N148: =IF(H148,INDEX('Monthly Prices'!B136:CB136,$G$5)*U148,FALSE) -> FALSE | O148: =AND(ISNUMBER(M148),M148>0) -> FALSE | P148: 1970 | Q148: ='Monthly Prices'!B136 -> 1.21 | R148: 1.21 | S148: =_xlfn.XLOOKUP(P148,'Annual Real'!A:A,'Annual Real'!B:B,0,0) -> 5.212235611 | T148: 4.975557575 | U148: 4.975557575 | V148: FALSE | W148: FALSE | X148: =LOOKUP(D148,'US Implicit Deflator'!A:A,'US Implicit Deflator'!B:B)/100 -> 0.041 | Y148: 0.003354094899 | Z148: 1.257323344 | AA148: 7 | AB148: 1970-09-01 | AC148: 4.975557575
C149: ='Monthly Prices'!A137 -> 1970M10 | D149: =EDATE(D148,1) -> 1970-10-01 | E149: =E148+1 -> 130 | F149: FALSE | G149: FALSE | H149: FALSE | J149: =INDEX('Monthly Prices'!B137:CB137,$G$4) -> 1.21 | K149: =IF(H149,INDEX('Monthly Prices'!B137:CB137,$G$4)*U149,FALSE) -> FALSE | L149: =ISNUMBER(J149) -> TRUE | M149: =INDEX('Monthly Prices'!B137:CB137,$G$5) -> .. | N149: =IF(H149,INDEX('Monthly Prices'!B137:CB137,$G$5)*U149,FALSE) -> FALSE | O149: FALSE | P149: =YEAR(D149) -> 1970 | Q149: ='Monthly Prices'!B137 -> 1.21 | R149: =AVERAGEIF(P:P,P149,Q:Q) -> 1.21 | S149: =_xlfn.XLOOKUP(P149,'Annual Real'!A:A,'Annual Real'!B:B,0,0) -> 5.212235611 | T149: =AC149 -> 4.956945177 | U149: =IF($U$19,T149,1) -> 4.956945177 | V149: FALSE | W149: FALSE | X149: =LOOKUP(D149,'US Implicit Deflator'!A:A,'US Implicit Deflator'!B:B)/100 -> 0.046 | Y149: =(1+X149)^(1/12)-1 -> 0.003754812181 | Z149: =Z148*(1+Y149) -> 1.262044357 | AA149: =LEN(C149) -> 7 | AB149: =IF(AA149>2,D149,0) -> 1970-10-01 | AC149: =$AC$17/Z149 -> 4.956945177
C150: ='Monthly Prices'!A138 -> 1970M11 | D150: 1970-11-01 | E150: 131 | F150: FALSE | G150: FALSE | H150: FALSE | J150: =INDEX('Monthly Prices'!B138:CB138,$G$4) -> 1.21 | K150: =IF(H150,INDEX('Monthly Prices'!B138:CB138,$G$4)*U150,FALSE) -> FALSE | L150: TRUE | M150: =INDEX('Monthly Prices'!B138:CB138,$G$5) -> .. | N150: =IF(H150,INDEX('Monthly Prices'!B138:CB138,$G$5)*U150,FALSE) -> FALSE | O150: FALSE | P150: 1970 | Q150: ='Monthly Prices'!B138 -> 1.21 | R150: 1.21 | S150: =_xlfn.XLOOKUP(P150,'Annual Real'!A:A,'Annual Real'!B:B,0,0) -> 5.212235611 | T150: 4.938402403 | U150: 4.938402403 | V150: =IF(AND(H149,H150),LN(K150/K149)) -> FALSE | W150: =IF(AND($H149,$H150),LN(N150/N149)) -> FALSE | X150: =LOOKUP(D150,'US Implicit Deflator'!A:A,'US Implicit Deflator'!B:B)/100 -> 0.046 | Y150: 0.003754812181 | Z150: 1.266783097 | AA150: 7 | AB150: 1970-11-01 | AC150: 4.938402403
C151: ='Monthly Prices'!A139 -> 1970M12 | D151: 1970-12-01 | E151: 132 | F151: FALSE | G151: FALSE | H151: FALSE | J151: =INDEX('Monthly Prices'!B139:CB139,$G$4) -> 1.21 | K151: =IF(H151,INDEX('Monthly Prices'!B139:CB139,$G$4)*U151,FALSE) -> FALSE | L151: TRUE | M151: =INDEX('Monthly Prices'!B139:CB139,$G$5) -> .. | N151: =IF(H151,INDEX('Monthly Prices'!B139:CB139,$G$5)*U151,FALSE) -> FALSE | O151: FALSE | P151: 1970 | Q151: ='Monthly Prices'!B139 -> 1.21 | R151: 1.21 | S151: =_xlfn.XLOOKUP(P151,'Annual Real'!A:A,'Annual Real'!B:B,0,0) -> 5.212235611 | T151: 4.919928994 | U151: 4.919928994 | V151: FALSE | W151: FALSE | X151: =LOOKUP(D151,'US Implicit Deflator'!A:A,'US Implicit Deflator'!B:B)/100 -> 0.046 | Y151: 0.003754812181 | Z151: 1.271539629 | AA151: 7 | AB151: 1970-12-01 | AC151: 4.919928994
C152: ='Monthly Prices'!A140 -> 1971M01 | D152: 1971-01-01 | E152: 133 | F152: FALSE | G152: FALSE | H152: FALSE | J152: =INDEX('Monthly Prices'!B140:CB140,$G$4) -> 1.64 | K152: =IF(H152,INDEX('Monthly Prices'!B140:CB140,$G$4)*U152,FALSE) -> FALSE | L152: TRUE | M152: =INDEX('Monthly Prices'!B140:CB140,$G$5) -> .. | N152: =IF(H152,INDEX('Monthly Prices'!B140:CB140,$G$5)*U152,FALSE) -> FALSE | O152: FALSE | P152: 1971 | Q152: ='Monthly Prices'!B140 -> 1.64 | R152: 1.69 | S152: =_xlfn.XLOOKUP(P152,'Annual Real'!A:A,'Annual Real'!B:B,0,0) -> 6.922073764 | T152: 4.901524689 | U152: 4.901524689 | V152: FALSE | W152: FALSE | X152: =LOOKUP(D152,'US Implicit Deflator'!A:A,'US Implicit Deflator'!B:B)/100 -> 0.046 | Y152: 0.003754812181 | Z152: 1.276314022 | AA152: 7 | AB152: 1971-01-01 | AC152: 4.901524689
C153: ='Monthly Prices'!A141 -> 1971M02 | D153: 1971-02-01 | E153: 134 | F153: FALSE | G153: FALSE | H153: FALSE | J153: =INDEX('Monthly Prices'!B141:CB141,$G$4) -> 1.64 | K153: =IF(H153,INDEX('Monthly Prices'!B141:CB141,$G$4)*U153,FALSE) -> FALSE | L153: TRUE | M153: =INDEX('Monthly Prices'!B141:CB141,$G$5) -> .. | N153: =IF(H153,INDEX('Monthly Prices'!B141:CB141,$G$5)*U153,FALSE) -> FALSE | O153: FALSE | P153: 1971 | Q153: ='Monthly Prices'!B141 -> 1.64 | R153: 1.69 | S153: =_xlfn.XLOOKUP(P153,'Annual Real'!A:A,'Annual Real'!B:B,0,0) -> 6.922073764 | T153: 4.883189231 | U153: 4.883189231 | V153: FALSE | W153: FALSE | X153: =LOOKUP(D153,'US Implicit Deflator'!A:A,'US Implicit Deflator'!B:B)/100 -> 0.046 | Y153: 0.003754812181 | Z153: 1.281106341 | AA153: 7 | AB153: 1971-02-01 | AC153: 4.883189231
C154: ='Monthly Prices'!A142 -> 1971M03 | D154: 1971-03-01 | E154: 135 | F154: FALSE | G154: FALSE | H154: FALSE | J154: =INDEX('Monthly Prices'!B142:CB142,$G$4) -> 1.64 | K154: =IF(H154,INDEX('Monthly Prices'!B142:CB142,$G$4)*U154,FALSE) -> FALSE | L154: TRUE | M154: =INDEX('Monthly Prices'!B142:CB142,$G$5) -> .. | N154: =IF(H154,INDEX('Monthly Prices'!B142:CB142,$G$5)*U154,FALSE) -> FALSE | O154: FALSE | P154: 1971 | Q154: ='Monthly Prices'!B142 -> 1.64 | R154: 1.69 | S154: =_xlfn.XLOOKUP(P154,'Annual Real'!A:A,'Annual Real'!B:B,0,0) -> 6.922073764 | T154: 4.864922361 | U154: 4.864922361 | V154: FALSE | W154: FALSE | X154: =LOOKUP(D154,'US Implicit Deflator'!A:A,'US Implicit Deflator'!B:B)/100 -> 0.046 | Y154: 0.003754812181 | Z154: 1.285916655 | AA154: 7 | AB154: 1971-03-01 | AC154: 4.864922361
C155: ='Monthly Prices'!A143 -> 1971M04 | D155: 1971-04-01 | E155: 136 | F155: FALSE | G155: FALSE | H155: FALSE | J155: =INDEX('Monthly Prices'!B143:CB143,$G$4) -> 1.64 | K155: =IF(H155,INDEX('Monthly Prices'!B143:CB143,$G$4)*U155,FALSE) -> FALSE | L155: TRUE | M155: =INDEX('Monthly Prices'!B143:CB143,$G$5) -> .. | N155: =IF(H155,INDEX('Monthly Prices'!B143:CB143,$G$5)*U155,FALSE) -> FALSE | O155: FALSE | P155: 1971 | Q155: ='Monthly Prices'!B143 -> 1.64 | R155: 1.69 | S155: =_xlfn.XLOOKUP(P155,'Annual Real'!A:A,'Annual Real'!B:B,0,0) -> 6.922073764 | T155: 4.847884022 | U155: 4.847884022 | V155: FALSE | W155: FALSE | X155: =LOOKUP(D155,'US Implicit Deflator'!A:A,'US Implicit Deflator'!B:B)/100 -> 0.043 | Y155: 0.003514593084 | Z155: 1.290436129 | AA155: 7 | AB155: 1971-04-01 | AC155: 4.847884022
C156: ='Monthly Prices'!A144 -> 1971M05 | D156: 1971-05-01 | E156: 137 | F156: FALSE | G156: FALSE | H156: FALSE | J156: =INDEX('Monthly Prices'!B144:CB144,$G$4) -> 1.64 | K156: =IF(H156,INDEX('Monthly Prices'!B144:CB144,$G$4)*U156,FALSE) -> FALSE | L156: TRUE | M156: =INDEX('Monthly Prices'!B144:CB144,$G$5) -> .. | N156: =IF(H156,INDEX('Monthly Prices'!B144:CB144,$G$5)*U156,FALSE) -> FALSE | O156: FALSE | P156: 1971 | Q156: ='Monthly Prices'!B144 -> 1.64 | R156: 1.69 | S156: =_xlfn.XLOOKUP(P156,'Annual Real'!A:A,'Annual Real'!B:B,0,0) -> 6.922073764 | T156: 4.830905355 | U156: 4.830905355 | V156: FALSE | W156: FALSE | X156: =LOOKUP(D156,'US Implicit Deflator'!A:A,'US Implicit Deflator'!B:B)/100 -> 0.043 | Y156: 0.003514593084 | Z156: 1.294971487 | AA156: 7 | AB156: 1971-05-01 | AC156: 4.830905355
C157: ='Monthly Prices'!A145 -> 1971M06 | D157: 1971-06-01 | E157: 138 | F157: FALSE | G157: FALSE | H157: FALSE | J157: =INDEX('Monthly Prices'!B145:CB145,$G$4) -> 1.64 | K157: =IF(H157,INDEX('Monthly Prices'!B145:CB145,$G$4)*U157,FALSE) -> FALSE | L157: TRUE | M157: =INDEX('Monthly Prices'!B145:CB145,$G$5) -> .. | N157: =IF(H157,INDEX('Monthly Prices'!B145:CB145,$G$5)*U157,FALSE) -> FALSE | O157: FALSE | P157: 1971 | Q157: ='Monthly Prices'!B145 -> 1.64 | R157: 1.69 | S157: =_xlfn.XLOOKUP(P157,'Annual Real'!A:A,'Annual Real'!B:B,0,0) -> 6.922073764 | T157: 4.813986153 | U157: 4.813986153 | V157: FALSE | W157: FALSE | X157: =LOOKUP(D157,'US Implicit Deflator'!A:A,'US Implicit Deflator'!B:B)/100 -> 0.043 | Y157: 0.003514593084 | Z157: 1.299522785 | AA157: 7 | AB157: 1971-06-01 | AC157: 4.813986153
C158: ='Monthly Prices'!A146 -> 1971M07 | D158: 1971-07-01 | E158: 139 | F158: FALSE | G158: FALSE | H158: FALSE | J158: =INDEX('Monthly Prices'!B146:CB146,$G$4) -> 1.74 | K158: =IF(H158,INDEX('Monthly Prices'!B146:CB146,$G$4)*U158,FALSE) -> FALSE | L158: TRUE | M158: =INDEX('Monthly Prices'!B146:CB146,$G$5) -> .. | N158: =IF(H158,INDEX('Monthly Prices'!B146:CB146,$G$5)*U158,FALSE) -> FALSE | O158: FALSE | P158: 1971 | Q158: ='Monthly Prices'!B146 -> 1.74 | R158: 1.69 | S158: =_xlfn.XLOOKUP(P158,'Annual Real'!A:A,'Annual Real'!B:B,0,0) -> 6.922073764 | T158: 4.795596264 | U158: 4.795596264 | V158: FALSE | W158: FALSE | X158: =LOOKUP(D158,'US Implicit Deflator'!A:A,'US Implicit Deflator'!B:B)/100 -> 0.047 | Y158: 0.003834744882 | Z158: 1.304506123 | AA158: 7 | AB158: 1971-07-01 | AC158: 4.795596264
C159: ='Monthly Prices'!A147 -> 1971M08 | D159: 1971-08-01 | E159: 140 | F159: FALSE | G159: FALSE | H159: FALSE | J159: =INDEX('Monthly Prices'!B147:CB147,$G$4) -> 1.74 | K159: =IF(H159,INDEX('Monthly Prices'!B147:CB147,$G$4)*U159,FALSE) -> FALSE | L159: TRUE | M159: =INDEX('Monthly Prices'!B147:CB147,$G$5) -> .. | N159: =IF(H159,INDEX('Monthly Prices'!B147:CB147,$G$5)*U159,FALSE) -> FALSE | O159: FALSE | P159: 1971 | Q159: ='Monthly Prices'!B147 -> 1.74 | R159: 1.69 | S159: =_xlfn.XLOOKUP(P159,'Annual Real'!A:A,'Annual Real'!B:B,0,0) -> 6.922073764 | T159: 4.777276627 | U159: 4.777276627 | V159: FALSE | W159: FALSE | X159: =LOOKUP(D159,'US Implicit Deflator'!A:A,'US Implicit Deflator'!B:B)/100 -> 0.047 | Y159: 0.003834744882 | Z159: 1.309508571 | AA159: 7 | AB159: 1971-08-01 | AC159: 4.777276627
C160: ='Monthly Prices'!A148 -> 1971M09 | D160: 1971-09-01 | E160: 141 | F160: FALSE | G160: FALSE | H160: FALSE | J160: =INDEX('Monthly Prices'!B148:CB148,$G$4) -> 1.74 | K160: =IF(H160,INDEX('Monthly Prices'!B148:CB148,$G$4)*U160,FALSE) -> FALSE | L160: TRUE | M160: =INDEX('Monthly Prices'!B148:CB148,$G$5) -> .. | N160: =IF(H160,INDEX('Monthly Prices'!B148:CB148,$G$5)*U160,FALSE) -> FALSE | O160: FALSE | P160: 1971 | Q160: ='Monthly Prices'!B148 -> 1.74 | R160: 1.69 | S160: =_xlfn.XLOOKUP(P160,'Annual Real'!A:A,'Annual Real'!B:B,0,0) -> 6.922073764 | T160: 4.759026973 | U160: 4.759026973 | V160: FALSE | W160: FALSE | X160: =LOOKUP(D160,'US Implicit Deflator'!A:A,'US Implicit Deflator'!B:B)/100 -> 0.047 | Y160: 0.003834744882 | Z160: 1.314530202 | AA160: 7 | AB160: 1971-09-01 | AC160: 4.759026973
C161: ='Monthly Prices'!A149 -> 1971M10 | D161: 1971-10-01 | E161: 142 | F161: FALSE | G161: FALSE | H161: FALSE | J161: =INDEX('Monthly Prices'!B149:CB149,$G$4) -> 1.74 | K161: =IF(H161,INDEX('Monthly Prices'!B149:CB149,$G$4)*U161,FALSE) -> FALSE | L161: TRUE | M161: =INDEX('Monthly Prices'!B149:CB149,$G$5) -> .. | N161: =IF(H161,INDEX('Monthly Prices'!B149:CB149,$G$5)*U161,FALSE) -> FALSE | O161: FALSE | P161: 1971 | Q161: ='Monthly Prices'!B149 -> 1.74 | R161: 1.69 | S161: =_xlfn.XLOOKUP(P161,'Annual Real'!A:A,'Annual Real'!B:B,0,0) -> 6.922073764 | T161: 4.745021523 | U161: 4.745021523 | V161: FALSE | W161: FALSE | X161: =LOOKUP(D161,'US Implicit Deflator'!A:A,'US Implicit Deflator'!B:B)/100 -> 0.036 | Y161: 0.002951609433 | Z161: 1.318410182 | AA161: 7 | AB161: 1971-10-01 | AC161: 4.745021523
C162: ='Monthly Prices'!A150 -> 1971M11 | D162: 1971-11-01 | E162: 143 | F162: FALSE | G162: FALSE | H162: FALSE | J162: =INDEX('Monthly Prices'!B150:CB150,$G$4) -> 1.74 | K162: =IF(H162,INDEX('Monthly Prices'!B150:CB150,$G$4)*U162,FALSE) -> FALSE | L162: TRUE | M162: =INDEX('Monthly Prices'!B150:CB150,$G$5) -> .. | N162: =IF(H162,INDEX('Monthly Prices'!B150:CB150,$G$5)*U162,FALSE) -> FALSE | O162: FALSE | P162: 1971 | Q162: ='Monthly Prices'!B150 -> 1.74 | R162: 1.69 | S162: =_xlfn.XLOOKUP(P162,'Annual Real'!A:A,'Annual Real'!B:B,0,0) -> 6.922073764 | T162: 4.731057289 | U162: 4.731057289 | V162: FALSE | W162: FALSE | X162: =LOOKUP(D162,'US Implicit Deflator'!A:A,'US Implicit Deflator'!B:B)/100 -> 0.036 | Y162: 0.002951609433 | Z162: 1.322301614 | AA162: 7 | AB162: 1971-11-01 | AC162: 4.731057289
C163: ='Monthly Prices'!A151 -> 1971M12 | D163: 1971-12-01 | E163: 144 | F163: FALSE | G163: FALSE | H163: FALSE | J163: =INDEX('Monthly Prices'!B151:CB151,$G$4) -> 1.74 | K163: =IF(H163,INDEX('Monthly Prices'!B151:CB151,$G$4)*U163,FALSE) -> FALSE | L163: TRUE | M163: =INDEX('Monthly Prices'!B151:CB151,$G$5) -> .. | N163: =IF(H163,INDEX('Monthly Prices'!B151:CB151,$G$5)*U163,FALSE) -> FALSE | O163: FALSE | P163: 1971 | Q163: ='Monthly Prices'!B151 -> 1.74 | R163: 1.69 | S163: =_xlfn.XLOOKUP(P163,'Annual Real'!A:A,'Annual Real'!B:B,0,0) -> 6.922073764 | T163: 4.717134152 | U163: 4.717134152 | V163: FALSE | W163: FALSE | X163: =LOOKUP(D163,'US Implicit Deflator'!A:A,'US Implicit Deflator'!B:B)/100 -> 0.036 | Y163: 0.002951609433 | Z163: 1.326204532 | AA163: 7 | AB163: 1971-12-01 | AC163: 4.717134152
C164: ='Monthly Prices'!A152 -> 1972M01 | D164: 1972-01-01 | E164: 145 | F164: FALSE | G164: FALSE | H164: FALSE | J164: =INDEX('Monthly Prices'!B152:CB152,$G$4) -> 1.77 | K164: =IF(H164,INDEX('Monthly Prices'!B152:CB152,$G$4)*U164,FALSE) -> FALSE | L164: TRUE | M164: =INDEX('Monthly Prices'!B152:CB152,$G$5) -> .. | N164: =IF(H164,INDEX('Monthly Prices'!B152:CB152,$G$5)*U164,FALSE) -> FALSE | O164: FALSE | P164: 1972 | Q164: ='Monthly Prices'!B152 -> 1.77 | R164: 1.82 | S164: =_xlfn.XLOOKUP(P164,'Annual Real'!A:A,'Annual Real'!B:B,0,0) -> 6.833715314 | T164: 4.702496143 | U164: 4.702496143 | V164: FALSE | W164: FALSE | X164: =LOOKUP(D164,'US Implicit Deflator'!A:A,'US Implicit Deflator'!B:B)/100 -> 0.038 | Y164: 0.003112816846 | Z164: 1.330332764 | AA164: 7 | AB164: 1972-01-01 | AC164: 4.702496143
C165: ='Monthly Prices'!A153 -> 1972M02 | D165: 1972-02-01 | E165: 146 | F165: FALSE | G165: FALSE | H165: FALSE | J165: =INDEX('Monthly Prices'!B153:CB153,$G$4) -> 1.77 | K165: =IF(H165,INDEX('Monthly Prices'!B153:CB153,$G$4)*U165,FALSE) -> FALSE | L165: TRUE | M165: =INDEX('Monthly Prices'!B153:CB153,$G$5) -> .. | N165: =IF(H165,INDEX('Monthly Prices'!B153:CB153,$G$5)*U165,FALSE) -> FALSE | O165: FALSE | P165: 1972 | Q165: ='Monthly Prices'!B153 -> 1.77 | R165: 1.82 | S165: =_xlfn.XLOOKUP(P165,'Annual Real'!A:A,'Annual Real'!B:B,0,0) -> 6.833715314 | T165: 4.687903557 | U165: 4.687903557 | V165: FALSE | W165: FALSE | X165: =LOOKUP(D165,'US Implicit Deflator'!A:A,'US Implicit Deflator'!B:B)/100 -> 0.038 | Y165: 0.003112816846 | Z165: 1.334473846 | AA165: 7 | AB165: 1972-02-01 | AC165: 4.687903557
C166: ='Monthly Prices'!A154 -> 1972M03 | D166: 1972-03-01 | E166: 147 | F166: FALSE | G166: FALSE | H166: FALSE | J166: =INDEX('Monthly Prices'!B154:CB154,$G$4) -> 1.77 | K166: =IF(H166,INDEX('Monthly Prices'!B154:CB154,$G$4)*U166,FALSE) -> FALSE | L166: TRUE | M166: =INDEX('Monthly Prices'!B154:CB154,$G$5) -> .. | N166: =IF(H166,INDEX('Monthly Prices'!B154:CB154,$G$5)*U166,FALSE) -> FALSE | O166: FALSE | P166: 1972 | Q166: ='Monthly Prices'!B154 -> 1.77 | R166: 1.82 | S166: =_xlfn.XLOOKUP(P166,'Annual Real'!A:A,'Annual Real'!B:B,0,0) -> 6.833715314 | T166: 4.673356255 | U166: 4.673356255 | V166: FALSE | W166: FALSE | X166: =LOOKUP(D166,'US Implicit Deflator'!A:A,'US Implicit Deflator'!B:B)/100 -> 0.038 | Y166: 0.003112816846 | Z166: 1.338627819 | AA166: 7 | AB166: 1972-03-01 | AC166: 4.673356255
C167: ='Monthly Prices'!A155 -> 1972M04 | D167: 1972-04-01 | E167: 148 | F167: FALSE | G167: FALSE | H167: FALSE | J167: =INDEX('Monthly Prices'!B155:CB155,$G$4) -> 1.77 | K167: =IF(H167,INDEX('Monthly Prices'!B155:CB155,$G$4)*U167,FALSE) -> FALSE | L167: TRUE | M167: =INDEX('Monthly Prices'!B155:CB155,$G$5) -> .. | N167: =IF(H167,INDEX('Monthly Prices'!B155:CB155,$G$5)*U167,FALSE) -> FALSE | O167: FALSE | P167: 1972 | Q167: ='Monthly Prices'!B155 -> 1.77 | R167: 1.82 | S167: =_xlfn.XLOOKUP(P167,'Annual Real'!A:A,'Annual Real'!B:B,0,0) -> 6.833715314 | T167: 4.662236225 | U167: 4.662236225 | V167: FALSE | W167: FALSE | X167: =LOOKUP(D167,'US Implicit Deflator'!A:A,'US Implicit Deflator'!B:B)/100 -> 0.029 | Y167: 0.002385127974 | Z167: 1.341820617 | AA167: 7 | AB167: 1972-04-01 | AC167: 4.662236225
C168: ='Monthly Prices'!A156 -> 1972M05 | D168: 1972-05-01 | E168: 149 | F168: FALSE | G168: FALSE | H168: FALSE | J168: =INDEX('Monthly Prices'!B156:CB156,$G$4) -> 1.77 | K168: =IF(H168,INDEX('Monthly Prices'!B156:CB156,$G$4)*U168,FALSE) -> FALSE | L168: TRUE | M168: =INDEX('Monthly Prices'!B156:CB156,$G$5) -> .. | N168: =IF(H168,INDEX('Monthly Prices'!B156:CB156,$G$5)*U168,FALSE) -> FALSE | O168: FALSE | P168: 1972 | Q168: ='Monthly Prices'!B156 -> 1.77 | R168: 1.82 | S168: =_xlfn.XLOOKUP(P168,'Annual Real'!A:A,'Annual Real'!B:B,0,0) -> 6.833715314 | T168: 4.651142655 | U168: 4.651142655 | V168: FALSE | W168: FALSE | X168: =LOOKUP(D168,'US Implicit Deflator'!A:A,'US Implicit Deflator'!B:B)/100 -> 0.029 | Y168: 0.002385127974 | Z168: 1.345021031 | AA168: 7 | AB168: 1972-05-01 | AC168: 4.651142655
C169: ='Monthly Prices'!A157 -> 1972M06 | D169: 1972-06-01 | E169: 150 | F169: FALSE | G169: FALSE | H169: FALSE | J169: =INDEX('Monthly Prices'!B157:CB157,$G$4) -> 1.77 | K169: =IF(H169,INDEX('Monthly Prices'!B157:CB157,$G$4)*U169,FALSE) -> FALSE | L169: TRUE | M169: =INDEX('Monthly Prices'!B157:CB157,$G$5) -> .. | N169: =IF(H169,INDEX('Monthly Prices'!B157:CB157,$G$5)*U169,FALSE) -> FALSE | O169: FALSE | P169: 1972 | Q169: ='Monthly Prices'!B157 -> 1.77 | R169: 1.82 | S169: =_xlfn.XLOOKUP(P169,'Annual Real'!A:A,'Annual Real'!B:B,0,0) -> 6.833715314 | T169: 4.640075481 | U169: 4.640075481 | V169: FALSE | W169: FALSE | X169: =LOOKUP(D169,'US Implicit Deflator'!A:A,'US Implicit Deflator'!B:B)/100 -> 0.029 | Y169: 0.002385127974 | Z169: 1.348229078 | AA169: 7 | AB169: 1972-06-01 | AC169: 4.640075481
C170: ='Monthly Prices'!A158 -> 1972M07 | D170: 1972-07-01 | E170: 151 | F170: FALSE | G170: FALSE | H170: FALSE | J170: =INDEX('Monthly Prices'!B158:CB158,$G$4) -> 1.87 | K170: =IF(H170,INDEX('Monthly Prices'!B158:CB158,$G$4)*U170,FALSE) -> FALSE | L170: TRUE | M170: =INDEX('Monthly Prices'!B158:CB158,$G$5) -> .. | N170: =IF(H170,INDEX('Monthly Prices'!B158:CB158,$G$5)*U170,FALSE) -> FALSE | O170: FALSE | P170: 1972 | Q170: ='Monthly Prices'!B158 -> 1.87 | R170: 1.82 | S170: =_xlfn.XLOOKUP(P170,'Annual Real'!A:A,'Annual Real'!B:B,0,0) -> 6.833715314 | T170: 4.630161065 | U170: 4.630161065 | V170: FALSE | W170: FALSE | X170: =LOOKUP(D170,'US Implicit Deflator'!A:A,'US Implicit Deflator'!B:B)/100 -> 0.026 | Y170: 0.002141268143 | Z170: 1.351115998 | AA170: 7 | AB170: 1972-07-01 | AC170: 4.630161065
C171: ='Monthly Prices'!A159 -> 1972M08 | D171: 1972-08-01 | E171: 152 | F171: FALSE | G171: FALSE | H171: FALSE | J171: =INDEX('Monthly Prices'!B159:CB159,$G$4) -> 1.87 | K171: =IF(H171,INDEX('Monthly Prices'!B159:CB159,$G$4)*U171,FALSE) -> FALSE | L171: TRUE | M171: =INDEX('Monthly Prices'!B159:CB159,$G$5) -> .. | N171: =IF(H171,INDEX('Monthly Prices'!B159:CB159,$G$5)*U171,FALSE) -> FALSE | O171: FALSE | P171: 1972 | Q171: ='Monthly Prices'!B159 -> 1.87 | R171: 1.82 | S171: =_xlfn.XLOOKUP(P171,'Annual Real'!A:A,'Annual Real'!B:B,0,0) -> 6.833715314 | T171: 4.620267832 | U171: 4.620267832 | V171: FALSE | W171: FALSE | X171: =LOOKUP(D171,'US Implicit Deflator'!A:A,'US Implicit Deflator'!B:B)/100 -> 0.026 | Y171: 0.002141268143 | Z171: 1.3540091 | AA171: 7 | AB171: 1972-08-01 | AC171: 4.620267832
C172: ='Monthly Prices'!A160 -> 1972M09 | D172: 1972-09-01 | E172: 153 | F172: FALSE | G172: FALSE | H172: FALSE | J172: =INDEX('Monthly Prices'!B160:CB160,$G$4) -> 1.87 | K172: =IF(H172,INDEX('Monthly Prices'!B160:CB160,$G$4)*U172,FALSE) -> FALSE | L172: TRUE | M172: =INDEX('Monthly Prices'!B160:CB160,$G$5) -> .. | N172: =IF(H172,INDEX('Monthly Prices'!B160:CB160,$G$5)*U172,FALSE) -> FALSE | O172: FALSE | P172: 1972 | Q172: ='Monthly Prices'!B160 -> 1.87 | R172: 1.82 | S172: =_xlfn.XLOOKUP(P172,'Annual Real'!A:A,'Annual Real'!B:B,0,0) -> 6.833715314 | T172: 4.610395739 | U172: 4.610395739 | V172: FALSE | W172: FALSE | X172: =LOOKUP(D172,'US Implicit Deflator'!A:A,'US Implicit Deflator'!B:B)/100 -> 0.026 | Y172: 0.002141268143 | Z172: 1.356908397 | AA172: 7 | AB172: 1972-09-01 | AC172: 4.610395739
C173: ='Monthly Prices'!A161 -> 1972M10 | D173: 1972-10-01 | E173: 154 | F173: FALSE | G173: FALSE | H173: FALSE | J173: =INDEX('Monthly Prices'!B161:CB161,$G$4) -> 1.87 | K173: =IF(H173,INDEX('Monthly Prices'!B161:CB161,$G$4)*U173,FALSE) -> FALSE | L173: TRUE | M173: =INDEX('Monthly Prices'!B161:CB161,$G$5) -> .. | N173: =IF(H173,INDEX('Monthly Prices'!B161:CB161,$G$5)*U173,FALSE) -> FALSE | O173: FALSE | P173: 1972 | Q173: ='Monthly Prices'!B161 -> 1.87 | R173: 1.82 | S173: =_xlfn.XLOOKUP(P173,'Annual Real'!A:A,'Annual Real'!B:B,0,0) -> 6.833715314 | T173: 4.59942552 | U173: 4.59942552 | V173: FALSE | W173: FALSE | X173: =LOOKUP(D173,'US Implicit Deflator'!A:A,'US Implicit Deflator'!B:B)/100 -> 0.029 | Y173: 0.002385127974 | Z173: 1.360144797 | AA173: 7 | AB173: 1972-10-01 | AC173: 4.59942552
C174: ='Monthly Prices'!A162 -> 1972M11 | D174: 1972-11-01 | E174: 155 | F174: FALSE | G174: FALSE | H174: FALSE | J174: =INDEX('Monthly Prices'!B162:CB162,$G$4) -> 1.87 | K174: =IF(H174,INDEX('Monthly Prices'!B162:CB162,$G$4)*U174,FALSE) -> FALSE | L174: TRUE | M174: =INDEX('Monthly Prices'!B162:CB162,$G$5) -> .. | N174: =IF(H174,INDEX('Monthly Prices'!B162:CB162,$G$5)*U174,FALSE) -> FALSE | O174: FALSE | P174: 1972 | Q174: ='Monthly Prices'!B162 -> 1.87 | R174: 1.82 | S174: =_xlfn.XLOOKUP(P174,'Annual Real'!A:A,'Annual Real'!B:B,0,0) -> 6.833715314 | T174: 4.588481405 | U174: 4.588481405 | V174: FALSE | W174: FALSE | X174: =LOOKUP(D174,'US Implicit Deflator'!A:A,'US Implicit Deflator'!B:B)/100 -> 0.029 | Y174: 0.002385127974 | Z174: 1.363388916 | AA174: 7 | AB174: 1972-11-01 | AC174: 4.588481405
C175: ='Monthly Prices'!A163 -> 1972M12 | D175: 1972-12-01 | E175: 156 | F175: FALSE | G175: FALSE | H175: FALSE | J175: =INDEX('Monthly Prices'!B163:CB163,$G$4) -> 1.87 | K175: =IF(H175,INDEX('Monthly Prices'!B163:CB163,$G$4)*U175,FALSE) -> FALSE | L175: TRUE | M175: =INDEX('Monthly Prices'!B163:CB163,$G$5) -> .. | N175: =IF(H175,INDEX('Monthly Prices'!B163:CB163,$G$5)*U175,FALSE) -> FALSE | O175: FALSE | P175: 1972 | Q175: ='Monthly Prices'!B163 -> 1.87 | R175: 1.82 | S175: =_xlfn.XLOOKUP(P175,'Annual Real'!A:A,'Annual Real'!B:B,0,0) -> 6.833715314 | T175: 4.577563331 | U175: 4.577563331 | V175: FALSE | W175: FALSE | X175: =LOOKUP(D175,'US Implicit Deflator'!A:A,'US Implicit Deflator'!B:B)/100 -> 0.029 | Y175: 0.002385127974 | Z175: 1.366640773 | AA175: 7 | AB175: 1972-12-01 | AC175: 4.577563331
C176: ='Monthly Prices'!A164 -> 1973M01 | D176: 1973-01-01 | E176: 157 | F176: FALSE | G176: FALSE | H176: FALSE | J176: =INDEX('Monthly Prices'!B164:CB164,$G$4) -> 2.08 | K176: =IF(H176,INDEX('Monthly Prices'!B164:CB164,$G$4)*U176,FALSE) -> FALSE | L176: TRUE | M176: =INDEX('Monthly Prices'!B164:CB164,$G$5) -> .. | N176: =IF(H176,INDEX('Monthly Prices'!B164:CB164,$G$5)*U176,FALSE) -> FALSE | O176: FALSE | P176: 1973 | Q176: ='Monthly Prices'!B164 -> 2.08 | R176: 2.8075 | S176: =_xlfn.XLOOKUP(P176,'Annual Real'!A:A,'Annual Real'!B:B,0,0) -> 9.089702394 | T176: 4.569269636 | U176: 4.569269636 | V176: FALSE | W176: FALSE | X176: =LOOKUP(D176,'US Implicit Deflator'!A:A,'US Implicit Deflator'!B:B)/100 -> 0.022 | Y176: 0.001815102957 | Z176: 1.369121367 | AA176: 7 | AB176: 1973-01-01 | AC176: 4.569269636
C177: ='Monthly Prices'!A165 -> 1973M02 | D177: 1973-02-01 | E177: 158 | F177: FALSE | G177: FALSE | H177: FALSE | J177: =INDEX('Monthly Prices'!B165:CB165,$G$4) -> 2.08 | K177: =IF(H177,INDEX('Monthly Prices'!B165:CB165,$G$4)*U177,FALSE) -> FALSE | L177: TRUE | M177: =INDEX('Monthly Prices'!B165:CB165,$G$5) -> .. | N177: =IF(H177,INDEX('Monthly Prices'!B165:CB165,$G$5)*U177,FALSE) -> FALSE | O177: FALSE | P177: 1973 | Q177: ='Monthly Prices'!B165 -> 2.08 | R177: 2.8075 | S177: =_xlfn.XLOOKUP(P177,'Annual Real'!A:A,'Annual Real'!B:B,0,0) -> 9.089702394 | T177: 4.560990968 | U177: 4.560990968 | V177: FALSE | W177: FALSE | X177: =LOOKUP(D177,'US Implicit Deflator'!A:A,'US Implicit Deflator'!B:B)/100 -> 0.022 | Y177: 0.001815102957 | Z177: 1.371606463 | AA177: 7 | AB177: 1973-02-01 | AC177: 4.560990968
C178: ='Monthly Prices'!A166 -> 1973M03 | D178: 1973-03-01 | E178: 159 | F178: FALSE | G178: FALSE | H178: FALSE | J178: =INDEX('Monthly Prices'!B166:CB166,$G$4) -> 2.08 | K178: =IF(H178,INDEX('Monthly Prices'!B166:CB166,$G$4)*U178,FALSE) -> FALSE | L178: TRUE | M178: =INDEX('Monthly Prices'!B166:CB166,$G$5) -> .. | N178: =IF(H178,INDEX('Monthly Prices'!B166:CB166,$G$5)*U178,FALSE) -> FALSE | O178: FALSE | P178: 1973 | Q178: ='Monthly Prices'!B166 -> 2.08 | R178: 2.8075 | S178: =_xlfn.XLOOKUP(P178,'Annual Real'!A:A,'Annual Real'!B:B,0,0) -> 9.089702394 | T178: 4.552727299 | U178: 4.552727299 | V178: FALSE | W178: FALSE | X178: =LOOKUP(D178,'US Implicit Deflator'!A:A,'US Implicit Deflator'!B:B)/100 -> 0.022 | Y178: 0.001815102957 | Z178: 1.37409607 | AA178: 7 | AB178: 1973-03-01 | AC178: 4.552727299
C179: ='Monthly Prices'!A167 -> 1973M04 | D179: 1973-04-01 | E179: 160 | F179: FALSE | G179: FALSE | H179: FALSE | J179: =INDEX('Monthly Prices'!B167:CB167,$G$4) -> 2.35 | K179: =IF(H179,INDEX('Monthly Prices'!B167:CB167,$G$4)*U179,FALSE) -> FALSE | L179: TRUE | M179: =INDEX('Monthly Prices'!B167:CB167,$G$5) -> .. | N179: =IF(H179,INDEX('Monthly Prices'!B167:CB167,$G$5)*U179,FALSE) -> FALSE | O179: FALSE | P179: 1973 | Q179: ='Monthly Prices'!B167 -> 2.35 | R179: 2.8075 | S179: =_xlfn.XLOOKUP(P179,'Annual Real'!A:A,'Annual Real'!B:B,0,0) -> 9.089702394 | T179: 4.5418943 | U179: 4.5418943 | V179: FALSE | W179: FALSE | X179: =LOOKUP(D179,'US Implicit Deflator'!A:A,'US Implicit Deflator'!B:B)/100 -> 0.029 | Y179: 0.002385127974 | Z179: 1.377373465 | AA179: 7 | AB179: 1973-04-01 | AC179: 4.5418943
C180: ='Monthly Prices'!A168 -> 1973M05 | D180: 1973-05-01 | E180: 161 | F180: FALSE | G180: FALSE | H180: FALSE | J180: =INDEX('Monthly Prices'!B168:CB168,$G$4) -> 2.35 | K180: =IF(H180,INDEX('Monthly Prices'!B168:CB168,$G$4)*U180,FALSE) -> FALSE | L180: TRUE | M180: =INDEX('Monthly Prices'!B168:CB168,$G$5) -> .. | N180: =IF(H180,INDEX('Monthly Prices'!B168:CB168,$G$5)*U180,FALSE) -> FALSE | O180: FALSE | P180: 1973 | Q180: ='Monthly Prices'!B168 -> 2.35 | R180: 2.8075 | S180: =_xlfn.XLOOKUP(P180,'Annual Real'!A:A,'Annual Real'!B:B,0,0) -> 9.089702394 | T180: 4.531087077 | U180: 4.531087077 | V180: FALSE | W180: FALSE | X180: =LOOKUP(D180,'US Implicit Deflator'!A:A,'US Implicit Deflator'!B:B)/100 -> 0.029 | Y180: 0.002385127974 | Z180: 1.380658677 | AA180: 7 | AB180: 1973-05-01 | AC180: 4.531087077
C181: ='Monthly Prices'!A169 -> 1973M06 | D181: 1973-06-01 | E181: 162 | F181: FALSE | G181: FALSE | H181: FALSE | J181: =INDEX('Monthly Prices'!B169:CB169,$G$4) -> 2.35 | K181: =IF(H181,INDEX('Monthly Prices'!B169:CB169,$G$4)*U181,FALSE) -> FALSE | L181: TRUE | M181: =INDEX('Monthly Prices'!B169:CB169,$G$5) -> .. | N181: =IF(H181,INDEX('Monthly Prices'!B169:CB169,$G$5)*U181,FALSE) -> FALSE | O181: FALSE | P181: 1973 | Q181: ='Monthly Prices'!B169 -> 2.35 | R181: 2.8075 | S181: =_xlfn.XLOOKUP(P181,'Annual Real'!A:A,'Annual Real'!B:B,0,0) -> 9.089702394 | T181: 4.52030557 | U181: 4.52030557 | V181: FALSE | W181: FALSE | X181: =LOOKUP(D181,'US Implicit Deflator'!A:A,'US Implicit Deflator'!B:B)/100 -> 0.029 | Y181: 0.002385127974 | Z181: 1.383951725 | AA181: 7 | AB181: 1973-06-01 | AC181: 4.52030557
C182: ='Monthly Prices'!A170 -> 1973M07 | D182: 1973-07-01 | E182: 163 | F182: FALSE | G182: FALSE | H182: FALSE | J182: =INDEX('Monthly Prices'!B170:CB170,$G$4) -> 2.7 | K182: =IF(H182,INDEX('Monthly Prices'!B170:CB170,$G$4)*U182,FALSE) -> FALSE | L182: TRUE | M182: =INDEX('Monthly Prices'!B170:CB170,$G$5) -> .. | N182: =IF(H182,INDEX('Monthly Prices'!B170:CB170,$G$5)*U182,FALSE) -> FALSE | O182: FALSE | P182: 1973 | Q182: ='Monthly Prices'!B170 -> 2.7 | R182: 2.8075 | S182: =_xlfn.XLOOKUP(P182,'Annual Real'!A:A,'Annual Real'!B:B,0,0) -> 9.089702394 | T182: 4.507002658 | U182: 4.507002658 | V182: FALSE | W182: FALSE | X182: =LOOKUP(D182,'US Implicit Deflator'!A:A,'US Implicit Deflator'!B:B)/100 -> 0.036 | Y182: 0.002951609433 | Z182: 1.38803661 | AA182: 7 | AB182: 1973-07-01 | AC182: 4.507002658
C183: ='Monthly Prices'!A171 -> 1973M08 | D183: 1973-08-01 | E183: 164 | F183: FALSE | G183: FALSE | H183: FALSE | J183: =INDEX('Monthly Prices'!B171:CB171,$G$4) -> 2.7 | K183: =IF(H183,INDEX('Monthly Prices'!B171:CB171,$G$4)*U183,FALSE) -> FALSE | L183: TRUE | M183: =INDEX('Monthly Prices'!B171:CB171,$G$5) -> .. | N183: =IF(H183,INDEX('Monthly Prices'!B171:CB171,$G$5)*U183,FALSE) -> FALSE | O183: FALSE | P183: 1973 | Q183: ='Monthly Prices'!B171 -> 2.7 | R183: 2.8075 | S183: =_xlfn.XLOOKUP(P183,'Annual Real'!A:A,'Annual Real'!B:B,0,0) -> 9.089702394 | T183: 4.493738896 | U183: 4.493738896 | V183: FALSE | W183: FALSE | X183: =LOOKUP(D183,'US Implicit Deflator'!A:A,'US Implicit Deflator'!B:B)/100 -> 0.036 | Y183: 0.002951609433 | Z183: 1.392133552 | AA183: 7 | AB183: 1973-08-01 | AC183: 4.493738896
C184: ='Monthly Prices'!A172 -> 1973M09 | D184: 1973-09-01 | E184: 165 | F184: FALSE | G184: FALSE | H184: FALSE | J184: =INDEX('Monthly Prices'!B172:CB172,$G$4) -> 2.7 | K184: =IF(H184,INDEX('Monthly Prices'!B172:CB172,$G$4)*U184,FALSE) -> FALSE | L184: TRUE | M184: =INDEX('Monthly Prices'!B172:CB172,$G$5) -> .. | N184: =IF(H184,INDEX('Monthly Prices'!B172:CB172,$G$5)*U184,FALSE) -> FALSE | O184: FALSE | P184: 1973 | Q184: ='Monthly Prices'!B172 -> 2.7 | R184: 2.8075 | S184: =_xlfn.XLOOKUP(P184,'Annual Real'!A:A,'Annual Real'!B:B,0,0) -> 9.089702394 | T184: 4.480514168 | U184: 4.480514168 | V184: FALSE | W184: FALSE | X184: =LOOKUP(D184,'US Implicit Deflator'!A:A,'US Implicit Deflator'!B:B)/100 -> 0.036 | Y184: 0.002951609433 | Z184: 1.396242586 | AA184: 7 | AB184: 1973-09-01 | AC184: 4.480514168
C185: ='Monthly Prices'!A173 -> 1973M10 | D185: 1973-10-01 | E185: 166 | F185: FALSE | G185: FALSE | H185: FALSE | J185: =INDEX('Monthly Prices'!B173:CB173,$G$4) -> 4.1 | K185: =IF(H185,INDEX('Monthly Prices'!B173:CB173,$G$4)*U185,FALSE) -> FALSE | L185: TRUE | M185: =INDEX('Monthly Prices'!B173:CB173,$G$5) -> .. | N185: =IF(H185,INDEX('Monthly Prices'!B173:CB173,$G$5)*U185,FALSE) -> FALSE | O185: FALSE | P185: 1973 | Q185: ='Monthly Prices'!B173 -> 4.1 | R185: 2.8075 | S185: =_xlfn.XLOOKUP(P185,'Annual Real'!A:A,'Annual Real'!B:B,0,0) -> 9.089702394 | T185: 4.460920368 | U185: 4.460920368 | V185: FALSE | W185: FALSE | X185: =LOOKUP(D185,'US Implicit Deflator'!A:A,'US Implicit Deflator'!B:B)/100 -> 0.054 | Y185: 0.004392322271 | Z185: 1.402375334 | AA185: 7 | AB185: 1973-10-01 | AC185: 4.460920368
C186: ='Monthly Prices'!A174 -> 1973M11 | D186: 1973-11-01 | E186: 167 | F186: FALSE | G186: FALSE | H186: FALSE | J186: =INDEX('Monthly Prices'!B174:CB174,$G$4) -> 4.1 | K186: =IF(H186,INDEX('Monthly Prices'!B174:CB174,$G$4)*U186,FALSE) -> FALSE | L186: TRUE | M186: =INDEX('Monthly Prices'!B174:CB174,$G$5) -> .. | N186: =IF(H186,INDEX('Monthly Prices'!B174:CB174,$G$5)*U186,FALSE) -> FALSE | O186: FALSE | P186: 1973 | Q186: ='Monthly Prices'!B174 -> 4.1 | R186: 2.8075 | S186: =_xlfn.XLOOKUP(P186,'Annual Real'!A:A,'Annual Real'!B:B,0,0) -> 9.089702394 | T186: 4.441412254 | U186: 4.441412254 | V186: FALSE | W186: FALSE | X186: =LOOKUP(D186,'US Implicit Deflator'!A:A,'US Implicit Deflator'!B:B)/100 -> 0.054 | Y186: 0.004392322271 | Z186: 1.408535018 | AA186: 7 | AB186: 1973-11-01 | AC186: 4.441412254
C187: ='Monthly Prices'!A175 -> 1973M12 | D187: 1973-12-01 | E187: 168 | F187: FALSE | G187: FALSE | H187: FALSE | J187: =INDEX('Monthly Prices'!B175:CB175,$G$4) -> 4.1 | K187: =IF(H187,INDEX('Monthly Prices'!B175:CB175,$G$4)*U187,FALSE) -> FALSE | L187: TRUE | M187: =INDEX('Monthly Prices'!B175:CB175,$G$5) -> .. | N187: =IF(H187,INDEX('Monthly Prices'!B175:CB175,$G$5)*U187,FALSE) -> FALSE | O187: FALSE | P187: 1973 | Q187: ='Monthly Prices'!B175 -> 4.1 | R187: 2.8075 | S187: =_xlfn.XLOOKUP(P187,'Annual Real'!A:A,'Annual Real'!B:B,0,0) -> 9.089702394 | T187: 4.421989452 | U187: 4.421989452 | V187: FALSE | W187: FALSE | X187: =LOOKUP(D187,'US Implicit Deflator'!A:A,'US Implicit Deflator'!B:B)/100 -> 0.054 | Y187: 0.004392322271 | Z187: 1.414721758 | AA187: 7 | AB187: 1973-12-01 | AC187: 4.421989452
C188: ='Monthly Prices'!A176 -> 1974M01 | D188: 1974-01-01 | E188: 169 | F188: FALSE | G188: FALSE | H188: FALSE | J188: =INDEX('Monthly Prices'!B176:CB176,$G$4) -> 13 | K188: =IF(H188,INDEX('Monthly Prices'!B176:CB176,$G$4)*U188,FALSE) -> FALSE | L188: TRUE | M188: =INDEX('Monthly Prices'!B176:CB176,$G$5) -> .. | N188: =IF(H188,INDEX('Monthly Prices'!B176:CB176,$G$5)*U188,FALSE) -> FALSE | O188: FALSE | P188: 1974 | Q188: ='Monthly Prices'!B176 -> 13 | R188: 10.97499943 | S188: =_xlfn.XLOOKUP(P188,'Annual Real'!A:A,'Annual Real'!B:B,0,0) -> 29.15785585 | T188: 4.396443235 | U188: 4.396443235 | V188: FALSE | W188: FALSE | X188: =LOOKUP(D188,'US Implicit Deflator'!A:A,'US Implicit Deflator'!B:B)/100 -> 0.072 | Y188: 0.005810655299 | Z188: 1.422942218 | AA188: 7 | AB188: 1974-01-01 | AC188: 4.396443235
C189: ='Monthly Prices'!A177 -> 1974M02 | D189: 1974-02-01 | E189: 170 | F189: FALSE | G189: FALSE | H189: FALSE | J189: =INDEX('Monthly Prices'!B177:CB177,$G$4) -> 13 | K189: =IF(H189,INDEX('Monthly Prices'!B177:CB177,$G$4)*U189,FALSE) -> FALSE | L189: TRUE | M189: =INDEX('Monthly Prices'!B177:CB177,$G$5) -> .. | N189: =IF(H189,INDEX('Monthly Prices'!B177:CB177,$G$5)*U189,FALSE) -> FALSE | O189: FALSE | P189: 1974 | Q189: ='Monthly Prices'!B177 -> 13 | R189: 10.97499943 | S189: =_xlfn.XLOOKUP(P189,'Annual Real'!A:A,'Annual Real'!B:B,0,0) -> 29.15785585 | T189: 4.371044602 | U189: 4.371044602 | V189: FALSE | W189: FALSE | X189: =LOOKUP(D189,'US Implicit Deflator'!A:A,'US Implicit Deflator'!B:B)/100 -> 0.072 | Y189: 0.005810655299 | Z189: 1.431210445 | AA189: 7 | AB189: 1974-02-01 | AC189: 4.371044602
C190: ='Monthly Prices'!A178 -> 1974M03 | D190: 1974-03-01 | E190: 171 | F190: FALSE | G190: FALSE | H190: FALSE | J190: =INDEX('Monthly Prices'!B178:CB178,$G$4) -> 13 | K190: =IF(H190,INDEX('Monthly Prices'!B178:CB178,$G$4)*U190,FALSE) -> FALSE | L190: TRUE | M190: =INDEX('Monthly Prices'!B178:CB178,$G$5) -> .. | N190: =IF(H190,INDEX('Monthly Prices'!B178:CB178,$G$5)*U190,FALSE) -> FALSE | O190: FALSE | P190: 1974 | Q190: ='Monthly Prices'!B178 -> 13 | R190: 10.97499943 | S190: =_xlfn.XLOOKUP(P190,'Annual Real'!A:A,'Annual Real'!B:B,0,0) -> 29.15785585 | T190: 4.345792699 | U190: 4.345792699 | V190: FALSE | W190: FALSE | X190: =LOOKUP(D190,'US Implicit Deflator'!A:A,'US Implicit Deflator'!B:B)/100 -> 0.072 | Y190: 0.005810655299 | Z190: 1.439526716 | AA190: 7 | AB190: 1974-03-01 | AC190: 4.345792699
C191: ='Monthly Prices'!A179 -> 1974M04 | D191: 1974-04-01 | E191: 172 | F191: FALSE | G191: FALSE | H191: FALSE | J191: =INDEX('Monthly Prices'!B179:CB179,$G$4) -> 10.59999847 | K191: =IF(H191,INDEX('Monthly Prices'!B179:CB179,$G$4)*U191,FALSE) -> FALSE | L191: TRUE | M191: =INDEX('Monthly Prices'!B179:CB179,$G$5) -> .. | N191: =IF(H191,INDEX('Monthly Prices'!B179:CB179,$G$5)*U191,FALSE) -> FALSE | O191: FALSE | P191: 1974 | Q191: ='Monthly Prices'!B179 -> 10.59999847 | R191: 10.97499943 | S191: =_xlfn.XLOOKUP(P191,'Annual Real'!A:A,'Annual Real'!B:B,0,0) -> 29.15785585 | T191: 4.31173967 | U191: 4.31173967 | V191: FALSE | W191: FALSE | X191: =LOOKUP(D191,'US Implicit Deflator'!A:A,'US Implicit Deflator'!B:B)/100 -> 0.099 | Y191: 0.007897746916 | Z191: 1.450895733 | AA191: 7 | AB191: 1974-04-01 | AC191: 4.31173967
C192: ='Monthly Prices'!A180 -> 1974M05 | D192: 1974-05-01 | E192: 173 | F192: FALSE | G192: FALSE | H192: FALSE | J192: =INDEX('Monthly Prices'!B180:CB180,$G$4) -> 10.59999847 | K192: =IF(H192,INDEX('Monthly Prices'!B180:CB180,$G$4)*U192,FALSE) -> FALSE | L192: TRUE | M192: =INDEX('Monthly Prices'!B180:CB180,$G$5) -> .. | N192: =IF(H192,INDEX('Monthly Prices'!B180:CB180,$G$5)*U192,FALSE) -> FALSE | O192: FALSE | P192: 1974 | Q192: ='Monthly Prices'!B180 -> 10.59999847 | R192: 10.97499943 | S192: =_xlfn.XLOOKUP(P192,'Annual Real'!A:A,'Annual Real'!B:B,0,0) -> 29.15785585 | T192: 4.277953476 | U192: 4.277953476 | V192: FALSE | W192: FALSE | X192: =LOOKUP(D192,'US Implicit Deflator'!A:A,'US Implicit Deflator'!B:B)/100 -> 0.099 | Y192: 0.007897746916 | Z192: 1.46235454 | AA192: 7 | AB192: 1974-05-01 | AC192: 4.277953476
C193: ='Monthly Prices'!A181 -> 1974M06 | D193: 1974-06-01 | E193: 174 | F193: FALSE | G193: FALSE | H193: FALSE | J193: =INDEX('Monthly Prices'!B181:CB181,$G$4) -> 10.59999847 | K193: =IF(H193,INDEX('Monthly Prices'!B181:CB181,$G$4)*U193,FALSE) -> FALSE | L193: TRUE | M193: =INDEX('Monthly Prices'!B181:CB181,$G$5) -> .. | N193: =IF(H193,INDEX('Monthly Prices'!B181:CB181,$G$5)*U193,FALSE) -> FALSE | O193: FALSE | P193: 1974 | Q193: ='Monthly Prices'!B181 -> 10.59999847 | R193: 10.97499943 | S193: =_xlfn.XLOOKUP(P193,'Annual Real'!A:A,'Annual Real'!B:B,0,0) -> 29.15785585 | T193: 4.244432026 | U193: 4.244432026 | V193: FALSE | W193: FALSE | X193: =LOOKUP(D193,'US Implicit Deflator'!A:A,'US Implicit Deflator'!B:B)/100 -> 0.099 | Y193: 0.007897746916 | Z193: 1.473903847 | AA193: 7 | AB193: 1974-06-01 | AC193: 4.244432026
C194: ='Monthly Prices'!A182 -> 1974M07 | D194: 1974-07-01 | E194: 175 | F194: FALSE | G194: FALSE | H194: FALSE | J194: =INDEX('Monthly Prices'!B182:CB182,$G$4) -> 10 | K194: =IF(H194,INDEX('Monthly Prices'!B182:CB182,$G$4)*U194,FALSE) -> FALSE | L194: TRUE | M194: =INDEX('Monthly Prices'!B182:CB182,$G$5) -> .. | N194: =IF(H194,INDEX('Monthly Prices'!B182:CB182,$G$5)*U194,FALSE) -> FALSE | O194: FALSE | P194: 1974 | Q194: ='Monthly Prices'!B182 -> 10 | R194: 10.97499943 | S194: =_xlfn.XLOOKUP(P194,'Annual Real'!A:A,'Annual Real'!B:B,0,0) -> 29.15785585 | T194: 4.204849043 | U194: 4.204849043 | V194: FALSE | W194: FALSE | X194: =LOOKUP(D194,'US Implicit Deflator'!A:A,'US Implicit Deflator'!B:B)/100 -> 0.119 | Y194: 0.009413651406 | Z194: 1.487778664 | AA194: 7 | AB194: 1974-07-01 | AC194: 4.204849043
C195: ='Monthly Prices'!A183 -> 1974M08 | D195: 1974-08-01 | E195: 176 | F195: FALSE | G195: FALSE | H195: FALSE | J195: =INDEX('Monthly Prices'!B183:CB183,$G$4) -> 10 | K195: =IF(H195,INDEX('Monthly Prices'!B183:CB183,$G$4)*U195,FALSE) -> FALSE | L195: TRUE | M195: =INDEX('Monthly Prices'!B183:CB183,$G$5) -> .. | N195: =IF(H195,INDEX('Monthly Prices'!B183:CB183,$G$5)*U195,FALSE) -> FALSE | O195: FALSE | P195: 1974 | Q195: ='Monthly Prices'!B183 -> 10 | R195: 10.97499943 | S195: =_xlfn.XLOOKUP(P195,'Annual Real'!A:A,'Annual Real'!B:B,0,0) -> 29.15785585 | T195: 4.165635205 | U195: 4.165635205 | V195: FALSE | W195: FALSE | X195: =LOOKUP(D195,'US Implicit Deflator'!A:A,'US Implicit Deflator'!B:B)/100 -> 0.119 | Y195: 0.009413651406 | Z195: 1.501784093 | AA195: 7 | AB195: 1974-08-01 | AC195: 4.165635205
C196: ='Monthly Prices'!A184 -> 1974M09 | D196: 1974-09-01 | E196: 177 | F196: FALSE | G196: FALSE | H196: FALSE | J196: =INDEX('Monthly Prices'!B184:CB184,$G$4) -> 10 | K196: =IF(H196,INDEX('Monthly Prices'!B184:CB184,$G$4)*U196,FALSE) -> FALSE | L196: TRUE | M196: =INDEX('Monthly Prices'!B184:CB184,$G$5) -> .. | N196: =IF(H196,INDEX('Monthly Prices'!B184:CB184,$G$5)*U196,FALSE) -> FALSE | O196: FALSE | P196: 1974 | Q196: ='Monthly Prices'!B184 -> 10 | R196: 10.97499943 | S196: =_xlfn.XLOOKUP(P196,'Annual Real'!A:A,'Annual Real'!B:B,0,0) -> 29.15785585 | T196: 4.12678707 | U196: 4.12678707 | V196: FALSE | W196: FALSE | X196: =LOOKUP(D196,'US Implicit Deflator'!A:A,'US Implicit Deflator'!B:B)/100 -> 0.119 | Y196: 0.009413651406 | Z196: 1.515921365 | AA196: 7 | AB196: 1974-09-01 | AC196: 4.12678707
C197: ='Monthly Prices'!A185 -> 1974M10 | D197: 1974-10-01 | E197: 178 | F197: FALSE | G197: FALSE | H197: FALSE | J197: =INDEX('Monthly Prices'!B185:CB185,$G$4) -> 10.29999924 | K197: =IF(H197,INDEX('Monthly Prices'!B185:CB185,$G$4)*U197,FALSE) -> FALSE | L197: TRUE | M197: =INDEX('Monthly Prices'!B185:CB185,$G$5) -> .. | N197: =IF(H197,INDEX('Monthly Prices'!B185:CB185,$G$5)*U197,FALSE) -> FALSE | O197: FALSE | P197: 1974 | Q197: ='Monthly Prices'!B185 -> 10.29999924 | R197: 10.97499943 | S197: =_xlfn.XLOOKUP(P197,'Annual Real'!A:A,'Annual Real'!B:B,0,0) -> 29.15785585 | T197: 4.086177192 | U197: 4.086177192 | V197: FALSE | W197: FALSE | X197: =LOOKUP(D197,'US Implicit Deflator'!A:A,'US Implicit Deflator'!B:B)/100 -> 0.126 | Y197: 0.009938354804 | Z197: 1.53098713 | AA197: 7 | AB197: 1974-10-01 | AC197: 4.086177192
C198: ='Monthly Prices'!A186 -> 1974M11 | D198: 1974-11-01 | E198: 179 | F198: FALSE | G198: FALSE | H198: FALSE | J198: =INDEX('Monthly Prices'!B186:CB186,$G$4) -> 10.29999924 | K198: =IF(H198,INDEX('Monthly Prices'!B186:CB186,$G$4)*U198,FALSE) -> FALSE | L198: TRUE | M198: =INDEX('Monthly Prices'!B186:CB186,$G$5) -> .. | N198: =IF(H198,INDEX('Monthly Prices'!B186:CB186,$G$5)*U198,FALSE) -> FALSE | O198: FALSE | P198: 1974 | Q198: ='Monthly Prices'!B186 -> 10.29999924 | R198: 10.97499943 | S198: =_xlfn.XLOOKUP(P198,'Annual Real'!A:A,'Annual Real'!B:B,0,0) -> 29.15785585 | T198: 4.045966937 | U198: 4.045966937 | V198: FALSE | W198: FALSE | X198: =LOOKUP(D198,'US Implicit Deflator'!A:A,'US Implicit Deflator'!B:B)/100 -> 0.126 | Y198: 0.009938354804 | Z198: 1.546202623 | AA198: 7 | AB198: 1974-11-01 | AC198: 4.045966937
C199: ='Monthly Prices'!A187 -> 1974M12 | D199: 1974-12-01 | E199: 180 | F199: FALSE | G199: FALSE | H199: FALSE | J199: =INDEX('Monthly Prices'!B187:CB187,$G$4) -> 10.29999924 | K199: =IF(H199,INDEX('Monthly Prices'!B187:CB187,$G$4)*U199,FALSE) -> FALSE | L199: TRUE | M199: =INDEX('Monthly Prices'!B187:CB187,$G$5) -> .. | N199: =IF(H199,INDEX('Monthly Prices'!B187:CB187,$G$5)*U199,FALSE) -> FALSE | O199: FALSE | P199: 1974 | Q199: ='Monthly Prices'!B187 -> 10.29999924 | R199: 10.97499943 | S199: =_xlfn.XLOOKUP(P199,'Annual Real'!A:A,'Annual Real'!B:B,0,0) -> 29.15785585 | T199: 4.006152373 | U199: 4.006152373 | V199: FALSE | W199: FALSE | X199: =LOOKUP(D199,'US Implicit Deflator'!A:A,'US Implicit Deflator'!B:B)/100 -> 0.126 | Y199: 0.009938354804 | Z199: 1.561569333 | AA199: 7 | AB199: 1974-12-01 | AC199: 4.006152373
C200: ='Monthly Prices'!A188 -> 1975M01 | D200: 1975-01-01 | E200: 181 | F200: FALSE | G200: FALSE | H200: FALSE | J200: =INDEX('Monthly Prices'!B188:CB188,$G$4) -> 10.42000008 | K200: =IF(H200,INDEX('Monthly Prices'!B188:CB188,$G$4)*U200,FALSE) -> FALSE | L200: TRUE | M200: =INDEX('Monthly Prices'!B188:CB188,$G$5) -> .. | N200: =IF(H200,INDEX('Monthly Prices'!B188:CB188,$G$5)*U200,FALSE) -> FALSE | O200: FALSE | P200: 1975 | Q200: ='Monthly Prices'!B188 -> 10.42000008 | R200: 10.43250012 | S200: =_xlfn.XLOOKUP(P200,'Annual Real'!A:A,'Annual Real'!B:B,0,0) -> 24.956436 | T200: 3.9635173 | U200: 3.9635173 | V200: FALSE | W200: FALSE | X200: =LOOKUP(D200,'US Implicit Deflator'!A:A,'US Implicit Deflator'!B:B)/100 -> 0.137 | Y200: 0.0107568782 | Z200: 1.578366944 | AA200: 7 | AB200: 1975-01-01 | AC200: 3.9635173
C201: ='Monthly Prices'!A189 -> 1975M02 | D201: 1975-02-01 | E201: 182 | F201: FALSE | G201: FALSE | H201: FALSE | J201: =INDEX('Monthly Prices'!B189:CB189,$G$4) -> 10.42000008 | K201: =IF(H201,INDEX('Monthly Prices'!B189:CB189,$G$4)*U201,FALSE) -> FALSE | L201: TRUE | M201: =INDEX('Monthly Prices'!B189:CB189,$G$5) -> .. | N201: =IF(H201,INDEX('Monthly Prices'!B189:CB189,$G$5)*U201,FALSE) -> FALSE | O201: FALSE | P201: 1975 | Q201: ='Monthly Prices'!B189 -> 10.42000008 | R201: 10.43250012 | S201: =_xlfn.XLOOKUP(P201,'Annual Real'!A:A,'Annual Real'!B:B,0,0) -> 24.956436 | T201: 3.921335967 | U201: 3.921335967 | V201: FALSE | W201: FALSE | X201: =LOOKUP(D201,'US Implicit Deflator'!A:A,'US Implicit Deflator'!B:B)/100 -> 0.137 | Y201: 0.0107568782 | Z201: 1.595345245 | AA201: 7 | AB201: 1975-02-01 | AC201: 3.921335967
C202: ='Monthly Prices'!A190 -> 1975M03 | D202: 1975-03-01 | E202: 183 | F202: FALSE | G202: FALSE | H202: FALSE | J202: =INDEX('Monthly Prices'!B190:CB190,$G$4) -> 10.42000008 | K202: =IF(H202,INDEX('Monthly Prices'!B190:CB190,$G$4)*U202,FALSE) -> FALSE | L202: TRUE | M202: =INDEX('Monthly Prices'!B190:CB190,$G$5) -> .. | N202: =IF(H202,INDEX('Monthly Prices'!B190:CB190,$G$5)*U202,FALSE) -> FALSE | O202: FALSE | P202: 1975 | Q202: ='Monthly Prices'!B190 -> 10.42000008 | R202: 10.43250012 | S202: =_xlfn.XLOOKUP(P202,'Annual Real'!A:A,'Annual Real'!B:B,0,0) -> 24.956436 | T202: 3.879603544 | U202: 3.879603544 | V202: FALSE | W202: FALSE | X202: =LOOKUP(D202,'US Implicit Deflator'!A:A,'US Implicit Deflator'!B:B)/100 -> 0.137 | Y202: 0.0107568782 | Z202: 1.61250618 | AA202: 7 | AB202: 1975-03-01 | AC202: 3.879603544
C203: ='Monthly Prices'!A191 -> 1975M04 | D203: 1975-04-01 | E203: 184 | F203: FALSE | G203: FALSE | H203: FALSE | J203: =INDEX('Monthly Prices'!B191:CB191,$G$4) -> 10.42000008 | K203: =IF(H203,INDEX('Monthly Prices'!B191:CB191,$G$4)*U203,FALSE) -> FALSE | L203: TRUE | M203: =INDEX('Monthly Prices'!B191:CB191,$G$5) -> .. | N203: =IF(H203,INDEX('Monthly Prices'!B191:CB191,$G$5)*U203,FALSE) -> FALSE | O203: FALSE | P203: 1975 | Q203: ='Monthly Prices'!B191 -> 10.42000008 | R203: 10.43250012 | S203: =_xlfn.XLOOKUP(P203,'Annual Real'!A:A,'Annual Real'!B:B,0,0) -> 24.956436 | T203: 3.845145254 | U203: 3.845145254 | V203: FALSE | W203: FALSE | X203: =LOOKUP(D203,'US Implicit Deflator'!A:A,'US Implicit Deflator'!B:B)/100 -> 0.113 | Y203: 0.008961505353 | Z203: 1.626956663 | AA203: 7 | AB203: 1975-04-01 | AC203: 3.845145254
C204: ='Monthly Prices'!A192 -> 1975M05 | D204: 1975-05-01 | E204: 185 | F204: FALSE | G204: FALSE | H204: FALSE | J204: =INDEX('Monthly Prices'!B192:CB192,$G$4) -> 10.42000008 | K204: =IF(H204,INDEX('Monthly Prices'!B192:CB192,$G$4)*U204,FALSE) -> FALSE | L204: TRUE | M204: =INDEX('Monthly Prices'!B192:CB192,$G$5) -> .. | N204: =IF(H204,INDEX('Monthly Prices'!B192:CB192,$G$5)*U204,FALSE) -> FALSE | O204: FALSE | P204: 1975 | Q204: ='Monthly Prices'!B192 -> 10.42000008 | R204: 10.43250012 | S204: =_xlfn.XLOOKUP(P204,'Annual Real'!A:A,'Annual Real'!B:B,0,0) -> 24.956436 | T204: 3.81099302 | U204: 3.81099302 | V204: FALSE | W204: FALSE | X204: =LOOKUP(D204,'US Implicit Deflator'!A:A,'US Implicit Deflator'!B:B)/100 -> 0.113 | Y204: 0.008961505353 | Z204: 1.641536643 | AA204: 7 | AB204: 1975-05-01 | AC204: 3.81099302
... 611 more rows

Sheet Download Data
N2: Forecast URL | P2: 2 | Q2: =Q10 -> http://pubdocs.worldbank.org/en/497071555972921166/CMO-April-2019-forecasts.xlsx
B3: The monthly link is the primary page
Q4: http://pubdocs.worldbank.org/en/991591476804663190/CMO-October-2016-Forecasts.xlsx
Q5: http://pubdocs.worldbank.org/en/975201485188874357/CMO-January-2017-Forecasts.xlsx
B6: Monthly | C6: https://thedocs.worldbank.org/en/doc/5d903e848db1d1b83e0ec8f744e55570-0350012021/related/CMO-Historical-Data-Monthly.xlsx | Q6: http://pubdocs.worldbank.org/en/224591469470606338/CMO-2016-Jan-Forecasts.xlsx
B7: Annual | C7: https://thedocs.worldbank.org/en/doc/5d903e848db1d1b83e0ec8f744e55570-0350012021/related/CMO-Historical-Data-Annual.xlsx | Q7: http://pubdocs.worldbank.org/en/590041469470605429/CMO-2015-Oct-Forecasts.xlsx
B8: Forecast | Q8: http://pubdocs.worldbank.org/en/406591469470604511/CMO-2015-July-Forecasts.xlsx
Q9: http://pubdocs.worldbank.org/en/524241493046966255/CMO-April-2017-Forecasts.xlsx
B10: Supplements | Q10: http://pubdocs.worldbank.org/en/497071555972921166/CMO-April-2019-forecasts.xlsx
C11: http://www.worldbank.org/en/research/commodity-markets#3
B12: Website | C12: h+C42ttp://www.worldbank.org/en/research/commodity-markets
F17: http://www.worldbank.org/en/research/commodity-markets#3 | G17: Forecast Achive
F18: http://www.worldbank.org/en/research/commodity-markets | G18: Pink Data Sheet
F19: http://www.worldbank.org/en/research/commodity-markets | G19: General Page
B22: To Find Forecasts in PDF, Go to Website and get PDF
B24: Website | C24: h+C42ttp://www.worldbank.org/en/research/commodity-markets
B26: Use PDF to Excel to Convert

Sheet Monthly Prices
A1: World Bank Commodity Price Data (The Pink Sheet)
A2: monthly prices in nominal US dollars, 1960 to present
A3: (monthly series are available only in nominal US dollars)
A4: Updated on August 02, 2022
B5: Crude oil, average | C5: Crude oil, Brent | D5: Crude oil, Dubai | E5: Crude oil, WTI | F5: Coal, Australian | G5: Coal, South African | H5: Natural gas, US | I5: Natural gas, Europe ** | J5: Liquefied natural gas, Japan | K5: Natural gas index | L5: Cocoa | M5: Coffee, Arabica | N5: Coffee, Robusta | O5: Tea, avg 3 auctions | P5: Tea, Colombo | Q5: Tea, Kolkata | R5: Tea, Mombasa | S5: Coconut oil | T5: Groundnuts | U5: Fish meal | V5: Groundnut oil | W5: Palm oil | X5: Palm kernel oil | Y5: Soybeans | Z5: Soybean oil | AA5: Soybean meal | AB5: Rapeseed oil | AC5: Sunflower oil | AD5: Barley | AE5: Maize | AF5: Sorghum | AG5: Rice, Thai 5% | AH5: Rice, Thai 25% | AI5: Rice, Thai A.1 | AJ5: Rice, Viet Namese 5% | AK5: Wheat, US SRW | AL5: Wheat, US HRW | AM5: Banana, Europe | AN5: Banana, US | AO5: Orange | AP5: Beef | AQ5: Meat, chicken | AR5: Meat, sheep | AS5: Shrimps, Mexican | AT5: Sugar, EU | AU5: Sugar, US | AV5: Sugar, world | AW5: Tobacco, US import u.v. | AX5: Logs, Cameroon | AY5: Logs, Malaysian | AZ5: Sawnwood, Cameroon | BA5: Sawnwood, Malaysian | BB5: Plywood | BC5: Cotton, A Index | BD5: Rubber, TSR20 | BE5: Rubber, SGP/MYS | BF5: Phosphate rock | BG5: DAP | BH5: TSP | BI5: Urea | BJ5: Potassium chloride | BK5: Aluminum | BL5: Iron ore, cfr spot | BM5: Copper | BN5: Lead | BO5: Tin | BP5: Nickel | BQ5: Zinc | BR5: Gold | BS5: Platinum | BT5: Silver
B6: ($/bbl) | C6: ($/bbl) | D6: ($/bbl) | E6: ($/bbl) | F6: ($/mt) | G6: ($/mt) | H6: ($/mmbtu) | I6: ($/mmbtu) | J6: ($/mmbtu) | K6: (2010=100) | L6: ($/kg) | M6: ($/kg) | N6: ($/kg) | O6: ($/kg) | P6: ($/kg) | Q6: ($/kg) | R6: ($/kg) | S6: ($/mt) | T6: ($/mt) | U6: ($/mt) | V6: ($/mt) | W6: ($/mt) | X6: ($/mt) | Y6: ($/mt) | Z6: ($/mt) | AA6: ($/mt) | AB6: ($/mt) | AC6: ($/mt) | AD6: ($/mt) | AE6: ($/mt) | AF6: ($/mt) | AG6: ($/mt) | AH6: ($/mt) | AI6: ($/mt) | AJ6: ($/mt) | AK6: ($/mt) | AL6: ($/mt) | AM6: ($/kg) | AN6: ($/kg) | AO6: ($/kg) | AP6: ($/kg) | AQ6: ($/kg) | AR6: ($/kg) | AS6: ($/kg) | AT6: ($/kg) | AU6: ($/kg) | AV6: ($/kg) | AW6: ($/mt) | AX6: ($/cubic meter) | AY6: ($/cubic meter) | AZ6: ($/cubic meter) | BA6: ($/cubic meter) | BB6: (cents/sheet) | BC6: ($/kg) | BD6: ($/kg) | BE6: ($/kg) | BF6: ($/mt) | BG6: ($/mt) | BH6: ($/mt) | BI6: ($/mt) | BJ6: ($/mt) | BK6: ($/mt) | BL6: ($/dmtu) | BM6: ($/mt) | BN6: ($/mt) | BO6: ($/mt) | BP6: ($/mt) | BQ6: ($/mt) | BR6: ($/troy oz) | BS6: ($/troy oz) | BT6: ($/troy oz)
B7: CRUDE_PETRO | C7: CRUDE_BRENT | D7: CRUDE_DUBAI | E7: CRUDE_WTI | F7: COAL_AUS | G7: COAL_SAFRICA | H7: NGAS_US | I7: NGAS_EUR | J7: NGAS_JP | K7: iNATGAS | L7: COCOA | M7: COFFEE_ARABIC | N7: COFFEE_ROBUS | O7: TEA_AVG | P7: TEA_COLOMBO | Q7: TEA_KOLKATA | R7: TEA_MOMBASA | S7: COCONUT_OIL | T7: GRNUT | U7: FISH_MEAL | V7: GRNUT_OIL | W7: PALM_OIL | X7: PLMKRNL_OIL | Y7: SOYBEANS | Z7: SOYBEAN_OIL | AA7: SOYBEAN_MEAL | AB7: RAPESEED_OIL | AC7: SUNFLOWER_OIL | AD7: BARLEY | AE7: MAIZE | AF7: SORGHUM | AG7: RICE_05 | AH7: RICE_25 | AI7: RICE_A1 | AJ7: RICE_05_VNM | AK7: WHEAT_US_SRW | AL7: WHEAT_US_HRW | AM7: BANANA_EU | AN7: BANANA_US | AO7: ORANGE | AP7: BEEF | AQ7: CHICKEN | AR7: LAMB | AS7: SHRIMP_MEX | AT7: SUGAR_EU | AU7: SUGAR_US | AV7: SUGAR_WLD | AW7: TOBAC_US | AX7: LOGS_CMR | AY7: LOGS_MYS | AZ7: SAWNWD_CMR | BA7: SAWNWD_MYS | BB7: PLYWOOD | BC7: COTTON_A_INDX | BD7: RUBBER_TSR20 | BE7: RUBBER1_MYSG | BF7: PHOSROCK | BG7: DAP | BH7: TSP | BI7: UREA_EE_BULK | BJ7: POTASH | BK7: ALUMINUM | BL7: IRON_ORE | BM7: COPPER | BN7: LEAD | BO7: Tin | BP7: NICKEL | BQ7: Zinc | BR7: GOLD | BS7: PLATINUM | BT7: SILVER
A8: 1960M01 | B8: 1.630000114 | C8: 1.630000114 | D8: 1.630000114 | E8: .. | F8: .. | G8: .. | H8: 0.14 | I8: 0.4047739964 | J8: .. | K8: .. | L8: 0.634 | M8: 0.9409 | N8: 0.6968643 | O8: 1.0297 | P8: 0.9303009 | Q8: 1.121401 | R8: 1.0374 | S8: 390 | T8: .. | U8: .. | V8: 334 | W8: 233 | X8: .. | Y8: 94 | Z8: 204 | AA8: 91.9 | AB8: .. | AC8: .. | AD8: 20.36480039 | AE8: 45 | AF8: 39 | AG8: 104.45 | AH8: .. | AI8: .. | AJ8: .. | AK8: .. | AL8: 59.89 | AM8: .. | AN8: 0.14308 | AO8: 0.1151 | AP8: 0.7055 | AQ8: 0.2973687919 | AR8: .. | AS8: 1.433003 | AT8: 0.12235641 | AU8: 0.11684486 | AV8: 0.0666 | AW8: 1736.87 | AX8: .. | AY8: 31.94 | AZ8: .. | BA8: 149.1749784 | BB8: .. | BC8: 0.6486 | BD8: .. | BE8: 0.8223 | BF8: 13 | BG8: .. | BH8: 53 | BI8: 42.25 | BJ8: 28.5 | BK8: 511.4718323 | BL8: 11.42 | BM8: 715.4 | BN8: 206.1 | BO8: 2180.4 | BP8: 1631 | BQ8: 260.8 | BR8: 35.27 | BS8: 83.5 | BT8: 0.9137
A9: 1960M02 | B9: 1.630000114 | C9: 1.630000114 | D9: 1.630000114 | E9: .. | F9: .. | G9: .. | H9: 0.14 | I9: 0.4047739964 | J9: .. | K9: .. | L9: 0.608 | M9: 0.9469 | N9: 0.6887074 | O9: 1.0297 | P9: 0.9303009 | Q9: 1.121401 | R9: 1.0374 | S9: 379 | T9: .. | U9: .. | V9: 341 | W9: 229 | X9: .. | Y9: 91 | Z9: 201 | AA9: 86.7 | AB9: .. | AC9: .. | AD9: 20.41046355 | AE9: 44 | AF9: 39 | AG9: 103.54 | AH9: .. | AI9: .. | AJ9: .. | AK9: .. | AL9: 60.99 | AM9: .. | AN9: 0.14308 | AO9: 0.1092 | AP9: 0.7121 | AQ9: 0.2974245468 | AR9: .. | AS9: 1.4991416 | AT9: 0.12235641 | AU9: 0.11904948 | AV9: 0.0679 | AW9: 1736.87 | AX9: .. | AY9: 31.94 | AZ9: .. | BA9: 149.1749784 | BB9: .. | BC9: 0.6453 | BD9: .. | BE9: 0.8289 | BF9: 13 | BG9: .. | BH9: 53 | BI9: 42.25 | BJ9: 28.5 | BK9: 511.4718323 | BL9: 11.42 | BM9: 728.19 | BN9: 203.7 | BO9: 2180.4 | BP9: 1631 | BQ9: 244.9 | BR9: 35.27 | BS9: 83.5 | BT9: 0.9137
A10: 1960M03 | B10: 1.630000114 | C10: 1.630000114 | D10: 1.630000114 | E10: .. | F10: .. | G10: .. | H10: 0.14 | I10: 0.4047739964 | J10: .. | K10: .. | L10: 0.5789 | M10: 0.9281 | N10: 0.6887074 | O10: 1.0297 | P10: 0.9303009 | Q10: 1.121401 | R10: 1.0374 | S10: 361 | T10: .. | U10: .. | V10: 338 | W10: 225 | X10: .. | Y10: 92 | Z10: 201 | AA10: 84.1 | AB10: .. | AC10: .. | AD10: 20.71817486 | AE10: 45 | AF10: 35 | AG10: 103.79 | AH10: .. | AI10: .. | AJ10: .. | AK10: .. | AL10: 61.73 | AM10: .. | AN10: 0.14308 | AO10: 0.1319 | AP10: 0.7694 | AQ10: 0.297834044 | AR10: .. | AS10: 1.4991416 | AT10: 0.12235641 | AU10: 0.1212541 | AV10: 0.0683 | AW10: 1736.87 | AX10: .. | AY10: 31.94 | AZ10: .. | BA10: 149.1749784 | BB10: .. | BC10: 0.6464 | BD10: .. | BE10: 0.8576 | BF10: 13 | BG10: .. | BH10: 53 | BI10: 42.25 | BJ10: 28.5 | BK10: 511.4718323 | BL10: 11.42 | BM10: 684.94 | BN10: 210.3 | BO10: 2173.8 | BP10: 1631 | BQ10: 248.7 | BR10: 35.27 | BS10: 83.5 | BT10: 0.9137
A11: 1960M04 | B11: 1.630000114 | C11: 1.630000114 | D11: 1.630000114 | E11: .. | F11: .. | G11: .. | H11: 0.14 | I11: 0.4047739964 | J11: .. | K11: .. | L11: 0.5983 | M11: 0.9303 | N11: 0.6845187 | O11: 1.0297 | P11: 0.9303009 | Q11: 1.121401 | R11: 1.0374 | S11: 338 | T11: .. | U11: .. | V11: 333 | W11: 225 | X11: .. | Y11: 93 | Z11: 207 | AA11: 86.7 | AB11: .. | AC11: .. | AD11: 20.63803636 | AE11: 45 | AF11: 35 | AG11: 100.97 | AH11: .. | AI11: .. | AJ11: .. | AK11: .. | AL11: 60.99 | AM11: .. | AN11: 0.14308 | AO11: 0.1363 | AP11: 0.8378 | AQ11: 0.2990214827 | AR11: .. | AS11: 1.6755112 | AT11: 0.12235641 | AU11: 0.12345872 | AV11: 0.0681 | AW11: 1736.87 | AX11: .. | AY11: 31.94 | AZ11: .. | BA11: 149.1749784 | BB11: .. | BC11: 0.6435 | BD11: .. | BE11: 0.8642 | BF11: 13 | BG11: .. | BH11: 53 | BI11: 42.25 | BJ11: 28.5 | BK11: 511.4718323 | BL11: 11.42 | BM11: 723.11 | BN11: 213.6 | BO11: 2178.2 | BP11: 1631 | BQ11: 254.6 | BR11: 35.27 | BS11: 83.5 | BT11: 0.9137
A12: 1960M05 | B12: 1.630000114 | C12: 1.630000114 | D12: 1.630000114 | E12: .. | F12: .. | G12: .. | H12: 0.14 | I12: 0.4047739964 | J12: .. | K12: .. | L12: 0.6001 | M12: 0.92 | N12: 0.6906915 | O12: 1.0297 | P12: 0.9303009 | Q12: 1.121401 | R12: 1.0374 | S12: 321 | T12: .. | U12: .. | V12: 335 | W12: 225 | X12: .. | Y12: 93 | Z12: 209 | AA12: 81.5 | AB12: .. | AC12: .. | AD12: 20.60605583 | AE12: 48 | AF12: 35 | AG12: 102.15 | AH12: .. | AI12: .. | AJ12: .. | AK12: .. | AL12: 57.69 | AM12: .. | AN12: 0.149 | AO12: 0.1444 | AP12: 0.7562 | AQ12: 0.2990314775 | AR12: .. | AS12: 1.763696 | AT12: 0.12235641 | AU12: 0.1212541 | AV12: 0.0683 | AW12: 1736.87 | AX12: .. | AY12: 31.94 | AZ12: .. | BA12: 149.1749784 | BB12: .. | BC12: 0.6468 | BD12: .. | BE12: 0.9281 | BF12: 13 | BG12: .. | BH12: 53 | BI12: 42.25 | BJ12: 28.5 | BK12: 511.4718323 | BL12: 11.42 | BM12: 684.75 | BN12: 213.4 | BO12: 2162.7 | BP12: 1631 | BQ12: 253.8 | BR12: 35.27 | BS12: 83.5 | BT12: 0.9137
A13: 1960M06 | B13: 1.630000114 | C13: 1.630000114 | D13: 1.630000114 | E13: .. | F13: .. | G13: .. | H13: 0.14 | I13: 0.4047739964 | J13: .. | K13: .. | L13: 0.5944 | M13: 0.9123 | N13: 0.6968643 | O13: 1.0297 | P13: 0.9303009 | Q13: 1.121401 | R13: 1.0374 | S13: 287 | T13: .. | U13: .. | V13: 334 | W13: 219 | X13: .. | Y13: 91 | Z13: 218 | AA13: 80.3 | AB13: .. | AC13: .. | AD13: 20.12653582 | AE13: 47 | AF13: 36 | AG13: 103.13 | AH13: .. | AI13: .. | AJ13: .. | AK13: .. | AL13: 55.48 | AM13: .. | AN13: 0.149 | AO13: 0.1385 | AP13: 0.7077 | AQ13: 0.2996431214 | AR13: .. | AS13: 1.763696 | AT13: 0.12235641 | AU13: 0.12566334 | AV13: 0.0666 | AW13: 1736.87 | AX13: .. | AY13: 31.94 | AZ13: .. | BA13: 149.1749784 | BB13: .. | BC13: 0.6559 | BD13: .. | BE13: 0.8929 | BF13: 13 | BG13: .. | BH13: 53 | BI13: 42.25 | BJ13: 28.5 | BK13: 511.4718323 | BL13: 11.42 | BM13: 691.59 | BN13: 202.4 | BO13: 2184.8 | BP13: 1631 | BQ13: 249.8 | BR13: 35.27 | BS13: 83.5 | BT13: 0.9137
A14: 1960M07 | B14: 1.630000114 | C14: 1.630000114 | D14: 1.630000114 | E14: .. | F14: .. | G14: .. | H14: 0.14 | I14: 0.4047739964 | J14: .. | K14: .. | L14: 0.6045 | M14: 0.916 | N14: 0.6906915 | O14: 1.0297 | P14: 0.9303009 | Q14: 1.121401 | R14: 1.0374 | S14: 298 | T14: .. | U14: .. | V14: 336 | W14: 221 | X14: .. | Y14: 92 | Z14: 224 | AA14: 77.7 | AB14: .. | AC14: .. | AD14: 20.03778575 | AE14: 47 | AF14: 39.9 | AG14: 102.05 | AH14: .. | AI14: .. | AJ14: .. | AK14: .. | AL14: 54.75 | AM14: .. | AN14: 0.149 | AO14: 0.1292 | AP14: 0.7474 | AQ14: 0.3000240305 | AR14: .. | AS14: 1.7416498 | AT14: 0.12235641 | AU14: 0.1322772 | AV14: 0.0728 | AW14: 1736.87 | AX14: .. | AY14: 31.94 | AZ14: .. | BA14: 149.1749784 | BB14: .. | BC14: 0.6572 | BD14: .. | BE14: 0.787 | BF14: 13 | BG14: .. | BH14: 53 | BI14: 42.25 | BJ14: 28.5 | BK14: 511.4718323 | BL14: 11.42 | BM14: 702.39 | BN14: 196.2 | BO14: 2248.7 | BP14: 1631 | BQ14: 248.7 | BR14: 35.27 | BS14: 83.5 | BT14: 0.9137
A15: 1960M08 | B15: 1.630000114 | C15: 1.630000114 | D15: 1.630000114 | E15: .. | F15: .. | G15: .. | H15: 0.14 | I15: 0.4047739964 | J15: .. | K15: .. | L15: 0.5882 | M15: 0.9292 | N15: 0.6988484 | O15: 1.0297 | P15: 0.9303009 | Q15: 1.121401 | R15: 1.0374 | S15: 292 | T15: .. | U15: .. | V15: 336 | W15: 225 | X15: .. | Y15: 93 | Z15: 237 | AA15: 77.7 | AB15: .. | AC15: .. | AD15: 20.13317893 | AE15: 47 | AF15: 39 | AG15: 109.71 | AH15: .. | AI15: .. | AJ15: .. | AK15: .. | AL15: 55.12 | AM15: .. | AN15: 0.12699 | AO15: 0.1292 | AP15: 0.7826 | AQ15: 0.3008283988 | AR15: .. | AS15: 1.5873264 | AT15: 0.12235641 | AU15: 0.12786796 | AV15: 0.0741 | AW15: 1736.87 | AX15: .. | AY15: 31.94 | AZ15: .. | BA15: 149.1749784 | BB15: .. | BC15: 0.6534 | BD15: .. | BE15: 0.7209 | BF15: 13 | BG15: .. | BH15: 53 | BI15: 42.25 | BJ15: 28.5 | BK15: 511.4718323 | BL15: 11.42 | BM15: 675.94 | BN15: 195.3 | BO15: 2204.6 | BP15: 1631 | BQ15: 241 | BR15: 35.27 | BS15: 83.5 | BT15: 0.9137
A16: 1960M09 | B16: 1.630000114 | C16: 1.630000114 | D16: 1.630000114 | E16: .. | F16: .. | G16: .. | H16: 0.14 | I16: 0.4047739964 | J16: .. | K16: .. | L16: 0.5827 | M16: 0.9226 | N16: 0.7028166 | O16: 1.0297 | P16: 0.9303009 | Q16: 1.121401 | R16: 1.0374 | S16: 276 | T16: .. | U16: .. | V16: 323 | W16: 224 | X16: .. | Y16: 92 | Z16: 231 | AA16: 82.8 | AB16: .. | AC16: .. | AD16: 20.26041462 | AE16: 46 | AF16: 35 | AG16: 116.1 | AH16: .. | AI16: .. | AJ16: .. | AK16: .. | AL16: 56.59 | AM16: .. | AN16: 0.138 | AO16: 0.1292 | AP16: 0.8091 | AQ16: 0.3024557646 | AR16: .. | AS16: 1.5211878 | AT16: 0.12235641 | AU16: 0.1322772 | AV16: 0.0725 | AW16: 1736.87 | AX16: .. | AY16: 31.94 | AZ16: .. | BA16: 149.1749784 | BB16: .. | BC16: 0.6618 | BD16: .. | BE16: 0.7275 | BF16: 13 | BG16: .. | BH16: 53 | BI16: 42.25 | BJ16: 28.5 | BK16: 511.4718323 | BL16: 11.42 | BM16: 647.06 | BN16: 192.7 | BO16: 2226.7 | BP16: 1631 | BQ16: 240.1 | BR16: 35.27 | BS16: 83.5 | BT16: 0.9137
A17: 1960M10 | B17: 1.630000114 | C17: 1.630000114 | D17: 1.630000114 | E17: .. | F17: .. | G17: .. | H17: 0.14 | I17: 0.4047739964 | J17: .. | K17: .. | L17: 0.5858 | M17: 0.9237 | N17: 0.7067849 | O17: 1.0297 | P17: 0.9303009 | Q17: 1.121401 | R17: 1.0374 | S17: 280 | T17: .. | U17: .. | V17: 310 | W17: 222 | X17: .. | Y17: 88 | Z17: 237 | AA17: 75.1 | AB17: .. | AC17: .. | AD17: 19.72291032 | AE17: 42 | AF17: 35 | AG17: 115.21 | AH17: .. | AI17: .. | AJ17: .. | AK17: .. | AL17: 56.95 | AM17: .. | AN17: 0.1541 | AO17: 0.1292 | AP17: 0.7099 | AQ17: 0.3020039008 | AR17: .. | AS17: 1.6314188 | AT17: 0.12235641 | AU17: 0.13007258 | AV17: 0.0538 | AW17: 1736.87 | AX17: .. | AY17: 31.94 | AZ17: .. | BA17: 149.1749784 | BB17: .. | BC17: 0.6656 | BD17: .. | BE17: 0.6856 | BF17: 13 | BG17: .. | BH17: 53 | BI17: 42.25 | BJ17: 28.5 | BK17: 511.4718323 | BL17: 11.42 | BM17: 612.66 | BN17: 185.2 | BO17: 2226.7 | BP17: 1631 | BQ17: 242.3 | BR17: 35.27 | BS17: 83.5 | BT17: 0.9137
A18: 1960M11 | B18: 1.630000114 | C18: 1.630000114 | D18: 1.630000114 | E18: .. | F18: .. | G18: .. | H18: 0.14 | I18: 0.4047739964 | J18: .. | K18: .. | L18: 0.5695 | M18: 0.9116 | N18: 0.7089895 | O18: 1.0297 | P18: 0.9303009 | Q18: 1.121401 | R18: 1.0374 | S18: 274 | T18: .. | U18: .. | V18: 303 | W18: 222 | X18: .. | Y18: 90 | Z18: 259 | AA18: 68.6 | AB18: .. | AC18: .. | AD18: 19.19704755 | AE18: 38 | AF18: 35 | AG18: 114.43 | AH18: .. | AI18: .. | AJ18: .. | AK18: .. | AL18: 57.69 | AM18: .. | AN18: 0.127 | AO18: 0.1488 | AP18: 0.6349 | AQ18: 0.3016439859 | AR18: .. | AS18: 1.6314188 | AT18: 0.12235641 | AU18: 0.13007258 | AV18: 0.052 | AW18: 1736.87 | AX18: .. | AY18: 31.94 | AZ18: .. | BA18: 149.1749784 | BB18: .. | BC18: 0.6651 | BD18: .. | BE18: 0.6283 | BF18: 13 | BG18: .. | BH18: 53 | BI18: 42.25 | BJ18: 28.5 | BK18: 511.4718323 | BL18: 11.42 | BM18: 642.13 | BN18: 188.1 | BO18: 2204.6 | BP18: 1631 | BQ18: 241.4 | BR18: 35.27 | BS18: 83.5 | BT18: 0.9137
A19: 1960M12 | B19: 1.630000114 | C19: 1.630000114 | D19: 1.630000114 | E19: .. | F19: .. | G19: .. | H19: 0.14 | I19: 0.4047739964 | J19: .. | K19: .. | L19: 0.5238 | M19: 0.9006 | N19: 0.6968643 | O19: 1.0297 | P19: 0.9303009 | Q19: 1.121401 | R19: 1.0374 | S19: 252 | T19: .. | U19: .. | V19: 301 | W19: 223 | X19: .. | Y19: 93 | Z19: 259 | AA19: 79 | AB19: .. | AC19: .. | AD19: 19.62896468 | AE19: 40 | AF19: 36 | AG19: 112.66 | AH19: .. | AI19: .. | AJ19: .. | AK19: .. | AL19: 58.05 | AM19: .. | AN19: 0.149 | AO19: 0.1188 | AP19: 0.6658 | AQ19: 0.3042832467 | AR19: .. | AS19: 1.5211878 | AT19: 0.12235641 | AU19: 0.13007258 | AV19: 0.0635 | AW19: 1736.87 | AX19: .. | AY19: 31.94 | AZ19: .. | BA19: 149.1749784 | BB19: .. | BC19: 0.6649 | BD19: .. | BE19: 0.6195 | BF19: 13 | BG19: .. | BH19: 53 | BI19: 42.25 | BJ19: 28.5 | BK19: 511.4718323 | BL19: 11.42 | BM19: 636.91 | BN19: 179.2 | BO19: 2189.2 | BP19: 1631 | BQ19: 228.2 | BR19: 35.27 | BS19: 83.5 | BT19: 0.9137
A20: 1961M01 | B20: 1.57 | C20: 1.57 | D20: 1.57 | E20: .. | F20: .. | G20: .. | H20: 0.15 | I20: 0.4047739964 | J20: .. | K20: .. | L20: 0.485 | M20: 0.9145 | N20: 0.6765823 | O20: 0.9518 | P20: 0.8925009 | Q20: 0.978601 | R20: 0.9841996 | S20: 269 | T20: .. | U20: .. | V20: 331 | W20: 223 | X20: .. | Y20: 102 | Z20: 278 | AA20: 85.4 | AB20: .. | AC20: .. | AD20: 20.27695551 | AE20: 43 | AF20: 38 | AG20: 113.47 | AH20: .. | AI20: .. | AJ20: .. | AK20: .. | AL20: 58.79 | AM20: .. | AN20: 0.127 | AO20: 0.1143 | AP20: 0.6371 | AQ20: 0.3061167055 | AR20: .. | AS20: 1.5211878 | AT20: 0.124340568 | AU20: 0.12786796 | AV20: 0.0646 | AW20: 1563.19 | AX20: .. | AY20: 33.06 | AZ20: .. | BA20: 151.9772808 | BB20: .. | BC20: 0.6636 | BD20: .. | BE20: 0.5997 | BF20: 13 | BG20: .. | BH20: 52 | BI20: 42.25 | BJ20: 30 | BK20: 511.4718323 | BL20: 11.02 | BM20: 606.71 | BN20: 175.9 | BO20: 2162.7 | BP20: 1711 | BQ20: 218 | BR20: 35.25 | BS20: 83.5 | BT20: 0.9137
A21: 1961M02 | B21: 1.57 | C21: 1.57 | D21: 1.57 | E21: .. | F21: .. | G21: .. | H21: 0.15 | I21: 0.4047739964 | J21: .. | K21: .. | L21: 0.4881 | M21: 0.9167 | N21: 0.6765823 | O21: 0.9518 | P21: 0.8925009 | Q21: 0.978601 | R21: 0.9841996 | S21: 281 | T21: .. | U21: .. | V21: 349 | W21: 228 | X21: .. | Y21: 114 | Z21: 303 | AA21: 94.6 | AB21: .. | AC21: .. | AD21: 20.53174281 | AE21: 44 | AF21: 39 | AG21: 109.52 | AH21: .. | AI21: .. | AJ21: .. | AK21: .. | AL21: 59.16 | AM21: .. | AN21: 0.127 | AO21: 0.1116 | AP21: 0.6393 | AQ21: 0.3082766123 | AR21: .. | AS21: 1.543234 | AT21: 0.124340568 | AU21: 0.12566334 | AV21: 0.0626 | AW21: 1563.19 | AX21: .. | AY21: 33.06 | AZ21: .. | BA21: 151.9772808 | BB21: .. | BC21: 0.6784 | BD21: .. | BE21: 0.5754 | BF21: 13 | BG21: .. | BH21: 52 | BI21: 42.25 | BJ21: 30 | BK21: 511.4718323 | BL21: 11.02 | BM21: 616.63 | BN21: 179.9 | BO21: 2187 | BP21: 1711 | BQ21: 228.2 | BR21: 35.25 | BS21: 83.5 | BT21: 0.9137
A22: 1961M03 | B22: 1.57 | C22: 1.57 | D22: 1.57 | E22: .. | F22: .. | G22: .. | H22: 0.15 | I22: 0.4047739964 | J22: .. | K22: .. | L22: 0.4581 | M22: 0.9105 | N22: 0.6684254 | O22: 0.9518 | P22: 0.8925009 | Q22: 0.978601 | R22: 0.9841996 | S22: 276 | T22: .. | U22: .. | V22: 373 | W22: 231 | X22: .. | Y22: 121 | Z22: 311 | AA22: 98.5 | AB22: .. | AC22: .. | AD22: 20.38784919 | AE22: 44 | AF22: 39 | AG22: 117.65 | AH22: .. | AI22: .. | AJ22: .. | AK22: .. | AL22: 58.05 | AM22: .. | AN22: 0.14308 | AO22: 0.1238 | AP22: 0.7826 | AQ22: 0.3096311952 | AR22: .. | AS22: 1.5211878 | AT22: 0.124340568 | AU22: 0.12345872 | AV22: 0.0626 | AW22: 1563.19 | AX22: .. | AY22: 33.06 | AZ22: .. | BA22: 151.9772808 | BB22: .. | BC22: 0.6748 | BD22: .. | BE22: 0.6151 | BF22: 13 | BG22: .. | BH22: 52 | BI22: 42.25 | BJ22: 30 | BK22: 511.4718323 | BL22: 11.02 | BM22: 621.26 | BN22: 181.7 | BO22: 2248.7 | BP22: 1711 | BQ22: 233.2 | BR22: 35.25 | BS22: 83.5 | BT22: 0.9137
A23: 1961M04 | B23: 1.57 | C23: 1.57 | D23: 1.57 | E23: .. | F23: .. | G23: .. | H23: 0.15 | I23: 0.4047739964 | J23: .. | K23: .. | L23: 0.4354 | M23: 0.9017 | N23: 0.6644572 | O23: 0.9518 | P23: 0.8925009 | Q23: 0.978601 | R23: 0.9841996 | S23: 269 | T23: .. | U23: .. | V23: 369 | W23: 233 | X23: .. | Y23: 129 | Z23: 322 | AA23: 110.7 | AB23: .. | AC23: .. | AD23: 20.14268321 | AE23: 43 | AF23: 38 | AG23: 115.17 | AH23: .. | AI23: .. | AJ23: .. | AK23: .. | AL23: 57.32 | AM23: .. | AN23: 0.14308 | AO23: 0.1293 | AP23: 0.7099 | AQ23: 0.3120086493 | AR23: .. | AS23: 1.5211878 | AT23: 0.124340568 | AU23: 0.12345872 | AV23: 0.0668 | AW23: 1563.19 | AX23: .. | AY23: 33.06 | AZ23: .. | BA23: 151.9772808 | BB23: .. | BC23: 0.6726 | BD23: .. | BE23: 0.6393 | BF23: 13 | BG23: .. | BH23: 52 | BI23: 42.25 | BJ23: 30 | BK23: 511.4718323 | BL23: 11.02 | BM23: 631.84 | BN23: 185 | BO23: 2308.2 | BP23: 1711 | BQ23: 231.3 | BR23: 35.25 | BS23: 83.5 | BT23: 0.9137
A24: 1961M05 | B24: 1.57 | C24: 1.57 | D24: 1.57 | E24: .. | F24: .. | G24: .. | H24: 0.15 | I24: 0.4047739964 | J24: .. | K24: .. | L24: 0.4848 | M24: 0.8929 | N24: 0.6622526 | O24: 0.9518 | P24: 0.8925009 | Q24: 0.978601 | R24: 0.9841996 | S24: 258 | T24: .. | U24: .. | V24: 352 | W24: 234 | X24: .. | Y24: 122 | Z24: 314 | AA24: 109.1 | AB24: .. | AC24: .. | AD24: 20.25290294 | AE24: 45 | AF24: 42 | AG24: 119.42 | AH24: .. | AI24: .. | AJ24: .. | AK24: .. | AL24: 55.85 | AM24: .. | AN24: 0.129 | AO24: 0.1293 | AP24: 0.6371 | AQ24: 0.3126442582 | AR24: .. | AS24: 1.4991416 | AT24: 0.124340568 | AU24: 0.13007258 | AV24: 0.0703 | AW24: 1563.19 | AX24: .. | AY24: 33.06 | AZ24: .. | BA24: 151.9772808 | BB24: .. | BC24: 0.6781 | BD24: .. | BE24: 0.6437 | BF24: 13 | BG24: .. | BH24: 52 | BI24: 42.25 | BJ24: 30 | BK24: 511.4718323 | BL24: 11.02 | BM24: 668.44 | BN24: 183.6 | BO24: 2376.6 | BP24: 1711 | BQ24: 227.1 | BR24: 35.25 | BS24: 83.5 | BT24: 0.9137
A25: 1961M06 | B25: 1.57 | C25: 1.57 | D25: 1.57 | E25: .. | F25: .. | G25: .. | H25: 0.15 | I25: 0.4047739964 | J25: .. | K25: .. | L25: 0.4907 | M25: 0.8891 | N25: 0.6664412 | O25: 0.9518 | P25: 0.8925009 | Q25: 0.978601 | R25: 0.9841996 | S25: 243 | T25: .. | U25: .. | V25: 330 | W25: 233 | X25: .. | Y25: 114 | Z25: 295 | AA25: 98.5 | AB25: .. | AC25: .. | AD25: 19.88461219 | AE25: 44 | AF25: 45 | AG25: 121.4 | AH25: .. | AI25: .. | AJ25: .. | AK25: .. | AL25: 54.38 | AM25: .. | AN25: 0.121 | AO25: 0.1932 | AP25: 0.6768 | AQ25: 0.3121095449 | AR25: .. | AS25: 1.5211878 | AT25: 0.124340568 | AU25: 0.13007258 | AV25: 0.0655 | AW25: 1563.19 | AX25: .. | AY25: 33.06 | AZ25: .. | BA25: 151.9772808 | BB25: .. | BC25: 0.6764 | BD25: .. | BE25: 0.6063 | BF25: 13 | BG25: .. | BH25: 52 | BI25: 42.25 | BJ25: 30 | BK25: 511.4718323 | BL25: 11.02 | BM25: 652.12 | BN25: 178.4 | BO25: 2467 | BP25: 1711 | BQ25: 217.8 | BR25: 35.25 | BS25: 83.5 | BT25: 0.9137
A26: 1961M07 | B26: 1.57 | C26: 1.57 | D26: 1.57 | E26: .. | F26: .. | G26: .. | H26: 0.15 | I26: 0.4047739964 | J26: .. | K26: .. | L26: 0.4753 | M26: 0.8929 | N26: 0.6684254 | O26: 0.9518 | P26: 0.8925009 | Q26: 0.978601 | R26: 0.9841996 | S26: 245 | T26: .. | U26: .. | V26: 328 | W26: 229 | X26: .. | Y26: 112 | Z26: 282 | AA26: 99.9 | AB26: .. | AC26: .. | AD26: 20.44330927 | AE26: 45 | AF26: 45 | AG26: 123.41 | AH26: .. | AI26: .. | AJ26: .. | AK26: .. | AL26: 56.59 | AM26: .. | AN26: 0.132 | AO26: 0.133 | AP26: 0.668 | AQ26: 0.3131289183 | AR26: .. | AS26: 1.5652802 | AT26: 0.124340568 | AU26: 0.12786796 | AV26: 0.0609 | AW26: 1563.19 | AX26: .. | AY26: 33.06 | AZ26: .. | BA26: 151.9772808 | BB26: .. | BC26: 0.6757 | BD26: .. | BE26: 0.6085 | BF26: 13 | BG26: .. | BH26: 52 | BI26: 42.25 | BJ26: 30 | BK26: 511.4718323 | BL26: 11.02 | BM26: 633.39 | BN26: 178.8 | BO26: 2519.9 | BP26: 1711 | BQ26: 214.7 | BR26: 35.25 | BS26: 83.5 | BT26: 0.9137
A27: 1961M08 | B27: 1.57 | C27: 1.57 | D27: 1.57 | E27: .. | F27: .. | G27: .. | H27: 0.15 | I27: 0.4047739964 | J27: .. | K27: .. | L27: 0.4795 | M27: 0.8935 | N27: 0.6684254 | O27: 0.9518 | P27: 0.8925009 | Q27: 0.978601 | R27: 0.9841996 | S27: 248 | T27: .. | U27: .. | V27: 321 | W27: 226 | X27: .. | Y27: 101 | Z27: 276 | AA27: 102.5 | AB27: .. | AC27: .. | AD27: 20.6774791 | AE27: 44 | AF27: 44 | AG27: 119.63 | AH27: .. | AI27: .. | AJ27: .. | AK27: .. | AL27: 58.79 | AM27: .. | AN27: 0.132 | AO27: 0.133 | AP27: 0.6945 | AQ27: 0.3143071711 | AR27: .. | AS27: 1.8077884 | AT27: 0.124340568 | AU27: 0.1212541 | AV27: 0.0536 | AW27: 1563.19 | AX27: .. | AY27: 33.06 | AZ27: .. | BA27: 151.9772808 | BB27: .. | BC27: 0.6717 | BD27: .. | BE27: 0.6151 | BF27: 13 | BG27: .. | BH27: 52 | BI27: 42.25 | BJ27: 30 | BK27: 511.4718323 | BL27: 11.02 | BM27: 636.47 | BN27: 178.4 | BO27: 2605.9 | BP27: 1711 | BQ27: 210.8 | BR27: 35.25 | BS27: 83.5 | BT27: 0.9137
A28: 1961M09 | B28: 1.57 | C28: 1.57 | D28: 1.57 | E28: .. | F28: .. | G28: .. | H28: 0.15 | I28: 0.4047739964 | J28: .. | K28: .. | L28: 0.465 | M28: 0.8891 | N28: 0.6723936 | O28: 0.9518 | P28: 0.8925009 | Q28: 0.978601 | R28: 0.9841996 | S28: 243 | T28: .. | U28: .. | V28: 301 | W28: 226 | X28: .. | Y28: 98 | Z28: 267 | AA28: 92 | AB28: .. | AC28: .. | AD28: 20.72334963 | AE28: 43 | AF28: 45 | AG28: 118.99 | AH28: .. | AI28: .. | AJ28: .. | AK28: .. | AL28: 59.89 | AM28: .. | AN28: 0.1459 | AO28: 0.133 | AP28: 0.7055 | AQ28: 0.3136909445 | AR28: .. | AS28: 1.8959732 | AT28: 0.124340568 | AU28: 0.1212541 | AV28: 0.0542 | AW28: 1563.19 | AX28: .. | AY28: 33.06 | AZ28: .. | BA28: 151.9772808 | BB28: .. | BC28: 0.6737 | BD28: .. | BE28: 0.6173 | BF28: 13 | BG28: .. | BH28: 52 | BI28: 42.25 | BJ28: 30 | BK28: 511.4718323 | BL28: 11.02 | BM28: 632.72 | BN28: 176.4 | BO28: 2630.1 | BP28: 1711 | BQ28: 203.7 | BR28: 35.25 | BS28: 83.5 | BT28: 0.9137
A29: 1961M10 | B29: 1.57 | C29: 1.57 | D29: 1.57 | E29: .. | F29: .. | G29: .. | H29: 0.15 | I29: 0.4047739964 | J29: .. | K29: .. | L29: 0.4603 | M29: 0.8852 | N29: 0.6723936 | O29: 0.9518 | P29: 0.8925009 | Q29: 0.978601 | R29: 0.9841996 | S29: 236 | T29: .. | U29: .. | V29: 293 | W29: 226 | X29: .. | Y29: 98 | Z29: 270 | AA29: 86.7 | AB29: .. | AC29: .. | AD29: 21.56732615 | AE29: 47.64 | AF29: 40 | AG29: 120.32 | AH29: .. | AI29: .. | AJ29: .. | AK29: .. | AL29: 60.26 | AM29: .. | AN29: 0.132 | AO29: 0.133 | AP29: 0.6746 | AQ29: 0.3137289051 | AR29: .. | AS29: 1.9400656 | AT29: 0.124340568 | AU29: 0.12345872 | AV29: 0.0527 | AW29: 1563.19 | AX29: .. | AY29: 33.06 | AZ29: .. | BA29: 151.9772808 | BB29: .. | BC29: 0.6764 | BD29: .. | BE29: 0.593 | BF29: 13 | BG29: .. | BH29: 52 | BI29: 42.25 | BJ29: 30 | BK29: 511.4718323 | BL29: 11.02 | BM29: 630.3 | BN29: 172.5 | BO29: 2605.9 | BP29: 1711 | BQ29: 198.2 | BR29: 35.25 | BS29: 83.5 | BT29: 0.9137
A30: 1961M11 | B30: 1.57 | C30: 1.57 | D30: 1.57 | E30: .. | F30: .. | G30: .. | H30: 0.15 | I30: 0.4047739964 | J30: .. | K30: .. | L30: 0.4808 | M30: 0.883 | N30: 0.6704095 | O30: 0.9518 | P30: 0.8925009 | Q30: 0.978601 | R30: 0.9841996 | S30: 236 | T30: .. | U30: .. | V30: 297 | W30: 226 | X30: .. | Y30: 100 | Z30: 265 | AA30: 92 | AB30: .. | AC30: .. | AD30: 21.96639031 | AE30: 48.42 | AF30: 41 | AG30: 128.32 | AH30: .. | AI30: .. | AJ30: .. | AK30: .. | AL30: 61.73 | AM30: .. | AN30: 0.149 | AO30: 0.1565 | AP30: 0.6371 | AQ30: 0.3153626158 | AR30: .. | AS30: 1.9621118 | AT30: 0.124340568 | AU30: 0.12566334 | AV30: 0.0509 | AW30: 1563.19 | AX30: .. | AY30: 33.06 | AZ30: .. | BA30: 151.9772808 | BB30: .. | BC30: 0.6643 | BD30: .. | BE30: 0.5423 | BF30: 13 | BG30: .. | BH30: 52 | BI30: 42.25 | BJ30: 30 | BK30: 511.4718323 | BL30: 11.02 | BM30: 632.28 | BN30: 166.4 | BO30: 2667.6 | BP30: 1711 | BQ30: 191.8 | BR30: 35.25 | BS30: 83.5 | BT30: 0.9231
A31: 1961M12 | B31: 1.57 | C31: 1.57 | D31: 1.57 | E31: .. | F31: .. | G31: .. | H31: 0.15 | I31: 0.4047739964 | J31: .. | K31: .. | L31: 0.5397 | M31: 0.8774 | N31: 0.6664412 | O31: 0.9518 | P31: 0.8925009 | Q31: 0.978601 | R31: 0.9841996 | S31: 237 | T31: .. | U31: .. | V31: 319 | W31: 226 | X31: .. | Y31: 101 | Z31: 265 | AA31: 93 | AB31: .. | AC31: .. | AD31: 22.1218769 | AE31: 48.42 | AF31: 41 | AG31: 120.1 | AH31: .. | AI31: .. | AJ31: .. | AK31: .. | AL31: 62.46 | AM31: .. | AN31: 0.138 | AO31: 0.1061 | AP31: 0.7209 | AQ31: 0.3163479541 | AR31: .. | AS31: 2.0282504 | AT31: 0.124340568 | AU31: 0.12786796 | AV31: 0.0487 | AW31: 1563.19 | AX31: .. | AY31: 33.06 | AZ31: .. | BA31: 151.9772808 | BB31: .. | BC31: 0.6605 | BD31: .. | BE31: 0.56 | BF31: 13 | BG31: .. | BH31: 52 | BI31: 42.25 | BJ31: 30 | BK31: 511.4718323 | BL31: 11.02 | BM31: 634.85 | BN31: 166.7 | BO31: 2619.1 | BP31: 1711 | BQ31: 196.9 | BR31: 35.25 | BS31: 83.5 | BT31: 1.0332
A32: 1962M01 | B32: 1.52 | C32: 1.52 | D32: 1.52 | E32: .. | F32: .. | G32: .. | H32: 0.16 | I32: 0.4047739964 | J32: .. | K32: .. | L32: 0.4588 | M32: 0.8774 | N32: 0.6684254 | O32: 0.973 | P32: 0.8610009 | Q32: 1.104601 | R32: 0.9533996 | S32: 246.9 | T32: .. | U32: .. | V32: 327.94 | W32: 235.89 | X32: .. | Y32: 101.41 | Z32: 265 | AA32: 80.2 | AB32: .. | AC32: .. | AD32: 21.79724665 | AE32: 48.03 | AF32: 44.53 | AG32: 117.79 | AH32: .. | AI32: .. | AJ32: .. | AK32: .. | AL32: 60.63 | AM32: .. | AN32: 0.131 | AO32: 0.101 | AP32: 0.7628 | AQ32: 0.3151882948 | AR32: .. | AS32: 2.0282504 | AT32: 0.126324726 | AU32: 0.12786796 | AV32: 0.0465 | AW32: 1404.9 | AX32: .. | AY32: 36.39 | AZ32: .. | BA32: 160.0609688 | BB32: .. | BC32: 0.6598 | BD32: .. | BE32: 0.5754 | BF32: 11.5 | BG32: .. | BH32: 51 | BI32: 42.25 | BJ32: 30 | BK32: 511.4718323 | BL32: 11.01 | BM32: 635.37 | BN32: 162.9 | BO32: 2610.3 | BP32: 1761 | BQ32: 193.6 | BR32: 35.23 | BS32: 83.5 | BT32: 1.0428
A33: 1962M02 | B33: 1.52 | C33: 1.52 | D33: 1.52 | E33: .. | F33: .. | G33: .. | H33: 0.16 | I33: 0.4047739964 | J33: .. | K33: .. | L33: 0.4945 | M33: 0.877 | N33: 0.6684254 | O33: 0.973 | P33: 0.8610009 | Q33: 1.104601 | R33: 0.9533996 | S33: 248.6 | T33: .. | U33: .. | V33: 299.28 | W33: 237 | X33: .. | Y33: 100.59 | Z33: 259 | AA33: 77.9 | AB33: .. | AC33: .. | AD33: 21.95367182 | AE33: 48.03 | AF33: 44.53 | AG33: 119.18 | AH33: .. | AI33: .. | AJ33: .. | AK33: .. | AL33: 61.36 | AM33: .. | AN33: 0.136 | AO33: 0.1031 | AP33: 0.7584 | AQ33: 0.3153355302 | AR33: .. | AS33: 2.0723428 | AT33: 0.126324726 | AU33: 0.12786796 | AV33: 0.0498 | AW33: 1404.9 | AX33: .. | AY33: 36.39 | AZ33: .. | BA33: 160.0609688 | BB33: .. | BC33: 0.6631 | BD33: .. | BE33: 0.5952 | BF33: 11.5 | BG33: .. | BH33: 51 | BI33: 42.25 | BJ33: 30 | BK33: 504.8579712 | BL33: 11.01 | BM33: 647.94 | BN33: 161.9 | BO33: 2623.5 | BP33: 1761 | BQ33: 189.6 | BR33: 35.23 | BS33: 83.5 | BT33: 1.0247
A34: 1962M03 | B34: 1.52 | C34: 1.52 | D34: 1.52 | E34: .. | F34: .. | G34: .. | H34: 0.16 | I34: 0.4047739964 | J34: .. | K34: .. | L34: 0.4414 | M34: 0.8609 | N34: 0.6704095 | O34: 0.973 | P34: 0.8610009 | Q34: 1.104601 | R34: 0.9533996 | S34: 250.8 | T34: .. | U34: .. | V34: 290.73 | W34: 223.22 | X34: .. | Y34: 102.79 | Z34: 256 | AA34: 82.5 | AB34: .. | AC34: .. | AD34: 22.17561033 | AE34: 48.82 | AF34: 45.64 | AG34: 123.75 | AH34: .. | AI34: .. | AJ34: .. | AK34: .. | AL34: 61.73 | AM34: .. | AN34: 0.149 | AO34: 0.1072 | AP34: 0.7055 | AQ34: 0.3166511479 | AR34: .. | AS34: 2.0723428 | AT34: 0.126324726 | AU34: 0.12786796 | AV34: 0.0558 | AW34: 1404.9 | AX34: .. | AY34: 36.39 | AZ34: .. | BA34: 160.0609688 | BB34: .. | BC34: 0.6634 | BD34: .. | BE34: 0.5754 | BF34: 11.5 | BG34: .. | BH34: 51 | BI34: 42.25 | BJ34: 30 | BK34: 496.0394897 | BL34: 11.01 | BM34: 647.5 | BN34: 167.1 | BO34: 2652.2 | BP34: 1761 | BQ34: 191.4 | BR34: 35.23 | BS34: 83.5 | BT34: 1.015
A35: 1962M04 | B35: 1.52 | C35: 1.52 | D35: 1.52 | E35: .. | F35: .. | G35: .. | H35: 0.16 | I35: 0.4047739964 | J35: .. | K35: .. | L35: 0.4647 | M35: 0.8466 | N35: 0.6743777 | O35: 0.973 | P35: 0.8610009 | Q35: 1.104601 | R35: 0.9533996 | S35: 260.7 | T35: .. | U35: .. | V35: 281.64 | W35: 220.46 | X35: .. | Y35: 104.44 | Z35: 254 | AA35: 83.7 | AB35: .. | AC35: .. | AD35: 22.27341883 | AE35: 48.82 | AF35: 46.52 | AG35: 130.84 | AH35: .. | AI35: .. | AJ35: .. | AK35: .. | AL35: 62.1 | AM35: .. | AN35: 0.1459 | AO35: 0.1024 | AP35: 0.6548 | AQ35: 0.3173892335 | AR35: .. | AS35: 2.094389 | AT35: 0.126324726 | AU35: 0.12786796 | AV35: 0.0571 | AW35: 1404.9 | AX35: .. | AY35: 36.39 | AZ35: .. | BA35: 160.0609688 | BB35: .. | BC35: 0.6598 | BD35: .. | BE35: 0.5666 | BF35: 11.5 | BG35: .. | BH35: 51 | BI35: 42.25 | BJ35: 30 | BK35: 496.0394897 | BL35: 11.01 | BM35: 645.95 | BN35: 166.7 | BO35: 2614.7 | BP35: 1761 | BQ35: 191.4 | BR35: 35.23 | BS35: 83.5 | BT35: 1.015
A36: 1962M05 | B36: 1.52 | C36: 1.52 | D36: 1.52 | E36: .. | F36: .. | G36: .. | H36: 0.16 | I36: 0.4047739964 | J36: .. | K36: .. | L36: 0.4654 | M36: 0.8256 | N36: 0.6723936 | O36: 0.973 | P36: 0.8610009 | Q36: 1.104601 | R36: 0.9533996 | S36: 253.3 | T36: .. | U36: .. | V36: 270.34 | W36: 219.08 | X36: .. | Y36: 103.62 | Z36: 234 | AA36: 85.9 | AB36: .. | AC36: .. | AD36: 22.67514773 | AE36: 49.6 | AF36: 47.18 | AG36: 149.14 | AH36: .. | AI36: .. | AJ36: .. | AK36: .. | AL36: 63.57 | AM36: .. | AN36: 0.1369 | AO36: 0.1017 | AP36: 0.7297 | AQ36: 0.3182855276 | AR36: .. | AS36: 2.1605276 | AT36: 0.126324726 | AU36: 0.12786796 | AV36: 0.0553 | AW36: 1404.9 | AX36: .. | AY36: 36.39 | AZ36: .. | BA36: 160.0609688 | BB36: .. | BC36: 0.6598 | BD36: .. | BE36: 0.5644 | BF36: 11.5 | BG36: .. | BH36: 51 | BI36: 42.25 | BJ36: 30 | BK36: 496.0394897 | BL36: 11.01 | BM36: 645.73 | BN36: 164.9 | BO36: 2533.1 | BP36: 1761 | BQ36: 188.5 | BR36: 35.23 | BS36: 83.5 | BT36: 1.015
A37: 1962M06 | B37: 1.52 | C37: 1.52 | D37: 1.52 | E37: .. | F37: .. | G37: .. | H37: 0.16 | I37: 0.4047739964 | J37: .. | K37: .. | L37: 0.4729 | M37: 0.8047 | N37: 0.6723936 | O37: 0.973 | P37: 0.8610009 | Q37: 1.104601 | R37: 0.9533996 | S37: 239.5 | T37: .. | U37: .. | V37: 264.59 | W37: 216.33 | X37: .. | Y37: 102.24 | Z37: 215 | AA37: 89.4 | AB37: .. | AC37: .. | AD37: 22.83210596 | AE37: 49.6 | AF37: 47.18 | AG37: 144.11 | AH37: .. | AI37: .. | AJ37: .. | AK37: .. | AL37: 64.3 | AM37: .. | AN37: 0.1239 | AO37: 0.1038 | AP37: 0.7893 | AQ37: 0.3193753236 | AR37: .. | AS37: 2.2707586 | AT37: 0.126324726 | AU37: 0.12786796 | AV37: 0.0562 | AW37: 1404.9 | AX37: .. | AY37: 36.39 | AZ37: .. | BA37: 160.0609688 | BB37: .. | BC37: 0.6572 | BD37: .. | BE37: 0.5401 | BF37: 11.5 | BG37: .. | BH37: 51 | BI37: 42.25 | BJ37: 30 | BK37: 496.0394897 | BL37: 11.01 | BM37: 645.51 | BN37: 159 | BO37: 2414.1 | BP37: 1761 | BQ37: 184.7 | BR37: 35.23 | BS37: 83.5 | BT37: 1.0227
A38: 1962M07 | B38: 1.52 | C38: 1.52 | D38: 1.52 | E38: .. | F38: .. | G38: .. | H38: 0.16 | I38: 0.4047739964 | J38: .. | K38: .. | L38: 0.461 | M38: 0.8131 | N38: 0.6765823 | O38: 0.973 | P38: 0.8610009 | Q38: 1.104601 | R38: 0.9533996 | S38: 240.3 | T38: .. | U38: .. | V38: 266.76 | W38: 212.75 | X38: .. | Y38: 100.86 | Z38: 198 | AA38: 91.7 | AB38: .. | AC38: .. | AD38: 22.92273673 | AE38: 48.82 | AF38: 44.34 | AG38: 144.22 | AH38: .. | AI38: .. | AJ38: .. | AK38: .. | AL38: 65.4 | AM38: .. | AN38: 0.11508 | AO38: 0.108 | AP38: 0.7562 | AQ38: 0.32026979 | AR38: .. | AS38: 2.2707586 | AT38: 0.126324726 | AU38: 0.12786796 | AV38: 0.0621 | AW38: 1404.9 | AX38: .. | AY38: 36.39 | AZ38: .. | BA38: 160.0609688 | BB38: .. | BC38: 0.649 | BD38: .. | BE38: 0.5467 | BF38: 11.5 | BG38: .. | BH38: 51 | BI38: 42.25 | BJ38: 30 | BK38: 496.0394897 | BL38: 11.01 | BM38: 645.51 | BN38: 148.4 | BO38: 2376.6 | BP38: 1761 | BQ38: 182.1 | BR38: 35.23 | BS38: 83.5 | BT38: 1.0355
A39: 1962M08 | B39: 1.52 | C39: 1.52 | D39: 1.52 | E39: .. | F39: .. | G39: .. | H39: 0.16 | I39: 0.4047739964 | J39: .. | K39: .. | L39: 0.4588 | M39: 0.819 | N39: 0.6845187 | O39: 0.973 | P39: 0.8610009 | Q39: 1.104601 | R39: 0.9533996 | S39: 244.7 | T39: .. | U39: .. | V39: 265.1 | W39: 209.16 | X39: .. | Y39: 95.35 | Z39: 198 | AA39: 94 | AB39: .. | AC39: .. | AD39: 22.87706754 | AE39: 47.24 | AF39: 42.55 | AG39: 142.92 | AH39: .. | AI39: .. | AJ39: .. | AK39: .. | AL39: 66.51 | AM39: .. | AN39: 0.1151 | AO39: 0.108 | AP39: 0.7452 | AQ39: 0.3211581218 | AR39: .. | AS39: 2.3809896 | AT39: 0.126324726 | AU39: 0.13007258 | AV39: 0.0646 | AW39: 1404.9 | AX39: .. | AY39: 36.39 | AZ39: .. | BA39: 160.0609688 | BB39: .. | BC39: 0.6387 | BD39: .. | BE39: 0.5313 | BF39: 11.5 | BG39: .. | BH39: 51 | BI39: 42.25 | BJ39: 30 | BK39: 496.0394897 | BL39: 11.01 | BM39: 645.51 | BN39: 140.7 | BO39: 2350.1 | BP39: 1761 | BQ39: 178.1 | BR39: 35.23 | BS39: 83.5 | BT39: 1.083
A40: 1962M09 | B40: 1.52 | C40: 1.52 | D40: 1.52 | E40: .. | F40: .. | G40: .. | H40: 0.16 | I40: 0.4047739964 | J40: .. | K40: .. | L40: 0.45 | M40: 0.8256 | N40: 0.6946597 | O40: 0.973 | P40: 0.8610009 | Q40: 1.104601 | R40: 0.9533996 | S40: 246.6 | T40: .. | U40: .. | V40: 268.69 | W40: 205.3 | X40: .. | Y40: 95.35 | Z40: 198 | AA40: 102 | AB40: .. | AC40: .. | AD40: 22.8642603 | AE40: 47.64 | AF40: 42.55 | AG40: 140.64 | AH40: .. | AI40: .. | AJ40: .. | AK40: .. | AL40: 65.77 | AM40: .. | AN40: 0.119 | AO40: 0.108 | AP40: 0.8003 | AQ40: 0.322833288 | AR40: .. | AS40: 2.535313 | AT40: 0.126324726 | AU40: 0.12786796 | AV40: 0.0626 | AW40: 1404.9 | AX40: .. | AY40: 36.39 | AZ40: .. | BA40: 160.0609688 | BB40: .. | BC40: 0.627 | BD40: .. | BE40: 0.5401 | BF40: 11.5 | BG40: .. | BH40: 51 | BI40: 42.25 | BJ40: 30 | BK40: 496.0394897 | BL40: 11.01 | BM40: 645.51 | BN40: 143.1 | BO40: 2350.1 | BP40: 1761 | BQ40: 176.6 | BR40: 35.23 | BS40: 83.5 | BT40: 1.1546
A41: 1962M10 | B41: 1.52 | C41: 1.52 | D41: 1.52 | E41: .. | F41: .. | G41: .. | H41: 0.16 | I41: 0.4047739964 | J41: .. | K41: .. | L41: 0.4365 | M41: 0.8109 | N41: 0.6946597 | O41: 0.973 | P41: 0.8610009 | Q41: 1.104601 | R41: 0.9533996 | S41: 253.5 | T41: .. | U41: .. | V41: 251.6 | W41: 196.76 | X41: .. | Y41: 97 | Z41: 212 | AA41: 92.8 | AB41: .. | AC41: .. | AD41: 22.66588607 | AE41: 47.64 | AF41: 42.77 | AG41: 142.95 | AH41: .. | AI41: .. | AJ41: .. | AK41: .. | AL41: 64.3 | AM41: .. | AN41: 0.1239 | AO41: 0.108 | AP41: 0.6768 | AQ41: 0.3220819889 | AR41: .. | AS41: 2.4912206 | AT41: 0.126324726 | AU41: 0.13007258 | AV41: 0.0666 | AW41: 1404.9 | AX41: .. | AY41: 36.39 | AZ41: .. | BA41: 160.0609688 | BB41: .. | BC41: 0.6266 | BD41: .. | BE41: 0.5688 | BF41: 11.5 | BG41: .. | BH41: 51 | BI41: 42.25 | BJ41: 30 | BK41: 496.0394897 | BL41: 11.01 | BM41: 645.95 | BN41: 146.2 | BO41: 2358.9 | BP41: 1761 | BQ41: 181.9 | BR41: 35.23 | BS41: 83.5 | BT41: 1.206
A42: 1962M11 | B42: 1.52 | C42: 1.52 | D42: 1.52 | E42: .. | F42: .. | G42: .. | H42: 0.16 | I42: 0.4047739964 | J42: .. | K42: .. | L42: 0.4383 | M42: 0.8124 | N42: 0.6926757 | O42: 0.973 | P42: 0.8610009 | Q42: 1.104601 | R42: 0.9533996 | S42: 257.4 | T42: .. | U42: .. | V42: 251.05 | W42: 208.06 | X42: .. | Y42: 100.59 | Z42: 220 | AA42: 94 | AB42: .. | AC42: .. | AD42: 23.5370409 | AE42: 48.42 | AF42: 43.43 | AG42: 142.5 | AH42: .. | AI42: .. | AJ42: .. | AK42: .. | AL42: 68.71 | AM42: .. | AN42: 0.1499 | AO42: 0.1446 | AP42: 0.5886 | AQ42: 0.3228107563 | AR42: .. | AS42: 2.3809896 | AT42: 0.126324726 | AU42: 0.12786796 | AV42: 0.0754 | AW42: 1404.9 | AX42: .. | AY42: 36.39 | AZ42: .. | BA42: 160.0609688 | BB42: .. | BC42: 0.6345 | BD42: .. | BE42: 0.5776 | BF42: 11.5 | BG42: .. | BH42: 51 | BI42: 42.25 | BJ42: 30 | BK42: 496.0394897 | BL42: 11.01 | BM42: 645.51 | BN42: 149.7 | BO42: 2407.4 | BP42: 1761 | BQ42: 188.5 | BR42: 35.23 | BS42: 83.5 | BT42: 1.1917
A43: 1962M12 | B43: 1.52 | C43: 1.52 | D43: 1.52 | E43: .. | F43: .. | G43: .. | H43: 0.16 | I43: 0.4047739964 | J43: .. | K43: .. | L43: 0.4533 | M43: 0.8179 | N43: 0.7169259 | O43: 0.973 | P43: 0.8610009 | Q43: 1.104601 | R43: 0.9533996 | S43: 272.3 | T43: .. | U43: .. | V43: 254.36 | W43: 210.82 | X43: .. | Y43: 102.24 | Z43: 215 | AA43: 94 | AB43: .. | AC43: .. | AD43: 23.85507759 | AE43: 51.18 | AF43: 45.19 | AG43: 121.07 | AH43: .. | AI43: .. | AJ43: .. | AK43: .. | AL43: 67.61 | AM43: .. | AN43: 0.131 | AO43: 0.1003 | AP43: 0.6019 | AQ43: 0.3233635221 | AR43: .. | AS43: 2.2707586 | AT43: 0.126324726 | AU43: 0.13007258 | AV43: 0.0882 | AW43: 1404.9 | AX43: .. | AY43: 36.39 | AZ43: .. | BA43: 160.0609688 | BB43: .. | BC43: 0.653 | BD43: .. | BE43: 0.582 | BF43: 11.5 | BG43: .. | BH43: 51 | BI43: 42.25 | BJ43: 30 | BK43: 496.0394897 | BL43: 11.01 | BM43: 645.73 | BN43: 152.8 | BO43: 2365.6 | BP43: 1761 | BQ43: 184.7 | BR43: 35.23 | BS43: 83.5 | BT43: 1.1987
A44: 1963M01 | B44: 1.5 | C44: 1.5 | D44: 1.5 | E44: .. | F44: .. | G44: .. | H44: 0.16 | I44: 0.3913511379 | J44: .. | K44: .. | L44: 0.4991 | M44: 0.8267 | N44: 0.6521116 | O44: 0.9529 | P44: 0.8148008 | Q44: 1.083601 | R44: 0.9603996 | S44: 278.9 | T44: .. | U44: .. | V44: 261.25 | W44: 217.71 | X44: .. | Y44: 107.47 | Z44: 223 | AA44: 92.3 | AB44: .. | AC44: .. | AD44: 24.08490904 | AE44: 52.75 | AF44: 46.52 | AG44: 121.77 | AH44: .. | AI44: .. | AJ44: .. | AK44: .. | AL44: 67.24 | AM44: .. | AN44: 0.131 | AO44: 0.0801 | AP44: 0.571 | AQ44: 0.3236646198 | AR44: .. | AS44: 2.2928048 | AT44: 0.12676565 | AU44: 0.13448182 | AV44: 0.1157 | AW44: 1343.61 | AX44: .. | AY44: 36.67 | AZ44: .. | BA44: 160.7248476 | BB44: .. | BC44: 0.6581 | BD44: .. | BE44: 0.5732 | BF44: 11.5 | BG44: .. | BH44: 52 | BI44: 42.25 | BJ44: 30 | BK44: 496.0394897 | BL44: 11.02 | BM44: 645.51 | BN44: 149.4 | BO44: 2350.1 | BP44: 1741 | BQ44: 186.3 | BR44: 35.09 | BS44: 83.5 | BT44: 1.2438
A45: 1963M02 | B45: 1.5 | C45: 1.5 | D45: 1.5 | E45: .. | F45: .. | G45: .. | H45: 0.16 | I45: 0.3913511379 | J45: .. | K45: .. | L45: 0.5439 | M45: 0.8031 | N45: 0.6137521 | O45: 0.9529 | P45: 0.8148008 | Q45: 1.083601 | R45: 0.9603996 | S45: 272.5 | T45: .. | U45: .. | V45: 264.83 | W45: 217.71 | X45: .. | Y45: 109.96 | Z45: 231 | AA45: 92.3 | AB45: .. | AC45: .. | AD45: 24.3687747 | AE45: 53.15 | AF45: 47.18 | AG45: 123.35 | AH45: .. | AI45: .. | AJ45: .. | AK45: .. | AL45: 68.34 | AM45: .. | AN45: 0.131 | AO45: 0.0806 | AP45: 0.5556 | AQ45: 0.3244877545 | AR45: .. | AS45: 2.2928048 | AT45: 0.12676565 | AU45: 0.13668644 | AV45: 0.1305 | AW45: 1343.61 | AX45: .. | AY45: 36.67 | AZ45: .. | BA45: 160.7248476 | BB45: .. | BC45: 0.6546 | BD45: .. | BE45: 0.5644 | BF45: 11.5 | BG45: .. | BH45: 52 | BI45: 42.25 | BJ45: 30 | BK45: 496.0394897 | BL45: 11.02 | BM45: 645.51 | BN45: 150.6 | BO45: 2350.1 | BP45: 1742 | BQ45: 191.6 | BR45: 35.09 | BS45: 83.5 | BT45: 1.2564
A46: 1963M03 | B46: 1.5 | C46: 1.5 | D46: 1.5 | E46: .. | F46: .. | G46: .. | H46: 0.16 | I46: 0.3913511379 | J46: .. | K46: .. | L46: 0.5318 | M46: 0.8109 | N46: 0.6157362 | O46: 0.9529 | P46: 0.8148008 | Q46: 1.083601 | R46: 0.9603996 | S46: 272.5 | T46: .. | U46: .. | V46: 264.28 | W46: 217.71 | X46: .. | Y46: 109.13 | Z46: 229 | AA46: 90.1 | AB46: .. | AC46: .. | AD46: 24.4633609 | AE46: 52.36 | AF46: 47.18 | AG46: 123.28 | AH46: .. | AI46: .. | AJ46: .. | AK46: .. | AL46: 69.45 | AM46: .. | AN46: 0.131 | AO46: 0.0847 | AP46: 0.5622 | AQ46: 0.3249776759 | AR46: .. | AS46: 2.2928048 | AT46: 0.12676565 | AU46: 0.14109568 | AV46: 0.1431 | AW46: 1343.61 | AX46: .. | AY46: 36.94 | AZ46: .. | BA46: 161.3628116 | BB46: .. | BC46: 0.6495 | BD46: .. | BE46: 0.5445 | BF46: 11.5 | BG46: .. | BH46: 52 | BI46: 42.25 | BJ46: 30 | BK46: 496.0394897 | BL46: 11.02 | BM46: 645.51 | BN46: 153.7 | BO46: 2358.9 | BP46: 1742 | BQ46: 197.5 | BR46: 35.09 | BS46: 83.5 | BT46: 1.2714
A47: 1963M04 | B47: 1.5 | C47: 1.5 | D47: 1.5 | E47: .. | F47: .. | G47: .. | H47: 0.16 | I47: 0.3913511379 | J47: .. | K47: .. | L47: 0.5631 | M47: 0.808 | N47: 0.6157362 | O47: 0.9529 | P47: 0.8148008 | Q47: 1.083601 | R47: 0.9603996 | S47: 278.3 | T47: .. | U47: .. | V47: 261.52 | W47: 217.71 | X47: .. | Y47: 107.2 | Z47: 229 | AA47: 86.8 | AB47: .. | AC47: .. | AD47: 24.67675011 | AE47: 51.97 | AF47: 46.3 | AG47: 122.38 | AH47: .. | AI47: .. | AJ47: .. | AK47: .. | AL47: 70.92 | AM47: .. | AN47: 0.131 | AO47: 0.0969 | AP47: 0.6504 | AQ47: 0.3252848807 | AR47: .. | AS47: 2.2928048 | AT47: 0.12676565 | AU47: 0.16314188 | AV47: 0.1647 | AW47: 1343.61 | AX47: .. | AY47: 36.94 | AZ47: .. | BA47: 161.3628116 | BB47: .. | BC47: 0.6422 | BD47: .. | BE47: 0.549 | BF47: 11.5 | BG47: .. | BH47: 52 | BI47: 42.25 | BJ47: 30 | BK47: 496.0394897 | BL47: 11.02 | BM47: 645.73 | BN47: 159.4 | BO47: 2427.3 | BP47: 1741 | BQ47: 204.4 | BR47: 35.09 | BS47: 78.5 | BT47: 1.2729
A48: 1963M05 | B48: 1.5 | C48: 1.5 | D48: 1.5 | E48: .. | F48: .. | G48: .. | H48: 0.16 | I48: 0.3913511379 | J48: .. | K48: .. | L48: 0.6076 | M48: 0.797 | N48: 0.6117679 | O48: 0.9529 | P48: 0.8148008 | Q48: 1.083601 | R48: 0.9603996 | S48: 279.7 | T48: .. | U48: .. | V48: 268.69 | W48: 217.71 | X48: .. | Y48: 109.13 | Z48: 231 | AA48: 86.8 | AB48: .. | AC48: .. | AD48: 24.2440757 | AE48: 52.36 | AF48: 46.52 | AG48: 123.17 | AH48: .. | AI48: .. | AJ48: .. | AK48: .. | AL48: 67.61 | AM48: .. | AN48: 0.131 | AO48: 0.1143 | AP48: 0.69 | AQ48: 0.326112136 | AR48: .. | AS48: 2.2266662 | AT48: 0.12676565 | AU48: 0.22487124 | AV48: 0.2191 | AW48: 1343.61 | AX48: .. | AY48: 37.78 | AZ48: .. | BA48: 163.3339955 | BB48: .. | BC48: 0.6391 | BD48: .. | BE48: 0.5401 | BF48: 11.5 | BG48: .. | BH48: 52 | BI48: 42.25 | BJ48: 30 | BK48: 496.0394897 | BL48: 11.02 | BM48: 645.51 | BN48: 167.1 | BO48: 2495.6 | BP48: 1742 | BQ48: 209.4 | BR48: 35.09 | BS48: 78.5 | BT48: 1.2787
A49: 1963M06 | B49: 1.5 | C49: 1.5 | D49: 1.5 | E49: .. | F49: .. | G49: .. | H49: 0.16 | I49: 0.3913511379 | J49: .. | K49: .. | L49: 0.5622 | M49: 0.7992 | N49: 0.6117679 | O49: 0.9529 | P49: 0.8148008 | Q49: 1.083601 | R49: 0.9603996 | S49: 282.5 | T49: .. | U49: .. | V49: 274.47 | W49: 219.91 | X49: .. | Y49: 108.3 | Z49: 231 | AA49: 90.1 | AB49: .. | AC49: .. | AD49: 23.1730495 | AE49: 55.51 | AF49: 48.28 | AG49: 128.13 | AH49: .. | AI49: .. | AJ49: .. | AK49: .. | AL49: 58.42 | AM49: .. | AN49: 0.131 | AO49: 0.1204 | AP49: 0.69 | AQ49: 0.3274634089 | AR49: .. | AS49: 2.20462 | AT49: 0.12676565 | AU49: 0.17857422 | AV49: 0.2154 | AW49: 1343.61 | AX49: .. | AY49: 37.5 | AZ49: .. | BA49: 162.6791954 | BB49: .. | BC49: 0.6389 | BD49: .. | BE49: 0.5313 | BF49: 11.5 | BG49: .. | BH49: 52 | BI49: 42.25 | BJ49: 30 | BK49: 496.0394897 | BL49: 11.02 | BM49: 645.73 | BN49: 179 | BO49: 2500 | BP49: 1742 | BQ49: 209.2 | BR49: 35.09 | BS49: 78.5 | BT49: 1.2768
A50: 1963M07 | B50: 1.5 | C50: 1.5 | D50: 1.5 | E50: .. | F50: .. | G50: .. | H50: 0.16 | I50: 0.3913511379 | J50: .. | K50: .. | L50: 0.5249 | M50: 0.8064 | N50: 0.6157362 | O50: 0.9529 | P50: 0.8148008 | Q50: 1.083601 | R50: 0.9603996 | S50: 286.3 | T50: .. | U50: .. | V50: 274.47 | W50: 221.84 | X50: .. | Y50: 108.58 | Z50: 229 | AA50: 91 | AB50: .. | AC50: .. | AD50: 23.24643674 | AE50: 56.69 | AF50: 48.38 | AG50: 130.63 | AH50: .. | AI50: .. | AJ50: .. | AK50: .. | AL50: 57.69 | AM50: .. | AN50: 0.131 | AO50: 0.094 | AP50: 0.7562 | AQ50: 0.328435723 | AR50: .. | AS50: 2.0282504 | AT50: 0.12676565 | AU50: 0.16314188 | AV50: 0.1975 | AW50: 1343.61 | AX50: .. | AY50: 36.11 | AZ50: .. | BA50: 159.3947361 | BB50: .. | BC50: 0.6385 | BD50: .. | BE50: 0.5203 | BF50: 11.5 | BG50: .. | BH50: 52 | BI50: 42.25 | BJ50: 30 | BK50: 496.0394897 | BL50: 11.02 | BM50: 645.51 | BN50: 179.5 | BO50: 2482.4 | BP50: 1741 | BQ50: 204.8 | BR50: 35.09 | BS50: 78.5 | BT50: 1.2899
A51: 1963M08 | B51: 1.5 | C51: 1.5 | D51: 1.5 | E51: .. | F51: .. | G51: .. | H51: 0.16 | I51: 0.3913511379 | J51: .. | K51: .. | L51: 0.521 | M51: 0.8047 | N51: 0.6117679 | O51: 0.9529 | P51: 0.8148008 | Q51: 1.083601 | R51: 0.9603996 | S51: 291.8 | T51: .. | U51: .. | V51: 264.55 | W51: 224.6 | X51: .. | Y51: 105.82 | Z51: 207 | AA51: 91 | AB51: .. | AC51: .. | AD51: 23.25004988 | AE51: 55.51 | AF51: 47.84 | AG51: 129.86 | AH51: .. | AI51: .. | AJ51: .. | AK51: .. | AL51: 58.42 | AM51: .. | AN51: 0.168 | AO51: 0.094 | AP51: 0.8333 | AQ51: 0.3292709915 | AR51: .. | AS51: 1.7196036 | AT51: 0.12676565 | AU51: 0.1322772 | AV51: 0.1413 | AW51: 1343.61 | AX51: .. | AY51: 34.72 | AZ51: .. | BA51: 156.0515828 | BB51: .. | BC51: 0.6433 | BD51: .. | BE51: 0.4916 | BF51: 11.5 | BG51: .. | BH51: 52 | BI51: 42.25 | BJ51: 30 | BK51: 496.0394897 | BL51: 11.02 | BM51: 645.51 | BN51: 184.7 | BO51: 2495.6 | BP51: 1742 | BQ51: 210.3 | BR51: 35.09 | BS51: 78.95 | BT51: 1.2878
A52: 1963M09 | B52: 1.5 | C52: 1.5 | D52: 1.5 | E52: .. | F52: .. | G52: .. | H52: 0.16 | I52: 0.3913511379 | J52: .. | K52: .. | L52: 0.5509 | M52: 0.802 | N52: 0.6238931 | O52: 0.9529 | P52: 0.8148008 | Q52: 1.083601 | R52: 0.9603996 | S52: 297.6 | T52: .. | U52: .. | V52: 265.66 | W52: 224.6 | X52: .. | Y52: 108.58 | Z52: 204 | AA52: 91 | AB52: .. | AC52: .. | AD52: 23.74628066 | AE52: 55.9 | AF52: 48.94 | AG52: 130.29 | AH52: .. | AI52: .. | AJ52: .. | AK52: .. | AL52: 60.63 | AM52: .. | AN52: 0.1561 | AO52: 0.094 | AP52: 0.6967 | AQ52: 0.3301083841 | AR52: .. | AS52: 1.6755112 | AT52: 0.12676565 | AU52: 0.14991416 | AV52: 0.1607 | AW52: 1343.61 | AX52: .. | AY52: 33.89 | AZ52: .. | BA52: 154.0259082 | BB52: .. | BC52: 0.6499 | BD52: .. | BE52: 0.4806 | BF52: 11.5 | BG52: .. | BH52: 52 | BI52: 42.25 | BJ52: 30 | BK52: 496.0394897 | BL52: 11.02 | BM52: 645.51 | BN52: 187 | BO52: 2572.8 | BP52: 1742 | BQ52: 211.2 | BR52: 35.09 | BS52: 80.75 | BT52: 1.2926
A53: 1963M10 | B53: 1.5 | C53: 1.5 | D53: 1.5 | E53: .. | F53: .. | G53: .. | H53: 0.16 | I53: 0.3913511379 | J53: .. | K53: .. | L53: 0.5807 | M53: 0.8042 | N53: 0.6258772 | O53: 0.9529 | P53: 0.8148008 | Q53: 1.083601 | R53: 0.9603996 | S53: 303.7 | T53: .. | U53: .. | V53: 275.58 | W53: 227.35 | X53: .. | Y53: 116.84 | Z53: 234 | AA53: 91 | AB53: .. | AC53: .. | AD53: 24.13976486 | AE53: 53.15 | AF53: 48.98 | AG53: 128.72 | AH53: .. | AI53: .. | AJ53: .. | AK53: .. | AL53: 65.04 | AM53: .. | AN53: 0.1759 | AO53: 0.094 | AP53: 0.668 | AQ53: 0.3309479064 | AR53: .. | AS53: 1.5873264 | AT53: 0.12676565 | AU53: 0.19400656 | AV53: 0.2304 | AW53: 1343.61 | AX53: .. | AY53: 32.78 | AZ53: .. | BA53: 151.2808527 | BB53: .. | BC53: 0.6453 | BD53: .. | BE53: 0.496 | BF53: 11.5 | BG53: .. | BH53: 52 | BI53: 42.25 | BJ53: 30 | BK53: 507.0625916 | BL53: 11.02 | BM53: 645.51 | BN53: 192 | BO53: 2590.4 | BP53: 1741 | BQ53: 220.9 | BR53: 35.09 | BS53: 80.5 | BT53: 1.293
A54: 1963M11 | B54: 1.5 | C54: 1.5 | D54: 1.5 | E54: .. | F54: .. | G54: .. | H54: 0.16 | I54: 0.3913511379 | J54: .. | K54: .. | L54: 0.5706 | M54: 0.8069 | N54: 0.6318295 | O54: 0.9529 | P54: 0.8148008 | Q54: 1.083601 | R54: 0.9603996 | S54: 303.4 | T54: .. | U54: .. | V54: 274.47 | W54: 230.11 | X54: .. | Y54: 116.02 | Z54: 223 | AA54: 91 | AB54: .. | AC54: .. | AD54: 24.05495381 | AE54: 52.36 | AF54: 48.98 | AG54: 124.84 | AH54: .. | AI54: .. | AJ54: .. | AK54: .. | AL54: 65.04 | AM54: .. | AN54: 0.153 | AO54: 0.094 | AP54: 0.6327 | AQ54: 0.3317895638 | AR54: .. | AS54: 1.653465 | AT54: 0.12676565 | AU54: 0.19180194 | AV54: 0.2542 | AW54: 1343.61 | AX54: .. | AY54: 32.5 | AZ54: .. | BA54: 150.5816828 | BB54: .. | BC54: 0.6435 | BD54: .. | BE54: 0.496 | BF54: 11.5 | BG54: .. | BH54: 52 | BI54: 42.25 | BJ54: 30 | BK54: 507.0625916 | BL54: 11.02 | BM54: 645.73 | BN54: 190.5 | BO54: 2687.4 | BP54: 1742 | BQ54: 231.5 | BR54: 35.09 | BS54: 82.97 | BT54: 1.293
A55: 1963M12 | B55: 1.5 | C55: 1.5 | D55: 1.5 | E55: .. | F55: .. | G55: .. | H55: 0.16 | I55: 0.3913511379 | J55: .. | K55: .. | L55: 0.5723 | M55: 0.7998 | N55: 0.6521116 | O55: 0.9529 | P55: 0.8148008 | Q55: 1.083601 | R55: 0.9603996 | S55: 288.8 | T55: .. | U55: .. | V55: 272.27 | W55: 231.76 | X55: .. | Y55: 114.09 | Z55: 212 | AA55: 98.8 | AB55: .. | AC55: .. | AD55: 24.28128331 | AE55: 53.54 | AF55: 48.98 | AG55: 121.54 | AH55: .. | AI55: .. | AJ55: .. | AK55: .. | AL55: 65.04 | AM55: .. | AN55: 0.159 | AO55: 0.0811 | AP55: 0.69 | AQ55: 0.3338047968 | AR55: .. | AS55: 1.6975574 | AT55: 0.12676565 | AU55: 0.18077884 | AV55: 0.2262 | AW55: 1343.61 | AX55: .. | AY55: 33.33 | AZ55: .. | BA55: 152.6462714 | BB55: .. | BC55: 0.6442 | BD55: .. | BE55: 0.4696 | BF55: 11.5 | BG55: .. | BH55: 52 | BI55: 42.25 | BJ55: 30 | BK55: 507.0625916 | BL55: 11.02 | BM55: 650.14 | BN55: 204.8 | BO55: 2782.2 | BP55: 1742 | BQ55: 261 | BR55: 35.09 | BS55: 83.5 | BT55: 1.293
A56: 1964M01 | B56: 1.45 | C56: 1.45 | D56: 1.45 | E56: .. | F56: .. | G56: .. | H56: 0.15 | I56: 0.3841498024 | J56: .. | K56: .. | L56: 0.5549 | M56: 0.9259 | N56: 0.7008326 | O56: 0.927 | P56: 0.8190008 | Q56: 1.039501 | R56: 0.9225996 | S56: 286.9 | T56: .. | U56: .. | V56: 269.79 | W56: 232.86 | X56: .. | Y56: 116.84 | Z56: 215 | AA56: 98.8 | AB56: .. | AC56: .. | AD56: 24.39335944 | AE56: 55.12 | AF56: 49.6 | AG56: 124.01 | AH56: .. | AI56: .. | AJ56: .. | AK56: .. | AL56: 64.04 | AM56: .. | AN56: 0.1519 | AO56: 0.0766 | AP56: 0.7297 | AQ56: 0.3346537197 | AR56: .. | AS56: 1.763696 | AT56: 0.12676565 | AU56: 0.19180194 | AV56: 0.231 | AW56: 1488.3 | AX56: .. | AY56: 32.78 | AZ56: .. | BA56: 151.2808527 | BB56: .. | BC56: 0.6559 | BD56: .. | BE56: 0.4519 | BF56: 12.5 | BG56: .. | BH56: 53 | BI56: 60.5 | BJ56: 32.5 | BK56: 507.0625916 | BL56: 10.24 | BM56: 655.65 | BN56: 217.6 | BO56: 2872.6 | BP56: 1741 | BQ56: 264.1 | BR56: 35.1 | BS56: 88.27 | BT56: 1.293
A57: 1964M02 | B57: 1.45 | C57: 1.45 | D57: 1.45 | E57: .. | F57: .. | G57: .. | H57: 0.15 | I57: 0.3841498024 | J57: .. | K57: .. | L57: 0.5077 | M57: 0.9414 | N57: 0.7211145 | O57: 0.927 | P57: 0.8190008 | Q57: 1.039501 | R57: 0.9225996 | S57: 271.4 | T57: .. | U57: .. | V57: 258.49 | W57: 232.59 | X57: .. | Y57: 112.71 | Z57: 209 | AA57: 95.5 | AB57: .. | AC57: .. | AD57: 24.42431181 | AE57: 52.75 | AF57: 49.9 | AG57: 119.06 | AH57: .. | AI57: .. | AJ57: .. | AK57: .. | AL57: 66.14 | AM57: .. | AN57: 0.1601 | AO57: 0.0805 | AP57: 0.7915 | AQ57: 0.3349808471 | AR57: .. | AS57: 1.6975574 | AT57: 0.12676565 | AU57: 0.16314188 | AV57: 0.1991 | AW57: 1488.3 | AX57: .. | AY57: 32.78 | AZ57: .. | BA57: 151.2808527 | BB57: .. | BC57: 0.6556 | BD57: .. | BE57: 0.4718 | BF57: 12.5 | BG57: .. | BH57: 53 | BI57: 60.5 | BJ57: 32.5 | BK57: 507.0625916 | BL57: 10.24 | BM57: 693.79 | BN57: 223.1 | BO57: 3060 | BP57: 1742 | BQ57: 270.5 | BR57: 35.1 | BS57: 88.5 | BT57: 1.293
A58: 1964M03 | B58: 1.45 | C58: 1.45 | D58: 1.45 | E58: .. | F58: .. | G58: .. | H58: 0.15 | I58: 0.3841498024 | J58: .. | K58: .. | L58: 0.5084 | M58: 1.0351 | N58: 0.7797561 | O58: 0.927 | P58: 0.8190008 | Q58: 1.039501 | R58: 0.9225996 | S58: 280.5 | T58: .. | U58: .. | V58: 265.1 | W58: 232.86 | X58: .. | Y58: 110.51 | Z58: 209 | AA58: 94.4 | AB58: .. | AC58: .. | AD58: 24.84060998 | AE58: 54.33 | AF58: 48.98 | AG58: 115.11 | AH58: .. | AI58: .. | AJ58: .. | AK58: .. | AL58: 66.87 | AM58: .. | AN58: 0.1649 | AO58: 0.0871 | AP58: 0.8157 | AQ58: 0.335629326 | AR58: .. | AS58: 1.6314188 | AT58: 0.12676565 | AU58: 0.14770954 | AV58: 0.1612 | AW58: 1488.3 | AX58: .. | AY58: 31.94 | AZ58: .. | BA58: 149.1749784 | BB58: .. | BC58: 0.6548 | BD58: .. | BE58: 0.496 | BF58: 12.5 | BG58: .. | BH58: 53 | BI58: 60.5 | BJ58: 32.5 | BK58: 524.6994629 | BL58: 10.24 | BM58: 745.16 | BN58: 223.8 | BO58: 2958.6 | BP58: 1742 | BQ58: 277.1 | BR58: 35.1 | BS58: 88.5 | BT58: 1.293
A59: 1964M04 | B59: 1.45 | C59: 1.45 | D59: 1.45 | E59: .. | F59: .. | G59: .. | H59: 0.15 | I59: 0.3841498024 | J59: .. | K59: .. | L59: 0.4784 | M59: 1.0042 | N59: 0.8161315 | O59: 0.927 | P59: 0.8190008 | Q59: 1.039501 | R59: 0.9225996 | S59: 280.3 | T59: .. | U59: .. | V59: 273.1 | W59: 232.86 | X59: .. | Y59: 106.65 | Z59: 204 | AA59: 90 | AB59: .. | AC59: .. | AD59: 25.19431727 | AE59: 55.51 | AF59: 48.06 | AG59: 116.89 | AH59: .. | AI59: .. | AJ59: .. | AK59: .. | AL59: 67.61 | AM59: .. | AN59: 0.201 | AO59: 0.0858 | AP59: 0.8289 | AQ59: 0.3357598501 | AR59: .. | AS59: 1.6093726 | AT59: 0.12676565 | AU59: 0.14991416 | AV59: 0.1711 | AW59: 1488.3 | AX59: .. | AY59: 30.56 | AZ59: .. | BA59: 145.6592066 | BB59: .. | BC59: 0.6521 | BD59: .. | BE59: 0.4982 | BF59: 12.5 | BG59: .. | BH59: 53 | BI59: 60.5 | BJ59: 32.5 | BK59: 529.1088867 | BL59: 10.24 | BM59: 861.56 | BN59: 226.8 | BO59: 2879.2 | BP59: 1741 | BQ59: 298.7 | BR59: 35.1 | BS59: 88.5 | BT59: 1.293
A60: 1964M05 | B60: 1.45 | C60: 1.45 | D60: 1.45 | E60: .. | F60: .. | G60: .. | H60: 0.15 | I60: 0.3841498024 | J60: .. | K60: .. | L60: 0.4766 | M60: 1.0203 | N60: 0.8284771 | O60: 0.927 | P60: 0.8190008 | Q60: 1.039501 | R60: 0.9225996 | S60: 282.5 | T60: .. | U60: .. | V60: 292.39 | W60: 232.86 | X60: .. | Y60: 104.72 | Z60: 215 | AA60: 84.5 | AB60: .. | AC60: .. | AD60: 25.61094016 | AE60: 55.9 | AF60: 48.06 | AG60: 117.02 | AH60: .. | AI60: .. | AJ60: .. | AK60: .. | AL60: 69.45 | AM60: .. | AN60: 0.205 | AO60: 0.0792 | AP60: 0.8708 | AQ60: 0.335670426 | AR60: .. | AS60: 1.6314188 | AT60: 0.12676565 | AU60: 0.1322772 | AV60: 0.1545 | AW60: 1488.3 | AX60: .. | AY60: 29.44 | AZ60: .. | BA60: 142.7517846 | BB60: .. | BC60: 0.6559 | BD60: .. | BE60: 0.496 | BF60: 12.5 | BG60: .. | BH60: 53 | BI60: 60.5 | BJ60: 32.5 | BK60: 529.1088867 | BL60: 10.24 | BM60: 828.28 | BN60: 243.8 | BO60: 2910.1 | BP60: 1742 | BQ60: 343 | BR60: 35.1 | BS60: 88.5 | BT60: 1.293
A61: 1964M06 | B61: 1.45 | C61: 1.45 | D61: 1.45 | E61: .. | F61: .. | G61: .. | H61: 0.15 | I61: 0.3841498024 | J61: .. | K61: .. | L61: 0.4954 | M61: 1.0053 | N61: 0.8465545 | O61: 0.927 | P61: 0.8190008 | Q61: 1.039501 | R61: 0.9225996 | S61: 294.9 | T61: .. | U61: .. | V61: 317.19 | W61: 233.96 | X61: .. | Y61: 104.44 | Z61: 212 | AA61: 85.6 | AB61: .. | AC61: .. | AD61: 24.95411839 | AE61: 56.3 | AF61: 47.4 | AG61: 119.18 | AH61: .. | AI61: .. | AJ61: .. | AK61: .. | AL61: 65.04 | AM61: .. | AN61: 0.207 | AO61: 0.0871 | AP61: 0.8554 | AQ61: 0.3366729336 | AR61: .. | AS61: 1.8077884 | AT61: 0.12676565 | AU61: 0.12786796 | AV61: 0.1155 | AW61: 1488.3 | AX61: .. | AY61: 29.44 | AZ61: .. | BA61: 142.7517846 | BB61: .. | BC61: 0.6594 | BD61: .. | BE61: 0.4894 | BF61: 12.5 | BG61: .. | BH61: 53 | BI61: 60.5 | BJ61: 32.5 | BK61: 529.1088867 | BL61: 10.24 | BM61: 808.43 | BN61: 246.3 | BO61: 3265 | BP61: 1742 | BQ61: 357.1 | BR61: 35.1 | BS61: 88.5 | BT61: 1.293
A62: 1964M07 | B62: 1.45 | C62: 1.45 | D62: 1.45 | E62: .. | F62: .. | G62: .. | H62: 0.15 | I62: 0.3841498024 | J62: .. | K62: .. | L62: 0.5077 | M62: 1.0214 | N62: 0.8183361 | O62: 0.927 | P62: 0.8190008 | Q62: 1.039501 | R62: 0.9225996 | S62: 303.7 | T62: .. | U62: .. | V62: 335.1 | W62: 235.34 | X62: .. | Y62: 102.24 | Z62: 209 | AA62: 84.5 | AB62: .. | AC62: .. | AD62: 25.57003687 | AE62: 55.9 | AF62: 47.4 | AG62: 122.61 | AH62: .. | AI62: .. | AJ62: .. | AK62: .. | AL62: 68.71 | AM62: .. | AN62: 0.168 | AO62: 0.084 | AP62: 0.9414 | AQ62: 0.3373052423 | AR62: .. | AS62: 1.8298346 | AT62: 0.12676565 | AU62: 0.12345872 | AV62: 0.1034 | AW62: 1488.3 | AX62: .. | AY62: 29.17 | AZ62: .. | BA62: 142.0433162 | BB62: .. | BC62: 0.6488 | BD62: .. | BE62: 0.4784 | BF62: 12.5 | BG62: .. | BH62: 53 | BI62: 60.5 | BJ62: 32.5 | BK62: 529.1088867 | BL62: 10.24 | BM62: 854.95 | BN62: 270.9 | BO62: 3452.4 | BP62: 1741 | BQ62: 385.1 | BR62: 35.1 | BS62: 88.5 | BT62: 1.293
A63: 1964M08 | B63: 1.45 | C63: 1.45 | D63: 1.45 | E63: .. | F63: .. | G63: .. | H63: 0.15 | I63: 0.3841498024 | J63: .. | K63: .. | L63: 0.4985 | M63: 1.049 | N63: 0.8183361 | O63: 0.927 | P63: 0.8190008 | Q63: 1.039501 | R63: 0.9225996 | S63: 303.1 | T63: .. | U63: .. | V63: 323.53 | W63: 235.62 | X63: .. | Y63: 104.44 | Z63: 223 | AA63: 82.5 | AB63: .. | AC63: .. | AD63: 25.42422699 | AE63: 54.72 | AF63: 47.62 | AG63: 122.92 | AH63: .. | AI63: .. | AJ63: .. | AK63: .. | AL63: 68.71 | AM63: .. | AN63: 0.1561 | AO63: 0.084 | AP63: 0.8995 | AQ63: 0.3377795863 | AR63: .. | AS63: 1.763696 | AT63: 0.12676565 | AU63: 0.12345872 | AV63: 0.0933 | AW63: 1488.3 | AX63: .. | AY63: 29.17 | AZ63: .. | BA63: 142.0433162 | BB63: .. | BC63: 0.6437 | BD63: .. | BE63: 0.4784 | BF63: 12.5 | BG63: .. | BH63: 53 | BI63: 60.5 | BJ63: 32.5 | BK63: 529.1088867 | BL63: 10.24 | BM63: 999.33 | BN63: 300.9 | BO63: 3512 | BP63: 1742 | BQ63: 345.2 | BR63: 35.1 | BS63: 88.5 | BT63: 1.293
A64: 1964M09 | B64: 1.45 | C64: 1.45 | D64: 1.45 | E64: .. | F64: .. | G64: .. | H64: 0.15 | I64: 0.3841498024 | J64: .. | K64: .. | L64: 0.5104 | M64: 1.0373 | N64: 0.7898972 | O64: 0.927 | P64: 0.8190008 | Q64: 1.039501 | R64: 0.9225996 | S64: 302.6 | T64: .. | U64: .. | V64: 346.68 | W64: 237.55 | X64: .. | Y64: 109.96 | Z64: 243 | AA64: 92.2 | AB64: .. | AC64: .. | AD64: 25.593646 | AE64: 55.12 | AF64: 48.5 | AG64: 123.44 | AH64: .. | AI64: .. | AJ64: .. | AK64: .. | AL64: 69.08 | AM64: .. | AN64: 0.1759 | AO64: 0.084 | AP64: 0.8179 | AQ64: 0.3402139749 | AR64: .. | AS64: 1.8959732 | AT64: 0.12676565 | AU64: 0.12345872 | AV64: 0.0783 | AW64: 1488.3 | AX64: .. | AY64: 28.89 | AZ64: .. | BA64: 141.3054146 | BB64: .. | BC64: 0.6482 | BD64: .. | BE64: 0.4982 | BF64: 12.5 | BG64: .. | BH64: 53 | BI64: 60.5 | BJ64: 32.5 | BK64: 529.1088867 | BL64: 10.24 | BM64: 1162.05 | BN64: 300.9 | BO64: 3933 | BP64: 1742 | BQ64: 355.1 | BR64: 35.1 | BS64: 88.5 | BT64: 1.293
A65: 1964M10 | B65: 1.45 | C65: 1.45 | D65: 1.45 | E65: .. | F65: .. | G65: .. | H65: 0.15 | I65: 0.3841498024 | J65: .. | K65: .. | L65: 0.509 | M65: 1.0379 | N65: 0.7738038 | O65: 0.927 | P65: 0.8190008 | Q65: 1.039501 | R65: 0.9225996 | S65: 311.4 | T65: .. | U65: .. | V65: 370.65 | W65: 250.77 | X65: .. | Y65: 114.09 | Z65: 270 | AA65: 88.9 | AB65: .. | AC65: .. | AD65: 25.19559289 | AE65: 52.8 | AF65: 47.4 | AG65: 121.48 | AH65: .. | AI65: .. | AJ65: .. | AK65: .. | AL65: 68.71 | AM65: .. | AN65: 0.164 | AO65: 0.084 | AP65: 0.8444 | AQ65: 0.3405104854 | AR65: .. | AS65: 1.9180194 | AT65: 0.12676565 | AU65: 0.12566334 | AV65: 0.0769 | AW65: 1488.3 | AX65: .. | AY65: 28.89 | AZ65: .. | BA65: 141.3054146 | BB65: .. | BC65: 0.646 | BD65: .. | BE65: 0.5181 | BF65: 12.5 | BG65: .. | BH65: 53 | BI65: 60.5 | BJ65: 32.5 | BK65: 529.1088867 | BL65: 10.24 | BM65: 1358.27 | BN65: 331.8 | BO65: 4371.8 | BP65: 1741 | BQ65: 334.4 | BR65: 35.1 | BS65: 88.5 | BT65: 1.293
A66: 1964M11 | B66: 1.45 | C66: 1.45 | D66: 1.45 | E66: .. | F66: .. | G66: .. | H66: 0.15 | I66: 0.3841498024 | J66: .. | K66: .. | L66: 0.5201 | M66: 1.034 | N66: 0.787913 | O66: 0.927 | P66: 0.8190008 | Q66: 1.039501 | R66: 0.9225996 | S66: 314.4 | T66: .. | U66: .. | V66: 359.63 | W66: 254.91 | X66: .. | Y66: 117.67 | Z66: 270 | AA66: 84.5 | AB66: .. | AC66: .. | AD66: 25.11402178 | AE66: 52.8 | AF66: 47.18 | AG66: 120.97 | AH66: .. | AI66: .. | AJ66: .. | AK66: .. | AL66: 67.98 | AM66: .. | AN66: 0.1649 | AO66: 0.084 | AP66: 0.8356 | AQ66: 0.3405987999 | AR66: .. | AS66: 2.094389 | AT66: 0.12676565 | AU66: 0.12345872 | AV66: 0.0725 | AW66: 1488.3 | AX66: .. | AY66: 29.44 | AZ66: .. | BA66: 142.7517846 | BB66: .. | BC66: 0.6413 | BD66: .. | BE66: 0.5093 | BF66: 12.5 | BG66: .. | BH66: 53 | BI66: 60.5 | BJ66: 32.5 | BK66: 529.1088867 | BL66: 10.24 | BM66: 1400.37 | BN66: 365.1 | BO66: 4105 | BP66: 1742 | BQ66: 344.6 | BR66: 35.1 | BS66: 88.5 | BT66: 1.293
A67: 1964M12 | B67: 1.45 | C67: 1.45 | D67: 1.45 | E67: .. | F67: .. | G67: .. | H67: 0.15 | I67: 0.3841498024 | J67: .. | K67: .. | L67: 0.5018 | M67: 1.0053 | N67: 0.7636628 | O67: 0.927 | P67: 0.8190008 | Q67: 1.039501 | R67: 0.9225996 | S67: 326 | T67: .. | U67: .. | V67: 372.86 | W67: 261.25 | X67: .. | Y67: 121.8 | Z67: 317 | AA67: 86.7 | AB67: .. | AC67: .. | AD67: 25.40541829 | AE67: 54.33 | AF67: 48.72 | AG67: 119.08 | AH67: .. | AI67: .. | AJ67: .. | AK67: .. | AL67: 67.98 | AM67: .. | AN67: 0.1261 | AO67: 0.0917 | AP67: 0.8598 | AQ67: 0.3418025424 | AR67: .. | AS67: 2.1164352 | AT67: 0.12456103 | AU67: 0.1322772 | AV67: 0.0591 | AW67: 1488.3 | AX67: .. | AY67: 30.56 | AZ67: .. | BA67: 145.6592066 | BB67: .. | BC67: 0.6426 | BD67: .. | BE67: 0.5004 | BF67: 12.5 | BG67: .. | BH67: 53 | BI67: 60.5 | BJ67: 32.5 | BK67: 540.1318359 | BL67: 10.24 | BM67: 1269.2 | BN67: 383.6 | BO67: 3633.2 | BP67: 1742 | BQ67: 343 | BR67: 35.1 | BS67: 88.5 | BT67: 1.293
A68: 1965M01 | B68: 1.42 | C68: 1.42 | D68: 1.42 | E68: .. | F68: .. | G68: .. | H68: 0.16 | I68: 0.4107661052 | J68: .. | K68: .. | L68: 0.47 | M68: 1.0119 | N68: 0.6283022 | O68: 1.0003 | P68: 0.8463009 | Q68: 1.142401 | R68: 1.0122 | S68: 337.6 | T68: .. | U68: .. | V68: 361.28 | W68: 266.21 | X68: .. | Y68: 123.46 | Z68: 284 | AA68: 92.4 | AB68: .. | AC68: .. | AD68: 25.37793499 | AE68: 55.9 | AF68: 49.82 | AG68: 114.61 | AH68: .. | AI68: .. | AJ68: .. | AK68: .. | AL68: 66.14 | AM68: .. | AN68: 0.127 | AO68: 0.0759 | AP68: 0.8525 | AQ68: 0.3435677569 | AR68: .. | AS68: 2.094389 | AT68: 0.12456103 | AU68: 0.13889106 | AV68: 0.0513 | AW68: 1265.41 | AX68: .. | AY68: 30.56 | AZ68: .. | BA68: 145.6592066 | BB68: .. | BC68: 0.6424 | BD68: .. | BE68: 0.5137 | BF68: 14 | BG68: .. | BH68: 54 | BI68: 65.75 | BJ68: 29.5 | BK68: 540.1318359 | BL68: 10.24 | BM68: 1000.68 | BN68: 347.9 | BO68: 3456.8 | BP68: 1735 | BQ68: 322.3 | BR68: 35.12 | BS68: 93 | BT68: 1.293
A69: 1965M02 | B69: 1.42 | C69: 1.42 | D69: 1.42 | E69: .. | F69: .. | G69: .. | H69: 0.16 | I69: 0.4107661052 | J69: .. | K69: .. | L69: 0.4191 | M69: 1.0384 | N69: 0.6371205 | O69: 1.0003 | P69: 0.8463009 | Q69: 1.142401 | R69: 1.0122 | S69: 356.9 | T69: .. | U69: .. | V69: 373.13 | W69: 283.02 | X69: .. | Y69: 128.42 | Z69: 303 | AA69: 96 | AB69: .. | AC69: .. | AD69: 24.67937518 | AE69: 56.69 | AF69: 49.82 | AG69: 115.94 | AH69: .. | AI69: .. | AJ69: .. | AK69: .. | AL69: 61.36 | AM69: .. | AN69: 0.1581 | AO69: 0.077 | AP69: 0.8519 | AQ69: 0.3452018142 | AR69: .. | AS69: 2.0062042 | AT69: 0.12456103 | AU69: 0.13889106 | AV69: 0.0476 | AW69: 1265.41 | AX69: .. | AY69: 33.33 | AZ69: .. | BA69: 152.6462714 | BB69: .. | BC69: 0.6737 | BD69: .. | BE69: 0.5181 | BF69: 14 | BG69: .. | BH69: 54 | BI69: 65.75 | BJ69: 29.5 | BK69: 540.1318359 | BL69: 10.24 | BM69: 1179.91 | BN69: 389.6 | BO69: 3390.7 | BP69: 1735 | BQ69: 320.3 | BR69: 35.12 | BS69: 98.5 | BT69: 1.293
A70: 1965M03 | B70: 1.42 | C70: 1.42 | D70: 1.42 | E70: .. | F70: .. | G70: .. | H70: 0.16 | I70: 0.4107661052 | J70: .. | K70: .. | L70: 0.353 | M70: 0.9899 | N70: 0.5798017 | O70: 1.0003 | P70: 0.8463009 | Q70: 1.142401 | R70: 1.0122 | S70: 356.9 | T70: .. | U70: .. | V70: 344.2 | W70: 292.11 | X70: .. | Y70: 124.84 | Z70: 300 | AA70: 93.6 | AB70: .. | AC70: .. | AD70: 24.71034044 | AE70: 57.08 | AF70: 48.94 | AG70: 115.56 | AH70: .. | AI70: .. | AJ70: .. | AK70: .. | AL70: 60.99 | AM70: .. | AN70: 0.1519 | AO70: 0.078 | AP70: 0.8514 | AQ70: 0.3459028367 | AR70: .. | AS70: 2.0282504 | AT70: 0.12456103 | AU70: 0.1322772 | AV70: 0.0534 | AW70: 1265.41 | AX70: .. | AY70: 34.17 | AZ70: .. | BA70: 154.7117931 | BB70: .. | BC70: 0.6464 | BD70: .. | BE70: 0.5203 | BF70: 14 | BG70: .. | BH70: 54 | BI70: 65.75 | BJ70: 29.5 | BK70: 540.1318359 | BL70: 10.24 | BM70: 1237.23 | BN70: 395.3 | BO70: 3584.7 | BP70: 1735 | BQ70: 315.9 | BR70: 35.12 | BS70: 98.5 | BT70: 1.293
A71: 1965M04 | B71: 1.42 | C71: 1.42 | D71: 1.42 | E71: .. | F71: .. | G71: .. | H71: 0.16 | I71: 0.4107661052 | J71: .. | K71: .. | L71: 0.3457 | M71: 0.9744 | N71: 0.5469536 | O71: 1.0003 | P71: 0.8463009 | Q71: 1.142401 | R71: 1.0122 | S71: 356.9 | T71: .. | U71: .. | V71: 325.73 | W71: 297.62 | X71: .. | Y71: 123.46 | Z71: 295 | AA71: 94.8 | AB71: .. | AC71: .. | AD71: 24.60484353 | AE71: 57.48 | AF71: 47.84 | AG71: 113.29 | AH71: .. | AI71: .. | AJ71: .. | AK71: .. | AL71: 59.89 | AM71: .. | AN71: 0.162 | AO71: 0.0921 | AP71: 0.8527 | AQ71: 0.3471696177 | AR71: .. | AS71: 2.0723428 | AT71: 0.12456103 | AU71: 0.1322772 | AV71: 0.0512 | AW71: 1265.41 | AX71: .. | AY71: 35.56 | AZ71: .. | BA71: 158.0791083 | BB71: .. | BC71: 0.6493 | BD71: .. | BE71: 0.5335 | BF71: 14 | BG71: .. | BH71: 54 | BI71: 65.75 | BJ71: 29.5 | BK71: 540.1318359 | BL71: 10.24 | BM71: 1348.34 | BN71: 353 | BO71: 3944.1 | BP71: 1735 | BQ71: 315.9 | BR71: 35.12 | BS71: 98.5 | BT71: 1.293
A72: 1965M05 | B72: 1.42 | C72: 1.42 | D72: 1.42 | E72: .. | F72: .. | G72: .. | H72: 0.16 | I72: 0.4107661052 | J72: .. | K72: .. | L72: 0.3276 | M72: 0.9612 | N72: 0.4872098 | O72: 1.0003 | P72: 0.8463009 | Q72: 1.142401 | R72: 1.0122 | S72: 356.9 | T72: .. | U72: .. | V72: 293.76 | W72: 303.13 | X72: .. | Y72: 118.5 | Z72: 256 | AA72: 93.6 | AB72: .. | AC72: .. | AD72: 24.68019174 | AE72: 58.66 | AF72: 47.84 | AG72: 111.77 | AH72: .. | AI72: .. | AJ72: .. | AK72: .. | AL72: 59.16 | AM72: .. | AN72: 0.1499 | AO72: 0.1463 | AP72: 0.8404 | AQ72: 0.348061745 | AR72: .. | AS72: 2.0502966 | AT72: 0.12456103 | AU72: 0.13668644 | AV72: 0.0496 | AW72: 1265.41 | AX72: .. | AY72: 35.56 | AZ72: .. | BA72: 158.0791083 | BB72: .. | BC72: 0.6504 | BD72: .. | BE72: 0.5313 | BF72: 14 | BG72: .. | BH72: 54 | BI72: 65.75 | BJ72: 29.5 | BK72: 540.1318359 | BL72: 15.3 | BM72: 1378.55 | BN72: 302 | BO72: 4215.2 | BP72: 1735 | BQ72: 323.4 | BR72: 35.12 | BS72: 98.5 | BT72: 1.293
A73: 1965M06 | B73: 1.42 | C73: 1.42 | D73: 1.42 | E73: .. | F73: .. | G73: .. | H73: 0.16 | I73: 0.4107661052 | J73: .. | K73: .. | L73: 0.2906 | M73: 0.9811 | N73: 0.6130906 | O73: 1.0003 | P73: 0.8463009 | Q73: 1.142401 | R73: 1.0122 | S73: 420.5 | T73: .. | U73: .. | V73: 296.52 | W73: 294.87 | X73: .. | Y73: 122.08 | Z73: 256 | AA73: 93.6 | AB73: .. | AC73: .. | AD73: 24.44930955 | AE73: 58.26 | AF73: 47.84 | AG73: 110.88 | AH73: .. | AI73: .. | AJ73: .. | AK73: .. | AL73: 58.05 | AM73: .. | AN73: 0.166 | AO73: 0.11 | AP73: 0.8618 | AQ73: 0.3491462469 | AR73: .. | AS73: 1.9621118 | AT73: 0.12456103 | AU73: 0.13668644 | AV73: 0.0412 | AW73: 1265.41 | AX73: .. | AY73: 35.56 | AZ73: .. | BA73: 158.0791083 | BB73: .. | BC73: 0.629 | BD73: .. | BE73: 0.5225 | BF73: 14 | BG73: .. | BH73: 54 | BI73: 65.75 | BJ73: 29.5 | BK73: 540.1318359 | BL73: 10.24 | BM73: 1308.88 | BN73: 278.7 | BO73: 4131.5 | BP73: 1735 | BQ73: 314.4 | BR73: 35.12 | BS73: 98.5 | BT73: 1.293
A74: 1965M07 | B74: 1.42 | C74: 1.42 | D74: 1.42 | E74: .. | F74: .. | G74: .. | H74: 0.16 | I74: 0.4107661052 | J74: .. | K74: .. | L74: 0.259 | M74: 0.9811 | N74: 0.7162645 | O74: 1.0003 | P74: 0.8463009 | Q74: 1.142401 | R74: 1.0122 | S74: 372.6 | T74: .. | U74: .. | V74: 301.76 | W74: 279.99 | X74: .. | Y74: 119.88 | Z74: 248 | AA74: 101.8 | AB74: .. | AC74: .. | AD74: 24.11917795 | AE74: 56.69 | AF74: 47.84 | AG74: 112.04 | AH74: .. | AI74: .. | AJ74: .. | AK74: .. | AL74: 57.32 | AM74: .. | AN74: 0.177 | AO74: 0.096 | AP74: 0.8807 | AQ74: 0.3514937158 | AR74: .. | AS74: 1.9400656 | AT74: 0.12456103 | AU74: 0.13448182 | AV74: 0.0408 | AW74: 1265.41 | AX74: .. | AY74: 35.56 | AZ74: .. | BA74: 158.0791083 | BB74: .. | BC74: 0.6349 | BD74: .. | BE74: 0.4938 | BF74: 14 | BG74: .. | BH74: 54 | BI74: 65.75 | BJ74: 29.5 | BK74: 540.1318359 | BL74: 10.24 | BM74: 1134.06 | BN74: 271.6 | BO74: 3966.1 | BP74: 1735 | BQ74: 310.4 | BR74: 35.12 | BS74: 98.5 | BT74: 1.293
A75: 1965M08 | B75: 1.42 | C75: 1.42 | D75: 1.42 | E75: .. | F75: .. | G75: .. | H75: 0.16 | I75: 0.4107661052 | J75: .. | K75: .. | L75: 0.3258 | M75: 1.0009 | N75: 0.7949677 | O75: 1.0003 | P75: 0.8463009 | Q75: 1.142401 | R75: 1.0122 | S75: 334.8 | T75: .. | U75: .. | V75: 299.28 | W75: 257.66 | X75: .. | Y75: 110.78 | Z75: 234 | AA75: 96 | AB75: .. | AC75: .. | AD75: 23.99647842 | AE75: 55.12 | AF75: 47.4 | AG75: 116.92 | AH75: .. | AI75: .. | AJ75: .. | AK75: .. | AL75: 57.69 | AM75: .. | AN75: 0.17 | AO75: 0.096 | AP75: 0.8942 | AQ75: 0.3517058388 | AR75: .. | AS75: 1.873927 | AT75: 0.12456103 | AU75: 0.13668644 | AV75: 0.0377 | AW75: 1265.41 | AX75: .. | AY75: 35.56 | AZ75: .. | BA75: 158.0791083 | BB75: .. | BC75: 0.6312 | BD75: .. | BE75: 0.4828 | BF75: 14 | BG75: .. | BH75: 54 | BI75: 65.75 | BJ75: 29.5 | BK75: 540.1318359 | BL75: 10.24 | BM75: 1209.9 | BN75: 272 | BO75: 4091.8 | BP75: 1735 | BQ75: 303.6 | BR75: 35.12 | BS75: 98.5 | BT75: 1.293
A76: 1965M09 | B76: 1.42 | C76: 1.42 | D76: 1.42 | E76: .. | F76: .. | G76: .. | H76: 0.16 | I76: 0.4107661052 | J76: .. | K76: .. | L76: 0.3649 | M76: 0.9987 | N76: 0.7775516 | O76: 1.0003 | P76: 0.8463009 | Q76: 1.142401 | R76: 1.0122 | S76: 312 | T76: .. | U76: .. | V76: 308.92 | W76: 246.64 | X76: .. | Y76: 106.1 | Z76: 248 | AA76: 105.3 | AB76: .. | AC76: .. | AD76: 23.99364398 | AE76: 53.93 | AF76: 47.4 | AG76: 126.55 | AH76: .. | AI76: .. | AJ76: .. | AK76: .. | AL76: 58.42 | AM76: .. | AN76: 0.1821 | AO76: 0.096 | AP76: 0.9132 | AQ76: 0.3541989753 | AR76: .. | AS76: 1.8959732 | AT76: 0.12456103 | AU76: 0.13668644 | AV76: 0.039 | AW76: 1265.41 | AX76: .. | AY76: 36.11 | AZ76: .. | BA76: 159.3947361 | BB76: .. | BC76: 0.631 | BD76: .. | BE76: 0.4762 | BF76: 14 | BG76: .. | BH76: 54 | BI76: 65.75 | BJ76: 29.5 | BK76: 540.1318359 | BL76: 10.24 | BM76: 1327.84 | BN76: 289.2 | BO76: 4208.6 | BP76: 1735 | BQ76: 299.6 | BR76: 35.12 | BS76: 98.5 | BT76: 1.293
A77: 1965M10 | B77: 1.42 | C77: 1.42 | D77: 1.42 | E77: .. | F77: .. | G77: .. | H77: 0.16 | I77: 0.4107661052 | J77: .. | K77: .. | L77: 0.3706 | M77: 1.0097 | N77: 0.8073132 | O77: 1.0003 | P77: 0.8463009 | Q77: 1.142401 | R77: 1.0122 | S77: 331 | T77: .. | U77: .. | V77: 324.08 | W77: 250.22 | X77: .. | Y77: 104.44 | Z77: 284 | AA77: 97.1 | AB77: .. | AC77: .. | AD77: 23.59557737 | AE77: 51.57 | AF77: 46.52 | AG77: 126.65 | AH77: .. | AI77: .. | AJ77: .. | AK77: .. | AL77: 58.05 | AM77: .. | AN77: 0.1889 | AO77: 0.096 | AP77: 0.9292 | AQ77: 0.3540733703 | AR77: .. | AS77: 1.9180194 | AT77: 0.12456103 | AU77: 0.13889106 | AV77: 0.0428 | AW77: 1265.41 | AX77: .. | AY77: 36.11 | AZ77: .. | BA77: 159.3947361 | BB77: .. | BC77: 0.6245 | BD77: .. | BE77: 0.4718 | BF77: 14 | BG77: .. | BH77: 54 | BI77: 65.75 | BJ77: 29.5 | BK77: 540.1318359 | BL77: 10.24 | BM77: 1401.92 | BN77: 306.9 | BO77: 4010.2 | BP77: 1735 | BQ77: 307.8 | BR77: 35.12 | BS77: 98.5 | BT77: 1.293
A78: 1965M11 | B78: 1.42 | C78: 1.42 | D78: 1.42 | E78: .. | F78: .. | G78: .. | H78: 0.16 | I78: 0.4107661052 | J78: .. | K78: .. | L78: 0.3986 | M78: 1.0251 | N78: 0.7568286 | O78: 1.0003 | P78: 0.8463009 | Q78: 1.142401 | R78: 1.0122 | S78: 334.8 | T78: .. | U78: .. | V78: 336.2 | W78: 250.22 | X78: .. | Y78: 107.47 | Z78: 276 | AA78: 103 | AB78: .. | AC78: .. | AD78: 23.63474704 | AE78: 51.57 | AF78: 46.3 | AG78: 129.2 | AH78: .. | AI78: .. | AJ78: .. | AK78: .. | AL78: 58.05 | AM78: .. | AN78: 0.1519 | AO78: 0.096 | AP78: 0.9094 | AQ78: 0.3560733477 | AR78: .. | AS78: 2.0062042 | AT78: 0.12456103 | AU78: 0.13668644 | AV78: 0.0377 | AW78: 1265.41 | AX78: .. | AY78: 36.11 | AZ78: .. | BA78: 159.3947361 | BB78: .. | BC78: 0.6228 | BD78: .. | BE78: 0.4894 | BF78: 14 | BG78: .. | BH78: 54 | BI78: 65.75 | BJ78: 29.5 | BK78: 540.1318359 | BL78: 10.24 | BM78: 1469.16 | BN78: 299.2 | BO78: 3820.6 | BP78: 1735 | BQ78: 298.7 | BR78: 35.12 | BS78: 98.5 | BT78: 1.293
A79: 1965M12 | B79: 1.42 | C79: 1.42 | D79: 1.42 | E79: .. | F79: .. | G79: .. | H79: 0.16 | I79: 0.4107661052 | J79: .. | K79: .. | L79: 0.4588 | M79: 1.0318 | N79: 0.7936449 | O79: 1.0003 | P79: 0.8463009 | Q79: 1.142401 | R79: 1.0122 | S79: 330.7 | T79: .. | U79: .. | V79: 322.15 | W79: 248.57 | X79: .. | Y79: 112.99 | Z79: 256 | AA79: 97.1 | AB79: .. | AC79: .. | AD79: 24.29600581 | AE79: 55.12 | AF79: 47.62 | AG79: 132.06 | AH79: .. | AI79: .. | AJ79: .. | AK79: .. | AL79: 58.42 | AM79: .. | AN79: 0.1281 | AO79: 0.0927 | AP79: 0.942 | AQ79: 0.3562832739 | AR79: .. | AS79: 2.0062042 | AT79: 0.12456103 | AU79: 0.13448182 | AV79: 0.0383 | AW79: 1265.41 | AX79: .. | AY79: 36.11 | AZ79: .. | BA79: 159.3947361 | BB79: .. | BC79: 0.6195 | BD79: .. | BE79: 0.5049 | BF79: 14 | BG79: .. | BH79: 54 | BI79: 65.75 | BJ79: 29.5 | BK79: 540.1318359 | BL79: 10.24 | BM79: 1517.66 | BN79: 300.7 | BO79: 3869.1 | BP79: 1735 | BQ79: 302.7 | BR79: 35.12 | BS79: 98.5 | BT79: 1.293
A80: 1966M01 | B80: 1.36 | C80: 1.36 | D80: 1.36 | E80: .. | F80: .. | G80: .. | H80: 0.16 | I80: 0.4249286651 | J80: .. | K80: .. | L80: 0.4731 | M80: 1.0119 | N80: 0.8015813 | O80: 0.9599 | P80: 0.7602008 | Q80: 1.205401 | R80: 0.9141996 | S80: 355.5 | T80: .. | U80: .. | V80: 307.27 | W80: 246.92 | X80: .. | Y80: 119.6 | Z80: 267 | AA80: 101.93 | AB80: .. | AC80: .. | AD80: 24.63215651 | AE80: 57.08 | AF80: 47.62 | AG80: 125.51 | AH80: .. | AI80: .. | AJ80: .. | AK80: .. | AL80: 58.42 | AM80: .. | AN80: 0.129 | AO80: 0.0914 | AP80: 0.9676 | AQ80: 0.3581358251 | AR80: .. | AS80: 2.314851 | AT80: 0.130954428 | AU80: 0.13889106 | AV80: 0.0531 | AW80: 1581.22 | AX80: .. | AY80: 36.11 | AZ80: .. | BA80: 159.3947361 | BB80: .. | BC80: 0.6195 | BD80: .. | BE80: 0.5051 | BF80: 13 | BG80: .. | BH80: 50 | BI80: 59.25 | BJ80: 27.5 | BK80: 540.1318359 | BL80: 9.52 | BM80: 1679.04 | BN80: 301.2 | BO80: 3926.4 | BP80: 1739 | BQ80: 302.7 | BR80: 35.13 | BS80: 98.5 | BT80: 1.293
A81: 1966M02 | B81: 1.36 | C81: 1.36 | D81: 1.36 | E81: .. | F81: .. | G81: .. | H81: 0.16 | I81: 0.4249286651 | J81: .. | K81: .. | L81: 0.4718 | M81: 0.9722 | N81: 0.7577103 | O81: 0.9599 | P81: 0.7602008 | Q81: 1.205401 | R81: 0.9141996 | S81: 348.6 | T81: .. | U81: .. | V81: 299.69 | W81: 248.02 | X81: .. | Y81: 121.8 | Z81: 273 | AA81: 99.1 | AB81: .. | AC81: .. | AD81: 24.74463219 | AE81: 57.08 | AF81: 48.5 | AG81: 124.79 | AH81: .. | AI81: .. | AJ81: .. | AK81: .. | AL81: 58.79 | AM81: .. | AN81: 0.143 | AO81: 0.0728 | AP81: 0.9641 | AQ81: 0.3585674732 | AR81: .. | AS81: 2.314851 | AT81: 0.130954428 | AU81: 0.13889106 | AV81: 0.0489 | AW81: 1581.22 | AX81: .. | AY81: 36.94 | AZ81: .. | BA81: 161.3628116 | BB81: .. | BC81: 0.6195 | BD81: .. | BE81: 0.5066 | BF81: 13 | BG81: .. | BH81: 50 | BI81: 59.25 | BJ81: 27.5 | BK81: 540.1318359 | BL81: 9.52 | BM81: 1874.37 | BN81: 291.5 | BO81: 3877.9 | BP81: 1739 | BQ81: 299.8 | BR81: 35.13 | BS81: 98.5 | BT81: 1.293
A82: 1966M03 | B82: 1.36 | C82: 1.36 | D82: 1.36 | E82: .. | F82: .. | G82: .. | H82: 0.16 | I82: 0.4249286651 | J82: .. | K82: .. | L82: 0.4896 | M82: 0.9546 | N82: 0.7438216 | O82: 0.9599 | P82: 0.7602008 | Q82: 1.205401 | R82: 0.9141996 | S82: 338.4 | T82: .. | U82: .. | V82: 292.8 | W82: 245.26 | X82: .. | Y82: 119.88 | Z82: 265 | AA82: 92.5 | AB82: .. | AC82: .. | AD82: 24.54782111 | AE82: 55.51 | AF82: 47.4 | AG82: 131.73 | AH82: .. | AI82: .. | AJ82: .. | AK82: .. | AL82: 58.79 | AM82: .. | AN82: 0.1731 | AO82: 0.085 | AP82: 1.0673 | AQ82: 0.358374602 | AR82: .. | AS82: 2.314851 | AT82: 0.130954428 | AU82: 0.13668644 | AV82: 0.0472 | AW82: 1581.22 | AX82: .. | AY82: 36.94 | AZ82: .. | BA82: 161.3628116 | BB82: .. | BC82: 0.639 | BD82: .. | BE82: 0.5031 | BF82: 13 | BG82: .. | BH82: 50 | BI82: 59.25 | BJ82: 27.5 | BK82: 540.1318359 | BL82: 9.52 | BM82: 1874.81 | BN82: 292.8 | BO82: 3772.1 | BP82: 1739 | BQ82: 300.7 | BR82: 35.13 | BS82: 99.65 | BT82: 1.293
A83: 1966M04 | B83: 1.36 | C83: 1.36 | D83: 1.36 | E83: .. | F83: .. | G83: .. | H83: 0.16 | I83: 0.4249286651 | J83: .. | K83: .. | L83: 0.5333 | M83: 0.9546 | N83: 0.7605763 | O83: 0.9599 | P83: 0.7602008 | Q83: 1.205401 | R83: 0.9141996 | S83: 331.2 | T83: .. | U83: .. | V83: 285.77 | W83: 233.69 | X83: .. | Y83: 122.08 | Z83: 267 | AA83: 96.9 | AB83: .. | AC83: .. | AD83: 24.64817034 | AE83: 55.9 | AF83: 46.96 | AG83: 143.04 | AH83: .. | AI83: .. | AJ83: .. | AK83: .. | AL83: 58.79 | AM83: .. | AN83: 0.1892 | AO83: 0.0914 | AP83: 1.0714 | AQ83: 0.3599530256 | AR83: .. | AS83: 2.314851 | AT83: 0.130954428 | AU83: 0.13889106 | AV83: 0.0452 | AW83: 1581.22 | AX83: .. | AY83: 36.39 | AZ83: .. | BA83: 160.0609688 | BB83: .. | BC83: 0.6184 | BD83: .. | BE83: 0.4848 | BF83: 13 | BG83: .. | BH83: 50 | BI83: 59.25 | BJ83: 27.5 | BK83: 540.1318359 | BL83: 9.52 | BM83: 1907.44 | BN83: 280.4 | BO83: 3763.3 | BP83: 1739 | BQ83: 278.7 | BR83: 35.13 | BS83: 100 | BT83: 1.293
A84: 1966M05 | B84: 1.36 | C84: 1.36 | D84: 1.36 | E84: .. | F84: .. | G84: .. | H84: 0.16 | I84: 0.4249286651 | J84: .. | K84: .. | L84: 0.513 | M84: 0.9458 | N84: 0.7652059 | O84: 0.9599 | P84: 0.7602008 | Q84: 1.205401 | R84: 0.9141996 | S84: 330.7 | T84: .. | U84: .. | V84: 288.31 | W84: 225.7 | X84: .. | Y84: 124.84 | Z84: 256 | AA84: 102.4 | AB84: .. | AC84: .. | AD84: 24.56941688 | AE84: 55.12 | AF84: 46.96 | AG84: 140.86 | AH84: .. | AI84: .. | AJ84: .. | AK84: .. | AL84: 58.79 | AM84: .. | AN84: 0.1841 | AO84: 0.0877 | AP84: 1.043 | AQ84: 0.3616734465 | AR84: .. | AS84: 2.314851 | AT84: 0.130954428 | AU84: 0.13889106 | AV84: 0.045 | AW84: 1581.22 | AX84: .. | AY84: 36.94 | AZ84: .. | BA84: 161.3628116 | BB84: .. | BC84: 0.6228 | BD84: .. | BE84: 0.4949 | BF84: 13 | BG84: .. | BH84: 50 | BI84: 59.25 | BJ84: 27.5 | BK84: 540.1318359 | BL84: 9.52 | BM84: 1663.61 | BN84: 261.9 | BO84: 3688.3 | BP84: 1739 | BQ84: 270 | BR84: 35.13 | BS84: 100 | BT84: 1.293
A85: 1966M06 | B85: 1.36 | C85: 1.36 | D85: 1.36 | E85: .. | F85: .. | G85: .. | H85: 0.16 | I85: 0.4249286651 | J85: .. | K85: .. | L85: 0.5267 | M85: 0.9237 | N85: 0.7409557 | O85: 0.8132 | P85: 0.7602008 | Q85: 0.7653333 | R85: 0.9141996 | S85: 332.1 | T85: .. | U85: .. | V85: 288.31 | W85: 225.42 | X85: .. | Y85: 130.62 | Z85: 256 | AA85: 117.8 | AB85: .. | AC85: .. | AD85: 25.54338202 | AE85: 57.08 | AF85: 46.74 | AG85: 144.45 | AH85: .. | AI85: .. | AJ85: .. | AK85: .. | AL85: 62.1 | AM85: .. | AN85: 0.181 | AO85: 0.084 | AP85: 0.9923 | AQ85: 0.3647232958 | AR85: .. | AS85: 2.314851 | AT85: 0.130954428 | AU85: 0.13889106 | AV85: 0.037 | AW85: 1581.22 | AX85: .. | AY85: 36.94 | AZ85: .. | BA85: 161.3628116 | BB85: .. | BC85: 0.6182 | BD85: .. | BE85: 0.4733 | BF85: 13 | BG85: .. | BH85: 50 | BI85: 59.25 | BJ85: 27.5 | BK85: 540.1318359 | BL85: 9.52 | BM85: 1695.79 | BN85: 259.3 | BO85: 3516.4 | BP85: 1739 | BQ85: 272.1 | BR85: 35.13 | BS85: 100 | BT85: 1.293
A86: 1966M07 | B86: 1.36 | C86: 1.36 | D86: 1.36 | E86: .. | F86: .. | G86: .. | H86: 0.16 | I86: 0.4249286651 | J86: .. | K86: .. | L86: 0.5761 | M86: 0.9171 | N86: 0.729051 | O86: 0.8132 | P86: 0.7602008 | Q86: 0.7653333 | R86: 0.9141996 | S86: 330.4 | T86: .. | U86: .. | V86: 294.59 | W86: 235.34 | X86: .. | Y86: 138.89 | Z86: 267 | AA86: 123.3 | AB86: .. | AC86: .. | AD86: 26.51018437 | AE86: 59.05 | AF86: 47.18 | AG86: 153.3 | AH86: .. | AI86: .. | AJ86: .. | AK86: .. | AL86: 65.4 | AM86: .. | AN86: 0.144 | AO86: 0.084 | AP86: 0.9669 | AQ86: 0.3663165472 | AR86: .. | AS86: 2.314851 | AT86: 0.130954428 | AU86: 0.14109568 | AV86: 0.0379 | AW86: 1581.22 | AX86: .. | AY86: 36.94 | AZ86: .. | BA86: 161.3628116 | BB86: .. | BC86: 0.6151 | BD86: .. | BE86: 0.4656 | BF86: 13 | BG86: .. | BH86: 50 | BI86: 59.25 | BJ86: 27.5 | BK86: 540.1318359 | BL86: 9.52 | BM86: 1567.93 | BN86: 263.4 | BO86: 3514.2 | BP86: 1739 | BQ86: 264.6 | BR86: 35.13 | BS86: 100 | BT86: 1.293
A87: 1966M08 | B87: 1.36 | C87: 1.36 | D87: 1.36 | E87: .. | F87: .. | G87: .. | H87: 0.16 | I87: 0.4249286651 | J87: .. | K87: .. | L87: 0.573 | M87: 0.9171 | N87: 0.7189101 | O87: 0.8132 | P87: 0.7602008 | Q87: 0.7653333 | R87: 0.9141996 | S87: 319.1 | T87: .. | U87: .. | V87: 304.84 | W87: 239.75 | X87: .. | Y87: 140.27 | Z87: 276 | AA87: 124.4 | AB87: .. | AC87: .. | AD87: 27.51208083 | AE87: 62.6 | AF87: 50.49 | AG87: 150.39 | AH87: .. | AI87: .. | AJ87: .. | AK87: .. | AL87: 67.61 | AM87: .. | AN87: 0.157 | AO87: 0.084 | AP87: 1 | AQ87: 0.3673392134 | AR87: .. | AS87: 2.314851 | AT87: 0.130954428 | AU87: 0.1433003 | AV87: 0.0359 | AW87: 1581.22 | AX87: .. | AY87: 36.94 | AZ87: .. | BA87: 161.3628116 | BB87: .. | BC87: 0.6195 | BD87: .. | BE87: 0.4581 | BF87: 13 | BG87: .. | BH87: 50 | BI87: 59.25 | BJ87: 27.5 | BK87: 540.1318359 | BL87: 9.52 | BM87: 1195.34 | BN87: 242.5 | BO87: 3428.2 | BP87: 1739 | BQ87: 264.6 | BR87: 35.13 | BS87: 100 | BT87: 1.293
A88: 1966M09 | B88: 1.36 | C88: 1.36 | D88: 1.36 | E88: .. | F88: .. | G88: .. | H88: 0.16 | I88: 0.4249286651 | J88: .. | K88: .. | L88: 0.5022 | M88: 0.8995 | N88: 0.6995097 | O88: 0.8132 | P88: 0.7602008 | Q88: 0.7653333 | R88: 0.9141996 | S88: 317.2 | T88: .. | U88: .. | V88: 298.73 | W88: 239.75 | X88: .. | Y88: 127.59 | Z88: 267 | AA88: 112.3 | AB88: .. | AC88: .. | AD88: 27.24653073 | AE88: 61.02 | AF88: 51.59 | AG88: 155.39 | AH88: .. | AI88: .. | AJ88: .. | AK88: .. | AL88: 67.24 | AM88: .. | AN88: 0.139 | AO88: 0.084 | AP88: 1.0529 | AQ88: 0.3666176814 | AR88: .. | AS88: 2.314851 | AT88: 0.130954428 | AU88: 0.1433003 | AV88: 0.0329 | AW88: 1581.22 | AX88: .. | AY88: 36.94 | AZ88: .. | BA88: 161.3628116 | BB88: .. | BC88: 0.6072 | BD88: .. | BE88: 0.4299 | BF88: 13 | BG88: .. | BH88: 50 | BI88: 59.25 | BJ88: 27.5 | BK88: 540.1318359 | BL88: 9.52 | BM88: 1128.32 | BN88: 254.2 | BO88: 3377.5 | BP88: 1739 | BQ88: 270.5 | BR88: 35.13 | BS88: 100 | BT88: 1.293
A89: 1966M10 | B89: 1.36 | C89: 1.36 | D89: 1.36 | E89: .. | F89: .. | G89: .. | H89: 0.16 | I89: 0.4249286651 | J89: .. | K89: .. | L89: 0.5084 | M89: 0.8885 | N89: 0.7171464 | O89: 0.8132 | P89: 0.7602008 | Q89: 0.7653333 | R89: 0.9141996 | S89: 303.1 | T89: .. | U89: .. | V89: 291.84 | W89: 230.93 | X89: .. | Y89: 120.15 | Z89: 251 | AA89: 104.6 | AB89: .. | AC89: .. | AD89: 26.71904877 | AE89: 58.66 | AF89: 48.72 | AG89: 164.26 | AH89: .. | AI89: .. | AJ89: .. | AK89: .. | AL89: 66.14 | AM89: .. | AN89: 0.1281 | AO89: 0.084 | AP89: 1.0529 | AQ89: 0.3663874387 | AR89: .. | AS89: 2.314851 | AT89: 0.130954428 | AU89: 0.14550492 | AV89: 0.0337 | AW89: 1581.22 | AX89: .. | AY89: 36.94 | AZ89: .. | BA89: 161.3628116 | BB89: .. | BC89: 0.6316 | BD89: .. | BE89: 0.4515 | BF89: 13 | BG89: .. | BH89: 50 | BI89: 59.25 | BJ89: 27.5 | BK89: 540.1318359 | BL89: 9.52 | BM89: 1275.37 | BN89: 233.7 | BO89: 3362 | BP89: 1739 | BQ89: 276 | BR89: 35.13 | BS89: 100 | BT89: 1.293
A90: 1966M11 | B90: 1.36 | C90: 1.36 | D90: 1.36 | E90: .. | F90: .. | G90: .. | H90: 0.16 | I90: 0.4249286651 | J90: .. | K90: .. | L90: 0.4952 | M90: 0.8869 | N90: 0.7200123 | O90: 0.8132 | P90: 0.7602008 | Q90: 0.7653333 | R90: 0.9141996 | S90: 277.8 | T90: .. | U90: .. | V90: 292.66 | W90: 225.97 | X90: .. | Y90: 121.25 | Z90: 248 | AA90: 101.3 | AB90: .. | AC90: .. | AD90: 26.75583173 | AE90: 59.05 | AF90: 49.38 | AG90: 166.11 | AH90: .. | AI90: .. | AJ90: .. | AK90: .. | AL90: 65.77 | AM90: .. | AN90: 0.138 | AO90: 0.084 | AP90: 1.0311 | AQ90: 0.3667678763 | AR90: .. | AS90: 2.314851 | AT90: 0.130954428 | AU90: 0.1433003 | AV90: 0.0311 | AW90: 1581.22 | AX90: .. | AY90: 36.94 | AZ90: .. | BA90: 161.3628116 | BB90: .. | BC90: 0.6314 | BD90: .. | BE90: 0.4517 | BF90: 13 | BG90: .. | BH90: 50 | BI90: 59.25 | BJ90: 27.5 | BK90: 540.1318359 | BL90: 9.52 | BM90: 1301.61 | BN90: 222.7 | BO90: 3320.2 | BP90: 1739 | BQ90: 288.1 | BR90: 35.13 | BS90: 100 | BT90: 1.293
A91: 1966M12 | B91: 1.36 | C91: 1.36 | D91: 1.36 | E91: .. | F91: .. | G91: .. | H91: 0.16 | I91: 0.4249286651 | J91: .. | K91: .. | L91: 0.5492 | M91: 0.8728 | N91: 0.7151622 | O91: 0.8132 | P91: 0.7602008 | Q91: 0.7653333 | R91: 0.9141996 | S91: 300.4 | T91: .. | U91: .. | V91: 310.85 | W91: 230.93 | X91: .. | Y91: 120.98 | Z91: 245 | AA91: 107.9 | AB91: .. | AC91: .. | AD91: 27.51203013 | AE91: 61.41 | AF91: 51.37 | AG91: 142.6 | AH91: .. | AI91: .. | AJ91: .. | AK91: .. | AL91: 67.61 | AM91: .. | AN91: 0.14 | AO91: 0.076 | AP91: 1.0587 | AQ91: 0.3686455207 | AR91: .. | AS91: 2.314851 | AT91: 0.130954428 | AU91: 0.1433003 | AV91: 0.0298 | AW91: 1581.22 | AX91: .. | AY91: 36.94 | AZ91: .. | BA91: 161.3628116 | BB91: .. | BC91: 0.6314 | BD91: .. | BE91: 0.4341 | BF91: 13 | BG91: .. | BH91: 50 | BI91: 59.25 | BJ91: 27.5 | BK91: 540.1318359 | BL91: 9.52 | BM91: 1214.53 | BN91: 224.2 | BO91: 3335.6 | BP91: 1739 | BQ91: 285.5 | BR91: 35.13 | BS91: 100 | BT91: 1.293
A92: 1967M01 | B92: 1.33 | C92: 1.33 | D92: 1.33 | E92: .. | F92: .. | G92: .. | H92: 0.16 | I92: 0.4566473763 | J92: .. | K92: .. | L92: 0.5739 | M92: 0.8501 | N92: 0.7056826 | O92: 0.8402 | P92: 0.7308007 | Q92: 0.7986667 | R92: 0.9911996 | S92: 310 | T92: .. | U92: .. | V92: 303.41 | W92: 234.24 | X92: .. | Y92: 117.4 | Z92: 231 | AA92: 104.6 | AB92: .. | AC92: .. | AD92: 27.3045923 | AE92: 60.23 | AF92: 52.91 | AG92: 142.27 | AH92: .. | AI92: .. | AJ92: .. | AK92: .. | AL92: 67.24 | AM92: .. | AN92: 0.157 | AO92: 0.1764 | AP92: 1.0783 | AQ92: 0.3690440126 | AR92: .. | AS92: 2.2928048 | AT92: 0.129411194 | AU92: 0.1433003 | AV92: 0.0287 | AW92: 1299.43 | AX92: .. | AY92: 36.94 | AZ92: .. | BA92: 161.3628116 | BB92: .. | BC92: 0.6449 | BD92: .. | BE92: 0.4264 | BF92: 12 | BG92: 68.5 | BH92: 46.5 | BI92: 49.25 | BJ92: 25.5 | BK92: 540.1318359 | BL92: 8.86 | BM92: 1243.85 | BN92: 220.2 | BO92: 3302.5 | BP92: 1935.7 | BQ92: 279.5 | BR92: 34.95 | BS92: 102.93 | BT92: 1.293
A93: 1967M02 | B93: 1.33 | C93: 1.33 | D93: 1.33 | E93: .. | F93: .. | G93: .. | H93: 0.16 | I93: 0.4566473763 | J93: .. | K93: .. | L93: 0.6078 | M93: 0.8441 | N93: 0.7286101 | O93: 0.8402 | P93: 0.7308007 | Q93: 0.7986667 | R93: 0.9911996 | S93: 316.9 | T93: .. | U93: .. | V93: 297.07 | W93: 230.66 | X93: .. | Y93: 116.84 | Z93: 225 | AA93: 101.3 | AB93: .. | AC93: .. | AD93: 27.30021162 | AE93: 59.05 | AF93: 52.91 | AG93: 151.45 | AH93: .. | AI93: .. | AJ93: .. | AK93: .. | AL93: 67.98 | AM93: .. | AN93: 0.143 | AO93: 0.1474 | AP93: 1.0642 | AQ93: 0.3692617268 | AR93: .. | AS93: 2.2928048 | AT93: 0.129411194 | AU93: 0.14550492 | AV93: 0.037 | AW93: 1299.43 | AX93: .. | AY93: 37.5 | AZ93: .. | BA93: 162.6791954 | BB93: .. | BC93: 0.6596 | BD93: .. | BE93: 0.4085 | BF93: 12 | BG93: 68.5 | BH93: 46.5 | BI93: 49.25 | BJ93: 25.5 | BK93: 540.1318359 | BL93: 8.86 | BM93: 1220.48 | BN93: 221.8 | BO93: 3309.1 | BP93: 1935.7 | BQ93: 282.2 | BR93: 34.95 | BS93: 110.5 | BT93: 1.293
A94: 1967M03 | B94: 1.33 | C94: 1.33 | D94: 1.33 | E94: .. | F94: .. | G94: .. | H94: 0.16 | I94: 0.4566473763 | J94: .. | K94: .. | L94: 0.5952 | M94: 0.8228 | N94: 0.7257441 | O94: 0.8402 | P94: 0.7308007 | Q94: 0.7986667 | R94: 0.9911996 | S94: 314.2 | T94: .. | U94: .. | V94: 300.65 | W94: 223.22 | X94: .. | Y94: 115.74 | Z94: 231 | AA94: 98 | AB94: .. | AC94: .. | AD94: 27.68090395 | AE94: 59.05 | AF94: 54.89 | AG94: 163.53 | AH94: .. | AI94: .. | AJ94: .. | AK94: .. | AL94: 69.81 | AM94: .. | AN94: 0.162 | AO94: 0.1592 | AP94: 1.0448 | AQ94: 0.3694627993 | AR94: .. | AS94: 2.2928048 | AT94: 0.129411194 | AU94: 0.14550492 | AV94: 0.0346 | AW94: 1299.43 | AX94: .. | AY94: 38.33 | AZ94: .. | BA94: 164.6137443 | BB94: .. | BC94: 0.6636 | BD94: .. | BE94: 0.4083 | BF94: 12 | BG94: 68.5 | BH94: 46.5 | BI94: 49.25 | BJ94: 25.5 | BK94: 540.1318359 | BL94: 8.86 | BM94: 1098.34 | BN94: 228.4 | BO94: 3318 | BP94: 1935.7 | BQ94: 279.3 | BR94: 34.95 | BS94: 110.5 | BT94: 1.293
A95: 1967M04 | B95: 1.33 | C95: 1.33 | D95: 1.33 | E95: .. | F95: .. | G95: .. | H95: 0.16 | I95: 0.4566473763 | J95: .. | K95: .. | L95: 0.5754 | M95: 0.8508 | N95: 0.7471284 | O95: 0.8402 | P95: 0.7308007 | Q95: 0.7986667 | R95: 0.9911996 | S95: 305.1 | T95: .. | U95: .. | V95: 292.39 | W95: 223.22 | X95: .. | Y95: 116.29 | Z95: 227 | AA95: 95.8 | AB95: .. | AC95: .. | AD95: 27.26641317 | AE95: 57.87 | AF95: 54.23 | AG95: 168.53 | AH95: .. | AI95: .. | AJ95: .. | AK95: .. | AL95: 68.34 | AM95: .. | AN95: 0.164 | AO95: 0.157 | AP95: 1.0569 | AQ95: 0.3698285862 | AR95: .. | AS95: 2.2928048 | AT95: 0.129411194 | AU95: 0.14550492 | AV95: 0.0452 | AW95: 1299.43 | AX95: .. | AY95: 38.33 | AZ95: .. | BA95: 164.6137443 | BB95: .. | BC95: 0.6614 | BD95: .. | BE95: 0.4114 | BF95: 12 | BG95: 68.5 | BH95: 46.5 | BI95: 49.25 | BJ95: 25.5 | BK95: 540.1318359 | BL95: 8.86 | BM95: 994.72 | BN95: 226.6 | BO95: 3351 | BP95: 1935.7 | BQ95: 272.1 | BR95: 34.95 | BS95: 110.5 | BT95: 1.293
A96: 1967M05 | B96: 1.33 | C96: 1.33 | D96: 1.33 | E96: .. | F96: .. | G96: .. | H96: 0.16 | I96: 0.4566473763 | J96: .. | K96: .. | L96: 0.5688 | M96: 0.8891 | N96: 0.7702765 | O96: 0.8402 | P96: 0.7308007 | Q96: 0.7986667 | R96: 0.9911996 | S96: 283.8 | T96: .. | U96: .. | V96: 288.8 | W96: 223.77 | X96: .. | Y96: 116.29 | Z96: 224 | AA96: 94.7 | AB96: .. | AC96: .. | AD96: 27.1821742 | AE96: 57.08 | AF96: 54.45 | AG96: 175.8 | AH96: .. | AI96: .. | AJ96: .. | AK96: .. | AL96: 68.34 | AM96: .. | AN96: 0.1499 | AO96: 0.1474 | AP96: 1.0351 | AQ96: 0.3703713238 | AR96: .. | AS96: 2.2928048 | AT96: 0.129411194 | AU96: 0.14770954 | AV96: 0.056 | AW96: 1299.43 | AX96: .. | AY96: 38.89 | AZ96: .. | BA96: 165.9081117 | BB96: .. | BC96: 0.6614 | BD96: .. | BE96: 0.4039 | BF96: 12 | BG96: 68.5 | BH96: 46.5 | BI96: 49.25 | BJ96: 25.5 | BK96: 540.1318359 | BL96: 8.86 | BM96: 1036.17 | BN96: 226.2 | BO96: 3357.6 | BP96: 1935.7 | BQ96: 275.1 | BR96: 34.95 | BS96: 110.5 | BT96: 1.2959
A97: 1967M06 | B97: 1.33 | C97: 1.33 | D97: 1.33 | E97: .. | F97: .. | G97: .. | H97: 0.16 | I97: 0.4566473763 | J97: .. | K97: .. | L97: 0.5792 | M97: 0.9092 | N97: 0.7824016 | O97: 0.8402 | P97: 0.7308007 | Q97: 0.7986667 | R97: 0.9911996 | S97: 319.7 | T97: .. | U97: .. | V97: 293.76 | W97: 229.28 | X97: .. | Y97: 117.4 | Z97: 226 | AA97: 98.9 | AB97: .. | AC97: .. | AD97: 26.89027256 | AE97: 57.08 | AF97: 52.91 | AG97: 184.54 | AH97: .. | AI97: .. | AJ97: .. | AK97: .. | AL97: 66.51 | AM97: .. | AN97: 0.1609 | AO97: 0.159 | AP97: 1.0362 | AQ97: 0.3717870654 | AR97: .. | AS97: 2.2928048 | AT97: 0.129411194 | AU97: 0.14770954 | AV97: 0.0547 | AW97: 1299.43 | AX97: .. | AY97: 38.89 | AZ97: .. | BA97: 165.9081117 | BB97: .. | BC97: 0.6667 | BD97: .. | BE97: 0.4112 | BF97: 12 | BG97: 68.5 | BH97: 46.5 | BI97: 49.25 | BJ97: 25.5 | BK97: 540.1318359 | BL97: 8.86 | BM97: 1015.22 | BN97: 228.2 | BO97: 3366.5 | BP97: 1935.7 | BQ97: 274.3 | BR97: 34.95 | BS97: 110.5 | BT97: 1.301
A98: 1967M07 | B98: 1.33 | C98: 1.33 | D98: 1.33 | E98: .. | F98: .. | G98: .. | H98: 0.16 | I98: 0.4566473763 | J98: .. | K98: .. | L98: 0.5686 | M98: 0.9026 | N98: 0.7407352 | O98: 0.8402 | P98: 0.7308007 | Q98: 0.7986667 | R98: 0.9911996 | S98: 318.3 | T98: .. | U98: .. | V98: 294.59 | W98: 228.73 | X98: .. | Y98: 115.19 | Z98: 212 | AA98: 98.9 | AB98: .. | AC98: .. | AD98: 26.27104018 | AE98: 55.12 | AF98: 52.03 | AG98: 206.24 | AH98: .. | AI98: .. | AJ98: .. | AK98: .. | AL98: 64.67 | AM98: .. | AN98: 0.159 | AO98: 0.159 | AP98: 1.0353 | AQ98: 0.3725165369 | AR98: .. | AS98: 2.2928048 | AT98: 0.129411194 | AU98: 0.14770954 | AV98: 0.037 | AW98: 1299.43 | AX98: .. | AY98: 38.89 | AZ98: .. | BA98: 165.9081117 | BB98: .. | BC98: 0.668 | BD98: .. | BE98: 0.3988 | BF98: 12 | BG98: 68.5 | BH98: 43.5 | BI98: 49.25 | BJ98: 25.5 | BK98: 540.1318359 | BL98: 8.86 | BM98: 997.37 | BN98: 231.3 | BO98: 3362 | BP98: 1935.7 | BQ98: 267.2 | BR98: 34.95 | BS98: 110.5 | BT98: 1.5929
A99: 1967M08 | B99: 1.33 | C99: 1.33 | D99: 1.33 | E99: .. | F99: .. | G99: .. | H99: 0.16 | I99: 0.4566473763 | J99: .. | K99: .. | L99: 0.5855 | M99: 0.8761 | N99: 0.7175872 | O99: 0.8402 | P99: 0.7308007 | Q99: 0.7986667 | R99: 0.9911996 | S99: 310 | T99: .. | U99: .. | V99: 291.56 | W99: 228.73 | X99: .. | Y99: 111.13 | Z99: 210 | AA99: 98.9 | AB99: .. | AC99: .. | AD99: 25.64879656 | AE99: 51.97 | AF99: 50.26 | AG99: 207.22 | AH99: .. | AI99: .. | AJ99: .. | AK99: .. | AL99: 63.93 | AM99: .. | AN99: 0.1499 | AO99: 0.159 | AP99: 1.0285 | AQ99: 0.3732474397 | AR99: .. | AS99: 2.2928048 | AT99: 0.129411194 | AU99: 0.14770954 | AV99: 0.0362 | AW99: 1299.43 | AX99: .. | AY99: 38.89 | AZ99: .. | BA99: 165.9081117 | BB99: .. | BC99: 0.6775 | BD99: .. | BE99: 0.3748 | BF99: 12 | BG99: 68.5 | BH99: 43.5 | BI99: 49.25 | BJ99: 25.5 | BK99: 540.1318359 | BL99: 8.86 | BM99: 1044.55 | BN99: 232.3 | BO99: 3291.5 | BP99: 1935.7 | BQ99: 268.7 | BR99: 34.95 | BS99: 110.5 | BT99: 1.7498
A100: 1967M09 | B100: 1.33 | C100: 1.33 | D100: 1.33 | E100: .. | F100: .. | G100: .. | H100: 0.16 | I100: 0.4566473763 | J100: .. | K100: .. | L100: 0.6239 | M100: 0.8607 | N100: 0.7239805 | O100: 0.8402 | P100: 0.7308007 | Q100: 0.7986667 | R100: 0.9911996 | S100: 324.9 | T100: .. | U100: .. | V100: 275.3 | W100: 225.15 | X100: .. | Y100: 111.06 | Z100: 206 | AA100: 98.9 | AB100: .. | AC100: .. | AD100: 25.07862494 | AE100: 49.21 | AF100: 49.6 | AG100: 221.64 | AH100: .. | AI100: .. | AJ100: .. | AK100: .. | AL100: 63.2 | AM100: .. | AN100: 0.1799 | AO100: 0.159 | AP100: 1.0384 | AQ100: 0.3739797765 | AR100: .. | AS100: 2.2928048 | AT100: 0.129411194 | AU100: 0.14770954 | AV100: 0.037 | AW100: 1299.43 | AX100: .. | AY100: 40.28 | AZ100: .. | BA100: 169.084361 | BB100: .. | BC100: 0.6909 | BD100: .. | BE100: 0.3649 | BF100: 12 | BG100: 68.5 | BH100: 43.5 | BI100: 49.25 | BJ100: 25.5 | BK100: 540.1318359 | BL100: 8.86 | BM100: 1060.2 | BN100: 226.9 | BO100: 3267.2 | BP100: 1935.7 | BQ100: 264.6 | BR100: 34.95 | BS100: 110.5 | BT100: 1.6795
A101: 1967M10 | B101: 1.33 | C101: 1.33 | D101: 1.33 | E101: .. | F101: .. | G101: .. | H101: 0.16 | I101: 0.4566473763 | J101: .. | K101: .. | L101: 0.6078 | M101: 0.8472 | N101: 0.729492 | O101: 0.8402 | P101: 0.7308007 | Q101: 0.7986667 | R101: 0.9911996 | S101: 350.5 | T101: .. | U101: .. | V101: 259.04 | W101: 221.56 | X101: .. | Y101: 109.96 | Z101: 203 | AA101: 98.9 | AB101: .. | AC101: .. | AD101: 24.97713143 | AE101: 48.03 | AF101: 49.38 | AG101: 224.12 | AH101: .. | AI101: .. | AJ101: .. | AK101: .. | AL101: 63.57 | AM101: .. | AN101: 0.179 | AO101: 0.159 | AP101: 1.0432 | AQ101: 0.3747135502 | AR101: .. | AS101: 2.2928048 | AT101: 0.129411194 | AU101: 0.14991416 | AV101: 0.0428 | AW101: 1299.43 | AX101: .. | AY101: 41.67 | AZ101: .. | BA101: 172.2105768 | BB101: .. | BC101: 0.7024 | BD101: .. | BE101: 0.3618 | BF101: 12 | BG101: 68.5 | BH101: 43.5 | BI101: 49.25 | BJ101: 25.5 | BK101: 540.1318359 | BL101: 8.86 | BM101: 1138.47 | BN101: 225.7 | BO101: 3280.5 | BP101: 1935.7 | BQ101: 263.9 | BR101: 34.95 | BS101: 110.5 | BT101: 1.7859
A102: 1967M11 | B102: 1.33 | C102: 1.33 | D102: 1.33 | E102: .. | F102: .. | G102: .. | H102: 0.16 | I102: 0.4566473763 | J102: .. | K102: .. | L102: 0.6442 | M102: 0.8666 | N102: 0.7477898 | O102: 0.8402 | P102: 0.7308007 | Q102: 0.7986667 | R102: 0.9911996 | S102: 376.2 | T102: .. | U102: .. | V102: 248.02 | W102: 217.98 | X102: .. | Y102: 116.02 | Z102: 211 | AA102: 98.9 | AB102: .. | AC102: .. | AD102: 24.81447247 | AE102: 47.64 | AF102: 48.94 | AG102: 213.57 | AH102: .. | AI102: .. | AJ102: .. | AK102: .. | AL102: 62.83 | AM102: .. | AN102: 0.1649 | AO102: 0.159 | AP102: 1.0126 | AQ102: 0.3754487637 | AR102: .. | AS102: 2.2928048 | AT102: 0.129411194 | AU102: 0.14991416 | AV102: 0.0485 | AW102: 1299.43 | AX102: .. | AY102: 41.67 | AZ102: .. | BA102: 172.2105768 | BB102: .. | BC102: 0.7055 | BD102: .. | BE102: 0.3541 | BF102: 12 | BG102: 68.5 | BH102: 43.5 | BI102: 49.25 | BJ102: 25.5 | BK102: 540.1318359 | BL102: 8.86 | BM102: 1443.81 | BN102: 242.1 | BO102: 3298.1 | BP102: 1935.7 | BQ102: 287 | BR102: 34.95 | BS102: 110.5 | BT102: 1.9532
A103: 1967M12 | B103: 1.33 | C103: 1.33 | D103: 1.33 | E103: .. | F103: .. | G103: .. | H103: 0.16 | I103: 0.4566473763 | J103: .. | K103: .. | L103: 0.6471 | M103: 0.8512 | N103: 0.7499944 | O103: 0.7915 | P103: 0.5846411 | Q103: 0.7986667 | R103: 0.9911996 | S103: 386.7 | T103: .. | U103: .. | V103: 250.85 | W103: 194.87 | X103: .. | Y103: 113.38 | Z103: 196 | AA103: 98.9 | AB103: .. | AC103: .. | AD103: 24.589256 | AE103: 46.9 | AF103: 50.26 | AG103: 213.57 | AH103: .. | AI103: .. | AJ103: .. | AK103: .. | AL103: 62.1 | AM103: .. | AN103: 0.134 | AO103: 0.1667 | AP103: 1.0201 | AQ103: 0.3761854197 | AR103: .. | AS103: 2.2928048 | AT103: 0.129411194 | AU103: 0.14770954 | AV103: 0.047 | AW103: 1299.43 | AX103: .. | AY103: 41.67 | AZ103: .. | BA103: 172.2105768 | BB103: .. | BC103: 0.7165 | BD103: .. | BE103: 0.3574 | BF103: 12 | BG103: 68.5 | BH103: 43.5 | BI103: 49.25 | BJ103: 25.5 | BK103: 540.1318359 | BL103: 8.86 | BM103: 1324.09 | BN103: 222.4 | BO103: 3192.3 | BP103: 1935.7 | BQ103: 266.1 | BR103: 34.95 | BS103: 115.05 | BT103: 2.06
A104: 1968M01 | B104: 1.32 | C104: 1.32 | D104: 1.32 | E104: .. | F104: .. | G104: .. | H104: 0.16 | I104: 0.4518018774 | J104: .. | K104: .. | L104: 0.6543 | M104: 0.866 | N104: 0.7596945 | O104: 0.7487 | P104: 0.6770413 | Q104: 0.7333334 | R104: 0.8357997 | S104: 398 | T104: .. | U104: .. | V104: 251.33 | W104: 191.33 | X104: .. | Y104: 114.09 | Z104: 196 | AA104: 97 | AB104: .. | AC104: .. | AD104: 25.45191586 | AE104: 51.57 | AF104: 55.6 | AG104: 198.78 | AH104: .. | AI104: .. | AJ104: .. | AK104: .. | AL104: 62.1 | AM104: .. | AN104: 0.114 | AO104: 0.1628 | AP104: 1.026 | AQ104: 0.3766110917 | AR104: .. | AS104: 2.5794054 | AT104: 0.112215158 | AU104: 0.14991416 | AV104: 0.0467 | AW104: 1253.81 | AX104: .. | AY104: 41.67 | AZ104: .. | BA104: 172.2105768 | BB104: .. | BC104: 0.7165 | BD104: .. | BE104: 0.347 | BF104: 11.5 | BG104: 60.5 | BH104: 39 | BI104: 35.5 | BJ104: 24 | BK104: 540.1318359 | BL104: 8.77 | BM104: 1408.75 | BN104: 218 | BO104: 3126.2 | BP104: 2074.5 | BQ104: 262.8 | BR104: 35.5 | BS104: 114 | BT104: 1.9899
A105: 1968M02 | B105: 1.32 | C105: 1.32 | D105: 1.32 | E105: .. | F105: .. | G105: .. | H105: 0.16 | I105: 0.4518018774 | J105: .. | K105: .. | L105: 0.6321 | M105: 0.8691 | N105: 0.7566082 | O105: 0.7487 | P105: 0.6770413 | Q105: 0.7333334 | R105: 0.8357997 | S105: 412.2 | T105: .. | U105: .. | V105: 255.34 | W105: 191.33 | X105: .. | Y105: 114.56 | Z105: 193 | AA105: 97 | AB105: .. | AC105: .. | AD105: 25.56406273 | AE105: 51.18 | AF105: 58.1 | AG105: 207.03 | AH105: .. | AI105: .. | AJ105: .. | AK105: .. | AL105: 62.83 | AM105: .. | AN105: 0.166 | AO105: 0.1706 | AP105: 1.0226 | AQ105: 0.377938804 | AR105: .. | AS105: 2.5794054 | AT105: 0.112215158 | AU105: 0.14991416 | AV105: 0.0461 | AW105: 1248.52 | AX105: .. | AY105: 41.67 | AZ105: .. | BA105: 172.2105768 | BB105: .. | BC105: 0.7128 | BD105: .. | BE105: 0.3269 | BF105: 11.5 | BG105: 60.5 | BH105: 39 | BI105: 35.5 | BJ105: 24 | BK105: 540.1318359 | BL105: 8.77 | BM105: 1719.82 | BN105: 227.5 | BO105: 3110.7 | BP105: 2074.5 | BQ105: 259.7 | BR105: 36 | BS105: 111.5 | BT105: 1.8547
A106: 1968M03 | B106: 1.32 | C106: 1.32 | D106: 1.32 | E106: .. | F106: .. | G106: .. | H106: 0.16 | I106: 0.4518018774 | J106: .. | K106: .. | L106: 0.6235 | M106: 0.8821 | N106: 0.7548445 | O106: 0.7487 | P106: 0.6770413 | Q106: 0.7333334 | R106: 0.8357997 | S106: 423 | T106: .. | U106: .. | V106: 256.52 | W106: 191.33 | X106: .. | Y106: 115.51 | Z106: 191 | AA106: 96 | AB106: .. | AC106: .. | AD106: 25.53764357 | AE106: 50 | AF106: 57 | AG106: 209.78 | AH106: .. | AI106: .. | AJ106: .. | AK106: .. | AL106: 63.57 | AM106: .. | AN106: 0.162 | AO106: 0.1807 | AP106: 1.0251 | AQ106: 0.3791032216 | AR106: .. | AS106: 2.5794054 | AT106: 0.112215158 | AU106: 0.14991416 | AV106: 0.0417 | AW106: 1234.74 | AX106: .. | AY106: 41.67 | AZ106: .. | BA106: 172.2105768 | BB106: .. | BC106: 0.7099 | BD106: .. | BE106: 0.3563 | BF106: 11.5 | BG106: 60.5 | BH106: 39 | BI106: 35.5 | BJ106: 24 | BK106: 540.1318359 | BL106: 8.77 | BM106: 1701.08 | BN106: 233.9 | BO106: 3112.9 | BP106: 2074.5 | BQ106: 257.5 | BR106: 37 | BS106: 111.5 | BT106: 2.1805
A107: 1968M04 | B107: 1.32 | C107: 1.32 | D107: 1.32 | E107: .. | F107: .. | G107: .. | H107: 0.16 | I107: 0.4518018774 | J107: .. | K107: .. | L107: 0.6288 | M107: 0.886 | N107: 0.7533013 | O107: 0.7487 | P107: 0.6770413 | Q107: 0.7333334 | R107: 0.8357997 | S107: 435.8 | T107: .. | U107: .. | V107: 259.59 | W107: 188.97 | X107: .. | Y107: 113.14 | Z107: 190 | AA107: 95 | AB107: .. | AC107: .. | AD107: 24.88921296 | AE107: 48.03 | AF107: 57 | AG107: 197.01 | AH107: .. | AI107: .. | AJ107: .. | AK107: .. | AL107: 61.73 | AM107: .. | AN107: 0.1744 | AO107: 0.1818 | AP107: 1.0459 | AQ107: 0.3802694627 | AR107: .. | AS107: 2.5794054 | AT107: 0.112215158 | AU107: 0.14991416 | AV107: 0.0388 | AW107: 1210.46 | AX107: .. | AY107: 41.67 | AZ107: .. | BA107: 172.2105768 | BB107: .. | BC107: 0.711 | BD107: .. | BE107: 0.3587 | BF107: 11.5 | BG107: 60.5 | BH107: 39 | BI107: 35.5 | BJ107: 24 | BK107: 540.1318359 | BL107: 8.77 | BM107: 1255.09 | BN107: 235 | BO107: 3106.3 | BP107: 2074.5 | BQ107: 258.2 | BR107: 37.86 | BS107: 111.5 | BT107: 2.2028
A108: 1968M05 | B108: 1.32 | C108: 1.32 | D108: 1.32 | E108: .. | F108: .. | G108: .. | H108: 0.16 | I108: 0.4518018774 | J108: .. | K108: .. | L108: 0.6243 | M108: 0.8816 | N108: 0.7550649 | O108: 0.7487 | P108: 0.6770413 | Q108: 0.7333334 | R108: 0.8357997 | S108: 439.8 | T108: .. | U108: .. | V108: 271.64 | W108: 186.13 | X108: .. | Y108: 114.32 | Z108: 189 | AA108: 96 | AB108: .. | AC108: .. | AD108: 24.72536842 | AE108: 48.42 | AF108: 53.1 | AG108: 187.09 | AH108: .. | AI108: .. | AJ108: .. | AK108: .. | AL108: 60.26 | AM108: .. | AN108: 0.183 | AO108: 0.1918 | AP108: 1.0785 | AQ108: 0.3817809296 | AR108: .. | AS108: 2.5794054 | AT108: 0.112215158 | AU108: 0.15211878 | AV108: 0.0414 | AW108: 1200.88 | AX108: .. | AY108: 41.67 | AZ108: .. | BA108: 172.2105768 | BB108: .. | BC108: 0.7097 | BD108: .. | BE108: 0.3704 | BF108: 11.5 | BG108: 60.5 | BH108: 39 | BI108: 35.5 | BJ108: 24 | BK108: 540.1318359 | BL108: 8.77 | BM108: 1096.58 | BN108: 237.7 | BO108: 3084.3 | BP108: 2074.5 | BQ108: 261.5 | BR108: 40.7 | BS108: 111.5 | BT108: 2.3768
A109: 1968M06 | B109: 1.32 | C109: 1.32 | D109: 1.32 | E109: .. | F109: .. | G109: .. | H109: 0.16 | I109: 0.4518018774 | J109: .. | K109: .. | L109: 0.6133 | M109: 0.888 | N109: 0.7566082 | O109: 0.7487 | P109: 0.6770413 | Q109: 0.7333334 | R109: 0.8357997 | S109: 406.8 | T109: .. | U109: .. | V109: 279.2 | W109: 174.79 | X109: .. | Y109: 111.96 | Z109: 178 | AA109: 96 | AB109: .. | AC109: .. | AD109: 24.90161395 | AE109: 47.64 | AF109: 51.3 | AG109: 179.34 | AH109: .. | AI109: .. | AJ109: .. | AK109: .. | AL109: 61.73 | AM109: .. | AN109: 0.1523 | AO109: 0.1587 | AP109: 1.1062 | AQ109: 0.3831268677 | AR109: .. | AS109: 2.5794054 | AT109: 0.112215158 | AU109: 0.1543234 | AV109: 0.0384 | AW109: 1205.41 | AX109: .. | AY109: 38.89 | AZ109: .. | BA109: 165.9081117 | BB109: .. | BC109: 0.7 | BD109: .. | BE109: 0.3986 | BF109: 11.5 | BG109: 60.5 | BH109: 39 | BI109: 35.5 | BJ109: 24 | BK109: 562.1779785 | BL109: 8.77 | BM109: 1136.7 | BN109: 238.5 | BO109: 3084.3 | BP109: 2074.5 | BQ109: 262.1 | BR109: 41.14 | BS109: 111.5 | BT109: 2.4641
A110: 1968M07 | B110: 1.32 | C110: 1.32 | D110: 1.32 | E110: .. | F110: .. | G110: .. | H110: 0.16 | I110: 0.4518018774 | J110: .. | K110: .. | L110: 0.6257 | M110: 0.8814 | N110: 0.749774 | O110: 0.7487 | P110: 0.6770413 | Q110: 0.7333334 | R110: 0.8357997 | S110: 377.9 | T110: .. | U110: .. | V110: 261.25 | W110: 172.43 | X110: .. | Y110: 110.78 | Z110: 162 | AA110: 96 | AB110: .. | AC110: .. | AD110: 25.20781033 | AE110: 47.24 | AF110: 49.8 | AG110: 181.69 | AH110: .. | AI110: .. | AJ110: .. | AK110: .. | AL110: 63.57 | AM110: .. | AN110: 0.1585 | AO110: 0.1587 | AP110: 1.0992 | AQ110: 0.3844775509 | AR110: .. | AS110: 2.5794054 | AT110: 0.112215158 | AU110: 0.1543234 | AV110: 0.0359 | AW110: 1173.9 | AX110: .. | AY110: 38.89 | AZ110: .. | BA110: 165.9081117 | BB110: .. | BC110: 0.6918 | BD110: .. | BE110: 0.3913 | BF110: 11.5 | BG110: 60.5 | BH110: 36 | BI110: 35.5 | BJ110: 24 | BK110: 562.1779785 | BL110: 8.77 | BM110: 1054.25 | BN110: 247.1 | BO110: 3075.4 | BP110: 2074.5 | BQ110: 265.7 | BR110: 39.46 | BS110: 122.5 | BT110: 2.3138
A111: 1968M08 | B111: 1.32 | C111: 1.32 | D111: 1.32 | E111: .. | F111: .. | G111: .. | H111: 0.16 | I111: 0.4518018774 | J111: .. | K111: .. | L111: 0.6526 | M111: 0.8662 | N111: 0.7475694 | O111: 0.7487 | P111: 0.6770413 | Q111: 0.7333334 | R111: 0.8357997 | S111: 385.5 | T111: .. | U111: .. | V111: 266.68 | W111: 150.23 | X111: .. | Y111: 105.82 | Z111: 157 | AA111: 96 | AB111: .. | AC111: .. | AD111: 24.87051229 | AE111: 44.88 | AF111: 46.9 | AG111: 177.69 | AH111: .. | AI111: .. | AJ111: .. | AK111: .. | AL111: 63.93 | AM111: .. | AN111: 0.1378 | AO111: 0.1587 | AP111: 1.0968 | AQ111: 0.3858329958 | AR111: .. | AS111: 2.5794054 | AT111: 0.112215158 | AU111: 0.1543234 | AV111: 0.0337 | AW111: 1180.58 | AX111: .. | AY111: 38.89 | AZ111: .. | BA111: 165.9081117 | BB111: .. | BC111: 0.6837 | BD111: .. | BE111: 0.3979 | BF111: 11.5 | BG111: 60.5 | BH111: 36 | BI111: 35.5 | BJ111: 24 | BK111: 562.1779785 | BL111: 8.77 | BM111: 1056.45 | BN111: 250.2 | BO111: 3062.2 | BP111: 2074.5 | BQ111: 269 | BR111: 39.19 | BS111: 122.5 | BT111: 2.1946
A112: 1968M09 | B112: 1.32 | C112: 1.32 | D112: 1.32 | E112: .. | F112: .. | G112: .. | H112: 0.16 | I112: 0.4518018774 | J112: .. | K112: .. | L112: 0.7747 | M112: 0.8538 | N112: 0.749333 | O112: 0.7487 | P112: 0.6770413 | Q112: 0.7333334 | R112: 0.8357997 | S112: 375.6 | T112: .. | U112: .. | V112: 272.82 | W112: 141.73 | X112: .. | Y112: 105.35 | Z112: 161 | AA112: 99 | AB112: .. | AC112: .. | AD112: 24.69520969 | AE112: 44.09 | AF112: 47.3 | AG112: 175.8 | AH112: .. | AI112: .. | AJ112: .. | AK112: .. | AL112: 63.57 | AM112: .. | AN112: 0.1647 | AO112: 0.1587 | AP112: 1.1587 | AQ112: 0.3877028787 | AR112: .. | AS112: 2.5794054 | AT112: 0.112215158 | AU112: 0.1543234 | AV112: 0.0304 | AW112: 1228.75 | AX112: .. | AY112: 38.89 | AZ112: .. | BA112: 165.9081117 | BB112: .. | BC112: 0.6634 | BD112: .. | BE112: 0.3942 | BF112: 11.5 | BG112: 60.5 | BH112: 36 | BI112: 35.5 | BJ112: 24 | BK112: 562.1779785 | BL112: 8.77 | BM112: 1110.03 | BN112: 251.5 | BO112: 3071 | BP112: 2074.5 | BQ112: 263 | BR112: 40.18 | BS112: 122.5 | BT112: 2.2085
A113: 1968M10 | B113: 1.32 | C113: 1.32 | D113: 1.32 | E113: .. | F113: .. | G113: .. | H113: 0.16 | I113: 0.4518018774 | J113: .. | K113: .. | L113: 0.8305 | M113: 0.8545 | N113: 0.7400739 | O113: 0.7487 | P113: 0.6770413 | Q113: 0.7333334 | R113: 0.8357997 | S113: 373.7 | T113: .. | U113: .. | V113: 269.75 | W113: 141.73 | X113: .. | Y113: 104.17 | Z113: 166 | AA113: 98 | AB113: .. | AC113: .. | AD113: 24.88857438 | AE113: 44.88 | AF113: 48.8 | AG113: 163.72 | AH113: .. | AI113: .. | AJ113: .. | AK113: .. | AL113: 63.57 | AM113: .. | AN113: 0.1532 | AO113: 0.1587 | AP113: 1.1704 | AQ113: 0.3889008771 | AR113: .. | AS113: 2.5794054 | AT113: 0.112215158 | AU113: 0.15652802 | AV113: 0.039 | AW113: 1183.73 | AX113: .. | AY113: 38.89 | AZ113: .. | BA113: 165.9081117 | BB113: .. | BC113: 0.6563 | BD113: .. | BE113: 0.4103 | BF113: 11.5 | BG113: 60.5 | BH113: 36 | BI113: 35.5 | BJ113: 24 | BK113: 562.1779785 | BL113: 8.77 | BM113: 1079.82 | BN113: 247.8 | BO113: 3110.7 | BP113: 2074.5 | BQ113: 262.1 | BR113: 39.21 | BS113: 122.5 | BT113: 1.9728
A114: 1968M11 | B114: 1.32 | C114: 1.32 | D114: 1.32 | E114: .. | F114: .. | G114: .. | H114: 0.16 | I114: 0.4518018774 | J114: .. | K114: .. | L114: 0.9661 | M114: 0.8486 | N114: 0.7233191 | O114: 0.7487 | P114: 0.6770413 | Q114: 0.7333334 | R114: 0.8357997 | S114: 376 | T114: .. | U114: .. | V114: 284.63 | W114: 143.14 | X114: .. | Y114: 108.89 | Z114: 173 | AA114: 97 | AB114: .. | AC114: .. | AD114: 25.66779827 | AE114: 49.21 | AF114: 52 | AG114: 157.14 | AH114: .. | AI114: .. | AJ114: .. | AK114: .. | AL114: 63.2 | AM114: .. | AN114: 0.1373 | AO114: 0.1587 | AP114: 1.1034 | AQ114: 0.3901008409 | AR114: .. | AS114: 2.5794054 | AT114: 0.112215158 | AU114: 0.1543234 | AV114: 0.0509 | AW114: 1167.22 | AX114: .. | AY114: 38.89 | AZ114: .. | BA114: 165.9081117 | BB114: .. | BC114: 0.6345 | BD114: .. | BE114: 0.4176 | BF114: 11.5 | BG114: 60.5 | BH114: 36 | BI114: 35.5 | BJ114: 24 | BK114: 562.1779785 | BL114: 8.77 | BM114: 1099.88 | BN114: 248.5 | BO114: 3320.2 | BP114: 2074.5 | BQ114: 264.1 | BR114: 39.78 | BS114: 122.5 | BT114: 2.0178
A115: 1968M12 | B115: 1.32 | C115: 1.32 | D115: 1.32 | E115: .. | F115: .. | G115: .. | H115: 0.16 | I115: 0.4518018774 | J115: .. | K115: .. | L115: 1.0247 | M115: 0.8267 | N115: 0.7094303 | O115: 0.7487 | P115: 0.6770413 | Q115: 0.7333334 | R115: 0.8357997 | S115: 386.9 | T115: .. | U115: .. | V115: 320.06 | W115: 152.83 | X115: .. | Y115: 111.02 | Z115: 181 | AA115: 94 | AB115: .. | AC115: .. | AD115: 25.56693043 | AE115: 48.42 | AF115: 53.9 | AG115: 159.89 | AH115: .. | AI115: .. | AJ115: .. | AK115: .. | AL115: 63.2 | AM115: .. | AN115: 0.1338 | AO115: 0.1762 | AP115: 1.0897 | AQ115: 0.3909507187 | AR115: .. | AS115: 2.5794054 | AT115: 0.112215158 | AU115: 0.1543234 | AV115: 0.0602 | AW115: 1165.63 | AX115: .. | AY115: 38.89 | AZ115: .. | BA115: 165.9081117 | BB115: .. | BC115: 0.6246 | BD115: .. | BE115: 0.4162 | BF115: 11.5 | BG115: 60.5 | BH115: 36 | BI115: 35.5 | BJ115: 24 | BK115: 562.1779785 | BL115: 8.77 | BM115: 1184.98 | BN115: 250.2 | BO115: 3258.4 | BP115: 2074.5 | BQ115: 269 | BR115: 41.08 | BS115: 122.5 | BT115: 1.9593
A116: 1969M01 | B116: 1.27 | C116: 1.27 | D116: 1.27 | E116: .. | F116: .. | G116: .. | H116: 0.17 | I116: 0.4518199182 | J116: .. | K116: .. | L116: 0.9378 | M116: 0.8261 | N116: 0.7065644 | O116: 0.7262 | P116: 0.5964011 | Q116: 0.8626667 | R116: 0.7195997 | S116: 398.7 | T116: .. | U116: .. | V116: 319.59 | W116: 158.26 | X116: .. | Y116: 111.49 | Z116: 181 | AA116: 95 | AB116: .. | AC116: .. | AD116: 25.96496778 | AE116: 50.39 | AF116: 53.2 | AG116: 162.35 | AH116: .. | AI116: .. | AJ116: .. | AK116: .. | AL116: 63.2 | AM116: .. | AN116: 0.1418 | AO116: 0.145 | AP116: 1.0873 | AQ116: 0.3925064999 | AR116: .. | AS116: 2.866006 | AT116: 0.112215158 | AU116: 0.15652802 | AV116: 0.0635 | AW116: 1135.81 | AX116: .. | AY116: 38.89 | AZ116: .. | BA116: 165.9081117 | BB116: .. | BC116: 0.625 | BD116: .. | BE116: 0.4262 | BF116: 11.25 | BG116: 58 | BH116: 38.5 | BI116: 26.6 | BJ116: 22 | BK116: 573.2011719 | BL116: 9.84 | BM116: 1255.53 | BN116: 254.2 | BO116: 3227.6 | BP116: 2363.4 | BQ116: 269.4 | BR116: 42.3 | BS116: 122.5 | BT116: 1.9789
A117: 1969M02 | B117: 1.27 | C117: 1.27 | D117: 1.27 | E117: .. | F117: .. | G117: .. | H117: 0.17 | I117: 0.4518199182 | J117: .. | K117: .. | L117: 0.9105 | M117: 0.8419 | N117: 0.7081076 | O117: 0.7262 | P117: 0.5964011 | Q117: 0.8626667 | R117: 0.7195997 | S117: 396.4 | T117: .. | U117: .. | V117: 346.05 | W117: 158.26 | X117: .. | Y117: 109.36 | Z117: 185 | AA117: 95 | AB117: .. | AC117: .. | AD117: 25.93808894 | AE117: 50.39 | AF117: 54.1 | AG117: 160.48 | AH117: .. | AI117: .. | AJ117: .. | AK117: .. | AL117: 62.83 | AM117: .. | AN117: 0.1413 | AO117: 0.1493 | AP117: 1.0911 | AQ117: 0.3939871603 | AR117: .. | AS117: 2.866006 | AT117: 0.112215158 | AU117: 0.15652802 | AV117: 0.0688 | AW117: 1097.91 | AX117: .. | AY117: 38.89 | AZ117: .. | BA117: 165.9081117 | BB117: .. | BC117: 0.6283 | BD117: .. | BE117: 0.4707 | BF117: 11.25 | BG117: 58 | BH117: 38.5 | BI117: 26.6 | BJ117: 22 | BK117: 584.2243652 | BL117: 9.84 | BM117: 1285.29 | BN117: 258.4 | BO117: 3245.2 | BP117: 2363.4 | BQ117: 267.4 | BR117: 42.6 | BS117: 122.5 | BT117: 1.8397
A118: 1969M03 | B118: 1.27 | C118: 1.27 | D118: 1.27 | E118: .. | F118: .. | G118: .. | H118: 0.17 | I118: 0.4518199182 | J118: .. | K118: .. | L118: 0.8984 | M118: 0.8294 | N118: 0.6871642 | O118: 0.7262 | P118: 0.5964011 | Q118: 0.8626667 | R118: 0.7195997 | S118: 388.1 | T118: .. | U118: .. | V118: 347.82 | W118: 179.52 | X118: .. | Y118: 110.55 | Z118: 178 | AA118: 94 | AB118: .. | AC118: .. | AD118: 25.84218777 | AE118: 50.39 | AF118: 53.1 | AG118: 166.96 | AH118: .. | AI118: .. | AJ118: .. | AK118: .. | AL118: 62.1 | AM118: .. | AN118: 0.1521 | AO118: 0.1664 | AP118: 1.125 | AQ118: 0.3952945487 | AR118: .. | AS118: 2.866006 | AT118: 0.112215158 | AU118: 0.15873264 | AV118: 0.0774 | AW118: 1098.65 | AX118: .. | AY118: 38.89 | AZ118: .. | BA118: 165.9081117 | BB118: .. | BC118: 0.6283 | BD118: .. | BE118: 0.509 | BF118: 11.25 | BG118: 58 | BH118: 38.5 | BI118: 26.6 | BJ118: 22 | BK118: 584.2243652 | BL118: 9.84 | BM118: 1278.46 | BN118: 261.2 | BO118: 3243 | BP118: 2363.4 | BQ118: 271.6 | BR118: 43.16 | BS118: 122.5 | BT118: 1.8257
A119: 1969M04 | B119: 1.27 | C119: 1.27 | D119: 1.27 | E119: .. | F119: .. | G119: .. | H119: 0.17 | I119: 0.4518199182 | J119: .. | K119: .. | L119: 0.8759 | M119: 0.8135 | N119: 0.6589457 | O119: 0.7262 | P119: 0.5964011 | Q119: 0.8626667 | R119: 0.7195997 | S119: 376.3 | T119: .. | U119: .. | V119: 340.14 | W119: 170.07 | X119: .. | Y119: 110.07 | Z119: 167 | AA119: 95 | AB119: .. | AC119: .. | AD119: 26.09310282 | AE119: 51.57 | AF119: 51.9 | AG119: 165.2 | AH119: .. | AI119: .. | AJ119: .. | AK119: .. | AL119: 62.1 | AM119: .. | AN119: 0.1512 | AO119: 0.1845 | AP119: 1.1632 | AQ119: 0.3969652587 | AR119: .. | AS119: 2.866006 | AT119: 0.112215158 | AU119: 0.15873264 | AV119: 0.0805 | AW119: 1110.75 | AX119: .. | AY119: 38.89 | AZ119: .. | BA119: 165.9081117 | BB119: .. | BC119: 0.6272 | BD119: .. | BE119: 0.5192 | BF119: 11.25 | BG119: 58 | BH119: 38.5 | BI119: 26.6 | BJ119: 22 | BK119: 584.2243652 | BL119: 9.84 | BM119: 1388.03 | BN119: 268.3 | BO119: 3304.7 | BP119: 2363.4 | BQ119: 272.7 | BR119: 43.31 | BS119: 122.5 | BT119: 1.7781
A120: 1969M05 | B120: 1.27 | C120: 1.27 | D120: 1.27 | E120: .. | F120: .. | G120: .. | H120: 0.17 | I120: 0.4518199182 | J120: .. | K120: .. | L120: 0.8089 | M120: 0.8093 | N120: 0.6496865 | O120: 0.7262 | P120: 0.5964011 | Q120: 0.8626667 | R120: 0.7195997 | S120: 353.1 | T120: .. | U120: .. | V120: 345.17 | W120: 166.29 | X120: .. | Y120: 112.44 | Z120: 170 | AA120: 96 | AB120: .. | AC120: .. | AD120: 26.61187885 | AE120: 54.33 | AF120: 49.9 | AG120: 171.09 | AH120: .. | AI120: .. | AJ120: .. | AK120: .. | AL120: 62.1 | AM120: .. | AN120: 0.1739 | AO120: 0.176 | AP120: 1.241 | AQ120: 0.3986411416 | AR120: .. | AS120: 2.866006 | AT120: 0.112215158 | AU120: 0.15873264 | AV120: 0.0805 | AW120: 1114.63 | AX120: .. | AY120: 38.89 | AZ120: .. | BA120: 165.9081117 | BB120: .. | BC120: 0.6327 | BD120: .. | BE120: 0.4971 | BF120: 11.25 | BG120: 58 | BH120: 38.5 | BI120: 26.6 | BJ120: 22 | BK120: 584.2243652 | BL120: 9.84 | BM120: 1392.44 | BN120: 278.2 | BO120: 3355.4 | BP120: 2363.4 | BQ120: 278.9 | BR120: 43.46 | BS120: 122.5 | BT120: 1.761
A121: 1969M06 | B121: 1.27 | C121: 1.27 | D121: 1.27 | E121: .. | F121: .. | G121: .. | H121: 0.17 | I121: 0.4518199182 | J121: .. | K121: .. | L121: 0.8929 | M121: 0.795 | N121: 0.6772437 | O121: 0.7262 | P121: 0.5964011 | Q121: 0.8626667 | R121: 0.7195997 | S121: 339 | T121: .. | U121: .. | V121: 315.1 | W121: 165.35 | X121: .. | Y121: 109.6 | Z121: 173 | AA121: 99 | AB121: .. | AC121: .. | AD121: 26.58305778 | AE121: 54.33 | AF121: 49 | AG121: 178.75 | AH121: .. | AI121: .. | AJ121: .. | AK121: .. | AL121: 61.73 | AM121: .. | AN121: 0.1609 | AO121: 0.176 | AP121: 1.312 | AQ121: 0.4006716515 | AR121: .. | AS121: 2.866006 | AT121: 0.112215158 | AU121: 0.15873264 | AV121: 0.0803 | AW121: 1125.81 | AX121: .. | AY121: 38.89 | AZ121: .. | BA121: 165.9081117 | BB121: .. | BC121: 0.6248 | BD121: .. | BE121: 0.5126 | BF121: 11.25 | BG121: 58 | BH121: 38.5 | BI121: 26.6 | BJ121: 22 | BK121: 584.2243652 | BL121: 9.84 | BM121: 1483.04 | BN121: 285.5 | BO121: 3379.7 | BP121: 2363.4 | BQ121: 281.3 | BR121: 41.44 | BS121: 122.5 | BT121: 1.6455
A122: 1969M07 | B122: 1.27 | C122: 1.27 | D122: 1.27 | E122: .. | F122: .. | G122: .. | H122: 0.17 | I122: 0.4518199182 | J122: .. | K122: .. | L122: 0.9312 | M122: 0.7776 | N122: 0.6871642 | O122: 0.7262 | P122: 0.5964011 | Q122: 0.8626667 | R122: 0.7195997 | S122: 326.9 | T122: .. | U122: .. | V122: 323.37 | W122: 161.8 | X122: .. | Y122: 101.57 | Z122: 180 | AA122: 95 | AB122: .. | AC122: .. | AD122: 26.26711376 | AE122: 53.93 | AF122: 51.5 | AG122: 180.51 | AH122: .. | AI122: .. | AJ122: .. | AK122: .. | AL122: 60.26 | AM122: .. | AN122: 0.1539 | AO122: 0.176 | AP122: 1.3014 | AQ122: 0.4014746676 | AR122: .. | AS122: 2.866006 | AT122: 0.112215158 | AU122: 0.14991416 | AV122: 0.0765 | AW122: 1149.61 | AX122: .. | AY122: 38.89 | AZ122: .. | BA122: 165.9081117 | BB122: .. | BC122: 0.6138 | BD122: .. | BE122: 0.5437 | BF122: 11.25 | BG122: 58 | BH122: 40 | BI122: 26.6 | BJ122: 22 | BK122: 584.2243652 | BL122: 9.84 | BM122: 1453.95 | BN122: 311.1 | BO122: 3439.2 | BP122: 2363.4 | BQ122: 283.7 | BR122: 41.76 | BS122: 122.5 | BT122: 1.6183
A123: 1969M08 | B123: 1.27 | C123: 1.27 | D123: 1.27 | E123: .. | F123: .. | G123: .. | H123: 0.17 | I123: 0.4518199182 | J123: .. | K123: .. | L123: 0.9143 | M123: 0.8126 | N123: 0.724642 | O123: 0.7262 | P123: 0.5964011 | Q123: 0.8626667 | R123: 0.7195997 | S123: 330.7 | T123: .. | U123: .. | V123: 309.91 | W123: 171.49 | X123: .. | Y123: 99.21 | Z123: 181 | AA123: 96 | AB123: .. | AC123: .. | AD123: 25.42218031 | AE123: 53.54 | AF123: 54.2 | AG123: 171.58 | AH123: .. | AI123: .. | AJ123: .. | AK123: .. | AL123: 56.22 | AM123: .. | AN123: 0.1687 | AO123: 0.176 | AP123: 1.3748 | AQ123: 0.403169588 | AR123: .. | AS123: 2.866006 | AT123: 0.112215158 | AU123: 0.15873264 | AV123: 0.065 | AW123: 1121.04 | AX123: .. | AY123: 38.89 | AZ123: .. | BA123: 165.9081117 | BB123: .. | BC123: 0.5999 | BD123: .. | BE123: 0.5787 | BF123: 11.25 | BG123: 58 | BH123: 40 | BI123: 26.6 | BJ123: 22 | BK123: 584.2243652 | BL123: 9.84 | BM123: 1606.73 | BN123: 315.9 | BO123: 3470.1 | BP123: 2363.4 | BQ123: 293.9 | BR123: 41.09 | BS123: 122.5 | BT123: 1.6526
A124: 1969M09 | B124: 1.27 | C124: 1.27 | D124: 1.27 | E124: .. | F124: .. | G124: .. | H124: 0.17 | I124: 0.4518199182 | J124: .. | K124: .. | L124: 0.9008 | M124: 0.9026 | N124: 0.7630014 | O124: 0.7262 | P124: 0.5964011 | Q124: 0.8626667 | R124: 0.7195997 | S124: 332.6 | T124: .. | U124: .. | V124: 318.88 | W124: 180.94 | X124: .. | Y124: 100.86 | Z124: 200 | AA124: 92 | AB124: .. | AC124: .. | AD124: 24.53795139 | AE124: 51.18 | AF124: 56.8 | AG124: 167.55 | AH124: .. | AI124: .. | AJ124: .. | AK124: .. | AL124: 53.65 | AM124: .. | AN124: 0.1792 | AO124: 0.176 | AP124: 1.3203 | AQ124: 0.4039548734 | AR124: .. | AS124: 2.866006 | AT124: 0.112215158 | AU124: 0.15873264 | AV124: 0.0604 | AW124: 1096.94 | AX124: .. | AY124: 38.89 | AZ124: .. | BA124: 165.9081117 | BB124: .. | BC124: 0.6131 | BD124: .. | BE124: 0.5426 | BF124: 11.25 | BG124: 58 | BH124: 40 | BI124: 26.6 | BJ124: 22 | BK124: 584.2243652 | BL124: 9.84 | BM124: 1578.95 | BN124: 302.5 | BO124: 3470.1 | BP124: 2363.4 | BQ124: 299.4 | BR124: 40.87 | BS124: 122.5 | BT124: 1.7855
A125: 1969M10 | B125: 1.27 | C125: 1.27 | D125: 1.27 | E125: .. | F125: .. | G125: .. | H125: 0.17 | I125: 0.4518199182 | J125: .. | K125: .. | L125: 0.9186 | M125: 1.0401 | N125: 0.8450114 | O125: 0.7262 | P125: 0.5964011 | Q125: 0.8626667 | R125: 0.7195997 | S125: 336.6 | T125: .. | U125: .. | V125: 331.09 | W125: 203.14 | X125: .. | Y125: 102.99 | Z125: 240 | AA125: 92 | AB125: .. | AC125: .. | AD125: 24.37996013 | AE125: 51.87 | AF125: 57.4 | AG125: 167.36 | AH125: .. | AI125: .. | AJ125: .. | AK125: .. | AL125: 52.18 | AM125: .. | AN125: 0.1704 | AO125: 0.176 | AP125: 1.2324 | AQ125: 0.4054787207 | AR125: .. | AS125: 2.866006 | AT125: 0.112215158 | AU125: 0.16093726 | AV125: 0.065 | AW125: 1139.14 | AX125: .. | AY125: 38.89 | AZ125: .. | BA125: 165.9081117 | BB125: .. | BC125: 0.6272 | BD125: .. | BE125: 0.5027 | BF125: 11.25 | BG125: 58 | BH125: 40 | BI125: 26.6 | BJ125: 22 | BK125: 601.8613281 | BL125: 9.84 | BM125: 1554.48 | BN125: 293.7 | BO125: 3534 | BP125: 2363.4 | BQ125: 298.9 | BR125: 40.44 | BS125: 122.75 | BT125: 1.8725
A126: 1969M11 | B126: 1.27 | C126: 1.27 | D126: 1.27 | E126: .. | F126: .. | G126: .. | H126: 0.17 | I126: 0.4518199182 | J126: .. | K126: .. | L126: 0.9321 | M126: 1.0247 | N126: 0.8207611 | O126: 0.7262 | P126: 0.5964011 | Q126: 0.8626667 | R126: 0.7195997 | S126: 357.4 | T126: .. | U126: .. | V126: 346.64 | W126: 203.14 | X126: .. | Y126: 106.53 | Z126: 260 | AA126: 91 | AB126: .. | AC126: .. | AD126: 24.62875313 | AE126: 53.16 | AF126: 57.5 | AG126: 167.55 | AH126: .. | AI126: .. | AJ126: .. | AK126: .. | AL126: 52.18 | AM126: .. | AN126: 0.1642 | AO126: 0.176 | AP126: 1.2114 | AQ126: 0.4068182082 | AR126: .. | AS126: 2.866006 | AT126: 0.112215158 | AU126: 0.15873264 | AV126: 0.067 | AW126: 1096.38 | AX126: .. | AY126: 38.89 | AZ126: .. | BA126: 165.9081117 | BB126: .. | BC126: 0.6477 | BD126: .. | BE126: 0.4537 | BF126: 11.25 | BG126: 58 | BH126: 40 | BI126: 26.6 | BJ126: 22 | BK126: 606.2705078 | BL126: 9.84 | BM126: 1631.42 | BN126: 315.7 | BO126: 3642 | BP126: 2363.4 | BQ126: 309.5 | BR126: 37.4 | BS126: 132.5 | BT126: 1.9231
A127: 1969M12 | B127: 1.27 | C127: 1.27 | D127: 1.27 | E127: .. | F127: .. | G127: .. | H127: 0.17 | I127: 0.4518199182 | J127: .. | K127: .. | L127: 0.8512 | M127: 1.0479 | N127: 0.8284771 | O127: 0.7262 | P127: 0.5964011 | Q127: 0.8626667 | R127: 0.7195997 | S127: 399.4 | T127: .. | U127: .. | V127: 334.54 | W127: 255.11 | X127: .. | Y127: 106.29 | Z127: 251 | AA127: 96 | AB127: .. | AC127: .. | AD127: 24.54062762 | AE127: 52.36 | AF127: 56.5 | AG127: 161.07 | AH127: .. | AI127: .. | AJ127: .. | AK127: .. | AL127: 52.18 | AM127: .. | AN127: 0.1565 | AO127: 0.1632 | AP127: 1.2145 | AQ127: 0.4092876381 | AR127: .. | AS127: 2.866006 | AT127: 0.112215158 | AU127: 0.1543234 | AV127: 0.0622 | AW127: 1061.92 | AX127: .. | AY127: 38.89 | AZ127: .. | BA127: 165.9081117 | BB127: .. | BC127: 0.6559 | BD127: .. | BE127: 0.4702 | BF127: 11.25 | BG127: 58 | BH127: 40 | BI127: 26.6 | BJ127: 22 | BK127: 606.2705078 | BL127: 9.84 | BM127: 1699.76 | BN127: 334 | BO127: 3818.4 | BP127: 2363.4 | BQ127: 310.2 | BR127: 35.17 | BS127: 132.5 | BT127: 1.8071
A128: 1970M01 | B128: 1.21 | C128: 1.21 | D128: 1.21 | E128: .. | F128: 7.8 | G128: .. | H128: 0.17 | I128: 0.4472180101 | J128: .. | K128: .. | L128: 0.675 | M128: 1.1369 | N128: 0.8619865 | O128: 0.835 | P128: 0.6266412 | Q128: 0.9906667 | R128: 0.8875996 | S128: 405.8 | T128: .. | U128: .. | V128: 349.83 | W128: 255.34 | X128: .. | Y128: 107 | Z128: 252 | AA128: 101 | AB128: .. | AC128: .. | AD128: 25.52705957 | AE128: 58.4 | AF128: 51.8 | AG128: 140.45 | AH128: .. | AI128: .. | AJ128: .. | AK128: .. | AL128: 52.18 | AM128: .. | AN128: 0.1656 | AO128: 0.1696 | AP128: 1.2957 | AQ128: 0.4117242458 | AR128: .. | AS128: 2.7337288 | AT128: 0.112215158 | AU128: 0.1653465 | AV128: 0.0791 | AW128: 1078.11 | AX128: 42.99 | AY128: 38.89 | AZ128: 175 | BA128: 165.9081117 | BB128: .. | BC128: 0.6448 | BD128: .. | BE128: 0.5042 | BF128: 11 | BG128: 54 | BH128: 44 | BI128: 18.25 | BJ128: 31.5 | BK128: 606.2705078 | BL128: 9.84 | BM128: 1626.3 | BN128: 324.7 | BO128: 3842.7 | BP128: 2846.2 | BQ128: 302.4 | BR128: 34.94 | BS128: 132.5 | BT128: 1.8765
A129: 1970M02 | B129: 1.21 | C129: 1.21 | D129: 1.21 | E129: .. | F129: 7.8 | G129: .. | H129: 0.17 | I129: 0.4472180101 | J129: .. | K129: .. | L129: 0.675 | M129: 1.1453 | N129: 0.8474364 | O129: 0.835 | P129: 0.6266412 | Q129: 0.9906667 | R129: 0.8875996 | S129: 406.28 | T129: .. | U129: .. | V129: 346.99 | W129: 256.29 | X129: .. | Y129: 110 | Z129: 257 | AA129: 102 | AB129: .. | AC129: .. | AD129: 25.56943559 | AE129: 58.4 | AF129: 51.8 | AG129: 133.38 | AH129: .. | AI129: .. | AJ129: .. | AK129: .. | AL129: 52.18 | AM129: .. | AN129: 0.1744 | AO129: 0.1696 | AP129: 1.3338 | AQ129: 0.413331279 | AR129: .. | AS129: 2.7337288 | AT129: 0.112215158 | AU129: 0.16314188 | AV129: 0.069 | AW129: 1114.27 | AX129: 42.99 | AY129: 40.63 | AZ129: 175 | BA129: 169.8761521 | BB129: .. | BC129: 0.6516 | BD129: .. | BE129: 0.4797 | BF129: 11 | BG129: 54 | BH129: 44 | BI129: 18.25 | BJ129: 31.5 | BK129: 606.2705078 | BL129: 9.84 | BM129: 1657.2 | BN129: 341 | BO129: 3767.7 | BP129: 2846.2 | BQ129: 298 | BR129: 34.99 | BS129: 132.5 | BT129: 1.8958
A130: 1970M03 | B130: 1.21 | C130: 1.21 | D130: 1.21 | E130: .. | F130: 7.8 | G130: .. | H130: 0.17 | I130: 0.4472180101 | J130: .. | K130: .. | L130: 0.675 | M130: 1.1711 | N130: 0.8679388 | O130: 0.835 | P130: 0.6266412 | Q130: 0.9906667 | R130: 0.8875996 | S130: 406.28 | T130: .. | U130: .. | V130: 343.45 | W130: 258.88 | X130: .. | Y130: 111 | Z130: 268 | AA130: 97 | AB130: .. | AC130: .. | AD130: 25.61188195 | AE130: 58.4 | AF130: 51.8 | AG130: 126.31 | AH130: .. | AI130: .. | AJ130: .. | AK130: .. | AL130: 52.18 | AM130: .. | AN130: 0.1936 | AO130: 0.159 | AP130: 1.3461 | AQ130: 0.4138796461 | AR130: .. | AS130: 2.7337288 | AT130: 0.112215158 | AU130: 0.16093726 | AV130: 0.0745 | AW130: 1111.53 | AX130: 42.99 | AY130: 41.67 | AZ130: 175 | BA130: 172.2105768 | BB130: .. | BC130: 0.657 | BD130: .. | BE130: 0.4433 | BF130: 11 | BG130: 54 | BH130: 44 | BI130: 18.25 | BJ130: 31.5 | BK130: 606.2705078 | BL130: 9.84 | BM130: 1754 | BN130: 335.5 | BO130: 3796.4 | BP130: 2846.2 | BQ130: 296 | BR130: 35.09 | BS130: 132.5 | BT130: 1.8885
A131: 1970M04 | B131: 1.21 | C131: 1.21 | D131: 1.21 | E131: .. | F131: 7.8 | G131: .. | H131: 0.17 | I131: 0.4472180101 | J131: .. | K131: .. | L131: 0.675 | M131: 1.2028 | N131: 0.9129121 | O131: 0.835 | P131: 0.6266412 | Q131: 0.9906667 | R131: 0.8875996 | S131: 406.28 | T131: .. | U131: .. | V131: 358.57 | W131: 267.62 | X131: .. | Y131: 112 | Z131: 298 | AA131: 97 | AB131: .. | AC131: .. | AD131: 25.65439878 | AE131: 58.4 | AF131: 51.8 | AG131: 121.59 | AH131: .. | AI131: .. | AJ131: .. | AK131: .. | AL131: 52.18 | AM131: .. | AN131: 0.1713 | AO131: 0.1616 | AP131: 1.3622 | AQ131: 0.4153201367 | AR131: .. | AS131: 2.7337288 | AT131: 0.112215158 | AU131: 0.16093726 | AV131: 0.0787 | AW131: 1119.96 | AX131: 42.99 | AY131: 41.81 | AZ131: 175 | BA131: 172.5227697 | BB131: .. | BC131: 0.6618 | BD131: .. | BE131: 0.4202 | BF131: 11 | BG131: 54 | BH131: 44 | BI131: 18.25 | BJ131: 31.5 | BK131: 612.8842773 | BL131: 9.84 | BM131: 1741.6 | BN131: 321.2 | BO131: 3849.3 | BP131: 2846.2 | BQ131: 293.4 | BR131: 35.62 | BS131: 132.5 | BT131: 1.8529
A132: 1970M05 | B132: 1.21 | C132: 1.21 | D132: 1.21 | E132: .. | F132: 7.8 | G132: .. | H132: 0.17 | I132: 0.4472180101 | J132: .. | K132: .. | L132: 0.675 | M132: 1.217 | N132: 0.9400282 | O132: 0.835 | P132: 0.6266412 | Q132: 0.9906667 | R132: 0.8875996 | S132: 399.19 | T132: .. | U132: .. | V132: 383.84 | W132: 278.73 | X132: .. | Y132: 115 | Z132: 292 | AA132: 98 | AB132: .. | AC132: .. | AD132: 25.69698618 | AE132: 58.4 | AF132: 51.8 | AG132: 121.59 | AH132: .. | AI132: .. | AJ132: .. | AK132: .. | AL132: 52.18 | AM132: .. | AN132: 0.1892 | AO132: 0.159 | AP132: 1.3349 | AQ132: 0.4169484096 | AR132: .. | AS132: 2.7337288 | AT132: 0.112215158 | AU132: 0.16755112 | AV132: 0.0805 | AW132: 1074.77 | AX132: 42.99 | AY132: 43.5 | AZ132: 175 | BA132: 176.2541412 | BB132: .. | BC132: 0.6645 | BD132: .. | BE132: 0.4149 | BF132: 11 | BG132: 54 | BH132: 44 | BI132: 18.25 | BJ132: 31.5 | BK132: 617.2937012 | BL132: 9.84 | BM132: 1597.9 | BN132: 291.6 | BO132: 3736.8 | BP132: 2846.2 | BQ132: 291.7 | BR132: 35.95 | BS132: 132.5 | BT132: 1.67
A133: 1970M06 | B133: 1.21 | C133: 1.21 | D133: 1.21 | E133: .. | F133: 7.8 | G133: .. | H133: 0.17 | I133: 0.4472180101 | J133: .. | K133: .. | L133: 0.675 | M133: 1.2061 | N133: 0.9298873 | O133: 0.835 | P133: 0.6266412 | Q133: 0.9906667 | R133: 0.8875996 | S133: 389.74 | T133: .. | U133: .. | V133: 383.37 | W133: 277.07 | X133: .. | Y133: 118 | Z133: 288 | AA133: 102 | AB133: .. | AC133: .. | AD133: 25.73964429 | AE133: 58.4 | AF133: 51.8 | AG133: 123.95 | AH133: .. | AI133: .. | AJ133: .. | AK133: .. | AL133: 52.18 | AM133: .. | AN133: 0.1819 | AO133: 0.1563 | AP133: 1.2979 | AQ133: 0.4191157183 | AR133: .. | AS133: 2.7337288 | AT133: 0.112215158 | AU133: 0.16755112 | AV133: 0.0842 | AW133: 1047.34 | AX133: 42.99 | AY133: 44.44 | AZ133: 175 | BA133: 178.3007288 | BB133: .. | BC133: 0.666 | BD133: .. | BE133: 0.412 | BF133: 11 | BG133: 54 | BH133: 44 | BI133: 18.25 | BJ133: 31.5 | BK133: 617.2937012 | BL133: 9.84 | BM133: 1458 | BN133: 308.2 | BO133: 3542.8 | BP133: 2846.2 | BQ133: 293.2 | BR133: 35.42 | BS133: 132.5 | BT133: 1.6394
A134: 1970M07 | B134: 1.21 | C134: 1.21 | D134: 1.21 | E134: .. | F134: 7.8 | G134: .. | H134: 0.17 | I134: 0.4472180101 | J134: .. | K134: .. | L134: 0.675 | M134: 1.2121 | N134: 0.9424534 | O134: 0.835 | P134: 0.6266412 | Q134: 0.9906667 | R134: 0.8875996 | S134: 389.74 | T134: .. | U134: .. | V134: 385.73 | W134: 261.01 | X134: .. | Y134: 122 | Z134: 290 | AA134: 106 | AB134: .. | AC134: .. | AD134: 25.86384657 | AE134: 58.4 | AF134: 51.8 | AG134: 124.93 | AH134: .. | AI134: .. | AJ134: .. | AK134: .. | AL134: 52.54 | AM134: .. | AN134: 0.1479 | AO134: 0.1696 | AP134: 1.2928 | AQ134: 0.421266576 | AR134: .. | AS134: 2.7337288 | AT134: 0.112215158 | AU134: 0.16755112 | AV134: 0.0842 | AW134: 1065.43 | AX134: 42.99 | AY134: 44.44 | AZ134: 175 | BA134: 178.3007288 | BB134: .. | BC134: 0.6721 | BD134: .. | BE134: 0.3829 | BF134: 11 | BG134: 54 | BH134: 41 | BI134: 18.25 | BJ134: 31.5 | BK134: 617.2937012 | BL134: 9.84 | BM134: 1366.6 | BN134: 300.7 | BO134: 3498.7 | BP134: 2846.2 | BQ134: 298.1 | BR134: 35.32 | BS134: 132.5 | BT134: 1.6866
A135: 1970M08 | B135: 1.21 | C135: 1.21 | D135: 1.21 | E135: .. | F135: 7.8 | G135: .. | H135: 0.17 | I135: 0.4472180101 | J135: .. | K135: .. | L135: 0.675 | M135: 1.1828 | N135: 0.9446578 | O135: 0.835 | P135: 0.6266412 | Q135: 0.9906667 | R135: 0.8875996 | S135: 377.93 | T135: .. | U135: .. | V135: 392.11 | W135: 240.22 | X135: .. | Y135: 120 | Z135: 270 | AA135: 107 | AB135: .. | AC135: .. | AD135: 26.23691576 | AE135: 58.4 | AF135: 51.8 | AG135: 128.08 | AH135: .. | AI135: .. | AJ135: .. | AK135: .. | AL135: 54.01 | AM135: .. | AN135: 0.1598 | AO135: 0.1696 | AP135: 1.2469 | AQ135: 0.4229024924 | AR135: .. | AS135: 2.7337288 | AT135: 0.112215158 | AU135: 0.16755112 | AV135: 0.0841 | AW135: 1082.6 | AX135: 42.99 | AY135: 44.44 | AZ135: 175 | BA135: 178.3007288 | BB135: .. | BC135: 0.6826 | BD135: .. | BE135: 0.3713 | BF135: 11 | BG135: 54 | BH135: 41 | BI135: 18.25 | BJ135: 31.5 | BK135: 617.2937012 | BL135: 9.84 | BM135: 1266.5 | BN135: 285.4 | BO135: 3620 | BP135: 2846.2 | BQ135: 298.1 | BR135: 35.38 | BS135: 132.5 | BT135: 1.7977
A136: 1970M09 | B136: 1.21 | C136: 1.21 | D136: 1.21 | E136: .. | F136: 7.8 | G136: .. | H136: 0.17 | I136: 0.4472180101 | J136: .. | K136: .. | L136: 0.675 | M136: 1.1603 | N136: 0.9387055 | O136: 0.835 | P136: 0.6266412 | Q136: 0.9906667 | R136: 0.8875996 | S136: 381 | T136: .. | U136: .. | V136: 364.47 | W136: 226.29 | X136: .. | Y136: 119 | Z136: 276 | AA136: 106 | AB136: .. | AC136: .. | AD136: 26.76858157 | AE136: 58.4 | AF136: 51.8 | AG136: 125.72 | AH136: .. | AI136: .. | AJ136: .. | AK136: .. | AL136: 56.22 | AM136: .. | AN136: 0.1618 | AO136: 0.1696 | AP136: 1.28 | AQ136: 0.42420408 | AR136: .. | AS136: 2.7337288 | AT136: 0.112215158 | AU136: 0.16755112 | AV136: 0.0853 | AW136: 1071.75 | AX136: 42.99 | AY136: 44.44 | AZ136: 175 | BA136: 178.3007288 | BB136: .. | BC136: 0.6918 | BD136: .. | BE136: 0.3649 | BF136: 11 | BG136: 54 | BH136: 41 | BI136: 18.25 | BJ136: 31.5 | BK136: 617.2937012 | BL136: 9.84 | BM136: 1246.9 | BN136: 284.8 | BO136: 3646.4 | BP136: 2846.2 | BQ136: 300 | BR136: 36.19 | BS136: 132.5 | BT136: 1.8016
A137: 1970M10 | B137: 1.21 | C137: 1.21 | D137: 1.21 | E137: .. | F137: 7.8 | G137: .. | H137: 0.17 | I137: 0.4472180101 | J137: .. | K137: .. | L137: 0.675 | M137: 1.1197 | N137: 0.9415715 | O137: 0.835 | P137: 0.6266412 | Q137: 0.9906667 | R137: 0.8875996 | S137: 398.48 | T137: .. | U137: .. | V137: 390.22 | W137: 257.47 | X137: .. | Y137: 123 | Z137: 304 | AA137: 104 | AB137: .. | AC137: .. | AD137: 27.36867983 | AE137: 58.4 | AF137: 51.8 | AG137: 124.44 | AH137: .. | AI137: .. | AJ137: .. | AK137: .. | AL137: 58.79 | AM137: .. | AN137: 0.1693 | AO137: 0.1696 | AP137: 1.284 | AQ137: 0.4253340256 | AR137: .. | AS137: 2.7337288 | AT137: 0.112215158 | AU137: 0.16755112 | AV137: 0.0866 | AW137: 1025.76 | AX137: 42.99 | AY137: 44.44 | AZ137: 175 | BA137: 178.3007288 | BB137: .. | BC137: 0.6977 | BD137: .. | BE137: 0.3481 | BF137: 11 | BG137: 54 | BH137: 41 | BI137: 18.25 | BJ137: 31.5 | BK137: 617.2937012 | BL137: 9.84 | BM137: 1142.4 | BN137: 285.2 | BO137: 3668.5 | BP137: 2846.2 | BQ137: 296.5 | BR137: 37.52 | BS137: 132.5 | BT137: 1.7458
A138: 1970M11 | B138: 1.21 | C138: 1.21 | D138: 1.21 | E138: .. | F138: 7.8 | G138: .. | H138: 0.17 | I138: 0.4472180101 | J138: .. | K138: .. | L138: 0.675 | M138: 1.0278 | N138: 0.9159985 | O138: 0.835 | P138: 0.6266412 | Q138: 0.9906667 | R138: 0.8875996 | S138: 401.56 | T138: .. | U138: .. | V138: 406.28 | W138: 269.99 | X138: .. | Y138: 125 | Z138: 330 | AA138: 105 | AB138: .. | AC138: .. | AD138: 27.88019279 | AE138: 58.4 | AF138: 51.8 | AG138: 124.84 | AH138: .. | AI138: .. | AJ138: .. | AK138: .. | AL138: 60.99 | AM138: .. | AN138: 0.1497 | AO138: 0.1696 | AP138: 1.2703 | AQ138: 0.4269890174 | AR138: .. | AS138: 2.7337288 | AT138: 0.112215158 | AU138: 0.16314188 | AV138: 0.0901 | AW138: 1057.02 | AX138: 42.99 | AY138: 44.44 | AZ138: 175 | BA138: 178.3007288 | BB138: .. | BC138: 0.709 | BD138: .. | BE138: 0.3741 | BF138: 11 | BG138: 54 | BH138: 41 | BI138: 18.25 | BJ138: 31.5 | BK138: 617.2937012 | BL138: 9.84 | BM138: 1085.3 | BN138: 279.9 | BO138: 3615.6 | BP138: 2846.2 | BQ138: 293.2 | BR138: 37.44 | BS138: 132.5 | BT138: 1.7604
A139: 1970M12 | B139: 1.21 | C139: 1.21 | D139: 1.21 | E139: .. | F139: 7.8 | G139: .. | H139: 0.17 | I139: 0.4472180101 | J139: .. | K139: .. | L139: 0.675 | M139: 0.9775 | N139: 0.9190849 | O139: 0.835 | P139: 0.6266412 | Q139: 0.9906667 | R139: 0.8875996 | S139: 403.92 | T139: .. | U139: .. | V139: 437.69 | W139: 271.64 | X139: .. | Y139: 121 | Z139: 311 | AA139: 106 | AB139: .. | AC139: .. | AD139: 28.38636321 | AE139: 58.4 | AF139: 51.8 | AG139: 120.42 | AH139: .. | AI139: .. | AJ139: .. | AK139: .. | AL139: 63.2 | AM139: .. | AN139: 0.1285 | AO139: 0.1934 | AP139: 1.3069 | AQ139: 0.4286487867 | AR139: .. | AS139: 2.7337288 | AT139: 0.112215158 | AU139: 0.1653465 | AV139: 0.0906 | AW139: 1063.19 | AX139: 42.99 | AY139: 44.44 | AZ139: 175 | BA139: 178.3007288 | BB139: .. | BC139: 0.7165 | BD139: .. | BE139: 0.3704 | BF139: 11 | BG139: 54 | BH139: 41 | BI139: 18.25 | BJ139: 31.5 | BK139: 617.2937012 | BL139: 9.84 | BM139: 1045.7 | BN139: 276.7 | BO139: 3496.5 | BP139: 2846.2 | BQ139: 289.2 | BR139: 37.44 | BS139: 132.5 | BT139: 1.6348
A140: 1971M01 | B140: 1.64 | C140: 1.64 | D140: 1.64 | E140: .. | F140: 8.68 | G140: .. | H140: 0.18 | I140: 0.5022435438 | J140: .. | K140: .. | L140: 0.538 | M140: 1.0031 | N140: 0.9298873 | O140: 0.7797 | P140: 0.6383995 | Q140: 0.7991994 | R140: 0.9015996 | S140: 409.82 | T140: .. | U140: .. | V140: 448.32 | W140: 273.29 | X140: .. | Y140: 125 | Z140: 309 | AA140: 105 | AB140: .. | AC140: .. | AD140: 28.50975185 | AE140: 58.4 | AF140: 55.77 | AG140: 121.4 | AH140: .. | AI140: .. | AJ140: .. | AK140: .. | AL140: 63.57 | AM140: .. | AN140: 0.138 | AO140: 0.1319 | AP140: 1.3358 | AQ140: 0.4299664241 | AR140: 0.8026 | AS140: 3.30693 | AT140: 0.112215158 | AU140: 0.16975574 | AV140: 0.104 | AW140: 1045.91 | AX140: 44.43 | AY140: 44.44 | AZ140: .. | BA140: 178.3007288 | BB140: .. | BC140: 0.7275 | BD140: .. | BE140: 0.3534 | BF140: 11.25 | BG140: 57.5 | BH140: 40 | BI140: 16 | BJ140: 32.5 | BK140: 617.2937012 | BL140: 10.33 | BM140: 1010 | BN140: 262.5 | BO140: 3465.7 | BP140: 2932.1 | BQ140: 284.6 | BR140: 37.88 | BS140: 129 | BT140: 1.6396
A141: 1971M02 | B141: 1.64 | C141: 1.64 | D141: 1.64 | E141: .. | F141: 8.68 | G141: .. | H141: 0.18 | I141: 0.5022435438 | J141: .. | K141: .. | L141: 0.538 | M141: 0.9833 | N141: 0.9296668 | O141: 0.7781 | P141: 0.6695995 | Q141: 0.7631994 | R141: 0.9015996 | S141: 393.4 | T141: .. | U141: .. | V141: 479.5 | W141: 273.29 | X141: .. | Y141: 125 | Z141: 297 | AA141: 101 | AB141: .. | AC141: .. | AD141: 28.55707926 | AE141: 58.4 | AF141: 55.77 | AG141: 105.1 | AH141: .. | AI141: .. | AJ141: .. | AK141: .. | AL141: 63.57 | AM141: .. | AN141: 0.135 | AO141: 0.1462 | AP141: 1.3717 | AQ141: 0.4311503851 | AR141: 0.7913 | AS141: 3.30693 | AT141: 0.112215158 | AU141: 0.17416498 | AV141: 0.1063 | AW141: 1018.55 | AX141: 44.43 | AY141: 44.44 | AZ141: .. | BA141: 178.3007288 | BB141: .. | BC141: 0.7403 | BD141: .. | BE141: 0.3333 | BF141: 11.25 | BG141: 57.5 | BH141: 40 | BI141: 16 | BJ141: 32.5 | BK141: 617.2937012 | BL141: 10.33 | BM141: 1020.2 | BN141: 266.1 | BO141: 3463.5 | BP141: 2932.1 | BQ141: 272.1 | BR141: 38.74 | BS141: 122.5 | BT141: 1.6003
A142: 1971M03 | B142: 1.64 | C142: 1.64 | D142: 1.64 | E142: .. | F142: 8.68 | G142: .. | H142: 0.18 | I142: 0.5022435438 | J142: .. | K142: .. | L142: 0.538 | M142: 1.0143 | N142: 0.9406896 | O142: 0.7565 | P142: 0.7031994 | Q142: 0.6647995 | R142: 0.9015996 | S142: 401.56 | T142: .. | U142: .. | V142: 481.87 | W142: 278.02 | X142: .. | Y142: 124 | Z142: 300 | AA142: 100 | AB142: .. | AC142: .. | AD142: 28.4512035 | AE142: 58.4 | AF142: 55.77 | AG142: 98.91 | AH142: .. | AI142: .. | AJ142: .. | AK142: .. | AL142: 62.83 | AM142: .. | AN142: 0.137 | AO142: 0.1524 | AP142: 1.3812 | AQ142: 0.4328718594 | AR142: 0.7846 | AS142: 3.30693 | AT142: 0.112215158 | AU142: 0.17196036 | AV142: 0.1034 | AW142: 1020.68 | AX142: 44.43 | AY142: 44.44 | AZ142: .. | BA142: 178.3007288 | BB142: .. | BC142: 0.7275 | BD142: .. | BE142: 0.3353 | BF142: 11.25 | BG142: 57.5 | BH142: 40 | BI142: 16 | BJ142: 32.5 | BK142: 617.2937012 | BL142: 10.33 | BM142: 1144.1 | BN142: 267.4 | BO142: 3527.4 | BP142: 2932.1 | BQ142: 283.7 | BR142: 38.87 | BS142: 122.5 | BT142: 1.669
A143: 1971M04 | B143: 1.64 | C143: 1.64 | D143: 1.64 | E143: .. | F143: 8.68 | G143: .. | H143: 0.18 | I143: 0.5022435438 | J143: .. | K143: .. | L143: 0.538 | M143: 0.9894 | N143: 0.9400282 | O143: 1.0293 | P143: 0.6455995 | Q143: 1.540799 | R143: 0.9015996 | S143: 388.8 | T143: .. | U143: .. | V143: 462.97 | W143: 269.28 | X143: .. | Y143: 119 | Z143: 292 | AA143: 98 | AB143: .. | AC143: .. | AD143: 28.42129862 | AE143: 58.4 | AF143: 55.77 | AG143: 95.67 | AH143: .. | AI143: .. | AJ143: .. | AK143: .. | AL143: 62.46 | AM143: .. | AN143: 0.138 | AO143: 0.1711 | AP143: 1.4021 | AQ143: 0.4344097772 | AR143: 0.8191 | AS143: 3.30693 | AT143: 0.112215158 | AU143: 0.16975574 | AV143: 0.1005 | AW143: 1012.52 | AX143: 44.43 | AY143: 44.44 | AZ143: .. | BA143: 178.3007288 | BB143: .. | BC143: 0.7255 | BD143: .. | BE143: 0.356 | BF143: 11.25 | BG143: 57.5 | BH143: 40 | BI143: 16 | BJ143: 32.5 | BK143: 617.2937012 | BL143: 10.33 | BM143: 1251.5 | BN143: 268 | BO143: 3562.7 | BP143: 2932.1 | BQ143: 283.5 | BR143: 39.01 | BS143: 122.5 | BT143: 1.726
A144: 1971M05 | B144: 1.64 | C144: 1.64 | D144: 1.64 | E144: .. | F144: 8.68 | G144: .. | H144: 0.18 | I144: 0.5022435438 | J144: .. | K144: .. | L144: 0.538 | M144: 1.0183 | N144: 0.9400282 | O144: 0.9141 | P144: 0.6551995 | Q144: 1.185599 | R144: 0.9015996 | S144: 359.04 | T144: .. | U144: .. | V144: 453.52 | W144: 242.82 | X144: .. | Y144: 122 | Z144: 293 | AA144: 101 | AB144: .. | AC144: .. | AD144: 28.62275969 | AE144: 58.4 | AF144: 55.77 | AG144: 105.98 | AH144: .. | AI144: .. | AJ144: .. | AK144: .. | AL144: 63.2 | AM144: .. | AN144: 0.139 | AO144: 0.1542 | AP144: 1.4039 | AQ144: 0.4368926057 | AR144: 0.7898 | AS144: 3.30693 | AT144: 0.112215158 | AU144: 0.17416498 | AV144: 0.0961 | AW144: 1038.8 | AX144: 44.43 | AY144: 44.31 | AZ144: .. | BA144: 178.0188848 | BB144: .. | BC144: 0.7535 | BD144: .. | BE144: 0.3761 | BF144: 11.25 | BG144: 57.5 | BH144: 40 | BI144: 16 | BJ144: 32.5 | BK144: 617.2937012 | BL144: 10.33 | BM144: 1114.4 | BN144: 264.5 | BO144: 3520.8 | BP144: 2932.1 | BQ144: 287.7 | BR144: 40.52 | BS144: 122.5 | BT144: 1.6667
A145: 1971M06 | B145: 1.64 | C145: 1.64 | D145: 1.64 | E145: .. | F145: 8.68 | G145: .. | H145: 0.18 | I145: 0.5022435438 | J145: .. | K145: .. | L145: 0.538 | M145: 1.0022 | N145: 0.9340759 | O145: 0.8533 | P145: 0.6359995 | Q145: 1.022399 | R145: 0.9015996 | S145: 354.31 | T145: .. | U145: .. | V145: 441.24 | W145: 240.93 | X145: .. | Y145: 127 | Z145: 310 | AA145: 104 | AB145: .. | AC145: .. | AD145: 28.28417917 | AE145: 58.4 | AF145: 55.77 | AG145: 109.22 | AH145: .. | AI145: .. | AJ145: .. | AK145: .. | AL145: 61.36 | AM145: .. | AN145: 0.137 | AO145: 0.1542 | AP145: 1.3711 | AQ145: 0.4393730459 | AR145: 0.7582 | AS145: 3.30693 | AT145: 0.112215158 | AU145: 0.1763696 | AV145: 0.0915 | AW145: 1035.09 | AX145: 44.43 | AY145: 43.26 | AZ145: .. | BA145: 175.7283573 | BB145: .. | BC145: 0.7923 | BD145: .. | BE145: 0.3424 | BF145: 11.25 | BG145: 57.5 | BH145: 40 | BI145: 16 | BJ145: 32.5 | BK145: 617.2937012 | BL145: 10.33 | BM145: 1074.2 | BN145: 273.3 | BO145: 3448 | BP145: 2932.1 | BQ145: 308.6 | BR145: 40.1 | BS145: 122.5 | BT145: 1.6081
A146: 1971M07 | B146: 1.74 | C146: 1.74 | D146: 1.74 | E146: .. | F146: 8.68 | G146: .. | H146: 0.18 | I146: 0.5022435438 | J146: .. | K146: .. | L146: 0.538 | M146: 0.9927 | N146: 0.928344 | O146: 0.9077 | P146: 0.6335995 | Q146: 1.187999 | R146: 0.9015996 | S146: 351.01 | T146: .. | U146: .. | V146: 439.58 | W146: 263.37 | X146: .. | Y146: 134 | Z146: 336 | AA146: 107 | AB146: .. | AC146: .. | AD146: 28.33113213 | AE146: 58.4 | AF146: 55.77 | AG146: 111.48 | AH146: .. | AI146: .. | AJ146: .. | AK146: .. | AL146: 61.36 | AM146: .. | AN146: 0.136 | AO146: 0.1542 | AP146: 1.3479 | AQ146: 0.441851845 | AR146: 0.7524 | AS146: 3.30693 | AT146: 0.112215158 | AU146: 0.1763696 | AV146: 0.092 | AW146: 1011.61 | AX146: 44.43 | AY146: 41.94 | AZ146: .. | BA146: 172.8122327 | BB146: .. | BC146: 0.7965 | BD146: .. | BE146: 0.3314 | BF146: 11.25 | BG146: 66 | BH146: 46.5 | BI146: 16 | BJ146: 32.5 | BK146: 617.2937012 | BL146: 10.33 | BM146: 1115.3 | BN146: 261.9 | BO146: 3456.8 | BP146: 2932.1 | BQ146: 317.6 | BR146: 40.95 | BS146: 122.5 | BT146: 1.5808
A147: 1971M08 | B147: 1.74 | C147: 1.74 | D147: 1.74 | E147: .. | F147: 8.68 | G147: .. | H147: 0.18 | I147: 0.5022435438 | J147: .. | K147: .. | L147: 0.538 | M147: 1.0051 | N147: 0.9298873 | O147: 0.8626 | P147: 0.7128694 | Q147: 0.9732005 | R147: 0.9015996 | S147: 355.49 | T147: .. | U147: .. | V147: 439.64 | W147: 282.56 | X147: .. | Y147: 131 | Z147: 335 | AA147: 108 | AB147: .. | AC147: .. | AD147: 28.29951031 | AE147: 58.4 | AF147: 55.77 | AG147: 113.35 | AH147: .. | AI147: .. | AJ147: .. | AK147: .. | AL147: 60.99 | AM147: .. | AN147: 0.145 | AO147: 0.1542 | AP147: 1.3241 | AQ147: 0.4439813006 | AR147: 0.7502 | AS147: 3.30693 | AT147: 0.113758392 | AU147: 0.17857422 | AV147: 0.0937 | AW147: 1001.25 | AX147: 44.43 | AY147: 42.19 | AZ147: .. | BA147: 173.3677348 | BB147: .. | BC147: 0.8289 | BD147: .. | BE147: 0.3157 | BF147: 11.25 | BG147: 66 | BH147: 46.5 | BI147: 16 | BJ147: 32.5 | BK147: 628.3166504 | BL147: 10.33 | BM147: 1097.9 | BN147: 258.3 | BO147: 3478.9 | BP147: 2932.1 | BQ147: 322.5 | BR147: 42.71 | BS147: 122.5 | BT147: 1.5866
A148: 1971M09 | B148: 1.74 | C148: 1.74 | D148: 1.74 | E148: .. | F148: 8.68 | G148: .. | H148: 0.18 | I148: 0.5022435438 | J148: .. | K148: .. | L148: 0.538 | M148: 0.9645 | N148: 0.9243758 | O148: 0.8546 | P148: 0.7260927 | Q148: 0.9360174 | R148: 0.9015996 | S148: 356.72 | T148: .. | U148: .. | V148: 429.75 | W148: 272.24 | X148: .. | Y148: 124 | Z148: 296 | AA148: 99 | AB148: .. | AC148: .. | AD148: 28.34648871 | AE148: 58.4 | AF148: 55.77 | AG148: 120.61 | AH148: .. | AI148: .. | AJ148: .. | AK148: .. | AL148: 60.99 | AM148: .. | AN148: 0.147 | AO148: 0.1542 | AP148: 1.2968 | AQ148: 0.4442880161 | AR148: 0.7901 | AS148: 3.30693 | AT148: 0.115522088 | AU148: 0.17416498 | AV148: 0.0879 | AW148: 1042.75 | AX148: 44.43 | AY148: 43.12 | AZ148: .. | BA148: 175.4210303 | BB148: .. | BC148: 0.8267 | BD148: .. | BE148: 0.3232 | BF148: 11.25 | BG148: 66 | BH148: 46.5 | BI148: 16 | BJ148: 32.5 | BK148: 639.3398438 | BL148: 10.33 | BM148: 1056.4 | BN148: 239.2 | BO148: 3525.2 | BP148: 2932.1 | BQ148: 311.2 | BR148: 42.03 | BS148: 122.5 | BT148: 1.4214
